{"text_format":"2","workbook":"xlsx","n_sheets":1,"sheets":["Приложение"],"not_rendered":{"charts":0,"images":0,"macros":0,"external_links":0,"defined_names":2,"comments":1,"pivot_tables":0},"unopened":[],"bounds":{"document_bytes":16777216,"sheet_cells":100000,"run_cost":"one","rows_first":2000,"rows_last":500,"rows_between":2000,"halvings":0,"cell_chars":16384,"cell_head_chars":4096},"cells_cut":0,"cells_raw":0,"read":"whole","date_system":"1900"}

{"sheet":"Приложение","index":0,"n_rows":1127,"n_cols":27,"rows_kept":1127,"cut":false,"hidden":false,"merged":[[54,5,56,5],[57,5,58,5],[37,5,39,5],[44,5,45,5],[44,4,45,4],[3,16,3,25],[28,5,30,5],[63,5,64,5],[59,5,60,5],[37,4,39,4],[46,1,47,1],[74,2,75,2],[54,2,56,2],[78,2,79,2],[99,2,100,2],[108,2,109,2],[80,2,81,2],[78,4,79,4],[57,4,58,4],[63,4,64,4],[49,3,53,3],[59,3,60,3],[78,3,79,3],[108,3,109,3],[99,3,100,3],[99,4,100,4],[91,4,92,4],[80,4,81,4],[121,2,122,2],[59,2,60,2],[5,2,6,2],[46,2,47,2],[10,2,15,2],[91,2,92,2],[37,2,39,2],[41,2,43,2],[44,2,45,2],[63,2,64,2],[28,2,30,2],[49,2,53,2],[106,2,107,2],[115,2,116,2],[94,2,98,2],[89,2,90,2],[119,2,120,2],[57,2,58,2],[41,3,43,3],[28,3,30,3],[54,3,56,3],[57,3,58,3],[94,3,98,3],[91,3,92,3],[106,3,107,3],[89,3,90,3],[5,3,6,3],[46,3,47,3],[10,3,15,3],[74,3,75,3],[63,3,64,3],[37,3,39,3],[80,3,81,3],[44,3,45,3],[115,1,116,1],[91,1,92,1],[5,1,6,1],[37,1,39,1],[121,1,122,1],[80,1,81,1],[63,1,64,1],[119,1,120,1],[78,1,79,1],[10,1,15,1],[28,1,30,1],[41,1,43,1],[70,1,71,1],[49,1,53,1],[106,1,107,1],[54,1,56,1],[44,1,45,1],[108,1,109,1],[59,1,60,1],[94,1,98,1],[99,1,100,1],[57,1,58,1],[74,1,75,1],[89,1,90,1],[123,1,124,1],[780,1,781,1],[768,1,769,1],[714,1,717,1],[880,1,881,1],[796,1,797,1],[524,1,530,1],[614,1,617,1],[786,1,787,1],[595,1,597,1],[740,1,742,1],[794,1,795,1],[819,1,820,1],[851,1,852,1],[867,1,868,1],[609,1,612,1],[799,1,800,1],[632,1,636,1],[877,1,878,1],[790,1,791,1],[123,4,124,4],[595,4,597,4],[524,4,530,4],[614,4,617,4],[804,4,805,4],[790,4,791,4],[846,4,849,4],[809,4,810,4],[867,4,868,4],[714,4,717,4],[173,4,187,4],[799,4,800,4],[794,4,795,4],[796,4,797,4],[786,4,787,4],[806,4,807,4],[819,4,820,4],[780,4,781,4],[801,4,802,4],[851,4,852,4],[189,4,197,4],[719,4,722,4],[609,4,612,4],[811,4,812,4],[915,3,917,3],[886,3,887,3],[806,3,807,3],[877,3,878,3],[614,3,617,3],[809,3,810,3],[790,3,791,3],[990,3,1013,3],[173,3,187,3],[867,3,868,3],[719,3,722,3],[796,3,797,3],[609,3,612,3],[956,3,958,3],[801,3,802,3],[794,3,795,3],[851,3,852,3],[595,3,597,3],[888,3,889,3],[811,3,812,3],[189,3,197,3],[846,3,849,3],[786,3,787,3],[799,3,800,3],[819,3,820,3],[892,3,893,3],[123,3,124,3],[524,3,530,3],[899,3,900,3],[909,3,913,3],[123,2,124,2],[886,2,887,2],[956,2,958,2],[909,2,913,2],[867,2,868,2],[799,2,800,2],[638,2,642,2],[806,2,807,2],[888,2,889,2],[189,2,197,2],[595,2,597,2],[173,2,187,2],[790,2,791,2],[899,2,900,2],[880,2,881,2],[765,2,766,2],[882,2,883,2],[846,2,849,2],[1019,2,1020,2],[819,2,820,2],[609,2,612,2],[524,2,530,2],[736,2,738,2],[768,2,769,2],[780,2,781,2],[614,2,617,2],[915,2,917,2],[796,2,797,2],[719,2,722,2],[811,2,812,2],[740,2,742,2],[632,2,636,2],[961,2,974,2],[990,2,1013,2],[804,2,805,2],[786,2,787,2],[714,2,717,2],[877,2,878,2],[851,2,852,2],[801,2,802,2],[925,2,926,2],[794,2,795,2],[809,2,810,2],[173,1,187,1],[846,1,849,1],[801,1,802,1],[804,1,805,1],[189,1,197,1],[990,1,1013,1],[956,1,958,1],[961,1,974,1],[925,1,926,1],[882,1,883,1],[811,1,812,1],[909,1,913,1],[809,1,810,1],[915,1,917,1],[736,1,738,1],[765,1,766,1],[638,1,642,1],[806,1,807,1],[719,1,722,1],[886,1,887,1],[899,1,900,1],[189,5,197,5],[632,5,636,5],[609,5,612,5],[915,5,917,5],[714,5,717,5],[719,5,722,5],[990,5,1013,5],[768,5,769,5],[89,5,90,5],[880,5,881,5],[888,5,889,5],[925,5,926,5],[899,5,900,5],[877,5,878,5],[801,5,802,5],[736,5,738,5],[123,5,124,5],[799,5,800,5],[121,5,122,5],[119,5,120,5],[115,5,116,5],[108,5,109,5],[106,5,107,5],[99,5,100,5],[173,6,187,6],[956,5,958,5],[804,5,805,5],[846,5,849,5],[809,5,810,5],[780,5,781,5],[765,5,766,5],[78,5,79,5],[882,5,883,5],[806,5,807,5],[614,5,617,5],[638,5,642,5],[796,5,797,5],[794,5,795,5],[886,5,887,5],[892,5,893,5],[790,5,791,5],[595,5,597,5],[524,5,530,5],[173,5,187,5],[909,5,913,5],[740,5,742,5],[80,5,81,5],[867,5,868,5],[736,6,738,6],[851,6,852,6],[915,6,917,6],[524,6,530,6],[632,6,636,6],[614,6,617,6],[609,6,612,6],[961,6,974,6],[990,6,1013,6],[714,6,717,6],[189,6,197,6],[765,6,766,6],[925,6,926,6],[846,6,849,6],[909,6,913,6],[595,6,597,6],[1019,3,1020,3],[961,3,974,3],[929,3,930,3],[925,3,926,3],[882,3,883,3],[880,3,881,3],[804,3,805,3],[780,3,781,3],[768,3,769,3],[765,3,766,3],[740,3,742,3],[736,3,738,3],[714,3,717,3],[719,6,722,6],[638,6,642,6],[768,6,769,6],[740,6,742,6],[736,4,738,4],[740,4,742,4],[765,4,766,4],[768,4,769,4],[880,4,881,4],[882,4,883,4],[892,4,893,4],[899,4,900,4],[909,4,913,4],[888,4,889,4],[877,4,878,4],[886,4,887,4],[892,0,893,0],[888,0,889,0],[819,0,820,0],[786,0,787,0],[740,0,742,0],[1128,6,1128,16],[1126,6,1126,16],[990,4,1013,4],[1019,4,1020,4],[915,4,917,4],[925,4,926,4],[956,4,958,4],[961,4,974,4],[819,6,820,6],[1019,6,1020,6],[961,5,974,5],[819,5,820,5],[851,5,852,5],[811,5,812,5],[1019,5,1020,5],[1019,1,1020,1],[892,1,893,1],[888,1,889,1],[892,2,893,2],[1019,0,1020,0],[780,0,781,0],[768,0,769,0],[736,0,738,0],[173,0,187,0],[57,0,58,0],[851,0,852,0],[790,0,791,0],[91,0,92,0],[925,0,926,0],[719,0,722,0],[595,0,597,0],[801,0,802,0],[880,0,881,0],[909,0,913,0],[956,0,958,0],[115,0,116,0],[598,0,600,0],[796,0,797,0],[846,0,849,0],[614,0,617,0],[961,0,974,0],[80,0,81,0],[63,0,64,0],[990,0,1013,0],[89,0,90,0],[99,0,100,0],[41,0,43,0],[94,0,98,0],[809,0,810,0],[59,0,60,0],[78,0,79,0],[54,0,56,0],[524,0,530,0],[609,0,612,0],[106,0,107,0],[899,0,900,0],[49,0,53,0],[44,0,45,0],[46,0,47,0],[799,0,800,0],[74,0,75,0],[867,0,868,0],[886,0,887,0],[915,0,917,0],[811,0,812,0],[189,0,197,0],[804,0,805,0],[5,0,6,0],[28,0,30,0],[765,0,766,0],[10,0,15,0],[37,0,39,0],[794,0,795,0],[882,0,883,0],[806,0,807,0],[714,0,717,0],[108,0,109,0],[119,0,120,0],[123,0,124,0],[74,5,75,5],[0,16,0,25],[5,10,5,25],[4,4,4,10],[5,4,6,4],[5,6,6,6],[5,7,5,9],[5,5,6,5],[10,4,15,4],[10,5,15,5],[2,16,2,25],[28,4,30,4],[74,4,75,4],[59,4,60,4],[54,4,56,4],[46,4,47,4],[41,4,43,4],[49,4,53,4],[74,25,75,25],[49,6,50,6],[52,6,53,6],[46,5,47,5],[41,5,43,5],[49,5,53,5],[121,3,122,3],[78,6,79,6],[106,4,107,4],[115,4,116,4],[94,4,98,4],[121,4,122,4],[119,4,120,4],[108,4,109,4],[96,6,98,6],[94,6,95,6],[89,4,90,4],[119,3,120,3],[115,3,116,3],[94,5,98,5],[91,5,92,5],[74,14,75,14],[74,13,75,13],[74,12,75,12],[78,19,79,19],[121,6,122,6],[121,8,122,8],[121,7,122,7],[121,9,122,9],[121,10,122,10],[121,11,122,11],[78,7,79,7],[78,8,79,8],[78,9,79,9],[78,10,79,10],[78,11,79,11],[74,10,75,10],[74,9,75,9],[74,8,75,8],[74,7,75,7],[74,6,75,6],[74,11,75,11],[74,23,75,23],[74,22,75,22],[74,21,75,21],[74,20,75,20],[121,15,122,15],[121,14,122,14],[121,13,122,13],[121,12,122,12],[78,16,79,16],[78,17,79,17],[78,18,79,18],[121,19,122,19],[121,18,122,18],[121,17,122,17],[121,16,122,16],[78,12,79,12],[78,13,79,13],[78,14,79,14],[78,15,79,15],[74,19,75,19],[74,18,75,18],[74,17,75,17],[74,16,75,16],[74,15,75,15],[78,25,79,25],[78,21,79,21],[78,22,79,22],[78,20,79,20],[121,25,122,25],[121,23,122,23],[121,22,122,22],[121,21,122,21],[121,20,122,20]]}
[{"$nulls":16},"                                                                                                                                                                            \" ПРИЛОЖЕНИЕ № 1"]
[]
[{"$nulls":16},"                                                                                                                                                                                    к государственной программе Забайкальского края"]
[null,"Основные мероприятия, мероприятия,  показатели и объемы финансирования государственной программы Забайкальского края \"Экономическое развитие\"",{"$nulls":14},"                                                                                                                                                                                \"Экономическое развитие\""]
[]
["№","Наименование целей, задач, подпрограмм, основных мероприятий, мероприятий, ведомственных целевых программ, показателей","Единица измерения показателя","Коэффициент значимости","Методика расчета показателя","Сроки реализации, годы","Ответственный исполнитель и соисполнители","Коды бюджетной классификации расходов",null,null,"Значения по годам реализации"]
[{"$nulls":7},"Главный раздел, подраздел","Целевая статья","Вид расходов",2012,2013,2014,2015,2016,2017,2018,2019,2020,2021,2022,2023,2024,2025,2026,"Итого"]
["гр.1","гр.2","гр.3","гр.4","гр.5","гр.6","гр.7","гр.8","гр.9","гр.10","гр.11","гр.12","гр.13","гр.14","гр.15","гр.16","гр.17","гр.18","гр.19","гр.20","гр.21","гр.22","гр.23","гр.24","гр.25","гр.26"]
[]
[null,"Цель \"Создание условий для устойчивого роста экономики Забайкальского края\"",{"$nulls":10},{"$f":"M11+M18","v":321642.59338999999},620902.94564999989,367178.59079000005,336748.11703999998,440092.34924000001,1151767.5796399999,601651.63,612319.01632000005,2207420.4419,1503764.6,2389038.6,525350.19999999995,{"$f":"Y11+Y18","v":0},{"$f":"SUM(M10:X10)","v":11077876.663969999}]
[null,"финансирование за счет краевого бюджета             ","тыс.рублей","Х","Х","Х","ВСЕГО","Х","Х","Х","Х","Х",{"$f":"M12+M13+M14+M15+M16","v":117603.87119999999},296848.03784999996,290456.61379000003,303201.13133,391740.94923999999,420424.07963999995,446393.82999999996,507329.71632000001,1473898.5419000001,1401942,2098248.4,525236.89999999991,{"$f":"Y12+Y13+Y14+Y15+Y16","v":0},8273324.0712700002]
[{"$nulls":6},"Министерство экономического развития Забайкальского края","Х","Х","Х","Х","Х",{"$f":"M142+M781+M833+M869+M985","v":75461.771200000003},{"$f":"N142+N781+N833+N869+N958+N985","v":253654.43784999999},{"$f":"O142+O833+O869+O958+O985","v":274065.71379000001},{"$f":"P30+P142+P833+P869+P950+P985","v":303156.33133000002},{"$f":"Q30+Q142+Q781+Q833+Q869+Q985","v":391740.94923999999},{"$f":"R30+R142++R781+R833+R869+R985+R1025","v":408424.07963999995},{"$f":"S30+S142+S833+S869+S985+S1025+S781","v":433206.62999999995},{"$f":"T30+T142+T833+T869+T985+T1025","v":490906.31631999998},{"$f":"U30+U142+U833+U869+U985+U1025","v":515715.20189999999},{"$f":"V30+V142+V833+V869+V985+V1025","v":514906},{"$f":"W30+W142+W833+W869+W985+W1025","v":452545.7},{"$f":"X30+X142+X833+X869+X985+X1025","v":501981.19999999995},{"$f":"Y30+Y1042+Y833+Y869+Y985+Y1025","v":0},4615764.33127]
[{"$nulls":6},"Министерство финансов Забайкальского края","Х","Х","Х","Х","Х",{"$f":"M29","v":22524.7},{"$f":"N29","v":20250},{"$f":"O29","v":16375.9},{"$f":"P29","v":29.8},0,0,0,0,0,0,0,0,0,59180.4]
[{"$nulls":6},"Департамент государственных закупок Забайкальского края","Х","Х","Х","Х","Х",{"$f":"M950","v":19617.400000000001},{"$f":"N959","v":22943.599999999999},0,0,0,0,0,0,0,0,0,0,0,42561]
[{"$nulls":6},"Департамент государственного имущества и земельных отношений Забайкальского края","Х","Х","Х","Х","Х",0,0,{"$f":"O781","v":15},{"$f":"P781","v":15},0,0,0,0,0,0,0,0,0,30]
[{"$nulls":6},"Министерство по социальному, экономическому, инфраструктурному, пространственному планированию и развитию Забайкальского края (далее - Комитет по планированию и развитию Забайкальского края)","Х","Х","Х","Х","Х",0,0,0,0,0,{"$f":"R31","v":12000},{"$f":"S31+S781","v":13187.2},{"$f":"T31+T781+T868","v":16423.400000000001},{"$f":"U31+U781+U868","v":958183.34000000008},{"$f":"V31+V782+V868","v":887036},{"$f":"W31+W782","v":1645702.7},{"$f":"X31+X782","v":23255.699999999997},{"$f":"Y31+Y782","v":0},3555788.34]
[null,"кроме того, финансирование из других источников:","тыс.рублей","Х","Х","Х","Х","Х","Х","Х","Х","Х",{"$f":"SUM(M18:M20)","v":204038.72219},324054.90779999999,76721.977000000014,33546.985709999994,48351.4,731343.5,155257.80000000002,104989.3,733521.9,101822.59999999999,290790.2,113.3,{"$f":"SUM(Y18:Y20)","v":0},2804552.5927000004]
[null," - из федерального бюджета","тыс.рублей","Х","Х","Х","Х","Х","Х","Х","Х","Х",{"$f":"204038.72+0.00219","v":204038.72219},{"$f":"N144+N835+N871","v":324054.90779999999},76721.977000000014,33546.985709999994,48351.4,731343.5,155257.80000000002,104989.3,{"$f":"U144+U835+U871+U1027+U129","v":733521.9},{"$f":"V144+V835+V871+V1027","v":101822.59999999999},{"$f":"W144+W835+W871+W1027","v":290790.2},{"$f":"X144+X835+X871+X1027","v":113.3},{"$f":"Y144+Y835+Y871+Y1027","v":0},2804552.5927000004]
[null," - из местных бюджетов","тыс.рублей","Х","Х","Х","Х","Х","Х","Х","Х","Х",0,0,0,0,0,0,0,0,0,0,0,0,0,0]
[null," - из внебюджетных источников","тыс.рублей","Х","Х","Х","Х","Х","Х","Х","Х","Х",0,0,0,0,0,0,0,0,0,0,0,0,0,0]
[null,"Показатель \"Индекс физического объема валового регионального продукта, в % к предыдущему году\"","%",1,"Определяется как отношение абсолютного объема валового регионального продукта двух рассматриваемых периодов в постоянных ценах","Х","Х","Х","Х","Х",102.2,98.1,94.2,99.1,100.1,104.2,101.1,102.4,104.5,105.4,101.9,101.5,103.6,103.9,"Х","Х"]
[null,"Показатель \"Объем инвестиций в основной капитал (за счет всех источников финансирования)\"","млн.рублей",1,"Х","Х","Х","Х","Х","Х",67595.801000000007,57460.953999999998,69504.944000000003,76281.788,85702.399999999994,96324.45,90011.519,96182.444000000003,126879.966,163401.06299999999,182104.7,202684.19452849799,226925.680233544,252764.98127956101,"Х","Х"]
[null,"Показатель \"Количество субъектов малого и среднего предпринимательства (включая индивидуальных предпринимателей) в расчете на 1 тыс. человек населения Забайкальского края\"","ед.",1,"Абсолютный показатель","Х","Х","Х","Х","Х",33.1,29.2,30,31,31,24,25,30,26,"Х","Х","Х","Х","Х","Х","Х"]
[null,"Показатель \"Численность занятых в сфере малого и среднего предпринимательства, включая индивидуальных предпринимателей и самозанятых\" ","чел.",1,"Абсолютный показатель","Х","Х","Х","Х","Х","Х","Х","Х","Х","Х","Х","Х",96181,94421,96225,98017,99600,101600,103545,"Х",103545]
[null,"Показатель \"Уровень удовлетворенности граждан Российской Федерации качеством предоставления государственных и муниципальных услуг\" ","%",1,"Определяется в соответствии с методикой проведения оценки качества предоставления государственных и муниципальных услуг в Забайкальском крае","Х","Х","Х","Х","Х",61,83.6,89.7,98.6,75,80,90,90,90,90,90,90,90,90,"Х",90]
[null,"Показатель \"Удельный вес инновационных товаров, работ, услуг в общем объеме отгруженных товаров, выполненных работ, услуг\"","%",1,"ТРУин / ТРУ *100, где ТРУин - объем инновационных товаров, работ, услуг ТРУ - объем всех товаров, работ, услуг по обследованным организациям","Х","Х","Х","Х","Х",13.7,6.3,7.3,8.9,9,6,6.3,7,7.2,7.5,7.7,7.9,8,8,"Х","Х"]
[null,"Задача \"Активизация привлечения частных инвестиций в экономику Забайкальского края\"","Х","Х","Х","Х","Х","Х","Х","Х","Х","Х","Х","Х","Х","Х","Х","Х","Х","Х","Х","Х","Х","Х","Х","Х"]
["1.","Подпрограмма \"Стимулирование инвестиционной деятельности в Забайкальском крае\"","Х",1,"Х","2014-2025","Министерство экономического развития Забайкальского края, Министерство финансов Забайкальского края, Комитет планирования и развития Забайкальского края","Х","Х","Х","Х","Х","Х","Х","Х","Х","Х","Х","Х","Х","Х","Х","Х","Х","Х","Х"]
[null,"финансирование за счет краевого бюджета","тыс.рублей","Х","Х","Х","Министерство финансов Забайкальского края","Х","Х","Х","Х","Х",{"$f":"M38","v":22524.7},{"$f":"N38","v":20250},{"$f":"O38","v":16375.9},{"$f":"P38","v":29.8},"Х","Х","Х","Х","Х","Х","Х","Х","Х",{"$f":"SUM(M29:X29)","v":59180.4}]
[{"$nulls":6},"Министерство экономического развития Забайкальского края ","Х","Х","Х","Х","Х","Х","Х","Х",{"$f":"P39","v":83.2},{"$f":"Q39","v":1144.3},{"$f":"R39+R90+R116","v":46749.1},{"$f":"S39+S90","v":5528.03},48025.899999999994,21333.748940000001,31333.7,21333.7,35485.699999999997,0,{"$f":"SUM(M30:X30)","v":211017.37894000002}]
[{"$nulls":6},"Комитет планирования и развития Забайкальского края","Х","Х","Х","Х","Х",0,0,0,0,0,{"$f":"R135","v":12000},{"$f":"S40+S117","v":13187.2},{"$f":"T40+T117+T91","v":12979.1},{"$f":"U40+U91+U117","v":958183.34000000008},{"$f":"V40+V117+V91+V75","v":881036},{"$f":"W40+W117+W91","v":1645702.7},{"$f":"X40+X117+X91","v":23255.699999999997},0,{"$f":"SUM(M31:X31)","v":3546344.04}]
[null,"кроме того, финансирование из других источников:","тыс.рублей","Х","Х","Х",null,"Х","Х","Х","Х","Х",{"$f":"SUM(M33:M35)","v":0},0,0,0,0,0,0,0,474503.9,0,0,0,"Х",{"$f":"SUM(M32:X32)","v":474503.9}]
[null," - из федерального бюджета","тыс.рублей","Х","Х","Х","Х","Х","Х","Х","Х","Х",0,0,0,0,0,0,0,0,{"$f":"U129","v":474503.9},{"$f":"V129","v":0},{"$f":"W129","v":0},{"$f":"X129","v":0},"Х",{"$f":"SUM(M33:X33)","v":474503.9}]
[null," - из местных бюджетов","тыс.рублей","Х","Х","Х","Х","Х","Х","Х","Х","Х",0,0,0,0,0,0,0,0,0,0,0,0,"Х",{"$f":"SUM(M34:S34)","v":0}]
[null," - из внебюджетных источников","тыс.рублей","Х","Х","Х","Х","Х","Х","Х","Х","Х",0,0,0,0,0,0,0,0,0,0,0,0,"Х",{"$f":"SUM(M35:S35)","v":0}]
[null,"Показатель \"Количество инвестиционных проектов, получивших государственную поддержку инвестиционной деятельности\"","ед.",1,"Абсолютный показатель","2014-2025","Министерство финансов Забайкальского края, Министерство экономического развития Забайкальского края, Комитет планирования и развития Забайкальского края","Х","Х","Х",21,15,14,8,8,5,4,4,4,2,2,1,1,1,"Х","Х"]
["1.1.","Основное мероприятие \"Государственная поддержка инвестиционной и инновационной деятельности, завоза продукции (товаров) в населенные пункты с ограниченными сроками завоза грузов (продукции) в Забайкальском крае, градообразующих организаций промышленности и приоритетных организаций, составляющих экономическую основу Забайкальского края\"","Х",1,"Х","2014-2025","Министерство финансов Забайкальского края, Министерство экономического развития Забайкальского края, Комитет планирования и развития Забайкальского края","Х","Х","Х","Х","Х","Х","Х","Х","Х","Х","Х","Х","Х","Х","Х","Х","Х","Х","Х"]
[null,"финансирование за счет краевого бюджета","тыс.рублей","Х","Х","Х","Министерство финансов Забайкальского края","Х","Х","Х","Х","Х",{"$f":"M50","v":22524.7},{"$f":"N50","v":20250},{"$f":"O51","v":16375.9},{"$f":"P51","v":29.8},{"$f":"Q51","v":"Х"},{"$f":"R51","v":"Х"},{"$f":"S51","v":"Х"},"Х","Х","Х","Х","Х","Х",{"$f":"SUM(M38:X38)","v":59180.4}]
[{"$nulls":6},"Министерство экономического развития Забайкальского края","Х","Х","Х","Х","Х","Х","Х","Х",{"$f":"P52","v":83.2},1144.3,432.4,902.8,1191.2,1333.7489399999999,1333.7,1333.7,5485.7,"Х",{"$f":"SUM(M39:X39)","v":13240.748939999998}]
[{"$nulls":6},"Комитет планирования и развития Забайкальского края","Х","Х","Х","Х","Х","Х","Х","Х","Х","Х","Х",{"$f":"S54","v":3362.7},{"$f":"T54","v":0},{"$f":"U53+U54+U67+U71+U72","v":939968.54},{"$f":"V53+V54+V67+V71+V72","v":862860},{"$f":"W53+W54+W67+W71+W72","v":1627467.8},{"$f":"X53+X54+X67+X71+X72","v":5015.3999999999996},"Х",{"$f":"SUM(M40:X40)","v":3438674.44}]
[null,"Показатель \"Индекс физического объема инвестиций в основной капитал\" (за счет всех источников финансирования)","%","X","Определяется как отношение абсолютного объема инвестиций в основной капитал двух рассматриваемых периодов в сопоставимых ценах.","X","Комитет планирования и развития Забайкальского края","Х","Х","Х",120.7,80.7,114.9,103.5,106.492637733739,105.93226199999999,88.574578266940804,98.757583991825598,121.88481060754199,119.5,96.8,105.1,106.3,106.3,"Х","Х"]
[null,"Показатель \"Уровень освоения средств, предусмотренных в бюджете Забайкальского края на предоставление государственной поддержки инвестиционной деятельности, по принятым решениям\"","%","Х","Объем средств, предусмотренный в бюджете Забайкальского края на предоставление государственной поддержки/ Объем фактически выделенных средств * 100\n","2014-2025","Министерство финансов Забайкальского края","Х","Х","Х",100,100,100,100,100,100,"Х","Х","Х","Х","Х","Х","Х","Х","Х","Х"]
[{"$nulls":6},"Министерство экономического развития Забайкальского края","Х","Х","Х","Х","Х","Х","Х","Х","Х","Х","Х","Х","Х","Х","Х",100,100,"Х",100]
[{"$nulls":6},"Комитет планирования и развития Забайкальского края","Х","Х","Х","Х","Х","Х","Х","Х","Х","Х","Х",100,100,100,100,100,100,"Х",100]
[null,"Показатель \"Уровень освоения средств, предусмотренных в бюджете Забайкальского края на предоставление государственной поддержки завоза продукции (товаров) в населенные пункты с ограниченными сроками завоза грузов (продукции)\"","%","Х","Объем средств, предусмотренный в бюджете Забайкальского края на предоставление государственной поддержки/ Объем фактически выделенных средств * 100\n","2014-2025","Министерство финансов Забайкальского края","Х","Х","Х",100,100,100,100,100,100,"Х","Х","Х","Х","Х","Х","Х","Х","Х","Х"]
[{"$nulls":6},"Министерство экономического развития Забайкальского края","Х","Х","Х","Х","Х","Х","Х","Х",100,100,100,100,100,100,100,100,100,"Х",100]
[null,"Показатель \"Количество субъектов инновационной деятельности, получивших государственную поддержку\" \n","ед.","Х","Абсолютный показатель","2014-2025","Министерство экономического развития Забайкальского края","Х","Х","Х","X",0,0,0,0,0,0,0,"Х","Х","Х","Х","Х","Х","Х",{"$f":"SUM(L47:R47)","v":0}]
[{"$nulls":6},"Комитет планирования и развития Забайкальского края","Х","Х","Х","Х","Х","Х","Х","Х","Х","Х","Х",0,0,1,0,0,0,"Х",1]
["1.1.1.","Мероприятие \"Государственная поддержка инвестиционной и инновационной деятельности, завоза продукции (товаров) в населенные пункты с ограниченными сроками завоза грузов (продукции) в Забайкальском крае, градообразующих организаций промышленности и приоритетных организаций, составляющих экономическую основу Забайкальского края\"","Х",1,"Х","2014-2025","Министерство финансов Забайкальского края, Министерство экономического развития Забайкальского края, Комитет планирования и развития Забайкальского края","Х","Х","Х","Х","Х","Х","Х","Х","Х","Х","Х","Х","Х","Х","Х","Х","Х","Х","Х"]
[null,"финансирование за счет краевого бюджета","тыс.рублей","Х","Х","Х","Министерство финансов Забайкальского края","0412","3408300",810,"Х","Х",22524.7,20250,"Х","Х","Х","Х","Х","Х","Х","Х","Х","Х","Х",{"$f":"SUM(M50:X50)","v":42774.7}]
[{"$nulls":7},"0412","0310106340",811,"Х","Х","Х","Х",16375.9,29.8,"Х","Х","Х","Х","Х","Х","Х","Х","Х",{"$f":"SUM(M51:X51)","v":16405.7}]
[{"$nulls":6},"Министерство экономического развития Забайкальского края","0412","0310106340",811,"Х","Х","Х","Х","Х",83.2,1144.3,432.4,902.8,1191.2,1333.7489399999999,1333.7,1333.7,5485.7,"Х",{"$f":"SUM(M52:X52)","v":13240.748939999998}]
[{"$nulls":6},"Комитет планирования и развития Забайкальского края","0412","0310106340",813,"X","X","X","X","X","X","X","X",0,0,15928,0,0,0,"Х",{"$f":"SUM(M53:X53)","v":15928}]
[{"$nulls":7},"0412","0310106340","811","Х","Х","Х","Х","Х","Х","Х","Х",3362.7,0,1698,0,0,0,"Х",{"$f":"SUM(M54:X54)","v":5060.7}]
[null,"Показатель \"Уровень освоения средств, предусмотренных в бюджете Забайкальского края на предоставление государственной поддержки инвестиционной деятельности, по принятым решениям\"","%","Х","Объем средств, предусмотренный в бюджете Забайкальского края на предоставление государственной поддержки/ Объем фактически выделенных средств * 100\n","2014-2025","Министерство финансов Забайкальского края","Х","Х","Х",100,100,100,100,100,100,"Х","Х","Х","Х","Х","Х","Х","Х","Х","Х"]
[{"$nulls":6},"Министерство экономического развития Забайкальского края","Х","Х","Х","Х","Х","Х","Х","Х","Х","Х","Х","Х","Х","Х","Х","Х","Х","Х","Х"]
[{"$nulls":6},"Комитет планирования и развития Забайкальского края","Х","Х","Х","Х","Х","Х","Х","Х","Х","Х","Х",100,"Х",100,"Х","Х","Х","Х","Х"]
[null,"Показатель \"Уровень освоения средств, предусмотренных в бюджете Забайкальского края на предоставление государственной поддержки завоза продукции (товаров) в населенные пункты с ограниченными сроками завоза грузов (продукции)\"","%","Х","Объем средств, предусмотренный в бюджете Забайкальского края на предоставление государственной поддержки/ Объем фактически выделенных средств * 100\n","2014-2025","Министерство финансов Забайкальского края","Х","Х","Х",100,100,100,100,100,100,"Х","Х","Х","Х","Х","Х","Х","Х","Х","Х"]
[{"$nulls":6},"Министерство экономического развития Забайкальского края","Х","Х","Х","Х","Х","Х","Х","Х",100,100,100,100,100,100,100,100,100,"Х","Х"]
[null,"Показатель \"Количество субъектов инвестиционной  и (или) инновационной деятельности, получивших государственную поддержку\" ","ед.","Х","Абсолютный показатель","2014-2025","Министерство экономического развития Забайкальского края","Х","Х","Х","X",0,0,0,0,0,0,0,"Х","Х","Х","Х","Х","Х","Х",{"$f":"SUM(L60:R60)","v":0}]
[{"$nulls":6},"Комитет планирования и развития Забайкальского края","Х","Х","Х","Х","Х","Х","Х","Х","Х","Х","Х",0,0,1,0,0,0,"Х",{"$f":"SUM(S61:W61)","v":1}]
["1.1.2.","Мероприятие \"Организация конкурсных отборов инвестиционных проектов на предоставление государственной поддержки инвестиционной деятельности\" ","Х","Х","Х","2014-2025","Министерство экономического развития Забайкальского края, Комитет планирования и развития Забайкальского края","Х","Х","Х","Х","Х","Х","Х","Х","Х","Х","Х","Х","Х","Х","Х","Х","Х","Х","Х"]
[null,"финансирование за счет краевого бюджета","тыс.рублей","Х","Х","Х","Министерство финансов Забайкальского края","Х","Х","Х","Х","Х","Х","Х","Х","Х","Х","Х","Х","Х","Х","Х","Х","Х","Х","Х"]
[null,"Показатель \"Количество проведенных конкурсных отборов\"","ед.","Х","Абсолютный показатель","2014-2025","Министерство экономического развития Забайкальского края ","Х","Х","Х",2,2,2,2,1,0,0,0,"Х","Х","Х","Х",1,"Х","Х",{"$f":"SUM(K64:R64, W64)","v":10}]
[{"$nulls":6},"Комитет планирования и развития Забайкальского края","Х","Х","Х","Х","Х","Х","Х","Х","Х","Х",0,1,1,1,1,1,0,"Х",{"$f":"SUM(R65:W65)","v":5}]
["1.1.3.","Мероприятие \"Предоставление субсидий из бюджета Забайкальского края юридическим лицам, 100 процентов акций (долей) которых принадлежит Забайкальскому краю, на осуществление капитальных вложений в объекты капитального строительства, находящиеся в собственности указанных лиц , и (или) на приобретение ими объектов недвижимого имущества с последующим увеличением уставных капиталов таких юридических лиц в соответствии с законодательством Российской Федерации\"","Х","Х","Х","2022-2025","Комитет планирования и развития Забайкальского края","Х","Х","Х","Х","Х","Х","Х","Х","Х","Х","Х","Х","Х","Х","Х","Х","Х","Х","Х"]
[null,"финансирование за счет краевого бюджета","тыс.рублей","Х","Х","2022-2025","Комитет планирования и развития Забайкальского края","0412","0310106370",815,"Х","Х","Х","Х","Х","Х","Х","Х","Х","Х",465250,0,0,0,"Х",{"$f":"U67+V67+W67+X67","v":465250}]
[null,"Показатель \"Количество объектов инфраструктуры для новых инвестиционных проектов, введенных в эксплуатацию\"","ед.","Х","Абсолютный показатель","2022-2025","Комитет планирования и развития Забайкальского края","Х","Х","Х","Х","Х","Х","Х","Х","Х","Х","Х","Х","Х",0,1,6,1,"Х",8]
[null,"Показатель \"Степень готовности объектов инфраструктуры\"","%","Х","Пго = Оф/Овсего * 100%, где:\nПго – степень готовности объектов инфраструктуры;\nОф – объем фактически освоенных средств субсидии, выделенных на строительство объектов инфраструктуры для новых инвестиционных проектов, млн. рублей;\nОвсего – общий объем средств субсидии, выделяемых на строительство объектов инфраструктуры за весь период строительства, млн. рублей","2022-2025","Комитет планирования и развития Забайкальского края","Х","Х","Х","Х","Х","Х","Х","Х","Х","Х","Х","Х","Х","X",70,100,0,"Х",{"$f":"W69","v":100}]
["1.1.4.","Мероприятие \"Предоставление субсидии из бюджета Забайкальского края юридическим лицам (за исключением государственных (муниципальных) учреждений) на финансовое обеспечение и (или) возмещение затрат на выполнение инженерных изысканий, проектирование, экспертизу проектной документации и (или) результатов инженерных изысканий, строительство, реконструкцию и ввод в эксплуатацию объектов инфраструктуры, а также на подключение (технологическое присоединение) объектов капитального строительства к сетям инженерно-технического обеспечения в целях реализации новых инвестиционных проектов на территории Забайкальского края (в ред. постановления Правительства Забайкальского края № 590 от 6.12.2022)","Х","Х","Х","2022-2025","Комитет планирования и развития Забайкальского края","Х","Х","Х","Х","Х","Х","Х","Х","Х","Х","Х","Х","Х","Х","Х","Х","Х","Х","Х"]
[null,"финансирование за счет краевого бюджета","тыс. рублей","Х","Х","2022-2025","Комитет планирования и развития Забайкальского края","0412",310106360,811,"Х","Х","Х","Х","Х","Х","Х","Х","Х","Х",294592.53999999998,862860,1627467.8,5015.3999999999996,"Х",{"$f":"U71+V71+W71+X71","v":2789935.7399999998}]
[null,null,"тыс. рублей","Х","Х","2022-2025","Комитет планирования и развития Забайкальского края","0412",310106360,813,"Х","Х","Х","Х","Х","Х","Х","Х","Х","Х",162500,0,0,0,"Х",{"$f":"U72+V72+W72+X72","v":162500}]
[null,"Показатель \"Количество объектов инфраструктуры для новых инвестиционных проектов, введенных в эксплуатацию\"","ед.","Х","Абсолютный показатель","2022-2025","Комитет планирования и развития Забайкальского края","Х","Х","Х","Х","Х","Х","Х","Х","Х","Х","Х","Х","Х",28,11,2,0,"Х",{"$f":"SUM(U73:W73)","v":41}]
["1.2.","Основное мероприятие \"Создание условий для обеспечения благоприятного инвестиционного климата в Забайкальском крае\"","Х",1,"Х","2014-2025","Министерство экономического развития Забайкальского края, Комитет планирования и развития Забайкальского края","Х","Х","Х","Х","Х","Х","Х","Х","Х","Х","Х","Х","Х","Х","Х","Х","Х","Х","Х"]
[null,"финансирование за счет краевого бюджета","тыс.рублей","Х","Х","Х","Министерство финансов Забайкальского края","Х","Х","Х","Х","Х","Х","Х","Х","Х","Х","Х","Х","Х","Х",{"$f":"V84","v":0},{"$f":"W84","v":0},{"$f":"X84","v":0},"Х",{"$f":"Z84","v":0}]
[{"$nulls":24},"Х"]
[null,"Показатель \"Количество разделов  Стандарта деятельности органов исполнительной власти края по обеспечению благоприятного инвестиционного климата в Забайкальском крае, реализуемых в крае\"","разделов","Х","Абсолютный показатель","2014-2018"," Министерство экономического развития Забайкальского края","Х","Х","Х","Х","Х",15,15,15,15,15,"Х","Х","Х","Х","Х","Х","Х","Х","Х"]
["1.2.1.","Мероприятие \"Обеспечение функционирования \"одного окна\" для инвесторов\"","Х","Х","Х","2014-2025","Министерство экономического развития Забайкальского края, Комитет планирования и развития Забайкальского края","Х","Х","Х","Х","Х","Х","Х","Х","Х","Х","Х","Х","Х","Х","Х","Х","Х","Х","Х"]
[null,"финансирование за счет краевого бюджета","тыс.рублей","Х","Х","Х","Комитет планирования и развития Забайкальского края","Х","Х","Х","Х","Х","Х","Х","Х","Х","Х","Х","Х","Х","Х","Х","Х","Х","Х","Х"]
[{"$nulls":24},"Х"]
[null,"Показатель \"Количество инвестиционных проектов, получивших сопровождение в рамках \"одного окна\"","ед.","Х","Абсолютный показатель","2014-2025","Министерство экономического развития Забайкальского края ","Х","Х","Х","Х","Х",10,35,40,7,20,20,"Х","Х","Х","Х","Х","Х","Х","Х"]
[{"$nulls":6},"Комитет планирования и развития Забайкальского края","Х","Х","Х","Х","Х","Х","Х","Х","Х","Х","Х",20,20,25,25,25,25,"Х",{"$f":"SUM(S82:X82)","v":140}]
["1.2.2.","Мероприятие «Предоставление субсидий из бюджета Забайкальского края юридическим лицам (за исключением государственных (муниципальных) учреждений), являющимся специализированными организациями по привлечению инвестиций и работе с инвесторами в Забайкальском крае, в целях финансового обеспечения и (или) возмещения затрат, связанных с созданием условий для формирования благоприятного инвестиционного климата в Забайкальском крае»","Х","Х","Х","2023-2025","Комитет планирования и развития Забайкальского края","Х","Х","Х","Х","Х","Х","Х","Х","Х","Х","Х","Х","Х","Х","Х","Х","Х","Х","Х"]
[null,"финансирование за счет краевого бюджета","тыс.рублей","Х","Х","Х","Комитет планирования и развития Забайкальского края","Х","Х","Х","Х","Х","Х","Х","Х","Х","Х","Х","Х","Х","Х",0,0,0,"Х",{"$f":"SUM(V84:X84)","v":0}]
[null,"Показатель \"Увеличение объема частных инвестиций, привлеченных специализированной организацией, в том числе в рамках концессий\"","тыс. рублей","Х","Абсолютный показатель","2023-2025","Комитет планирования и развития Забайкальского края","Х","Х","Х","Х","Х","Х","Х","Х","Х","Х","Х","Х","Х",0,1000000,1200000,1400000,"Х",{"$f":"SUM(V85:X85)","v":3600000}]
[null,"Показатель \"Количество инвестиционных проектов, привлеченных специализированной организацией, с объемом инвестиций более 50 млн. рублей\"","ед.","Х","Абсолютный показатель","2023-2025","Комитет планирования и развития Забайкальского края","Х","Х","Х","Х","Х","Х","Х","Х","Х","Х","Х","Х","Х","Х",0,0,3,"Х",{"$f":"SUM(V86:X86)","v":3}]
[null,"Показатель \"Количество концессионных соглашений, находящихся на сопровождении специализированной организации\"","ед.","Х","Абсолютный показатель","2023-2025","Комитет планирования и развития Забайкальского края","Х","Х","Х","Х","Х","Х","Х","Х","Х","Х","Х","Х","Х","Х",3,4,3,"Х",10]
[null,"Показатель \"Количество работников специализированной организации и других заинтересованных лиц, прошедших дополнительное обучение, принявших участие в тренингах, семинарах и иных мероприятиях для повышения квалификации\" ","ед.","Х","Абсолютный показатель","2023-2025","Комитет планирования и развития Забайкальского края","Х","Х","Х","Х","Х","Х","Х","Х","Х","Х","Х","Х","Х","Х",2,0,0,"Х",2]
["1.3.","Основное мероприятие \"Информационная поддержка осуществления инвестиционной деятельности в Забайкальском крае\"","Х",1,"Х","2014-2025","Министерство экономического развития Забайкальского края, Комитет планирования и развития Забайкальского края","Х","Х","Х","Х","Х","Х","Х","Х","Х","Х","Х","Х","Х","Х","Х","Х","Х","Х","Х"]
[null,"финансирование за счет краевого бюджета","тыс.рублей","Х","Х","Х"," Министерство экономического развития Забайкальского края","Х","Х","Х",{"$f":"K95","v":"Х"},"Х","Х","Х","Х","Х","Х",{"$f":"R96","v":40315},{"$f":"S95+S96","v":4625.2299999999996},{"$f":"T96","v":46834.7},{"$f":"U96","v":20000},{"$f":"V96","v":30000},{"$f":"W96","v":20000},{"$f":"X96","v":30000},"Х",{"$f":"R90+S90+T90+SUM(U90:W90)+X90","v":191774.93}]
[{"$nulls":6},"Комитет планирования и развития Забайкальского края","Х","Х","Х","Х","Х","Х","Х","Х","Х","Х","Х",{"$f":"S97+S104","v":0},{"$f":"T104+T97+T99","v":3363},{"$f":"U104+U97+U99+U98","v":8593.4},{"$f":"V104+V97+V99","v":7593.4},{"$f":"W104+W97+W99","v":7593.4},{"$f":"X104+X97+X99","v":7593.4},"Х",{"$f":"T91+U91+V91+W91+X91","v":34736.6}]
[null,"Показатель «Обновление информации о свободных производственных площадях и земельных участках на территории Забайкальского края\"","количество раз в год","Х","Х","2014-2025","Министерство экономического развития Забайкальского края","Х","Х","Х",1,1,1,1,1,1,1,1,"Х","Х","Х","Х","Х","Х","Х","Х"]
[{"$nulls":6},"Комитет планирования и развития Забайкальского края","Х","Х","Х","Х","Х","Х","Х","Х","Х","Х","Х",1,1,1,1,1,1,"Х","Х"]
["1.3.1.","Мероприятие \"Предоставление субсидий из бюджета Забайкальского края юридическим лицам (за исключением субсидий государственным (муниципальным) учреждениям) в целях поддержки инвестиционной деятельности на территории Забайкальского края в части финансового обеспечения и (или) возмещения затрат, связанных с презентацией инвестиционного потенциала края и привлечением инвестиций, в том числе на российских и международных деловых площадках\"","Х",null,"Х","2019-2025","Министерство экономического развития Забайкальского края, Комитет планирования и развития Забайкальского края","Х","Х","Х","Х","Х","Х","Х","Х","Х","Х","Х","Х","Х","Х","Х","Х","Х","Х","Х"]
[null,"финансирование за счет краевого бюджета","тыс.рублей","Х","Х","Х","Министерство экономического развития Забайкальского края","0412","0310306310",811,"Х","Х","Х","Х","Х","Х","Х","Х",208.23,"Х","Х","Х","Х","Х","Х",{"$f":"S95","v":208.23}]
[{"$nulls":7},"0412","0310306310",813,"Х","Х","Х","Х","Х","Х","Х",40315,4417,46834.7,20000,30000,20000,30000,"Х",{"$f":"R96+S96+T96+SUM(U96:W96)+X96","v":191566.7}]
[{"$nulls":6},"Комитет планирования и развития Забайкальского края","0412","0310306310",813,"Х","Х","Х","Х","Х","Х","Х","Х",0,2000,0,6500,6500,6500,"Х",{"$f":"SUM(S97:X97)","v":21500}]
[{"$nulls":7},"0412","03110306310",811,"Х","Х","Х","Х","Х","Х","Х","Х","Х","Х",2250,0,0,0,"Х",{"$f":"SUM(S98:X98)","v":2250}]
[{"$nulls":7},"0412","0310306310",813,"Х","Х","Х","Х","Х","Х","Х","Х",0,0,5250,0,0,0,"Х",{"$f":"SUM(S99:X99)","v":5250}]
[null,"Показатель «Количество договоров, соглашений и протоколов о намерениях, заключенных в рамках участия в мероприятиях российских и международных деловых площадок»","шт.","Х","Абсолютный показатель","2019-2025","Министерство экономического развития Забайкальского края","Х","Х","Х","Х","Х","Х","Х","Х","Х","Х",10,2,10,"Х","Х","Х","Х","Х",22]
[{"$nulls":6},"Комитет планирования и развития Забайкальского края","Х","Х","Х","Х","Х","Х","Х","Х","Х","Х","Х","Х","Х",1,1,1,1,"Х",1]
[null,"Показатель «Количество мероприятий с участием Забайкальского края»","шт.","Х","Абсолютный показатель","2023-2025","Комитет планирования и развития Забайкальского края","Х","Х","Х","Х","Х","Х","Х","Х","Х","Х","Х","Х","Х","Х",5,5,5,"Х",15]
["1.3.2.","Мероприятие \"Предоставление субсидий на финансовое обеспечение и (или) возмещение затрат в целях обеспечения работы сайта в информационно-телекоммуникационной сети \"Интернет\" \"Забайкальский инвестиционный портал\"","Х","Х","Х","2020-2025","Комитет планирования и развития Забайкальского края","Х","Х","Х","Х","Х","Х","Х","Х","Х","Х","Х","Х","Х","Х","Х","Х","Х","Х","Х"]
[null,"финансирование за счет краевого бюджета","тыс. рублей","Х","Х","Х","Комитет планирования и развития Забайкальского края","0412","0310306320",813,"Х","Х","Х","Х","Х","Х","Х","Х",0,1363,1093.4000000000001,1093.4000000000001,1093.4000000000001,1093.4000000000001,"Х",{"$f":"T104+U104+V104+W104+X104","v":5736.6}]
[null,"Показатель \"Прирост количества посетителей сайта в информационно-телекоммуникационной сети \"Интернет\" \"Забайкальский инвестиционный портал\"","%","Х","Qпос.отч/Qпос. отч-1 * 100, где Qпос.отч - количество посетителей сайта в отчетном периоде, Qпос. отч-1 - количество посетителей сайта в предыдущем году","2021-2025","Комитет планирования и развития Забайкальского края","Х","Х","Х","Х","Х","Х","Х","Х","Х","Х","Х","Х",30,30,30,30,30,"Х",30]
["1.4.","Основное мероприятие \"Развитие механизмов государственно-частного партнерства\"","Х",1,"Х","2014-2025","Министерство экономического развития Забайкальского края, Комитет планирования и развития Забайкальского края","Х","Х","Х","Х","Х","Х","Х","Х","Х","Х","Х","Х","Х","Х","Х","Х","Х","Х","Х"]
[null,"финансирование за счет краевого бюджета","тыс.рублей","Х","Х","Х","Министерство экономического развития Забайкальского края","Х","Х","Х","Х","Х","Х","Х","Х","Х","Х","Х","Х","Х","Х","Х","Х","Х","Х","Х"]
[{"$nulls":6},"Комитет планирования и развития Забайкальского края","0412","0310455050",811,"Х","Х","Х","Х","Х","Х","Х","Х","Х","Х","Х","Х","Х","Х","Х",{"$f":"U108","v":"Х"}]
[null,"Показатель \"Количество заключенных соглашений о государственно-частном партнерстве в соответствии с федеральным законодательством (нарастающим итогом)\"","ед.","Х","Абсолютный показатель","X","Министерство экономического развития Забайкальского края","Х","Х","Х","Х","Х",0,0,0,0,1,2,0,0,0,0,0,0,"Х",3]
[{"$nulls":6},"Комитет планирования и развития Забайкальского края","Х","Х","Х","Х","Х","Х","Х","Х","Х","Х","Х",1,"Х","Х","Х","Х","Х","Х","Х"]
[null,"Показатель \"Количество заключенных концессионных соглашений и соглашений о государственно-частном партнерстве в соответствии с федеральным законодательством (нарастающим итогом)\"","ед.","Х","Абсолютный показатель","Х","Министерство экономического развития Забайкальского края","Х","Х","Х","Х","Х","Х","Х","Х","Х","Х","Х","Х","Х","X","X","X","Х","Х","X"]
["1.5.","Основное мероприятие \"Создание и развитие на территории края индустриальных (промышленных)  парков\"","Х",1,"Х","2014-2025","Министерство экономического развития Забайкальского края, Комитет планирования и развития Забайкальского края","Х","Х","Х","Х","Х","Х","Х","Х","Х","Х","Х","Х","Х","Х","Х","Х","Х","Х","X"]
[null,"финансирование за счет краевого бюджета","тыс.рублей",null,"Х","Х","Министерство экономического развития Забайкальского края, Комитет планирования и развития Забайкальского края","Х","Х","Х","Х","Х","Х","Х","Х","Х","Х","Х","Х","Х","X","Х","Х","Х","Х",{"$f":"U113","v":"X"}]
[null,"Показатель \"Количество резидентов индустриальных (промышленных) парков\" (нарастающим итогом) ","ед.",1,"Абсолютный показатель",null,"Комитет планирования и развития Забайкальского края","Х","Х","Х","Х","Х","Х","Х","Х","Х","Х","Х","Х","Х","Х","Х","Х","Х","Х","Х"]
["1.6.","Основное мероприятие \"Содействие созданию территорий опережающего развития и особых экономических зон\"","Х",1,"Х","2019-2025","Министерство экономического развития Забайкальского края, Комитет планирования и развития Забайкальского края","Х","Х","Х","Х","Х","Х","Х","Х","Х","Х","Х","Х","Х","Х","Х","Х","Х","Х","Х"]
[null,"финансирование за счет краевого бюджета","тыс. рублей","Х","Х","Х","Министерство экономического развития Забайкальского края","Х","Х","Х","Х","Х","Х","Х","Х","Х","Х",{"$f":"R120","v":6001.7},"Х","Х","Х","Х","Х","Х","Х",{"$f":"R116","v":6001.7}]
[{"$nulls":6},"Комитет планирования и развития Забайкальского края","Х","Х","Х","Х","Х","Х","Х","Х","Х","Х","Х",{"$f":"S121","v":9824.5},9616.1,9621.4,10582.6,10641.5,10646.9,"Х",{"$f":"SUM(S117:W117)+X117","v":60933}]
[null,"Показатель \"Количество созданных на территории Забайкальского края территорий опережающего развития и особых экономических зон\"","ед.","X","Абсолютный показатель","X","Министерство экономического развития Забайкальского края, Комитет планирования и развития Забайкальского края","X","X","X","X","X","X","Х","Х","Х","Х",1,1,"Х","Х","Х","Х","Х","Х",2]
["1.6.1.","Мероприятие «Создание и обеспечение функционирования организаций, осуществляющих поддержку инвестиционной деятельности на территории Дальневосточного федерального округа»","Х","X","Х","2019-2025","Министерство экономического развития Забайкальского края, Комитет планирования и развития Забайкальского края","Х","Х","Х","Х","Х","Х","Х","Х","Х","Х","Х","Х","Х","Х","Х","Х","Х","Х","Х"]
[null,"финансирование за счет краевого бюджета","тыс.рублей","Х","Х","Х","Министерство экономического развития Забайкальского края","0412","0310606830","813","Х","Х","Х","Х","Х","Х","Х",6001.7,"Х","Х","Х","Х","Х","Х","Х",{"$f":"R120","v":6001.7}]
[{"$nulls":6},"Комитет планирования и развития Забайкальского края","0412","0310606830","813","Х","Х","Х","Х","Х","Х","Х","Х",9824.5,9616.1,9621.4,10582.6,10641.5,10646.9,"Х",{"$f":"SUM(S121:W121)+X121","v":60933}]
[null,"Показатель «Количество резидентов территорий опережающего развития Забайкальского края»","ед.","Х","Абсолютный показатель","2019-2025","Комитет планирования и развития Забайкальского края","Х","Х","Х","Х","Х","Х","Х","Х","Х","Х",10,5,5,5,5,5,5,"Х",{"$f":"SUM(R122:X123)","v":40}]
[{"$nulls":24},"Х"]
[null,"Показатель «Уровень освоения средств, предусмотренных в бюджете Российской Федерации на создание инфраструктуры для резидентов территорий опережающего развития Забайкальского края","%","Х","Объем средств, предусмотренный в бюджете Российской Федерации на создание инфраструктуры для резидентов территории опережающего развития «Забайкалье»/ Объем фактически освоенных средств * 100","2019-2025","Министерство экономического развития Забайкальского края","Х","Х","Х","Х","Х","Х","Х","Х","Х","Х",100,"Х","Х","Х","Х","Х","Х","Х","Х"]
[{"$nulls":6},"Комитет планирования и развития Забайкальского края","Х","Х","Х","Х","Х","Х","Х","Х","Х","Х","Х",100,100,100,100,100,"Х","Х","Х"]
["1.7.","Основное мероприятие \"Развитие инфраструктуры территорий опережающего развития в Забайкальском крае\"","X",1,"X","2022-2025","Комитет планирования и развития Забайкальского края","X","X","X","X",null,"X","X","X","X","X","X","X","X","X","X","X","X","Х","X"]
[null,"финансирование за счет краевого бюджета","X","X","X","X","Комитет планирования и развития Забайкальского края","X","X","X","X","X","X","X","X","X","X","X","X","X","X","X","X","X","Х",{"$f":"U127","v":"X"}]
[null,"кроме того, финансирование из других источников:","тыс.рублей","Х","Х","Х","Х","X","X","X","X","X","X","X","X","X","X","X","X","X",474503.9,0,0,0,"Х",{"$f":"SUM(K128:X128)","v":474503.9}]
[null," - из федерального бюджета","тыс.рублей","Х","Х","Х","Х","X","X","X","X","X","X","X","X","X","X","X","X","X",474503.9,0,0,0,"Х",{"$f":"U129","v":474503.9}]
[null,"Показатель \"Количество резидентов индустриальных (промышленных) парков\" (нарастающим итогом) ","ед.","Х","Абсолютный показатель","X","Комитет планирования и развития Забайкальского края","X","X","X","X","X","X","X","X","X","X","X","X","X",0,0,2,4,"Х",4]
["1.7.1.","Мероприятие \"Предоставление субсидии из бюджета Забайкальского края обществу с ограниченной ответственностью «КРДВ Забайкалье» на развитие инфраструктуры территорий опережающего развития в Забайкальском крае\"","Х","Х","Х","2022-2025","Комитет планирования и развития Забайкальского края","X","X","X","X","X","X","X","X","X","X","X","X","X","X","X","X","X","Х","X"]
[null,"финансирование за счет краевого бюджета","Х","Х","Х","Х","Комитет планирования и развития Забайкальского края","X","X","X","X","X","X","X","X","X","X","X","X","X","X","X","X","X","Х","X"]
[null,"Показатель \"Количество объектов инфраструктуры  территорий опережающего развития в Забайкальском крае, введенных в эксплуатацию\"","ед.","Х","Абсолютный показатель","X","Комитет планирования и развития Забайкальского края","X","X","X","X","X","X","X","X","X","X","X","X","X",0,6,6,6,"Х",6]
["1.8.","Основное мероприятие «Обеспечение социально-экономического развития и организация продвижения инвестиционного потенциала Забайкальского края»","Х",1,"Х",2019,"Комитет планирования и развития Забайкальского края","Х","Х","Х","Х","Х","Х","Х","Х","Х","Х","Х","Х","Х","Х","Х","Х","Х","Х","Х"]
[null,"финансирование за счет краевого бюджета","тыс. рублей","Х","Х","Х","Х","Х","Х","Х","Х","Х","Х","Х","Х","Х","Х",{"$f":"R138","v":12000},"Х","Х","Х","Х","Х","Х","Х",{"$f":"SUM(K135:W135)","v":12000}]
[null,"Показатель \"Количество инвестиционных соглашений\"","единиц","Х","Абсолютный показатель","Х","Х","Х","Х","Х","Х","Х","Х","Х","Х","Х","Х",3,"Х","Х","Х","Х","Х","Х","Х","Х"]
["1.9.","Мероприятие «Обеспечение социально-экономического развития и укрепление инвестиционного потенциала Забайкальского края»","Х","Х","Х",2019,"Комитет планирования и развития Забайкальского края","Х","Х","Х","Х","Х","Х","Х","Х","Х","Х","Х","Х","Х","Х","Х","Х","Х","Х","Х"]
[null,"финансирование за счет краевого бюджета","тыс. рублей","Х","Х","Х","Х","0412","0311206850","813","Х","Х","Х","Х","Х","Х","Х",12000,"Х","Х","Х","Х","Х","Х","Х",{"$f":"SUM(K138:W138)","v":12000}]
[null,"Показатель \"Количество инвестиционных соглашений\"","единиц","Х","Абсолютный показатель","Х","Х","Х","Х","Х","Х","Х","Х","Х","Х","Х","Х",3,"Х","Х","Х","Х","Х","Х","Х","Х"]
[null,"Задача \"Стимулирование развития малого и среднего предпринимательства и потребительского рынка\"","Х","Х","Х","Х","Х","Х","Х","Х","Х","Х","Х","Х","Х","Х","Х","Х","Х","Х","Х","Х","Х","Х","Х","Х"]
["2.","Подпрограмма «Развитие малого и среднего предпринимательства»","Х",1,"Х","2014-2025","Министерство экономического развития Забайкальского края","Х","Х","Х","Х","Х","Х","Х","Х","Х","Х","Х","Х","Х","Х","Х","Х","Х","Х","Х"]
[null,"финансирование за счет краевого бюджета","тыс.рублей","Х","Х","Х","Х","Х","Х","Х","Х","Х",{"$f":"M163+M169+M590","v":30807.5612},{"$f":"N169+36","v":10189.537850000001},{"$f":"O169+40","v":5601.7137899999998},{"$f":"P169+48.4","v":3961.1313299999997},{"$f":"Q169+Q590","v":34130.649239999999},{"$f":"R169+R590+R610+R633+R715","v":26680.679639999998},{"$f":"S169+S590+S610+S633+S715","v":38655.200000000012},{"$f":"T169+T590+T610+T633+T715+T737+T766","v":14678.31632},{"$f":"U169+U590+U610+U633+U715+U737+U766+U584","v":23067.851060000001},{"$f":"V169+V590+V610+V633+V715+V737+V766","v":23592.300000000003},{"$f":"W169+W590+W610+W633+W715+W737+W766","v":14190.7},{"$f":"X169+X590+X610+X633+X715+X737+X766","v":58175.100000000006},"Х",{"$f":"SUM(M142:X142)","v":283730.74043000001}]
[null,"кроме того, финансирование из других источников:","тыс.рублей","Х","Х","Х","Х","Х","Х","Х","Х","Х",{"$f":"SUM(M144:M146)","v":203505.11219000001},237272.6078,76387.377000000008,33214.285709999996,47935.4,730873.2,154822.6,104790.6,93019.200000000012,101707.2,90674.8,0,"Х",1874202.3827000002]
[null," - из федерального бюджета","тыс.рублей","Х","Х","Х","Х","Х","Х","Х","Х","Х",{"$f":"M171","v":203505.11219000001},{"$f":"N171","v":237272.6078},{"$f":"O171","v":76387.377000000008},{"$f":"P171","v":33214.285709999996},{"$f":"Q171","v":47935.4},{"$f":"R615+R639+R720","v":730873.2},{"$f":"S615+S639+S720+S171","v":154822.6},{"$f":"T615+T639+T720+T171+T741+T769","v":104790.6},{"$f":"U615+U639+U720+U171+U741+U769","v":93019.200000000012},{"$f":"V615+V639+V720+V171+V741+V769","v":101707.2},{"$f":"W615+W639+W720+W171+W741+W769","v":90674.8},{"$f":"X615+X639+X720+X171+X741+X7599","v":0},0,{"$f":"SUM(M144:X144)","v":1874202.3827000002}]
[null," - из местных бюджетов","тыс.рублей","Х","Х","Х","Х","Х","Х","Х","Х","Х",0,0,0,0,0,0,0,0,0,0,0,0,"Х",0]
[null," - из внебюджетных источников","тыс.рублей","Х","Х","Х","Х","Х","Х","Х","Х","Х",0,0,0,0,0,0,0,0,0,0,0,0,"Х",{"$f":"SUM(M146:W146)","v":0}]
[null,"Показатель \"Количество субъектов малого и среднего предпринимательства (включая индивидуальных предпринимателей и самозанятых) в расчете на 1 тыс. человек населения Забайкальского края\"","ед.",1,"Абсолютный показатель","Х","Х","Х","Х","Х",33.1,29.2,30,31,31,24,25,30,26,"Х","Х","Х","Х","Х","Х","Х"]
[null,"Показатель \"Численность занятых в сфере малого и среднего предпринимательства, включая индивидуальных предпринимателей и самозанятых\" ","чел.",1,"Абсолютный показатель","2019-2024","Х","Х","Х","Х","Х","Х","Х","Х","Х","Х","Х",96181,94421,96225,98017,99600,101600,103545,"Х",{"$f":"X148","v":103545}]
[null,"Показатель \"Оборот субъектов малого и среднего предпринимательства в постоянных ценах по отношению к показателю 2014 года\"","%",1,"Об мсп отчn/Об мсп 2014/*100/инд цен n годов, где Об мсп отчn - оборот субъектов малого и среднего предпринимательства в n году, Об мсп 2014 - оборот субъектов малого и среднего предпринимательства в 2014 году, инд цен n годов - индекс цен за период с 2014 года по n год","Х","Х","Х","Х","Х","Х","Х",100,80.7,94.4,101,105,119.2,102,103,104,105,106,"Х","Х",{"$f":"W149","v":106}]
[null,"Показатель \"Оборот в расчете на одного работника субъекта малого и среднего предпринимательства в постоянных ценах по отношению к показателю 2014 года","%",1,"(Об мсп отчn/К-во работ МСПn)/(Об мсп 2014/к-во работ МСП 2014)*100/инд цен n годов, где Об мсп отчn - оборот субъектов малого и среднего предпринимательства в n году, К-во работ МСПn - количество работников субъектов малого и среднего предпринимательства  n года,  Об мсп 2014 - оборот субъектов малого и среднего предпринимательства в 2014 году, К-во работ МСП 2014 - количество работников субъектов малого и среднего предпринимательства  в 2014 году, инд цен n годов - индекс цен за период с 2014 года по n год","Х","Х","Х","Х","Х","Х","Х",100,77.900000000000006,102.2,103,110.6,114.1,108,109,110,111,112,"Х","Х",112]
[null,"Доля обрабатывающей промышленности в обороте субъектов малого и среднего предпринимательства (без учета индивидуальных предпринимателей)","%",1,"Vобр пром / Vобщ *100, где\nV обр пром - объем оборота обрабатывающей промышленности,\nVобщ - общий объем оборота","Х","Х","Х","Х","Х","Х","Х",7.8,6.8,7.6,7.6,8,8.8000000000000007,15.9,16.399999999999999,16.899999999999999,17.3,17.399999999999999,"Х","Х",17.399999999999999]
[null,"Показатель \"Доля среднесписочной численности работников (без внешних совместителей),\nзанятых у субъектов малого и среднего предпринимательства с учетом самозанятых, в общей численности занятого населения\"","%",1,"СрЧмсп / Чнас *100, где\nСрЧмсп - среднесписочная численность работников (без внешних совместителей),\nзанятых у субъектов малого и среднего предпринимательства с учетом самозанятых,\nЧнас - численность занятого населения","Х","Х","Х","Х","Х",22.7,22.8,21.5,21.7,22,19.7,22.3,23.5,19.2,20,21,21.7,22.3,"Х","Х",22.3]
[null,"Доля кредитов субъектам малого и среднего предпринимательства в общем кредитном портфеле юридических лиц и индивидуальных предпринимателей","%",1,"Vкр мсп / Vобщ *100, где\nV кр мсп - объем кредитов субъектам малого и среднего предпринимательства,\nVобщ - общий кредитный портфель юридических лиц и индивидуальных предпринимателей","Х","Х","Х","Х","Х","Х","Х",41.3,28.2,20.100000000000001,21,22,24.1,26.2,27.1,27.8,28.6,29.3,"Х","Х",29.3]
[null,"Показатель \"Коэффициент \"рождаемости\" субъектов малого и среднего предпринимательства (количество созданных в отчетном периоде малых и средних предприятий на 1 тыс. действующих на дату окончания отчетного периода малых и средних предприятий)\"","ед.",1,"Ксозд мсп/ Кмсп *1001, где\nV созд мсп - количество созданных в отчетном периоде малых и средних предприятий,\nVобщ - количество действующих на дату окончания отчетного периода малых и средних предприятий","Х","Х","Х","Х","Х","Х","Х",14.3,14.5,15,15.2,15.5,15.8,16,16.2,16.399999999999999,16.7,16.899999999999999,"Х","Х",16.899999999999999]
[null,"Показатель \"Доля средств, направляемых на реализацию мероприятий в сфере развития малого и среднего предпринимательства в монопрофильных муниципальных образованиях, в общем объеме финансового обеспечения государственной поддержки малого и среднего предпринимательства за счет средств бюджета края\"","%",1,"\"Р / Рс *100, где\nР - расходы за счет субсидии, предоставленной в текущем финансовом году из федерального бюджета на реализацию мероприятия,\nРс - размер субсидии\"","Х","Х","Х","Х","Х","Х","Х",2,3.2,9.4,9,12.6,10,10,10,"Х","Х","Х","Х","Х",10]
[null,"Показатель \"Количество вновь созданных рабочих мест (включая вновь зарегистрированных индивидуальных предпринимателей и самозанятых) в секторе малого и среднего предпринимательства при реализации подпрограммы \"","ед.",1,"Абсолютный показатель","Х","Х","Х","Х","Х",1222,1478,521,"18 (891*)","17 (59*)","29 (129*)",154,83,122,387,400,430,450,470,"Х",{"$f":"521+18+891+17+59+29+129+154+83+122+387+400+430+450+470","v":4160}]
[null,"Показатель \"Количество субъектов малого и среднего предпринимательства и самозанятых, получивших государственную поддержку\"","ед.",1,"Абсолютный показатель","Х","Х","Х","Х","Х","Х",600,399,"17 (385*)","68 (211*)","87  (775*)",725,317,581,681,1859,2536,3179,3179,"Х",{"$f":"399+17+385+68+211+87+775+725+317+581+681+1859+2536+3179+3179","v":14999}]
[null,"Показатель \"Количество вновь созданных субъектов  малого и среднего предпринимательства из физических лиц, получивших государственную поддержку\"","чел.",1,"Абсолютный показатель","Х","Х","Х","Х","Х","Х","Х","Х","Х","Х","Х","Х","Х","Х",322,340,360,380,"Х","Х",{"$f":"SUM(M158:W158)","v":1402}]
[null,"Показатель \"Оборот розничной торговли на душу населения\"","тыс.рублей",1,"О=Орт/Ч, где О-оборот розничной торговли на душу населения, Орт- оборот розничной торговли за год, млн. рублей, Ч - численность населения (среднегодовая), тыс. человек","Х","Х","Х","Х","Х",105.9,116.1,124.9,135.4,143,149.80000000000001,158.5,162.30000000000001,171.9,175.7,188.2,225.4,246.4,261.3,"Х",261.3]
[null,"Показатель \"Оборот общественного питания на душу населения\"","тыс.рублей",1,"О=Ооп/Ч, где О-оборот общественного питания на душу населения, Ооп- оборот общественного питания за год, млн. рублей, Ч - численность населения (среднегодовая), тыс. человек","Х","Х","Х","Х","Х",6.2,6.8,7.1,7.5,7.7,7.7,8.1,8.6999999999999993,9.1999999999999993,8.6999999999999993,10.4,11.1,11.9,13,"Х",13]
[null,"Показатель \"Объем бытовых услуг на душу населения\"","тыс.рублей",1,"О=Ооп/Ч, где О-объем бытовых услуг на душу населения, Орт- объем бытовых услуг за год, млн. рублей, Ч - численность населения (среднегодовая), тыс. человек","Х","Х","Х","Х","Х",2.1,2.6,3,3,3.2,3.3,3.5,3.5,3.6,3.8,4.0999999999999996,4.3,4.5999999999999996,5.2,"Х",5.2]
["2.1.","Основное мероприятие \"Информационно-аналитическая и организационная поддержка субъектов малого и среднего предпринимательства\"","Х",1,"Х",2014,"Министерство экономического развития Забайкальского края","Х","Х","Х","Х","Х","Х","Х","Х","Х","Х","Х","Х","Х","Х","Х","Х","Х","Х","Х"]
[null,"финансирование за счет краевого бюджета","тыс.рублей","Х","Х","Х","Х","Х","Х","Х","Х","Х",180,"Х","Х","Х","Х","Х","Х","Х","Х","Х","Х","Х","Х",{"$f":"SUM(M163:X163)","v":180}]
[null,"Показатель \"Количество обученных\"","чел.","Х","Абсолютный показатель","Х","Х","Х","Х","Х","Х","Х",9,"Х","Х","Х","Х","Х","Х","Х","Х","Х","Х","Х","Х",{"$f":"SUM(M164:W164)","v":9}]
["2.1.1.","Мероприятие \"Организация  подготовки управленческих кадров для субъектов малого и среднего предпринимательства (реализация \"Губернаторской программы подготовки управленческих  кадров для субъектов малого и среднего предпринимательства)\"   ","тыс.рублей","Х","Х",2014,"Министерство экономического развития Забайкальского края","Х","Х","Х","Х","Х","Х","Х","Х","Х","Х","Х","Х","Х","Х","Х","Х","Х","Х","Х"]
[null,"финансирование за счет краевого бюджета","тыс.рублей","Х","Х","Х","Х","Х","Х","Х","Х","Х",180,"Х","Х","Х","Х","Х","Х","Х","Х","Х","Х","Х","Х",{"$f":"SUM(M166:X166)","v":180}]
[null,"Показатель \"Количество обученных\"","чел.","Х","Абсолютный показатель","Х","Х","Х","Х","Х","Х","Х",9,"Х","Х","Х","Х","Х","Х","Х","Х","Х","Х","Х","Х",{"$f":"SUM(M167:W167)","v":9}]
["2.2.","Основное мероприятие \"Финансовая поддержка субъектов малого и среднего предпринимательства, самозанятых и организаций, образующих инфраструктуру поддержки малого и среднего  предпринимательства\"","Х",1,"Х","2014-2025","Министерство экономического развития Забайкальского края","Х","Х","Х","Х","Х","Х","Х","Х","Х","Х","Х","Х","Х","Х","Х","Х","Х","Х","Х"]
[null,"финансирование за счет краевого бюджета","тыс.рублей","Х","Х","Х","Х","Х","Х","Х","Х","Х",{"$f":"M174+M526","v":30578.5612},{"$f":"N174+N526","v":10153.537850000001},{"$f":"O174+O527","v":5561.7137899999998},{"$f":"P174+P528","v":3912.7313299999996},{"$f":"Q174+Q528+Q576","v":34080.649489999996},{"$f":"R174+R525+R579","v":11715.000000000002},{"$f":"S174+S525+S579","v":35548.800000000003},{"$f":"T525+T579","v":12872.4},{"$f":"U525+U579","v":15961.599999999999},{"$f":"V525+V579","v":21416.400000000001},{"$f":"W525+W579","v":12240.1},{"$f":"X525+X579","v":55818.8},"Х",{"$f":"SUM(M169:X169)","v":249860.29366000002}]
[null,"кроме того, финансирование из других источников:","тыс.рублей","Х","Х","Х","Х","Х","Х","Х","Х","Х",{"$f":"SUM(M171)","v":203505.11219000001},237272.6078,76387.377000000008,33214.285709999996,47935.4,0,6666.4,0,0,0,0,0,"Х",604981.1827]
[null," - из федерального бюджета","тыс.рублей","Х","Х","Х","Х","Х","Х","Х","Х","Х",{"$f":"M189","v":203505.11219000001},{"$f":"N189","v":237272.6078},{"$f":"O189","v":76387.377000000008},{"$f":"P189","v":33214.285709999996},{"$f":"Q189","v":47935.4},0,{"$f":"S198","v":6666.4},0,0,0,0,0,"Х",{"$f":"SUM(M171:X171)","v":604981.1827}]
[null,"Показатель \"Количество субъектов малого и среднего предпринимательства и самозанятых, получивших государственную поддержку\"","ед.","Х","Абсолютный показатель","Х","Х","Х","Х","Х","Х",600,"76 (348*)","17 (385*)","68 (211*)","87  (775*)",725,1252,972,581,1859,2536,3179,3179,"Х",{"$f":"76+348+17+385+68+211+87+775+725+SUM(R172:W172)+3179","v":16250}]
["2.2.1.","Мероприятие \"Софинансирование расходов на государственную поддержку малого и среднего предпринимательства, включая крестьянские (фермерские) хозяйства\"","Х",1,"Х","2014-2020","Министерство экономического развития Забайкальского края","Х","Х","Х","Х","Х","Х","Х","Х","Х","Х","Х","Х","Х","Х","Х","Х","Х","Х","Х"]
[null,"финансирование за счет краевого бюджета","тыс.рублей","Х","Х","Х",null,"ВСЕГО","Х","Х","Х","Х",{"$f":"M175+M176+M177+M178+M179","v":29961.5612},{"$f":"N175+N176+N177+N178","v":9113.5378500000006},{"$f":"O180+O181+O182","v":4561.7137899999998},{"$f":"P184+P185+P186","v":2625.7353299999995},{"$f":"Q184+Q185+Q183+Q187","v":3080.6494899999998},0,{"$f":"S188","v":425.5},"Х","Х","Х","Х","Х","Х",{"$f":"SUM(M174:W174)","v":49768.697660000005}]
[{"$nulls":7},"0412","5228101","521","Х","Х",1000,200,0,0,0,0,0,"Х","Х","Х","Х","Х","Х",{"$f":"SUM(M175:S175)","v":1200}]
[{"$nulls":7},"0412","5228101","810","Х","Х",25661.5612,7663.5378499999997,0,0,0,0,0,"Х","Х","Х","Х","Х","Х",33325.099049999997]
[{"$nulls":7},"0412","5228102","521","Х","Х",300,125,0,0,0,0,0,"Х","Х","Х","Х","Х","Х",425]
[{"$nulls":7},"0412","5228102","810","Х","Х",2700,1125,0,0,0,0,0,"Х","Х","Х","Х","Х","Х",3825]
[{"$nulls":7},"0412","5228103","810","Х","Х",300,0,0,0,0,0,0,"Х","Х","Х","Х","Х","Х",300]
[{"$nulls":7},"0412","03202R0640","521","Х","Х",0,0,409.21100000000001,0,0,0,0,"Х","Х","Х","Х","Х","Х",409.21100000000001]
[{"$nulls":7},"0412","03202R0640","810","Х","Х",0,0,{"$f":"3402.50279","v":3402.50279},0,0,0,0,"Х","Х","Х","Х","Х","Х",3402.50279]
[{"$nulls":7},"0412","03202R4450","810","Х","Х",0,0,750,0,0,0,0,"Х","Х","Х","Х","Х","Х",750]
[{"$nulls":7},"0412","03202R5270","632","Х","Х",0,0,"Х",0,1053.01277,0,0,"Х","Х","Х","Х","Х","Х",1053.01277]
[{"$nulls":7},"0412","03202R5270","812","Х","Х",0,0,"Х",2274.19355,1539.0446899999999,0,0,"Х","Х","Х","Х","Х","Х",3813.2382399999997]
[{"$nulls":7},"0412","03202R5270","521","Х","Х",0,0,"Х",225.80645999999999,467.64895000000001,0,0,"Х","Х","Х","Х","Х","Х",693.45541000000003]
[{"$nulls":7},"0412","0320200270","853","Х","Х",0,0,"Х",125.73532,0,0,0,"Х","Х","Х","Х","Х","Х",125.73532]
[{"$nulls":7},"0412","0320206270","853","Х","Х",0,0,"Х",0,20.943079999999998,0,0,"Х","Х","Х","Х","Х","Х",20.943079999999998]
[{"$nulls":7},"0412","03202R8310",633,"Х","Х",0,0,"Х",0,0,0,{"$f":"S520","v":425.5},"Х","Х","Х","Х","Х","Х",425.5]
[null,"кроме того, финансирование из других источников:","тыс.рублей","Х","Х","Х","Х","Х","Х","Х","Х","Х",{"$f":"M190+M191","v":203505.11219000001},{"$f":"N190+N191","v":237272.6078},{"$f":"O192+O193+O194","v":76387.377000000008},{"$f":"P196+P197","v":33214.285709999996},{"$f":"Q195+Q196+Q197","v":47935.4},0,{"$f":"S198","v":6666.4},"Х","Х","Х","Х","Х","Х",604981.1827]
[null," - из федерального бюджета","тыс.рублей","Х","Х","Х","Х","0412","3455064","521","Х","Х",5200,11375,"Х",0,0,0,0,"Х","Х","Х","Х","Х","Х",16575]
[{"$nulls":7},"0412","3455064","810","Х","Х",198305.11219000001,225897.6078,"Х",0,0,0,0,"Х","Х","Х","Х","Х","Х",424202.71999000001]
[{"$nulls":7},"0412","0320250640","521","Х","Х",0,0,7775,0,0,0,0,"Х","Х","Х","Х","Х","Х",7775]
[{"$nulls":7},"0412","0320250640","810","Х","Х",0,0,64647.542999999998,0,0,0,0,"Х","Х","Х","Х","Х","Х",64647.542999999998]
[{"$nulls":7},"0412","0320254450","810","Х","Х",0,0,3964.8339999999998,0,0,0,0,"Х","Х","Х","Х","Х","Х",3964.8339999999998]
[{"$nulls":7},"0412","03202R5270","632","Х","Х",0,0,0,0,16497.2,0,0,"Х","Х","Х","Х","Х","Х",16497.2]
[{"$nulls":7},"0412","03202R5270","812","Х","Х",0,0,0,30214.28571,24111.7,0,0,"Х","Х","Х","Х","Х","Х",54325.985710000001]
[{"$nulls":7},"0412","03202R5270","521","Х","Х",0,0,0,3000,7326.5,0,0,"Х","Х","Х","Х","Х","Х",10326.5]
[{"$nulls":7},"0412","03202R8310",633,"Х","Х",0,0,0,0,0,0,{"$f":"S522","v":6666.4},"Х","Х","Х","Х","Х","Х",6666.4]
[null,"Показатель \"Количество субъектов малого и среднего предпринимательства, получивших государственную поддержку\"","ед.","Х","Абсолютный показатель","2014-2018","Х","Х","Х","Х","Х",600,"76 (348*)","17 (385*)","48 (211*)","25(145*)",703,"Х","Х","Х","Х","Х","Х","Х","Х",{"$f":"76+348+17+385+48+211+25+145+703","v":1958}]
[null,"Создание и (или) развитие инфраструктуры поддержки субъектов малого и среднего предпринимательства, направленной на содействие развитию систем кредитования - ВСЕГО","Х","Х","Х","2015-2018","Х","Х","Х","Х","Х","Х","Х","Х","Х","Х","Х","Х","Х","Х","Х","Х","Х","Х","Х","Х"]
[null,"финансирование за счет краевого бюджета","тыс.рублей","Х","Х","Х","Х","Х","Х","Х","Х","Х","Х",1000,500,1336.0076300000001,773.5,"Х","Х","Х","Х","Х","Х","Х","Х",{"$f":"SUM(N201:W201)","v":3609.5076300000001}]
[null,"кроме того, финансирование из других источников:","тыс.рублей","Х","Х","Х","Х","Х","Х","Х","Х","Х","Х",{"$f":"SUM(N203)","v":19000},{"$f":"SUM(O203)","v":9500},{"$f":"SUM(P203)","v":17749.815630000001},{"$f":"SUM(Q203)","v":12117.3},"Х","Х","Х","Х","Х","Х","Х","Х",{"$f":"SUM(N202:W202)","v":58367.11563}]
[null," - из федерального бюджета","тыс.рублей","Х","Х","Х","Х","Х","Х","Х","Х","Х","Х",19000,9500,17749.815630000001,12117.3,"Х","Х","Х","Х","Х","Х","Х","Х",{"$f":"SUM(M203:W203)","v":58367.11563}]
[null,"Показатель \"Исполнение расходных обязательств за счет субсидии, предоставленной в соответствующем финансовом году из федерального бюджета на реализацию мероприятия\"","%","Х","Р / Рс *100, где\nР - расходы за счет субсидии, предоставленной в текущем финансовом году из федерального бюджета на реализацию мероприятия,\nРс - размер субсидии","Х","Х","Х","Х","Х","Х","Х","Х",100,100,"Х","Х","Х","Х","Х","Х","Х","Х","Х","Х",100]
[null,"Показатель \"Количество субъектов малого и среднего предпринимательства, получивших государственную поддержку за счет субсидии, предоставленной в соответствующем финансовом году из федерального бюджета на реализацию мероприятия\"","ед.","Х","Абсолютный показатель","Х","Х","Х","Х","Х","Х","Х","Х",4,2,"Х","Х","Х","Х","Х","Х","Х","Х","Х","Х",{"$f":"SUM(M205:W205)","v":6}]
[null,"Показатель \"Отношение объема выданных кредитов субъектам малого и среднего предпринимательства под гарантии (поручительства) гарантийной организации за счет субсидии, предоставленной в соответствующем финансовом году из федерального бюджета на реализацию мероприятия, к совокупному размеру средств гарантийного фонда, сформированному за счет субсидий, предоставленных из бюджетов всех уровней, а также доходов от операционной и финансовой деятельности\" ","%","Х","ОВК/СРСГФ *100, где\nОВК - объема выданных кредитов субъектам малого и среднего предпринимательства под гарантии (поручительства) гарантийной организации,\nСРСГФ - совокупный размер средств гарантийного фонда, сформированный за счет субсидий, предоставленных из бюджетов всех уровней, а также доходов от операционной и финансовой деятельности","Х","Х","Х","Х","Х","Х","Х","Х",200,200,"Х","Х","Х","Х","Х","Х","Х","Х","Х","Х",200]
[null,"Показатель \"Объем выданных гарантий  и (или) поручительств субъектам малого  и среднего предпринимательства за счет субсидии, предоставленной в соответствующем финансовом году из федерального бюджета на реализацию мероприятия\"","тыс. рублей","Х","Абсолютный показатель","Х","Х","Х","Х","Х","Х","Х","Х",19000,19000,"Х","Х","Х","Х","Х","Х","Х","Х","Х","Х",{"$f":"SUM(M207:W207)","v":38000}]
[null,"Показатель \"Количество вновь созданных рабочих мест (включая вновь зарегистрированных индивидуальных предпринимателей) субъектами малого и среднего предпринимательства, получившими государственную поддержку за счет субсидии, предоставленной в текущем финансовом году из федерального бюджета на реализацию мероприятия\"","ед. ","Х","Абсолютный показатель","Х","Х","Х","Х","Х","Х","Х","Х",8,4,"Х","Х","Х","Х","Х","Х","Х","Х","Х","Х",{"$f":"SUM(M208:W208)","v":12}]
[null,"Показатель \"Количество субъектов малого и среднего предпринимательства, получивших государственную поддержку\"","ед.","Х","Абсолютный показатель","Х","Х","Х","Х","Х","Х","Х","Х","1(4*)","1 (2*)","1 (3*)",3,"Х","Х","Х","Х","Х","Х","Х","Х",12]
[null,"Показатель \"Количество вновь созданных рабочих мест (включая вновь зарегистрированных индивидуальных предпринимателей) субъектами малого и среднего предпринимательства, получившими государственную поддержку\"","ед.","Х","Абсолютный показатель","Х","Х","Х","Х","Х","Х","Х","Х","Х","Х","1 (8*)",6,"Х","Х","Х","Х","Х","Х","Х","Х",15]
[null,"Показатель \"Прирост среднесписочной численности работников (без внешних совместителей), занятых у субъектов малого и среднего предпринимательства, получивших государственную поддержку\"","%","Х","Срсп числ.отч/Срсп числ. отч-1 * 100, где Срсп числ.отч - среднесписочная численность работников (без внешних совместителей), занятых у субъектов малого и среднего предпринимательства, получивших государственную поддержку в отчетном периоде, Срсп числ. отч-1 - среднесписочная численность работников (без внешних совместителей), занятых у субъектов малого и среднего предпринимательства, получивших государственную поддержку в предыдущем году","Х","Х","Х","Х","Х","Х","Х","Х","Х","Х","28 (28*)",3,"Х","Х","Х","Х","Х","Х","Х","Х","Х"]
[null,"Показатель \"увеличение оборота субъектов малого и среднего предпринимательства, получивших государственную поддержку, в процентном отношении к показателю за предыдущий период в постоянных ценах 2014 года\"","%","Х","Об мсп отчn/Об мсп 2014/*100/инд цен n годов, где Об мсп отчn - оборот субъектов малого и среднего предпринимательства, получивших государственную поддержку, в n году, Об мсп 2014 - оборот субъектов малого и среднего предпринимательства, получивших государственную поддержку, в 2014 году, инд цен n годов - индекс цен за период с 2014 года по n год","Х","Х","Х","Х","Х","Х","Х","Х","Х","Х","4 (4*)",3.5,"Х","Х","Х","Х","Х","Х","Х","Х","Х"]
[null,"Показатель \"Доля обрабатывающей промышленности в обороте субъектов малого и среднего предпринимательства (без учета индивидуальных предпринимателей), получивших государственную поддержку\"","%","Х","Об обр пром мсп/Об мсп*100, где Об обр пром мсп - объем оборота обрабатывающей промышленности и субъектов малого и среднего предпринимательства (без учета индивидуальных предпринимателей), получивших государственную поддержку, Об мсп - общий объем оборота субъектов малого и среднего предпринимательства (без учета индивидуальных предпринимателей), получивших государственную поддержку","Х","Х","Х","Х","Х","Х","Х","Х","Х","Х","9 (9*)",9,"Х","Х","Х","Х","Х","Х","Х","Х","Х"]
[null,"Предоставление субсидий на создание и увеличение капитализации гарантийных организаций (фондов поручительств) ","Х","Х","Х","2015-2018","Министерство экономического развития Забайкальского края","Х","Х","Х","Х","Х","Х","Х","Х","Х","Х","Х","Х","Х","Х","Х","Х","Х","Х","Х"]
[null,"финансирование за счет краевого бюджета","тыс.рублей","Х","Х","Х","Х","Х","Х","Х","Х","Х","Х",1000,500,1336.0076300000001,"773.44469","Х","Х","Х","Х","Х","Х","Х","Х",{"$f":"SUM(N215:W215)","v":2836.0076300000001}]
[null,"кроме того, финансирование из других источников:","тыс.рублей","Х","Х","Х","Х","Х","Х","Х","Х","Х","Х",{"$f":"SUM(N217)","v":19000},{"$f":"SUM(O217)","v":9500},{"$f":"SUM(P217)","v":17749.815630000001},{"$f":"SUM(Q217)","v":12117.3},"Х","Х","Х","Х","Х","Х","Х","Х",{"$f":"SUM(Z217)","v":58367.11563}]
[null," - из федерального бюджета","тыс.рублей","Х","Х","Х","Х","Х","Х","Х","Х","Х","Х",19000,9500,17749.815630000001,12117.3,"Х","Х","Х","Х","Х","Х","Х","Х",{"$f":"SUM(M217:W217)","v":58367.11563}]
[null,"Показатель \"Исполнение расходных обязательств за счет субсидии, предоставленной в соответствующем финансовом году из федерального бюджета на реализацию мероприятия\"","%","Х","Р / Рс *100, где\nР - расходы за счет субсидии, предоставленной в текущем финансовом году из федерального бюджета на реализацию мероприятия,\nРс - размер субсидии","2015-2016","Х","Х","Х","Х","Х","Х","Х",100,100,"Х","Х","Х","Х","Х","Х","Х","Х","Х","Х","Х"]
[null,"Показатель \"Количество субъектов малого и среднего предпринимательства, получивших государственную поддержку за счет субсидии, предоставленной в соответствующем финансовом году из федерального бюджета на реализацию мероприятия\"","ед.","Х","Абсолютный показатель","Х","Х","Х","Х","Х","Х","Х","Х",4,2,"Х","Х","Х","Х","Х","Х","Х","Х","Х","Х",{"$f":"SUM(M219:W219)","v":6}]
[null,"Показатель \"Отношение объема выданных кредитов субъектам малого и среднего предпринимательства под гарантии (поручительства) гарантийной организации за счет субсидии, предоставленной в соответствующем финансовом году из федерального бюджета на реализацию мероприятия, к совокупному размеру средств гарантийного фонда, сформированному за счет субсидий, предоставленных из бюджетов всех уровней, а также доходов от операционной и финансовой деятельности\" ","%","Х","ОВК/СРСГФ *100, где\nОВК - объема выданных кредитов субъектам малого и среднего предпринимательства под гарантии (поручительства) гарантийной организации,\nСРСГФ - совокупный размер средств гарантийного фонда, сформированный за счет субсидий, предоставленных из бюджетов всех уровней, а также доходов от операционной и финансовой деятельности","Х","Х","Х","Х","Х","Х","Х","Х",200,200,"Х","Х","Х","Х","Х","Х","Х","Х","Х","Х","Х"]
[null,"Показатель \"Объем выданных гарантий  и (или) поручительств субъектам малого  и среднего предпринимательства за счет субсидии, предоставленной в соответствующем финансовом году из федерального бюджета на реализацию мероприятия\"","тыс. рублей","Х","Абсолютный показатель","Х","Х","Х","Х","Х","Х","Х","Х",19000,19000,"Х","Х","Х","Х","Х","Х","Х","Х","Х","Х",{"$f":"SUM(M221:W221)","v":38000}]
[null,"Показатель \"Количество вновь созданных рабочих мест (включая вновь зарегистрированных индивидуальных предпринимателей) субъектами малого и среднего предпринимательства, получившими государственную поддержку за счет субсидии, предоставленной в текущем финансовом году из федерального бюджета на реализацию мероприятия\"","ед. ","Х","Абсолютный показатель","Х","Х","Х","Х","Х","Х","Х","Х",8,4,"Х","Х","Х","Х","Х","Х","Х","Х","Х","Х",{"$f":"SUM(M222:W222)","v":12}]
[null,"Показатель \"Количество субъектов малого и среднего предпринимательства, получивших государственную поддержку\"","ед.","Х","Абсолютный показатель","2015-2018","Х","Х","Х","Х","Х","Х","Х","1(4*)","1 (2*)","1 (3*)",3,"Х","Х","Х","Х","Х","Х","Х","Х",12]
[null,"Показатель \"Количество вновь созданных рабочих мест (включая вновь зарегистрированных индивидуальных предпринимателей) субъектами малого и среднего предпринимательства, получившими государственную поддержку\"","ед.","Х","Абсолютный показатель","2017-2018","Х","Х","Х","Х","Х","Х","Х","Х","Х","1 (8*)",6,"Х","Х","Х","Х","Х","Х","Х","Х",15]
[null,"Показатель \"Прирост среднесписочной численности работников (без внешних совместителей), занятых у субъектов малого и среднего предпринимательства, получивших государственную поддержку\"","%","Х","Срсп числ.отч/Срсп числ. отч-1 * 100, где Срсп числ.отч - среднесписочная численность работников (без внешних совместителей), занятых у субъектов малого и среднего предпринимательства, получивших государственную поддержку в отчетном периоде, Срсп числ. отч-1 - среднесписочная численность работников (без внешних совместителей), занятых у субъектов малого и среднего предпринимательства, получивших государственную поддержку в предыдущем году","Х","Х","Х","Х","Х","Х","Х","Х","Х","Х","28 (28*)",3,"Х","Х","Х","Х","Х","Х","Х","Х","Х"]
[null,"Показатель \"Увеличение оборота субъектов малого и среднего предпринимательства, получивших государственную поддержку, в процентном отношении к показателю за предыдущий период в постоянных ценах 2014 года\"","%","Х","Об мсп отчn/Об мсп 2014/*100/инд цен n годов, где Об мсп отчn - оборот субъектов малого и среднего предпринимательства, получивших государственную поддержку, в n году, Об мсп 2014 - оборот субъектов малого и среднего предпринимательства, получивших государственную поддержку, в 2014 году, инд цен n годов - индекс цен за период с 2014 года по n год","2018-2018","Х","Х","Х","Х","Х","Х","Х","Х","Х","4 (4*)",3.5,"Х","Х","Х","Х","Х","Х","Х","Х","Х"]
[null,"Показатель \"Доля обрабатывающей промышленности в обороте субъектов малого и среднего предпринимательства (без учета индивидуальных предпринимателей), получивших государственную поддержку\"","%","Х","Об обр пром мсп/Об мсп*100, где Об обр пром мсп - объем оборота обрабатывающей промышленности и субъектов малого и среднего предпринимательства (без учета индивидуальных предпринимателей), получивших государственную поддержку, Об мсп - общий объем оборота субъектов малого и среднего предпринимательства (без учета индивидуальных предпринимателей), получивших государственную поддержку","Х","Х","Х","Х","Х","Х","Х","Х","Х","Х","9 (9*)",9,"Х","Х","Х","Х","Х","Х","Х","Х","Х"]
[null,"Создание и (или) развитие инфраструктуры поддержки субъектов малого и среднего предпринимательства, направленной на оказание консультационной поддержки - ВСЕГО","Х","Х","Х",2018,"Министерство экономического развития Забайкальского края","Х","Х","Х","Х","Х","Х","Х","Х","Х","Х","Х","Х","Х","Х","Х","Х","Х","Х","Х"]
[null,"финансирование за счет краевого бюджета","тыс.рублей","Х","Х","Х","Х","Х","Х","Х","Х","Х","Х","Х","Х","Х",847.5,"Х","Х","Х","Х","Х","Х","Х","Х",{"$f":"SUM(O229:W229)","v":847.5}]
[null,"кроме того, финансирование из других источников:","тыс.рублей","Х","Х","Х","Х","Х","Х","Х","Х","Х","Х","Х","Х","Х",{"$f":"SUM(Q231)","v":13276.4},"Х","Х","Х","Х","Х","Х","Х","Х",{"$f":"SUM(Z231)","v":13276.4}]
[null," - из федерального бюджета","тыс.рублей","Х","Х","Х","Х","Х","Х","Х","Х","Х","Х","Х","Х","Х",13276.4,"Х","Х","Х","Х","Х","Х","Х","Х",{"$f":"SUM(M231:W231)","v":13276.4}]
[null,"Показатель \"Количество субъектов малого и среднего предпринимательства, получивших государственную поддержку\"","ед.","Х","Абсолютный показатель","Х","Х","Х","Х","Х","Х","Х","Х","Х","Х","Х",626,"Х","Х","Х","Х","Х","Х","Х","Х",{"$f":"SUM(M232:W232)","v":626}]
[null,"Показатель \"Количество вновь созданных рабочих мест (включая вновь зарегистрированных индивидуальных предпринимателей) субъектами малого и среднего предпринимательства, получившими государственную поддержку\"","ед.","Х","Абсолютный показатель","Х","Х","Х","Х","Х","Х","Х","Х","Х","Х","Х",89,"Х","Х","Х","Х","Х","Х","Х","Х",{"$f":"SUM(M233:W233)","v":89}]
[null,"Показатель \"Прирост среднесписочной численности работников (без внешних совместителей), занятых у субъектов малого и среднего предпринимательства, получивших государственную поддержку\"","%","Х","Срсп числ.отч/Срсп числ. отч-1 * 100, где Срсп числ.отч - среднесписочная численность работников (без внешних совместителей), занятых у субъектов малого и среднего предпринимательства, получивших государственную поддержку в отчетном периоде, Срсп числ. отч-1 - среднесписочная численность работников (без внешних совместителей), занятых у субъектов малого и среднего предпринимательства, получивших государственную поддержку в предыдущем году","Х","Х","Х","Х","Х","Х","Х","Х","Х","Х","Х",3,"Х","Х","Х","Х","Х","Х","Х","Х","Х"]
[null,"Показатель \"Увеличение оборота субъектов малого и среднего предпринимательства, получивших государственную поддержку, в процентном отношении к показателю за предыдущий период в постоянных ценах 2014 года\"","%","Х","Об мсп отчn/Об мсп 2014/*100/инд цен n годов, где Об мсп отчn - оборот субъектов малого и среднего предпринимательства, получивших государственную поддержку, в n году, Об мсп 2014 - оборот субъектов малого и среднего предпринимательства, получивших государственную поддержку, в 2014 году, инд цен n годов - индекс цен за период с 2014 года по n год","Х","Х","Х","Х","Х","Х","Х","Х","Х","Х","Х",3,"Х","Х","Х","Х","Х","Х","Х","Х","Х"]
[null,"Показатель \"Доля обрабатывающей промышленности в обороте субъектов малого и среднего предпринимательства (без учета индивидуальных предпринимателей), получивших государственную поддержку\"","%","Х","Об обр пром мсп/Об мсп*100, где Об обр пром мсп - объем оборота обрабатывающей промышленности и субъектов малого и среднего предпринимательства (без учета индивидуальных предпринимателей), получивших государственную поддержку, Об мсп - общий объем оборота субъектов малого и среднего предпринимательства (без учета индивидуальных предпринимателей), получивших государственную поддержку","Х","Х","Х","Х","Х","Х","Х","Х","Х","Х","Х",5,"Х","Х","Х","Х","Х","Х","Х","Х","Х"]
[null,"Предоставление субсидий на создание и (или) развитие центров поддержки предпринимательства","Х","Х","Х",2018,"Министерство экономического развития Забайкальского края","Х","Х","Х","Х","Х","Х","Х","Х","Х","Х","Х","Х","Х","Х","Х","Х","Х","Х","Х"]
[null,"финансирование за счет краевого бюджета","тыс.рублей","Х","Х","Х","Х","Х","Х","Х","Х","Х","Х","Х","Х","Х",450,"Х","Х","Х","Х","Х","Х","Х","Х",{"$f":"SUM(O238:W238)","v":450}]
[null,"кроме того, финансирование из других источников:","тыс.рублей","Х","Х","Х","Х","Х","Х","Х","Х","Х","Х","Х","Х","Х",{"$f":"SUM(Q240)","v":7050},"Х","Х","Х","Х","Х","Х","Х","Х",{"$f":"SUM(Z240)","v":7050}]
[null," - из федерального бюджета","тыс.рублей","Х","Х","Х","Х","Х","Х","Х","Х","Х","Х","Х","Х","Х",7050,"Х","Х","Х","Х","Х","Х","Х","Х",{"$f":"SUM(M240:W240)","v":7050}]
[null,"Показатель \"Количество субъектов малого и среднего предпринимательства, получивших государственную поддержку\"","ед.","Х","Абсолютный показатель","Х","Х","Х","Х","Х","Х","Х","Х","Х","Х","Х",559,"Х","Х","Х","Х","Х","Х","Х","Х",{"$f":"SUM(M241:W241)","v":559}]
[null,"Показатель \"Количество вновь созданных рабочих мест (включая вновь зарегистрированных индивидуальных предпринимателей) субъектами малого и среднего предпринимательства, получившими государственную поддержку\"","ед.","Х","Абсолютный показатель","Х","Х","Х","Х","Х","Х","Х","Х","Х","Х","Х",79,"Х","Х","Х","Х","Х","Х","Х","Х",{"$f":"SUM(M242:W242)","v":79}]
[null,"Показатель \"Прирост среднесписочной численности работников (без внешних совместителей), занятых у субъектов малого и среднего предпринимательства, получивших государственную поддержку\"","%","Х","Срсп числ.отч/Срсп числ. отч-1 * 100, где Срсп числ.отч - среднесписочная численность работников (без внешних совместителей), занятых у субъектов малого и среднего предпринимательства, получивших государственную поддержку в отчетном периоде, Срсп числ. отч-1 - среднесписочная численность работников (без внешних совместителей), занятых у субъектов малого и среднего предпринимательства, получивших государственную поддержку в предыдущем году","Х","Х","Х","Х","Х","Х","Х","Х","Х","Х","Х",3,"Х","Х","Х","Х","Х","Х","Х","Х","Х"]
[null,"Показатель \"Увеличение оборота субъектов малого и среднего предпринимательства, получивших государственную поддержку, в процентном отношении к показателю за предыдущий период в постоянных ценах 2014 года\"","%","Х","Об мсп отчn/Об мсп 2014/*100/инд цен n годов, где Об мсп отчn - оборот субъектов малого и среднего предпринимательства, получивших государственную поддержку, в n году, Об мсп 2014 - оборот субъектов малого и среднего предпринимательства, получивших государственную поддержку, в 2014 году, инд цен n годов - индекс цен за период с 2014 года по n год","Х","Х","Х","Х","Х","Х","Х","Х","Х","Х","Х",3,"Х","Х","Х","Х","Х","Х","Х","Х","Х"]
[null,"Показатель \"Доля обрабатывающей промышленности в обороте субъектов малого и среднего предпринимательства (без учета индивидуальных предпринимателей), получивших государственную поддержку\"","%","Х","об обр пром мсп/об мсп*100, где об обр пром мсп - объем оборота обрабатывающей промышленности и субъектов малого и среднего предпринимательства (без учета индивидуальных предпринимателей), получивших государственную поддержку, об мсп - общий объем оборота субъектов малого и среднего предпринимательства (без учета индивидуальных предпринимателей), получивших государственную поддержку","Х","Х","Х","Х","Х","Х","Х","Х","Х","Х","Х",5,"Х","Х","Х","Х","Х","Х","Х","Х","Х"]
[null,"Предоставление субсидий на создание и (или) развитие центров инноваций социальной сферы","Х","Х","Х",2018,"Министерство экономического развития Забайкальского края","Х","Х","Х","Х","Х","Х","Х","Х","Х","Х","Х","Х","Х","Х","Х","Х","Х","Х","Х"]
[null,"финансирование за счет краевого бюджета","тыс.рублей","Х","Х","Х","Х","Х","Х","Х","Х","Х","Х","Х","Х","Х",397.5,"Х","Х","Х","Х","Х","Х","Х","Х",{"$f":"SUM(O247:W247)","v":397.5}]
[null,"кроме того, финансирование из других источников:","тыс.рублей","Х","Х","Х","Х","Х","Х","Х","Х","Х","Х","Х","Х","Х",{"$f":"SUM(Q249)","v":6226.4},"Х","Х","Х","Х","Х","Х","Х","Х",{"$f":"SUM(Z249)","v":6226.4}]
[null," - из федерального бюджета","тыс.рублей","Х","Х","Х","Х","Х","Х","Х","Х","Х","Х","Х","Х","Х",6226.4,"Х","Х","Х","Х","Х","Х","Х","Х",{"$f":"SUM(M249:W249)","v":6226.4}]
[null,"Показатель \"Количество субъектов малого и среднего предпринимательства, получивших государственную поддержку\"","ед.","Х","Абсолютный показатель","Х","Х","Х","Х","Х","Х","Х","Х","Х","Х","Х",67,"Х","Х","Х","Х","Х","Х","Х","Х",{"$f":"SUM(M250:W250)","v":67}]
[null,"Показатель \"Количество вновь созданных рабочих мест (включая вновь зарегистрированных индивидуальных предпринимателей) субъектами малого и среднего предпринимательства, получившими государственную поддержку\"","ед.","Х","Абсолютный показатель","Х","Х","Х","Х","Х","Х","Х","Х","Х","Х","Х",10,"Х","Х","Х","Х","Х","Х","Х","Х",{"$f":"SUM(M251:W251)","v":10}]
[null,"Показатель \"Прирост среднесписочной численности работников (без внешних совместителей), занятых у субъектов малого и среднего предпринимательства, получивших государственную поддержку\"","%","Х","Срсп числ.отч/Срсп числ. отч-1 * 100, где Срсп числ.отч - среднесписочная численность работников (без внешних совместителей), занятых у субъектов малого и среднего предпринимательства, получивших государственную поддержку в отчетном периоде, Срсп числ. отч-1 - среднесписочная численность работников (без внешних совместителей), занятых у субъектов малого и среднего предпринимательства, получивших государственную поддержку в предыдущем году","Х","Х","Х","Х","Х","Х","Х","Х","Х","Х","Х",3,"Х","Х","Х","Х","Х","Х","Х","Х","Х"]
[null,"Показатель \"Увеличение оборота субъектов малого и среднего предпринимательства, получивших государственную поддержку, в процентном отношении к показателю за предыдущий период в постоянных ценах 2014 года\"","%","Х","Об мсп отчn/Об мсп 2014/*100/инд цен n годов, где Об мсп отчn - оборот субъектов малого и среднего предпринимательства, получивших государственную поддержку, в n году, Об мсп 2014 - оборот субъектов малого и среднего предпринимательства, получивших государственную поддержку, в 2014 году, инд цен n годов - индекс цен за период с 2014 года по n год","Х","Х","Х","Х","Х","Х","Х","Х","Х","Х","Х",3,"Х","Х","Х","Х","Х","Х","Х","Х","Х"]
[null,"Показатель \"Доля обрабатывающей промышленности в обороте субъектов малого и среднего предпринимательства (без учета индивидуальных предпринимателей), получивших государственную поддержку\"","%","Х","Об обр пром мсп/Об мсп*100, где Об обр пром мсп - объем оборота обрабатывающей промышленности и субъектов малого и среднего предпринимательства (без учета индивидуальных предпринимателей), получивших государственную поддержку, Об мсп - общий объем оборота субъектов малого и среднего предпринимательства (без учета индивидуальных предпринимателей), получивших государственную поддержку","Х","Х","Х","Х","Х","Х","Х","Х","Х","Х","Х",5,"Х","Х","Х","Х","Х","Х","Х","Х","Х"]
[null,"Создание и (или) развитие инфраструктуры поддержки субъектов малого и среднего предпринимательства, осуществляющих деятельность в области промышленного и сельскохозяйственного производства, а также разработку и внедрение инновационной продукции и (или) экспорт товаров (работ, услуг) - ВСЕГО","Х","Х","Х","2014-2018","Х","Х","Х","Х","Х","Х","Х","Х","Х","Х","Х","Х","Х","Х","Х","Х","Х","Х","Х","Х"]
[null,"финансирование за счет краевого бюджета","тыс.рублей","Х","Х","Х","Х","Х","Х","Х","Х","Х",5600,500,0,700,609.9,"Х","Х","Х","Х","Х","Х","Х","Х",{"$f":"SUM(K256:W256)","v":7409.9}]
[null,"кроме того, финансирование из других источников:","тыс.рублей","Х","Х","Х","Х","Х","Х","Х","Х","Х",{"$f":"SUM(M258)","v":0},{"$f":"SUM(N258)","v":24425.969000000001},{"$f":"SUM(O258)","v":0},{"$f":"SUM(P258)","v":9300},{"$f":"SUM(Q258)","v":9555.1},"Х","Х","Х","Х","Х","Х","Х","Х",{"$f":"SUM(Z258)","v":43281.068999999996}]
[null," - из федерального бюджета","тыс.рублей","Х","Х","Х","Х","Х","Х","Х","Х","Х",0,24425.969000000001,0,9300,9555.1,"Х","Х","Х","Х","Х","Х","Х","Х",{"$f":"SUM(M258:W258)","v":43281.068999999996}]
[null,"Показатель \"Исполнение расходных обязательств за счет субсидии, предоставленной в соответствующем финансовом году из федерального бюджета на реализацию мероприятия\"","%","Х","Р / Рс *100, где\nР - расходы за счет субсидии, предоставленной в текущем финансовом году из федерального бюджета на реализацию мероприятия,\nРс - размер субсидии","Х","Х","Х","Х","Х","Х","Х","Х",100,"Х","Х","Х","Х","Х","Х","Х","Х","Х","Х","Х","Х"]
[null,"Показатель \"Количество услуг, предоставленных субъектам малого и среднего предпринимательства за счет субсидии, предоставленной в соответствующем финансовом году из федерального бюджета на реализацию мероприятия\"","ед.","Х","Абсолютный показатель","Х","Х","Х","Х","Х","Х","Х","Х",48,"Х","Х","Х","Х","Х","Х","Х","Х","Х","Х","Х",{"$f":"SUM(M260:W260)","v":48}]
[null,"Показатель \"Количество субъектов малого и среднего предпринимательства, получивших государственную поддержку за счет субсидии, предоставленной в соответствующем финансовом году из федерального бюджета на реализацию мероприятия\"","ед.","Х","Абсолютный показатель","Х","Х","Х","Х","Х","Х","Х","Х",95,"Х","Х","Х","Х","Х","Х","Х","Х","Х","Х","Х",{"$f":"SUM(M261:W261)","v":95}]
[null,"Показатель \"Количество вновь созданных рабочих мест (включая вновь зарегистрированных индивидуальных предпринимателей) субъектами малого предпринимательства, получившими государственную поддержку за счет субсидии, предоставленной в текущем финансовом году из федерального бюджета на реализацию мероприятия\"","ед. ","Х","Абсолютный показатель","Х","Х","Х","Х","Х","Х","Х","Х",10,"Х","Х","Х","Х","Х","Х","Х","Х","Х","Х","Х",{"$f":"SUM(M262:W262)","v":10}]
[null,"Показатель \"Количество субъектов малого и среднего предпринимательства, получивших государственную поддержку\"","ед.","Х","Абсолютный показатель","Х","Х","Х","Х","Х","Х","Х",32,"5(181*)",0,"3 (69*)",63,"Х","Х","Х","Х","Х","Х","Х","Х",{"$f":"32+5+181+3+69+63","v":353}]
[null,"Показатель \"Количество вновь созданных рабочих мест (включая вновь зарегистрированных индивидуальных предпринимателей) субъектами малого и среднего предпринимательства, получившими государственную поддержку\"","ед.","Х","Абсолютный показатель","Х","Х","Х","Х","Х","Х","Х","Х","Х","Х","2 (10*)",10,"Х","Х","Х","Х","Х","Х","Х","Х",{"$f":"2+10+10","v":22}]
[null,"Показатель \"Прирост среднесписочной численности работников (без внешних совместителей), занятых у субъектов малого и среднего предпринимательства, получивших государственную поддержку\"","%","Х","Срсп числ.отч/Срсп числ. отч-1 * 100, где Срсп числ.отч - среднесписочная численность работников (без внешних совместителей), занятых у субъектов малого и среднего предпринимательства, получивших государственную поддержку в отчетном периоде, Срсп числ. отч-1 - среднесписочная численность работников (без внешних совместителей), занятых у субъектов малого и среднего предпринимательства, получивших государственную поддержку в предыдущем году","Х","Х","Х","Х","Х","Х","Х","Х","Х","Х","28 (28*)",3,"Х","Х","Х","Х","Х","Х","Х","Х","Х"]
[null,"Показатель \"Увеличение оборота субъектов малого и среднего предпринимательства, получивших государственную поддержку, в процентном отношении к показателю за предыдущий период в постоянных ценах 2014 года\"","%","Х","Об мсп отчn/Об мсп 2014/*100/инд цен n годов, где Об мсп отчn - оборот субъектов малого и среднего предпринимательства, получивших государственную поддержку, в n году, Об мсп 2014 - оборот субъектов малого и среднего предпринимательства, получивших государственную поддержку, в 2014 году, инд цен n годов - индекс цен за период с 2014 года по n год","Х","Х","Х","Х","Х","Х","Х","Х","Х","Х","4 (4*)",4.2,"Х","Х","Х","Х","Х","Х","Х","Х","Х"]
[null,"Показатель \"Доля обрабатывающей промышленности в обороте субъектов малого и среднего предпринимательства (без учета индивидуальных предпринимателей), получивших государственную поддержку\"","%","Х","Об обр пром мсп/Об мсп*100, где Об обр пром мсп - объем оборота обрабатывающей промышленности и субъектов малого и среднего предпринимательства (без учета индивидуальных предпринимателей), получивших государственную поддержку, Об мсп - общий объем оборота субъектов малого и среднего предпринимательства (без учета индивидуальных предпринимателей), получивших государственную поддержку","Х","Х","Х","Х","Х","Х","Х","Х","Х","Х","70 (70*)",70,"Х","Х","Х","Х","Х","Х","Х","Х","Х"]
[null,"Предоставление субсидий на создание и (или) обеспечение деятельности регионального центра инжиниринга для субъектов малого и среднего предпринимательства ","Х","Х","Х","2014-2018","Министерство экономического развития Забайкальского края","Х","Х","Х","Х","Х","Х","Х","Х","Х","Х","Х","Х","Х","Х","Х","Х","Х","Х","Х"]
[null,"финансирование за счет краевого бюджета","тыс.рублей","Х","Х","Х","Х","Х","Х","Х","Х","Х",5600,500,0,700,609.9,"Х","Х","Х","Х","Х","Х","Х","Х",{"$f":"SUM(K269:W269)","v":7409.9}]
[null,"кроме того, финансирование из других источников:","тыс.рублей","Х","Х","Х","Х","Х","Х","Х","Х","Х",{"$f":"SUM(M271)","v":0},{"$f":"SUM(N271)","v":24425.969000000001},{"$f":"SUM(O271)","v":0},{"$f":"SUM(P271)","v":9300},{"$f":"SUM(Q271)","v":9555.1},"Х","Х","Х","Х","Х","Х","Х","Х",{"$f":"SUM(Z271)","v":43281.068999999996}]
[null," - из федерального бюджета","тыс.рублей","Х","Х","Х","Х","Х","Х","Х","Х","Х",0,24425.969000000001,0,9300,9555.1,"Х","Х","Х","Х","Х","Х","Х","Х",{"$f":"SUM(M271:W271)","v":43281.068999999996}]
[null,"Показатель \"Исполнение расходных обязательств за счет субсидии, предоставленной в соответствующем финансовом году из федерального бюджета на реализацию мероприятия\"","%","Х","Р / Рс *100, где\nР - расходы за счет субсидии, предоставленной в текущем финансовом году из федерального бюджета на реализацию мероприятия,\nРс - размер субсидии",2015,"Х","Х","Х","Х","Х","Х","Х",100,"Х","Х","Х","Х","Х","Х","Х","Х","Х","Х","Х",100]
[null,"Показатель \"Количество услуг, предоставленных субъектам малого и среднего предпринимательства за счет субсидии, предоставленной в соответствующем финансовом году из федерального бюджета на реализацию мероприятия\"","ед.","Х","Абсолютный показатель",2015,"Х","Х","Х","Х","Х","Х","Х",48,"Х","Х","Х","Х","Х","Х","Х","Х","Х","Х","Х",{"$f":"SUM(M273:W273)","v":48}]
[null,"Показатель \"Количество субъектов малого и среднего предпринимательства, получивших государственную поддержку за счет субсидии, предоставленной в соответствующем финансовом году из федерального бюджета на реализацию мероприятия\"","ед.","Х","Абсолютный показатель",2015,"Х","Х","Х","Х","Х","Х","Х",95,"Х","Х","Х","Х","Х","Х","Х","Х","Х","Х","Х",{"$f":"SUM(M274:W274)","v":95}]
[null,"Показатель \"Количество вновь созданных рабочих мест (включая вновь зарегистрированных индивидуальных предпринимателей) субъектами малого предпринимательства, получившими государственную поддержку за счет субсидии, предоставленной в текущем финансовом году из федерального бюджета на реализацию мероприятия\"","ед. ","Х","Абсолютный показатель",2015,"Х","Х","Х","Х","Х","Х","Х",10,"Х","Х","Х","Х","Х","Х","Х","Х","Х","Х","Х",{"$f":"SUM(M275:W275)","v":10}]
[null,"Показатель \"Количество субъектов малого и среднего предпринимательства, получивших государственную поддержку\"","ед.","Х","Абсолютный показатель","2014-2018","Х","Х","Х","Х","Х","Х",32,"5(181*)",0,"3 (69*)",63,"Х","Х","Х","Х","Х","Х","Х","Х",{"$f":"32+5+181+3+69+63","v":353}]
[null,"Показатель \"Количество вновь созданных рабочих мест (включая вновь зарегистрированных индивидуальных предпринимателей) субъектами малого и среднего предпринимательства, получившими государственную поддержку\"","ед.","Х","Абсолютный показатель","2017-2018","Х","Х","Х","Х","Х","Х","Х","Х","Х","2 (10*)",10,"Х","Х","Х","Х","Х","Х","Х","Х",{"$f":"2+10+10","v":22}]
[null,"Показатель \"Прирост среднесписочной численности работников (без внешних совместителей), занятых у субъектов малого и среднего предпринимательства, получивших государственную поддержку\"","%","Х","Срсп числ.отч/Срсп числ. отч-1 * 100, где Срсп числ.отч - среднесписочная численность работников (без внешних совместителей), занятых у субъектов малого и среднего предпринимательства, получивших государственную поддержку в отчетном периоде, Срсп числ. отч-1 - среднесписочная численность работников (без внешних совместителей), занятых у субъектов малого и среднего предпринимательства, получивших государственную поддержку в предыдущем году","Х","Х","Х","Х","Х","Х","Х","Х","Х","Х","28 (28*)",3,"Х","Х","Х","Х","Х","Х","Х","Х","Х"]
[null,"Показатель \"Увеличение оборота субъектов малого и среднего предпринимательства, получивших государственную поддержку, в процентном отношении к показателю за предыдущий период в постоянных ценах 2014 года\"","%","Х","Об мсп отчn/Об мсп 2014/*100/инд цен n годов, где Об мсп отчn - оборот субъектов малого и среднего предпринимательства, получивших государственную поддержку, в n году, Об мсп 2014 - оборот субъектов малого и среднего предпринимательства, получивших государственную поддержку, в 2014 году, инд цен n годов - индекс цен за период с 2014 года по n год","Х","Х","Х","Х","Х","Х","Х","Х","Х","Х","4 (4*)",4.2,"Х","Х","Х","Х","Х","Х","Х","Х","Х"]
[null,"Показатель \"Доля обрабатывающей промышленности в обороте субъектов малого и среднего предпринимательства (без учета индивидуальных предпринимателей), получивших государственную поддержку\"","%","Х","Об обр пром мсп/Об мсп*100, где Об обр пром мсп - объем оборота обрабатывающей промышленности и субъектов малого и среднего предпринимательства (без учета индивидуальных предпринимателей), получивших государственную поддержку, Об мсп - общий объем оборота субъектов малого и среднего предпринимательства (без учета индивидуальных предпринимателей), получивших государственную поддержку","Х","Х","Х","Х","Х","Х","Х","Х","Х","Х","70 (70*)",70,"Х","Х","Х","Х","Х","Х","Х","Х","Х"]
[null,"Поддержка субъектов малого и среднего предпринимательства, осуществляющих деятельность в монопрофильных муниципальных образованиях - ВСЕГО","Х","Х","Х","2014-2018","Министерство экономического развития Забайкальского края","Х","Х","Х","Х","Х","Х","Х","Х","Х","Х","Х","Х","Х","Х","Х","Х","Х","Х","Х"]
[null,"финансирование за счет краевого бюджета","тыс.рублей","Х","Х","Х","Х","Х","Х","Х","Х","Х",1000,200,384.21100000000001,225.80645999999999,467.64895000000001,"Х","Х","Х","Х","Х","Х","Х","Х",{"$f":"SUM(M282:W282)","v":2277.6664099999998}]
[null,"кроме того, финансирование из других источников:","тыс.рублей","Х","Х","Х","Х","Х","Х","Х","Х","Х",{"$f":"SUM(M284)","v":3600},{"$f":"SUM(N284)","v":7800},{"$f":"SUM(O284)","v":7300},{"$f":"SUM(P284)","v":3000},{"$f":"SUM(Q284)","v":7326.5},"Х","Х","Х","Х","Х","Х","Х","Х",{"$f":"SUM(Z284)","v":29026.5}]
[null," - из федерального бюджета","тыс.рублей","Х","Х","Х","Х","Х","Х","Х","Х","Х",3600,7800,7300,3000,7326.5,"Х","Х","Х","Х","Х","Х","Х","Х",{"$f":"SUM(M284:W284)","v":29026.5}]
[null,"Показатель \"Доля монопрофильных муниципальных образований, получивших государственную поддержку за счет субсидии, предоставленной в соответствующем финансовом году из федерального бюджета на реализацию мероприятия,  в общем количестве монопрофильных муниципальных образований на территории Забайкальского края\"","%","Х","Р / Рс *100, где\nР - расходы за счет субсидии, предоставленной в текущем финансовом году из федерального бюджета на реализацию мероприятия,\nРс - размер субсидии","2015-2016","Х","Х","Х","Х","Х","Х","Х",37.5,100,"Х","Х","Х","Х","Х","Х","Х","Х","Х","Х",100]
[null,"Показатель \"Исполнение расходных обязательств за счет субсидии, предоставленной в соответствующем финансовом году из федерального бюджета на реализацию мероприятия\"","%","Х","Р / Рс *100, где\nР - расходы за счет субсидии, предоставленной в текущем финансовом году из федерального бюджета на реализацию мероприятия,\nРс - размер субсидии","Х","Х","Х","Х","Х","Х","Х","Х",100,100,"Х","Х","Х","Х","Х","Х","Х","Х","Х","Х",100]
[null,"Показатель \"Количество субъектов малого и среднего предпринимательства, получивших государственную поддержку за счет субсидии, предоставленной в соответствующем финансовом году из федерального бюджета на реализацию мероприятия\"","ед.","Х","Абсолютный показатель","Х","Х","Х","Х","Х","Х","Х","Х",8,16,"Х","Х","Х","Х","Х","Х","Х","Х","Х","Х",{"$f":"SUM(M287:W287)","v":24}]
[null,"Показатель \"Количество вновь созданных рабочих мест (включая вновь зарегистрированных индивидуальных предпринимателей) субъектами малого предпринимательства, получившими государственную поддержку за счет субсидии, предоставленной в текущем финансовом году из федерального бюджета на реализацию мероприятия\"","ед. ","Х","Абсолютный показатель","Х","Х","Х","Х","Х","Х","Х","Х",16,16,"Х","Х","Х","Х","Х","Х","Х","Х","Х","Х",{"$f":"SUM(M288:W288)","v":32}]
[null,"Показатель \"Количество субъектов малого и среднего предпринимательства, получивших государственную поддержку\"","ед.","Х","Абсолютный показатель","2014-2018","Х","Х","Х","Х","Х",0,"5 (12*)","1 (22*)","8 (16*)","1(3*)",11,"Х","Х","Х","Х","Х","Х","Х","Х",{"$f":"5+12+1+22+8+16+1+3+11","v":79}]
[null,"Показатель \"Количество вновь созданных рабочих мест (включая вновь зарегистрированных индивидуальных предпринимателей) субъектами малого и среднего предпринимательства, получившими государственную поддержку\"","ед.","Х","Абсолютный показатель","2017-2018","Х","Х","Х","Х","Х","Х","Х","Х","Х","1 (6*)",13,"Х","Х","Х","Х","Х","Х","Х","Х",{"$f":"1+6+13","v":20}]
[null,"Показатель \"Прирост среднесписочной численности работников (без внешних совместителей), занятых у субъектов малого и среднего предпринимательства, получивших государственную поддержку\"","%","Х","Срсп числ.отч/Срсп числ. отч-1 * 100, где Срсп числ.отч - среднесписочная численность работников (без внешних совместителей), занятых у субъектов малого и среднего предпринимательства, получивших государственную поддержку в отчетном периоде, Срсп числ. отч-1 - среднесписочная численность работников (без внешних совместителей), занятых у субъектов малого и среднего предпринимательства, получивших государственную поддержку в предыдущем году","Х","Х","Х","Х","Х","Х","Х","Х","Х","Х","28 (28*)",1,"Х","Х","Х","Х","Х","Х","Х","Х",29]
[null,"Показатель \"Увеличение оборота субъектов малого и среднего предпринимательства, получивших государственную поддержку, в процентном отношении к показателю за предыдущий период в постоянных ценах 2014 года\"","%","Х","Об мсп отчn/Об мсп 2014/*100/инд цен n годов, где Об мсп отчn - оборот субъектов малого и среднего предпринимательства, получивших государственную поддержку, в n году, Об мсп 2014 - оборот субъектов малого и среднего предпринимательства, получивших государственную поддержку, в 2014 году, инд цен n годов - индекс цен за период с 2014 года по n год","Х","Х","Х","Х","Х","Х","Х","Х","Х","Х","4 (4*)",1,"Х","Х","Х","Х","Х","Х","Х","Х",4]
[null,"Показатель \"Доля обрабатывающей промышленности в обороте субъектов малого и среднего предпринимательства (без учета индивидуальных предпринимателей), получивших государственную поддержку\"","%","Х","Об обр пром мсп/Об мсп*100, где Об обр пром мсп - объем оборота обрабатывающей промышленности и субъектов малого и среднего предпринимательства (без учета индивидуальных предпринимателей), получивших государственную поддержку, Об мсп - общий объем оборота субъектов малого и среднего предпринимательства (без учета индивидуальных предпринимателей), получивших государственную поддержку","Х","Х","Х","Х","Х","Х","Х","Х","Х","Х","10 (10*)",5,"Х","Х","Х","Х","Х","Х","Х","Х",15]
[null,"Предоставление субсидий бюджетам монопрофильных муниципальных образований на реализацию муниципальных программ (подпрограмм) монопрофильных муниципальных образований, содержащих мероприятия, направленные на развитие малого и среднего предпринимательства ","Х","Х","Х","2014-2018","Министерство экономического развития Забайкальского края","Х","Х","Х","Х","Х","Х","Х","Х","Х","Х","Х","Х","Х","Х","Х","Х","Х","Х","Х"]
[null,"финансирование за счет краевого бюджета","тыс.рублей","Х","Х","Х","Х","Х","Х","Х","Х","Х",1000,200,384.21100000000001,225.80645999999999,467.64895000000001,"Х","Х","Х","Х","Х","Х","Х","Х",{"$f":"SUM(L295:W295)","v":2277.6664099999998}]
[null,"кроме того, финансирование из других источников:","тыс.рублей","Х","Х","Х","Х","Х","Х","Х","Х","Х",{"$f":"M297","v":3600},{"$f":"N297","v":7800},{"$f":"O297","v":7300},{"$f":"P297","v":3000},{"$f":"Q297","v":7326.5},"Х","Х","Х","Х","Х","Х","Х","Х",{"$f":"Z297","v":29026.5}]
[null," - из федерального бюджета","тыс.рублей","Х","Х","Х","Х","Х","Х","Х","Х","Х",3600,7800,7300,3000,7326.5,"Х","Х","Х","Х","Х","Х","Х","Х",{"$f":"SUM(M297:W297)","v":29026.5}]
[null,"Показатель \"Доля монопрофильных муниципальных образований, получивших государственную поддержку за счет субсидии, предоставленной в соответствующем финансовом году из федерального бюджета на реализацию мероприятия,  в общем количестве монопрофильных муниципальных образований на территории Забайкальского края\"","%","Х","Р / Рс *100, где\nР - расходы за счет субсидии, предоставленной в текущем финансовом году из федерального бюджета на реализацию мероприятия,\nРс - размер субсидии","2015-2016","Х","Х","Х","Х","Х","Х","Х",37.5,100,"Х","Х","Х","Х","Х","Х","Х","Х","Х","Х","Х"]
[null,"Показатель \"Исполнение расходных обязательств за счет субсидии, предоставленной в соответствующем финансовом году из федерального бюджета на реализацию мероприятия\"","%","Х","Р / Рс *100, где\nР - расходы за счет субсидии, предоставленной в текущем финансовом году из федерального бюджета на реализацию мероприятия,\nРс - размер субсидии","Х","Х","Х","Х","Х","Х","Х","Х",100,100,"Х","Х","Х","Х","Х","Х","Х","Х","Х","Х","Х"]
[null,"Показатель \"Количество субъектов малого и среднего предпринимательства, получивших государственную поддержку за счет субсидии, предоставленной в соответствующем финансовом году из федерального бюджета на реализацию мероприятия\"","ед.","Х","Абсолютный показатель","Х","Х","Х","Х","Х","Х","Х","Х",8,16,"Х","Х","Х","Х","Х","Х","Х","Х","Х","Х",{"$f":"SUM(M300:W300)","v":24}]
[null,"Показатель \"Количество вновь созданных рабочих мест (включая вновь зарегистрированных индивидуальных предпринимателей) субъектами малого предпринимательства, получившими государственную поддержку за счет субсидии, предоставленной в текущем финансовом году из федерального бюджета на реализацию мероприятия\"","ед. ","Х","Абсолютный показатель","Х","Х","Х","Х","Х","Х","Х","Х",16,16,"Х","Х","Х","Х","Х","Х","Х","Х","Х","Х",{"$f":"SUM(M301:W301)","v":32}]
[null,"Показатель \"Количество субъектов малого и среднего предпринимательства, получивших государственную поддержку\"","ед.","Х","Абсолютный показатель","2014-2018","Х","Х","Х","Х","Х","Х","5 (12*)","1 (22*)","8 (16*)","1(3*)",11,"Х","Х","Х","Х","Х","Х","Х","Х",{"$f":"5+12+1+22+8+16+1+3+11","v":79}]
[null,"Показатель \"Количество вновь созданных рабочих мест (включая вновь зарегистрированных индивидуальных предпринимателей) субъектами малого и среднего предпринимательства, получившими государственную поддержку\"","ед.","Х","Абсолютный показатель","2017-2018","Х","Х","Х","Х","Х","Х","Х","Х","Х","1 (6*)",13,"Х","Х","Х","Х","Х","Х","Х","Х",{"$f":"1+6+13","v":20}]
[null,"Показатель \"Прирост среднесписочной численности работников (без внешних совместителей), занятых у субъектов малого и среднего предпринимательства, получивших государственную поддержку\"","%","Х","Срсп числ.отч/Срсп числ. отч-1 * 100, где Срсп числ.отч - среднесписочная численность работников (без внешних совместителей), занятых у субъектов малого и среднего предпринимательства, получивших государственную поддержку в отчетном периоде, Срсп числ. отч-1 - среднесписочная численность работников (без внешних совместителей), занятых у субъектов малого и среднего предпринимательства, получивших государственную поддержку в предыдущем году","Х","Х","Х","Х","Х","Х","Х","Х","Х","Х","28 (28*)",1,"Х","Х","Х","Х","Х","Х","Х","Х","Х"]
[null,"Показатель \"Увеличение оборота субъектов малого и среднего предпринимательства, получивших государственную поддержку, в процентном отношении к показателю за предыдущий период в постоянных ценах 2014 года\"","%","Х","Об мсп отчn/Об мсп 2014/*100/инд цен n годов, где Об мсп отчn - оборот субъектов малого и среднего предпринимательства, получивших государственную поддержку, в n году, Об мсп 2014 - оборот субъектов малого и среднего предпринимательства, получивших государственную поддержку, в 2014 году, инд цен n годов - индекс цен за период с 2014 года по n год","Х","Х","Х","Х","Х","Х","Х","Х","Х","Х","4 (4*)",1,"Х","Х","Х","Х","Х","Х","Х","Х","Х"]
[null,"Показатель \"Доля обрабатывающей промышленности в обороте субъектов малого и среднего предпринимательства (без учета индивидуальных предпринимателей), получивших государственную поддержку\"","%","Х","Об обр пром мсп/Об мсп*100, где Об обр пром мсп - объем оборота обрабатывающей промышленности и субъектов малого и среднего предпринимательства (без учета индивидуальных предпринимателей), получивших государственную поддержку, Об мсп - общий объем оборота субъектов малого и среднего предпринимательства (без учета индивидуальных предпринимателей), получивших государственную поддержку","Х","Х","Х","Х","Х","Х","Х","Х","Х","Х","10 (10*)",5,"Х","Х","Х","Х","Х","Х","Х","Х","Х"]
[null,"Предоставление субсидий бюджетам монопрофильных муниципальных образований на реализацию муниципальных программ (подпрограмм) монопрофильных муниципальных образований, содержащих мероприятия, направленные на развитие малого и среднего предпринимательства (городское поселение \"Город Краснокаменск\" муниципального района \"Город Краснокаменск и Краснокаменский район Забайкальского края)","Х","Х","Х","2014-2018","Министерство экономического развития Забайкальского края","Х","Х","Х","Х","Х","Х","Х","Х","Х","Х","Х","Х","Х","Х","Х","Х","Х","Х","Х"]
[null,"финансирование за счет краевого бюджета","тыс.рублей","Х","Х","Х","Х","Х","Х","Х","Х","Х",0,0,71.25,92.924549999999996,{"$f":"SUM(Q309)","v":0},"Х","Х","Х","Х","Х","Х","Х","Х",{"$f":"SUM(K308:W308)","v":164.17455000000001}]
[null,"кроме того, финансирование из других источников:","тыс.рублей","Х","Х","Х","Х","Х","Х","Х","Х","Х",{"$f":"SUM(M310)","v":0},{"$f":"SUM(N310)","v":0},{"$f":"SUM(O310)","v":1353.75},{"$f":"SUM(P310)","v":1234.569},{"$f":"SUM(Q310)","v":0},"Х","Х","Х","Х","Х","Х","Х","Х",{"$f":"SUM(Z310)","v":2588.319}]
[null," - из федерального бюджета","тыс.рублей","Х","Х","Х","Х","Х","Х","Х","Х","Х",0,0,1353.75,1234.569,{"$f":"SUM(Q311)","v":0},"Х","Х","Х","Х","Х","Х","Х","Х",{"$f":"SUM(M310:W310)","v":2588.319}]
[null,"Показатель \"Доля монопрофильных муниципальных образований, получивших государственную поддержку за счет субсидии, предоставленной в соответствующем финансовом году из федерального бюджета на реализацию мероприятия,  в общем количестве монопрофильных муниципальных образований на территории Забайкальского края\"","%","Х","Р / Рс *100, где\nР - расходы за счет субсидии, предоставленной в текущем финансовом году из федерального бюджета на реализацию мероприятия,\nРс - размер субсидии",2016,"Х","Х","Х","Х","Х","Х","Х","Х",100,"Х","Х","Х","Х","Х","Х","Х","Х","Х","Х","Х"]
[null,"Показатель \"Исполнение расходных обязательств за счет субсидии, предоставленной в соответствующем финансовом году из федерального бюджета на реализацию мероприятия\"","%","Х","Р / Рс *100, где\nР - расходы за счет субсидии, предоставленной в текущем финансовом году из федерального бюджета на реализацию мероприятия,\nРс - размер субсидии","Х","Х","Х","Х","Х","Х","Х","Х","Х",100,"Х","Х","Х","Х","Х","Х","Х","Х","Х","Х","Х"]
[null,"Показатель \"Количество субъектов малого и среднего предпринимательства, получивших государственную поддержку за счет субсидии, предоставленной в соответствующем финансовом году из федерального бюджета на реализацию мероприятия\"","ед.","Х","Абсолютный показатель","Х","Х","Х","Х","Х","Х","Х","Х","Х",3,"Х","Х","Х","Х","Х","Х","Х","Х","Х","Х",{"$f":"SUM(M313:W313)","v":3}]
[null,"Показатель \"Количество вновь созданных рабочих мест (включая вновь зарегистрированных индивидуальных предпринимателей) субъектами малого предпринимательства, получившими государственную поддержку за счет субсидии, предоставленной в текущем финансовом году из федерального бюджета на реализацию мероприятия\"","ед. ","Х","Абсолютный показатель","Х","Х","Х","Х","Х","Х","Х","Х","Х",3,"Х","Х","Х","Х","Х","Х","Х","Х","Х","Х",{"$f":"SUM(M314:W314)","v":3}]
[null,"Показатель \"Количество субъектов малого и среднего предпринимательства, получивших государственную поддержку\"","ед.","Х","Абсолютный показатель","2016-2017","Х","Х","Х","Х","Х","Х","Х","Х","1 (3*)","1 (1*)",0,"Х","Х","Х","Х","Х","Х","Х","Х",6]
[null,"Показатель \"Количество вновь созданных рабочих мест (включая вновь зарегистрированных индивидуальных предпринимателей) субъектами малого и среднего предпринимательства, получившими государственную поддержку\"","ед.","Х","Абсолютный показатель",2017,"Х","Х","Х","Х","Х","Х","Х","Х","Х","1 (2*)","Х","Х","Х","Х","Х","Х","Х","Х","Х",3]
[null,"Показатель \"Прирост среднесписочной численности работников (без внешних совместителей), занятых у субъектов малого и среднего предпринимательства, получивших государственную поддержку\"","%","Х","Срсп числ.отч/Срсп числ. отч-1 * 100, где Срсп числ.отч - среднесписочная численность работников (без внешних совместителей), занятых у субъектов малого и среднего предпринимательства, получивших государственную поддержку в отчетном периоде, Срсп числ. отч-1 - среднесписочная численность работников (без внешних совместителей), занятых у субъектов малого и среднего предпринимательства, получивших государственную поддержку в предыдущем году","Х","Х","Х","Х","Х","Х","Х","Х","Х","Х","28 (28*)","Х","Х","Х","Х","Х","Х","Х","Х","Х","Х"]
[null,"Показатель \"Увеличение оборота субъектов малого и среднего предпринимательства, получивших государственную поддержку, в процентном отношении к показателю за предыдущий период в постоянных ценах 2014 года\"","%","Х","Об мсп отчn/Об мсп 2014/*100/инд цен n годов, где Об мсп отчn - оборот субъектов малого и среднего предпринимательства, получивших государственную поддержку, в n году, Об мсп 2014 - оборот субъектов малого и среднего предпринимательства, получивших государственную поддержку, в 2014 году, инд цен n годов - индекс цен за период с 2014 года по n год","Х","Х","Х","Х","Х","Х","Х","Х","Х","Х","4 (4*)","Х","Х","Х","Х","Х","Х","Х","Х","Х","Х"]
[null,"Показатель \"Доля обрабатывающей промышленности в обороте субъектов малого и среднего предпринимательства (без учета индивидуальных предпринимателей), получивших государственную поддержку\"","%","Х","Об обр пром мсп/Об мсп*100, где Об обр пром мсп - объем оборота обрабатывающей промышленности и субъектов малого и среднего предпринимательства (без учета индивидуальных предпринимателей), получивших государственную поддержку, Об мсп - общий объем оборота субъектов малого и среднего предпринимательства (без учета индивидуальных предпринимателей), получивших государственную поддержку","Х","Х","Х","Х","Х","Х","Х","Х","Х","Х","10 (10*)","Х","Х","Х","Х","Х","Х","Х","Х","Х","Х"]
[null,"Предоставление субсидий бюджетам монопрофильных муниципальных образований на реализацию муниципальных программ (подпрограмм) монопрофильных муниципальных образований, содержащих мероприятия, направленные на развитие малого и среднего предпринимательства (городское поселение \"Кокуйское\" муниципального района \"Сретенский район\" Забайкальского края)","Х","Х","Х","2014-2018","Министерство экономического развития Забайкальского края","Х","Х","Х","Х","Х","Х","Х","Х","Х","Х","Х","Х","Х","Х","Х","Х","Х","Х","Х"]
[null,"финансирование за счет краевого бюджета","тыс.рублей","Х","Х","Х","Х","Х","Х","Х","Х","Х",0,0,23.75,0,0,"Х","Х","Х","Х","Х","Х","Х","Х",{"$f":"SUM(M321:W321)","v":23.75}]
[null,"кроме того, финансирование из других источников:","тыс.рублей","Х","Х","Х","Х","Х","Х","Х","Х","Х",{"$f":"SUM(M323)","v":0},{"$f":"SUM(N323)","v":0},{"$f":"SUM(O323)","v":451.25},{"$f":"SUM(P323)","v":0},{"$f":"SUM(Q323)","v":0},"Х","Х","Х","Х","Х","Х","Х","Х",{"$f":"SUM(Z323)","v":451.25}]
[null," - из федерального бюджета","тыс.рублей","Х","Х","Х","Х","Х","Х","Х","Х","Х",0,0,451.25,0,0,"Х","Х","Х","Х","Х","Х","Х","Х",{"$f":"SUM(M323:W323)","v":451.25}]
[null,"Показатель \"Доля монопрофильных муниципальных образований, получивших государственную поддержку за счет субсидии, предоставленной в соответствующем финансовом году из федерального бюджета на реализацию мероприятия,  в общем количестве монопрофильных муниципальных образований на территории Забайкальского края\"","%","Х","Р / Рс *100, где\nР - расходы за счет субсидии, предоставленной в текущем финансовом году из федерального бюджета на реализацию мероприятия,\nРс - размер субсидии",2016,"Х","Х","Х","Х","Х","Х","Х","Х",100,"Х","Х","Х","Х","Х","Х","Х","Х","Х","Х","Х"]
[null,"Показатель \"Исполнение расходных обязательств за счет субсидии, предоставленной в соответствующем финансовом году из федерального бюджета на реализацию мероприятия\"","%","Х","Р / Рс *100, где\nР - расходы за счет субсидии, предоставленной в текущем финансовом году из федерального бюджета на реализацию мероприятия,\nРс - размер субсидии","Х","Х","Х","Х","Х","Х","Х","Х","Х",100,"Х","Х","Х","Х","Х","Х","Х","Х","Х","Х","Х"]
[null,"Показатель \"Количество субъектов малого и среднего предпринимательства, получивших государственную поддержку за счет субсидии, предоставленной в соответствующем финансовом году из федерального бюджета на реализацию мероприятия\"","ед.","Х","Абсолютный показатель","Х","Х","Х","Х","Х","Х","Х","Х","Х",1,"Х","Х","Х","Х","Х","Х","Х","Х","Х","Х",{"$f":"SUM(M326:W326)","v":1}]
[null,"Показатель \"Количество вновь созданных рабочих мест (включая вновь зарегистрированных индивидуальных предпринимателей) субъектами малого предпринимательства, получившими государственную поддержку за счет субсидии, предоставленной в текущем финансовом году из федерального бюджета на реализацию мероприятия\"","ед. ","Х","Абсолютный показатель","Х","Х","Х","Х","Х","Х","Х","Х","Х",1,"Х","Х","Х","Х","Х","Х","Х","Х","Х","Х",{"$f":"SUM(M327:W327)","v":1}]
[null,"Показатель \"Количество субъектов малого и среднего предпринимательства, получивших государственную поддержку\"","ед.","Х","Абсолютный показатель","2016-2018","Х","Х","Х","Х","Х","Х","Х","Х","1 (1*)",0,0,"Х","Х","Х","Х","Х","Х","Х","Х",2]
[null,"Показатель \"Количество вновь созданных рабочих мест (включая вновь зарегистрированных индивидуальных предпринимателей) субъектами малого и среднего предпринимательства, получившими государственную поддержку\"","ед.","Х","Абсолютный показатель","2017-2018","Х","Х","Х","Х","Х","Х","Х","Х","Х",0,0,"Х","Х","Х","Х","Х","Х","Х","Х","Х"]
[null,"Показатель \"Прирост среднесписочной численности работников (без внешних совместителей), занятых у субъектов малого и среднего предпринимательства, получивших государственную поддержку\"","%","Х","Срсп числ.отч/Срсп числ. отч-1 * 100, где Срсп числ.отч - среднесписочная численность работников (без внешних совместителей), занятых у субъектов малого и среднего предпринимательства, получивших государственную поддержку в отчетном периоде, Срсп числ. отч-1 - среднесписочная численность работников (без внешних совместителей), занятых у субъектов малого и среднего предпринимательства, получивших государственную поддержку в предыдущем году","Х","Х","Х","Х","Х","Х","Х","Х","Х","Х",0,0,"Х","Х","Х","Х","Х","Х","Х","Х","Х"]
[null,"Показатель \"Увеличение оборота субъектов малого и среднего предпринимательства, получивших государственную поддержку, в процентном отношении к показателю за предыдущий период в постоянных ценах 2014 года\"","%","Х","Об мсп отчn/Об мсп 2014/*100/инд цен n годов, где Об мсп отчn - оборот субъектов малого и среднего предпринимательства, получивших государственную поддержку, в n году, Об мсп 2014 - оборот субъектов малого и среднего предпринимательства, получивших государственную поддержку, в 2014 году, инд цен n годов - индекс цен за период с 2014 года по n год","Х","Х","Х","Х","Х","Х","Х","Х","Х","Х",0,0,"Х","Х","Х","Х","Х","Х","Х","Х","Х"]
[null,"Показатель \"Доля обрабатывающей промышленности в обороте субъектов малого и среднего предпринимательства (без учета индивидуальных предпринимателей), получивших государственную поддержку\"","%","Х","Об обр пром мсп/Об мсп*100, где Об обр пром мсп - объем оборота обрабатывающей промышленности и субъектов малого и среднего предпринимательства (без учета индивидуальных предпринимателей), получивших государственную поддержку, Об мсп - общий объем оборота субъектов малого и среднего предпринимательства (без учета индивидуальных предпринимателей), получивших государственную поддержку","Х","Х","Х","Х","Х","Х","Х","Х","Х","Х",0,0,"Х","Х","Х","Х","Х","Х","Х","Х","Х"]
[null,"Предоставление субсидий бюджетам монопрофильных муниципальных образований на реализацию муниципальных программ (подпрограмм) монопрофильных муниципальных образований, содержащих мероприятия, направленные на развитие малого и среднего предпринимательства (городское поселение \"Вершино-Дарасунское\" муниципального района \"Тунгокоченский район\" Забайкальского края)","Х","Х","Х","2014-2018","Министерство экономического развития Забайкальского края","Х","Х","Х","Х","Х","Х","Х","Х","Х","Х","Х","Х","Х","Х","Х","Х","Х","Х","Х"]
[null,"финансирование за счет краевого бюджета","тыс.рублей","Х","Х","Х","Х","Х","Х","Х","Х","Х",0,0,23.75,0,0,"Х","Х","Х","Х","Х","Х","Х","Х",{"$f":"SUM(L334:W334)","v":23.75}]
[null,"кроме того, финансирование из других источников:","тыс.рублей","Х","Х","Х","Х","Х","Х","Х","Х","Х",{"$f":"SUM(M336)","v":0},{"$f":"SUM(N336)","v":0},{"$f":"SUM(O336)","v":451.25},{"$f":"SUM(P336)","v":0},{"$f":"SUM(Q336)","v":0},"Х","Х","Х","Х","Х","Х","Х","Х",{"$f":"SUM(Z336)","v":451.25}]
[null," - из федерального бюджета","тыс.рублей","Х","Х","Х","Х","Х","Х","Х","Х","Х",0,0,451.25,0,0,"Х","Х","Х","Х","Х","Х","Х","Х",{"$f":"SUM(M336:W336)","v":451.25}]
[null,"Показатель \"Доля монопрофильных муниципальных образований, получивших государственную поддержку за счет субсидии, предоставленной в соответствующем финансовом году из федерального бюджета на реализацию мероприятия,  в общем количестве монопрофильных муниципальных образований на территории Забайкальского края\"","%","Х","Р / Рс *100, где\nР - расходы за счет субсидии, предоставленной в текущем финансовом году из федерального бюджета на реализацию мероприятия,\nРс - размер субсидии",2016,"Х","Х","Х","Х","Х","Х","Х","Х",100,"Х","Х","Х","Х","Х","Х","Х","Х","Х","Х","Х"]
[null,"Показатель \"Исполнение расходных обязательств за счет субсидии, предоставленной в соответствующем финансовом году из федерального бюджета на реализацию мероприятия\"","%","Х","Р / Рс *100, где\nР - расходы за счет субсидии, предоставленной в текущем финансовом году из федерального бюджета на реализацию мероприятия,\nРс - размер субсидии","Х","Х","Х","Х","Х","Х","Х","Х","Х",100,"Х","Х","Х","Х","Х","Х","Х","Х","Х","Х","Х"]
[null,"Показатель \"Количество субъектов малого и среднего предпринимательства, получивших государственную поддержку за счет субсидии, предоставленной в соответствующем финансовом году из федерального бюджета на реализацию мероприятия\"","ед.","Х","Абсолютный показатель","Х","Х","Х","Х","Х","Х","Х","Х","Х",1,"Х","Х","Х","Х","Х","Х","Х","Х","Х","Х",{"$f":"SUM(M339:W339)","v":1}]
[null,"Показатель \"Количество вновь созданных рабочих мест (включая вновь зарегистрированных индивидуальных предпринимателей) субъектами малого предпринимательства, получившими государственную поддержку за счет субсидии, предоставленной в текущем финансовом году из федерального бюджета на реализацию мероприятия\"","ед. ","Х","Абсолютный показатель","Х","Х","Х","Х","Х","Х","Х","Х","Х",1,"Х","Х","Х","Х","Х","Х","Х","Х","Х","Х",{"$f":"SUM(M340:W340)","v":1}]
[null,"Показатель \"Количество субъектов малого и среднего предпринимательства, получивших государственную поддержку\"","ед.","Х","Абсолютный показатель","Х","Х","Х","Х","Х","-",null,"Х","Х","1 (1*)",0,0,"Х","Х","Х","Х","Х","Х","Х","Х",2]
[null,"Показатель \"Количество вновь созданных рабочих мест (включая вновь зарегистрированных индивидуальных предпринимателей) субъектами малого и среднего предпринимательства, получившими государственную поддержку\"","ед.","Х","Абсолютный показатель","2017-2018","Х","Х","Х","Х","Х","Х","Х","Х","Х",0,0,"Х","Х","Х","Х","Х","Х","Х","Х","Х"]
[null,"Показатель \"Прирост среднесписочной численности работников (без внешних совместителей), занятых у субъектов малого и среднего предпринимательства, получивших государственную поддержку\"","%","Х","Срсп числ.отч/Срсп числ. отч-1 * 100, где Срсп числ.отч - среднесписочная численность работников (без внешних совместителей), занятых у субъектов малого и среднего предпринимательства, получивших государственную поддержку в отчетном периоде, Срсп числ. отч-1 - среднесписочная численность работников (без внешних совместителей), занятых у субъектов малого и среднего предпринимательства, получивших государственную поддержку в предыдущем году","Х","Х","Х","Х","Х","Х","Х","Х","Х","Х",0,0,"Х","Х","Х","Х","Х","Х","Х","Х","Х"]
[null,"Показатель \"Увеличение оборота субъектов малого и среднего предпринимательства, получивших государственную поддержку, в процентном отношении к показателю за предыдущий период в постоянных ценах 2014 года\"","%","Х","Об мсп отчn/Об мсп 2014/*100/инд цен n годов, где Об мсп отчn - оборот субъектов малого и среднего предпринимательства, получивших государственную поддержку, в n году, Об мсп 2014 - оборот субъектов малого и среднего предпринимательства, получивших государственную поддержку, в 2014 году, инд цен n годов - индекс цен за период с 2014 года по n год","Х","Х","Х","Х","Х","Х","Х","Х","Х","Х",0,0,"Х","Х","Х","Х","Х","Х","Х","Х","Х"]
[null,"Показатель \"Доля обрабатывающей промышленности в обороте субъектов малого и среднего предпринимательства (без учета индивидуальных предпринимателей), получивших государственную поддержку\"","%","Х","Об обр пром мсп/Об мсп*100, где Об обр пром мсп - объем оборота обрабатывающей промышленности и субъектов малого и среднего предпринимательства (без учета индивидуальных предпринимателей), получивших государственную поддержку, Об мсп - общий объем оборота субъектов малого и среднего предпринимательства (без учета индивидуальных предпринимателей), получивших государственную поддержку","Х","Х","Х","Х","Х","Х","Х","Х","Х","Х",0,0,"Х","Х","Х","Х","Х","Х","Х","Х","Х"]
[null,"Предоставление субсидий бюджетам монопрофильных муниципальных образований на реализацию муниципальных программ (подпрограмм) монопрофильных муниципальных образований, содержащих мероприятия, направленные на развитие малого и среднего предпринимательства (городское поселение \"Шерловогорское\" муниципального района \"Борзинский район\" Забайкальского края)","Х","Х","Х","2014-2018","Министерство экономического развития Забайкальского края","Х","Х","Х","Х","Х","Х","Х","Х","Х","Х","Х","Х","Х","Х","Х","Х","Х","Х","Х"]
[null,"финансирование за счет краевого бюджета","тыс.рублей","Х","Х","Х","Х","Х","Х","Х","Х","Х",0,0,47.5,0,0,"Х","Х","Х","Х","Х","Х","Х","Х",{"$f":"SUM(M347:W347)","v":47.5}]
[null,"кроме того, финансирование из других источников:","тыс.рублей","Х","Х","Х","Х","Х","Х","Х","Х","Х",{"$f":"SUM(M349)","v":0},{"$f":"SUM(N349)","v":0},{"$f":"SUM(O349)","v":902.5},{"$f":"SUM(P349)","v":0},{"$f":"SUM(Q349)","v":0},"Х","Х","Х","Х","Х","Х","Х","Х",{"$f":"SUM(Z349)","v":902.5}]
[null," - из федерального бюджета","тыс.рублей","Х","Х","Х","Х","Х","Х","Х","Х","Х",0,0,902.5,0,0,"Х","Х","Х","Х","Х","Х","Х","Х",{"$f":"SUM(M349:W349)","v":902.5}]
[null,"Показатель \"Доля монопрофильных муниципальных образований, получивших государственную поддержку за счет субсидии, предоставленной в соответствующем финансовом году из федерального бюджета на реализацию мероприятия,  в общем количестве монопрофильных муниципальных образований на территории Забайкальского края\"","%","Х","Р / Рс *100, где\nР - расходы за счет субсидии, предоставленной в текущем финансовом году из федерального бюджета на реализацию мероприятия,\nРс - размер субсидии","Х","Х","Х","Х","Х","Х","Х","Х","Х",100,"Х","Х","Х","Х","Х","Х","Х","Х","Х","Х","Х"]
[null,"Показатель \"Исполнение расходных обязательств за счет субсидии, предоставленной в соответствующем финансовом году из федерального бюджета на реализацию мероприятия\"","%","Х","Р / Рс *100, где\nР - расходы за счет субсидии, предоставленной в текущем финансовом году из федерального бюджета на реализацию мероприятия,\nРс - размер субсидии","Х","Х","Х","Х","Х","Х","Х","Х","Х",100,"Х","Х","Х","Х","Х","Х","Х","Х","Х","Х","Х"]
[null,"Показатель \"Количество субъектов малого и среднего предпринимательства, получивших государственную поддержку за счет субсидии, предоставленной в соответствующем финансовом году из федерального бюджета на реализацию мероприятия\"","ед.","Х","Абсолютный показатель","Х","Х","Х","Х","Х","Х","Х","Х","Х",2,"Х","Х","Х","Х","Х","Х","Х","Х","Х","Х",{"$f":"SUM(M352:W352)","v":2}]
[null,"Показатель \"Количество вновь созданных рабочих мест (включая вновь зарегистрированных индивидуальных предпринимателей) субъектами малого предпринимательства, получившими государственную поддержку за счет субсидии, предоставленной в текущем финансовом году из федерального бюджета на реализацию мероприятия\"","ед. ","Х","Абсолютный показатель","Х","Х","Х","Х","Х","Х","Х","Х","Х",2,"Х","Х","Х","Х","Х","Х","Х","Х","Х","Х",{"$f":"SUM(M353:W353)","v":2}]
[null,"Показатель \"Количество субъектов малого и среднего предпринимательства, получивших государственную поддержку\"","ед.","Х","Абсолютный показатель","Х","Х","Х","Х","Х","Х","Х","Х","Х","1 (2*)",0,0,"Х","Х","Х","Х","Х","Х","Х","Х",3]
[null,"Показатель \"Количество вновь созданных рабочих мест (включая вновь зарегистрированных индивидуальных предпринимателей) субъектами малого и среднего предпринимательства, получившими государственную поддержку\"","ед.","Х","Абсолютный показатель","Х","Х","Х","Х","Х","Х","Х","Х","Х","Х",0,0,"Х","Х","Х","Х","Х","Х","Х","Х","Х"]
[null,"Показатель \"Прирост среднесписочной численности работников (без внешних совместителей), занятых у субъектов малого и среднего предпринимательства, получивших государственную поддержку\"","%","Х","Срсп числ.отч/Срсп числ. отч-1 * 100, где Срсп числ.отч - среднесписочная численность работников (без внешних совместителей), занятых у субъектов малого и среднего предпринимательства, получивших государственную поддержку в отчетном периоде, Срсп числ. отч-1 - среднесписочная численность работников (без внешних совместителей), занятых у субъектов малого и среднего предпринимательства, получивших государственную поддержку в предыдущем году","Х","Х","Х","Х","Х","Х","Х","Х","Х","Х",0,0,"Х","Х","Х","Х","Х","Х","Х","Х","Х"]
[null,"Показатель \"Увеличение оборота субъектов малого и среднего предпринимательства, получивших государственную поддержку, в процентном отношении к показателю за предыдущий период в постоянных ценах 2014 года\"","%","Х","Об мсп отчn/Об мсп 2014/*100/инд цен n годов, где Об мсп отчn - оборот субъектов малого и среднего предпринимательства, получивших государственную поддержку, в n году, Об мсп 2014 - оборот субъектов малого и среднего предпринимательства, получивших государственную поддержку, в 2014 году, инд цен n годов - индекс цен за период с 2014 года по n год","Х","Х","Х","Х","Х","Х","Х","Х","Х","Х",0,0,"Х","Х","Х","Х","Х","Х","Х","Х","Х"]
[null,"Показатель \"Доля обрабатывающей промышленности в обороте субъектов малого и среднего предпринимательства (без учета индивидуальных предпринимателей), получивших государственную поддержку\"","%","Х","Об обр пром мсп/Об мсп*100, где Об обр пром мсп - объем оборота обрабатывающей промышленности и субъектов малого и среднего предпринимательства (без учета индивидуальных предпринимателей), получивших государственную поддержку, Об мсп - общий объем оборота субъектов малого и среднего предпринимательства (без учета индивидуальных предпринимателей), получивших государственную поддержку","Х","Х","Х","Х","Х","Х","Х","Х","Х","Х",0,0,"Х","Х","Х","Х","Х","Х","Х","Х","Х"]
[null,"Предоставление субсидий бюджетам монопрофильных муниципальных образований на реализацию муниципальных программ (подпрограмм) монопрофильных муниципальных образований, содержащих мероприятия, направленные на развитие малого и среднего предпринимательства (городское поселение \"Жирекенское\" муниципального района \"Чернышевский район\" Забайкальского края)","Х","Х","Х","2014-2018","Министерство экономического развития Забайкальского края","Х","Х","Х","Х","Х","Х","Х","Х","Х","Х","Х","Х","Х","Х","Х","Х","Х","Х","Х"]
[null,"финансирование за счет краевого бюджета","тыс.рублей","Х","Х","Х","Х","Х","Х","Х","Х","Х",0,0,23.75,0,0,"Х","Х","Х","Х","Х","Х","Х","Х",{"$f":"SUM(M360:T360)","v":23.75}]
[null,"кроме того, финансирование из других источников:","тыс.рублей","Х","Х","Х","Х","Х","Х","Х","Х","Х",{"$f":"SUM(M362)","v":0},{"$f":"SUM(N362)","v":0},{"$f":"SUM(O362)","v":451.25},{"$f":"SUM(P362)","v":0},{"$f":"SUM(Q362)","v":0},"Х","Х","Х","Х","Х","Х","Х","Х",{"$f":"SUM(Z362)","v":451.25}]
[null," - из федерального бюджета","тыс.рублей","Х","Х","Х","Х","Х","Х","Х","Х","Х",0,0,451.25,0,0,"Х","Х","Х","Х","Х","Х","Х","Х",{"$f":"SUM(M362:W362)","v":451.25}]
[null,"Показатель \"Доля монопрофильных муниципальных образований, получивших государственную поддержку за счет субсидии, предоставленной в соответствующем финансовом году из федерального бюджета на реализацию мероприятия,  в общем количестве монопрофильных муниципальных образований на территории Забайкальского края\"","%","Х","Р / Рс *100, где\nР - расходы за счет субсидии, предоставленной в текущем финансовом году из федерального бюджета на реализацию мероприятия,\nРс - размер субсидии",2016,"Х","Х","Х","Х","Х","Х","Х","Х",100,"Х","Х","Х","Х","Х","Х","Х","Х","Х","Х","Х"]
[null,"Показатель \"Исполнение расходных обязательств за счет субсидии, предоставленной в соответствующем финансовом году из федерального бюджета на реализацию мероприятия\"","%","Х","Р / Рс *100, где\nР - расходы за счет субсидии, предоставленной в текущем финансовом году из федерального бюджета на реализацию мероприятия,\nРс - размер субсидии","Х","Х","Х","Х","Х","Х","Х","Х","Х",100,"Х","Х","Х","Х","Х","Х","Х","Х","Х","Х","Х"]
[null,"Показатель \"Количество субъектов малого и среднего предпринимательства, получивших государственную поддержку за счет субсидии, предоставленной в соответствующем финансовом году из федерального бюджета на реализацию мероприятия\"","ед.","Х","Абсолютный показатель","Х","Х","Х","Х","Х","Х","Х","Х","Х",1,"Х","Х","Х","Х","Х","Х","Х","Х","Х","Х",{"$f":"SUM(M365:W365)","v":1}]
[null,"Показатель \"Количество вновь созданных рабочих мест (включая вновь зарегистрированных индивидуальных предпринимателей) субъектами малого предпринимательства, получившими государственную поддержку за счет субсидии, предоставленной в текущем финансовом году из федерального бюджета на реализацию мероприятия\"","ед. ","Х","Абсолютный показатель","Х","Х","Х","Х","Х","Х","Х","Х","Х",1,"Х","Х","Х","Х","Х","Х","Х","Х","Х","Х",{"$f":"SUM(M366:W366)","v":1}]
[null,"Показатель \"Количество субъектов малого и среднего предпринимательства, получивших государственную поддержку\"","ед.","Х","Абсолютный показатель","2016-2018","Х","Х","Х","Х","-",null,"Х","Х","1 (1*)",0,0,"Х","Х","Х","Х","Х","Х","Х","Х",2]
[null,"Показатель \"Количество вновь созданных рабочих мест (включая вновь зарегистрированных индивидуальных предпринимателей) субъектами малого и среднего предпринимательства, получившими государственную поддержку\"","ед.","Х","Абсолютный показатель","2017-2018","Х","Х","Х","Х","Х","Х","Х","Х","Х",0,0,"Х","Х","Х","Х","Х","Х","Х","Х","Х"]
[null,"Показатель \"Прирост среднесписочной численности работников (без внешних совместителей), занятых у субъектов малого и среднего предпринимательства, получивших государственную поддержку\"","%","Х","Срсп числ.отч/Срсп числ. отч-1 * 100, где Срсп числ.отч - среднесписочная численность работников (без внешних совместителей), занятых у субъектов малого и среднего предпринимательства, получивших государственную поддержку в отчетном периоде, Срсп числ. отч-1 - среднесписочная численность работников (без внешних совместителей), занятых у субъектов малого и среднего предпринимательства, получивших государственную поддержку в предыдущем году","Х","Х","Х","Х","Х","Х","Х","Х","Х","Х",0,0,"Х","Х","Х","Х","Х","Х","Х","Х","Х"]
[null,"Показатель \"Увеличение оборота субъектов малого и среднего предпринимательства, получивших государственную поддержку, в процентном отношении к показателю за предыдущий период в постоянных ценах 2014 года\"","%","Х","Об мсп отчn/Об мсп 2014/*100/инд цен n годов, где Об мсп отчn - оборот субъектов малого и среднего предпринимательства, получивших государственную поддержку, в n году, Об мсп 2014 - оборот субъектов малого и среднего предпринимательства, получивших государственную поддержку, в 2014 году, инд цен n годов - индекс цен за период с 2014 года по n год","Х","Х","Х","Х","Х","Х","Х","Х","Х","Х",0,0,"Х","Х","Х","Х","Х","Х","Х","Х","Х"]
[null,"Показатель \"Доля обрабатывающей промышленности в обороте субъектов малого и среднего предпринимательства (без учета индивидуальных предпринимателей), получивших государственную поддержку\"","%","Х","Об обр пром мсп/Об мсп*100, где Об обр пром мсп - объем оборота обрабатывающей промышленности и субъектов малого и среднего предпринимательства (без учета индивидуальных предпринимателей), получивших государственную поддержку, Об мсп - общий объем оборота субъектов малого и среднего предпринимательства (без учета индивидуальных предпринимателей), получивших государственную поддержку","Х","Х","Х","Х","Х","Х","Х","Х","Х","Х",0,0,"Х","Х","Х","Х","Х","Х","Х","Х","Х"]
[null,"Предоставление субсидий бюджетам монопрофильных муниципальных образований на реализацию муниципальных программ (подпрограмм) монопрофильных муниципальных образований, содержащих мероприятия, направленные на развитие малого и среднего предпринимательства (городское поселение \"Новопавловское\" муниципального района \"Петровск-Забайкальский район\" Забайкальского края)","Х","Х","Х","2014-2018","Министерство экономического развития Забайкальского края","Х","Х","Х","Х","Х","Х","Х","Х","Х","Х","Х","Х","Х","Х","Х","Х","Х","Х","Х"]
[null,"финансирование за счет краевого бюджета","тыс.рублей","Х","Х","Х","Х","Х","Х","Х","Х","Х",0,0,35.625,0,0,"Х","Х","Х","Х","Х","Х","Х","Х",{"$f":"SUM(M373:W373)","v":35.625}]
[null,"кроме того, финансирование из других источников:","тыс.рублей","Х","Х","Х","Х","Х","Х","Х","Х","Х",{"$f":"SUM(M375)","v":0},{"$f":"SUM(N375)","v":0},{"$f":"SUM(O375)","v":676.875},{"$f":"SUM(P375)","v":0},{"$f":"SUM(Q375)","v":0},"Х","Х","Х","Х","Х","Х","Х","Х"]
[null," - из федерального бюджета","тыс.рублей","Х","Х","Х","Х","Х","Х","Х","Х","Х",0,0,676.875,0,0,"Х","Х","Х","Х","Х","Х","Х","Х",{"$f":"SUM(M375:W375)","v":676.875}]
[null,"Показатель \"Доля монопрофильных муниципальных образований, получивших государственную поддержку за счет субсидии, предоставленной в соответствующем финансовом году из федерального бюджета на реализацию мероприятия,  в общем количестве монопрофильных муниципальных образований на территории Забайкальского края\"","%","Х","Р / Рс *100, где\nР - расходы за счет субсидии, предоставленной в текущем финансовом году из федерального бюджета на реализацию мероприятия,\nРс - размер субсидии","Х","Х","Х","Х","Х","Х","Х","Х","Х",100,"Х","Х","Х","Х","Х","Х","Х","Х","Х","Х","Х"]
[null,"Показатель \"Исполнение расходных обязательств за счет субсидии, предоставленной в соответствующем финансовом году из федерального бюджета на реализацию мероприятия\"","%","Х","Р / Рс *100, где\nР - расходы за счет субсидии, предоставленной в текущем финансовом году из федерального бюджета на реализацию мероприятия,\nРс - размер субсидии","Х","Х","Х","Х","Х","Х","Х","Х","Х",100,"Х","Х","Х","Х","Х","Х","Х","Х","Х","Х","Х"]
[null,"Показатель \"Количество субъектов малого и среднего предпринимательства, получивших государственную поддержку за счет субсидии, предоставленной в соответствующем финансовом году из федерального бюджета на реализацию мероприятия\"","ед.","Х","Абсолютный показатель","Х","Х","Х","Х","Х","Х","Х","Х","Х",2,"Х","Х","Х","Х","Х","Х","Х","Х","Х","Х",{"$f":"SUM(M378:W378)","v":2}]
[null,"Показатель \"Количество вновь созданных рабочих мест (включая вновь зарегистрированных индивидуальных предпринимателей) субъектами малого предпринимательства, получившими государственную поддержку за счет субсидии, предоставленной в текущем финансовом году из федерального бюджета на реализацию мероприятия\"","ед. ","Х","Абсолютный показатель","Х","Х","Х","Х","Х","Х","Х","Х","Х",2,"Х","Х","Х","Х","Х","Х","Х","Х","Х","Х",{"$f":"SUM(M379:W379)","v":2}]
[null,"Показатель \"Количество субъектов малого и среднего предпринимательства, получивших государственную поддержку\"","ед.","Х","Абсолютный показатель","Х","Х","Х","Х","Х","-",null,"Х","Х","1 (2*)",0,0,"Х","Х","Х","Х","Х","Х","Х","Х",3]
[null,"Показатель \"Количество вновь созданных рабочих мест (включая вновь зарегистрированных индивидуальных предпринимателей) субъектами малого и среднего предпринимательства, получившими государственную поддержку\"","ед.","Х","Абсолютный показатель","Х","Х","Х","Х","Х","Х","Х","Х","Х","Х",0,0,"Х","Х","Х","Х","Х","Х","Х","Х","Х"]
[null,"Показатель \"Прирост среднесписочной численности работников (без внешних совместителей), занятых у субъектов малого и среднего предпринимательства, получивших государственную поддержку\"","%","Х","Срсп числ.отч/Срсп числ. отч-1 * 100, где Срсп числ.отч - среднесписочная численность работников (без внешних совместителей), занятых у субъектов малого и среднего предпринимательства, получивших государственную поддержку в отчетном периоде, Срсп числ. отч-1 - среднесписочная численность работников (без внешних совместителей), занятых у субъектов малого и среднего предпринимательства, получивших государственную поддержку в предыдущем году","Х","Х","Х","Х","Х","Х","Х","Х","Х","Х",0,0,"Х","Х","Х","Х","Х","Х","Х","Х","Х"]
[null,"Показатель \"Увеличение оборота субъектов малого и среднего предпринимательства, получивших государственную поддержку, в процентном отношении к показателю за предыдущий период в постоянных ценах 2014 года\"","%","Х","Об мсп отчn/Об мсп 2014/*100/инд цен n годов, где Об мсп отчn - оборот субъектов малого и среднего предпринимательства, получивших государственную поддержку, в n году, Об мсп 2014 - оборот субъектов малого и среднего предпринимательства, получивших государственную поддержку, в 2014 году, инд цен n годов - индекс цен за период с 2014 года по n год","Х","Х","Х","Х","Х","Х","Х","Х","Х","Х",0,0,"Х","Х","Х","Х","Х","Х","Х","Х","Х"]
[null,"Показатель \"Доля обрабатывающей промышленности в обороте субъектов малого и среднего предпринимательства (без учета индивидуальных предпринимателей), получивших государственную поддержку\"","%","Х","Об обр пром мсп/Об мсп*100, где Об обр пром мсп - объем оборота обрабатывающей промышленности и субъектов малого и среднего предпринимательства (без учета индивидуальных предпринимателей), получивших государственную поддержку, Об мсп - общий объем оборота субъектов малого и среднего предпринимательства (без учета индивидуальных предпринимателей), получивших государственную поддержку","Х","Х","Х","Х","Х","Х","Х","Х","Х","Х",0,0,"Х","Х","Х","Х","Х","Х","Х","Х","Х"]
[null,"Предоставление субсидий бюджетам монопрофильных муниципальных образований на реализацию муниципальных программ (подпрограмм) монопрофильных муниципальных образований, содержащих мероприятия, направленные на развитие малого и среднего предпринимательства (городское поселение \"Новоорловск\" муниципального района \"Агинский район\" Забайкальского края)","Х","Х","Х","2014-2018","Министерство экономического развития Забайкальского края","Х","Х","Х","Х","Х","Х","Х","Х","Х","Х","Х","Х","Х","Х","Х","Х","Х","Х","Х"]
[null,"финансирование за счет краевого бюджета","тыс.рублей","Х","Х","Х","Х","Х","Х","Х","Х","Х",0,0,35.625,0,0,"Х","Х","Х","Х","Х","Х","Х","Х",{"$f":"SUM(M386:W386)","v":35.625}]
[null,"кроме того, финансирование из других источников:","тыс.рублей","Х","Х","Х","Х","Х","Х","Х","Х","Х",{"$f":"SUM(M388)","v":0},{"$f":"SUM(N388)","v":0},{"$f":"SUM(O388)","v":676.875},{"$f":"SUM(P388)","v":0},{"$f":"SUM(Q388)","v":0},"Х","Х","Х","Х","Х","Х","Х","Х",{"$f":"SUM(Z388)","v":676.875}]
[null," - из федерального бюджета","тыс.рублей","Х","Х","Х","Х","Х","Х","Х","Х","Х",0,0,676.875,0,0,"Х","Х","Х","Х","Х","Х","Х","Х",{"$f":"SUM(M388:W388)","v":676.875}]
[null,"Показатель \"Доля монопрофильных муниципальных образований, получивших государственную поддержку за счет субсидии, предоставленной в соответствующем финансовом году из федерального бюджета на реализацию мероприятия,  в общем количестве монопрофильных муниципальных образований на территории Забайкальского края\"","%","Х","Р / Рс *100, где\nР - расходы за счет субсидии, предоставленной в текущем финансовом году из федерального бюджета на реализацию мероприятия,\nРс - размер субсидии",2016,"Х","Х","Х","Х","Х","Х","Х","Х",100,"Х","Х","Х","Х","Х","Х","Х","Х","Х","Х","Х"]
[null,"Показатель \"Исполнение расходных обязательств за счет субсидии, предоставленной в соответствующем финансовом году из федерального бюджета на реализацию мероприятия\"","%","Х","Р / Рс *100, где\nР - расходы за счет субсидии, предоставленной в текущем финансовом году из федерального бюджета на реализацию мероприятия,\nРс - размер субсидии","Х","Х","Х","Х","Х","Х","Х","Х","Х",100,"Х","Х","Х","Х","Х","Х","Х","Х","Х","Х","Х"]
[null,"Показатель \"Количество субъектов малого и среднего предпринимательства, получивших государственную поддержку за счет субсидии, предоставленной в соответствующем финансовом году из федерального бюджета на реализацию мероприятия\"","ед.","Х","Абсолютный показатель","Х","Х","Х","Х","Х","Х","Х","Х","Х",2,"Х","Х","Х","Х","Х","Х","Х","Х","Х","Х",{"$f":"SUM(M391:W391)","v":2}]
[null,"Показатель \"Количество вновь созданных рабочих мест (включая вновь зарегистрированных индивидуальных предпринимателей) субъектами малого предпринимательства, получившими государственную поддержку за счет субсидии, предоставленной в текущем финансовом году из федерального бюджета на реализацию мероприятия\"","ед. ","Х","Абсолютный показатель","Х","Х","Х","Х","Х","Х","Х","Х","Х",2,"Х","Х","Х","Х","Х","Х","Х","Х","Х","Х",{"$f":"SUM(M392:W392)","v":2}]
[null,"Показатель \"Количество субъектов малого и среднего предпринимательства, получивших государственную поддержку\"","ед.","Х","Абсолютный показатель","2016-2018","Х","Х","Х","Х","-",null,"Х","Х","1 (2*)",0,0,"Х","Х","Х","Х","Х","Х","Х","Х",3]
[null,"Показатель \"Количество вновь созданных рабочих мест (включая вновь зарегистрированных индивидуальных предпринимателей) субъектами малого и среднего предпринимательства, получившими государственную поддержку\"","ед.","Х","Абсолютный показатель","2017-2018","Х","Х","Х","Х","Х","Х","Х","Х","Х",0,0,"Х","Х","Х","Х","Х","Х","Х","Х","Х"]
[null,"Показатель \"Прирост среднесписочной численности работников (без внешних совместителей), занятых у субъектов малого и среднего предпринимательства, получивших государственную поддержку\"","%","Х","Срсп числ.отч/Срсп числ. отч-1 * 100, где Срсп числ.отч - среднесписочная численность работников (без внешних совместителей), занятых у субъектов малого и среднего предпринимательства, получивших государственную поддержку в отчетном периоде, Срсп числ. отч-1 - среднесписочная численность работников (без внешних совместителей), занятых у субъектов малого и среднего предпринимательства, получивших государственную поддержку в предыдущем году","Х","Х","Х","Х","Х","Х","Х","Х","Х","Х",0,0,"Х","Х","Х","Х","Х","Х","Х","Х","Х"]
[null,"Показатель \"Увеличение оборота субъектов малого и среднего предпринимательства, получивших государственную поддержку, в процентном отношении к показателю за предыдущий период в постоянных ценах 2014 года\"","%","Х","Об мсп отчn/Об мсп 2014/*100/инд цен n годов, где Об мсп отчn - оборот субъектов малого и среднего предпринимательства, получивших государственную поддержку, в n году, Об мсп 2014 - оборот субъектов малого и среднего предпринимательства, получивших государственную поддержку, в 2014 году, инд цен n годов - индекс цен за период с 2014 года по n год","Х","Х","Х","Х","Х","Х","Х","Х","Х","Х",0,0,"Х","Х","Х","Х","Х","Х","Х","Х","Х"]
[null,"Показатель \"Доля обрабатывающей промышленности в обороте субъектов малого и среднего предпринимательства (без учета индивидуальных предпринимателей), получивших государственную поддержку\"","%","Х","Об обр пром мсп/Об мсп*100, где Об обр пром мсп - объем оборота обрабатывающей промышленности и субъектов малого и среднего предпринимательства (без учета индивидуальных предпринимателей), получивших государственную поддержку, Об мсп - общий объем оборота субъектов малого и среднего предпринимательства (без учета индивидуальных предпринимателей), получивших государственную поддержку","Х","Х","Х","Х","Х","Х","Х","Х","Х","Х",0,0,"Х","Х","Х","Х","Х","Х","Х","Х","Х"]
[null,"Предоставление субсидий бюджетам монопрофильных муниципальных образований на реализацию муниципальных программ (подпрограмм) монопрофильных муниципальных образований, содержащих мероприятия, направленные на развитие малого и среднего предпринимательства (городское поселение \"Первомайское\" муниципального района \"Шилкинский район\" Забайкальского края)","Х","Х","Х","2014-2018","Министерство экономического развития Забайкальского края","Х","Х","Х","Х","Х","Х","Х","Х","Х","Х","Х","Х","Х","Х","Х","Х","Х","Х","Х"]
[null,"финансирование за счет краевого бюджета","тыс.рублей","Х","Х","Х","Х","Х","Х","Х","Х","Х",0,0,122.961,132.88191,0,"Х","Х","Х","Х","Х","Х","Х","Х",{"$f":"SUM(K399:W399)","v":255.84291000000002}]
[null,"кроме того, финансирование из других источников:","тыс.рублей","Х","Х","Х","Х","Х","Х","Х","Х","Х",{"$f":"SUM(M401)","v":0},{"$f":"SUM(N401)","v":0},{"$f":"SUM(O401)","v":2336.25},{"$f":"SUM(P401)","v":1765.431},{"$f":"SUM(Q401)","v":0},"Х","Х","Х","Х","Х","Х","Х","Х",{"$f":"SUM(Z401)","v":4101.6810000000005}]
[null," - из федерального бюджета","тыс.рублей","Х","Х","Х","Х","Х","Х","Х","Х","Х",0,0,2336.25,1765.431,0,"Х","Х","Х","Х","Х","Х","Х","Х",{"$f":"SUM(M401:W401)","v":4101.6810000000005}]
[null,"Показатель \"Доля монопрофильных муниципальных образований, получивших государственную поддержку за счет субсидии, предоставленной в соответствующем финансовом году из федерального бюджета на реализацию мероприятия,  в общем количестве монопрофильных муниципальных образований на территории Забайкальского края\"","%","Х","Р / Рс *100, где\nР - расходы за счет субсидии, предоставленной в текущем финансовом году из федерального бюджета на реализацию мероприятия,\nРс - размер субсидии",2016,"Х","Х","Х","Х","Х","Х","Х","Х",100,"Х","Х","Х","Х","Х","Х","Х","Х","Х","Х","Х"]
[null,"Показатель \"Исполнение расходных обязательств за счет субсидии, предоставленной в соответствующем финансовом году из федерального бюджета на реализацию мероприятия\"","%","Х","Р / Рс *100, где\nР - расходы за счет субсидии, предоставленной в текущем финансовом году из федерального бюджета на реализацию мероприятия,\nРс - размер субсидии","Х","Х","Х","Х","Х","Х","Х","Х","Х",100,"Х","Х","Х","Х","Х","Х","Х","Х","Х","Х","Х"]
[null,"Показатель \"Количество субъектов малого и среднего предпринимательства, получивших государственную поддержку за счет субсидии, предоставленной в соответствующем финансовом году из федерального бюджета на реализацию мероприятия\"","ед.","Х","Абсолютный показатель","Х","Х","Х","Х","Х","Х","Х","Х","Х",4,"Х","Х","Х","Х","Х","Х","Х","Х","Х","Х",{"$f":"SUM(M404:W404)","v":4}]
[null,"Показатель \"Количество вновь созданных рабочих мест (включая вновь зарегистрированных индивидуальных предпринимателей) субъектами малого предпринимательства, получившими государственную поддержку за счет субсидии, предоставленной в текущем финансовом году из федерального бюджета на реализацию мероприятия\"","ед. ","Х","Абсолютный показатель","Х","Х","Х","Х","Х","Х","Х","Х","Х",4,"Х","Х","Х","Х","Х","Х","Х","Х","Х","Х",{"$f":"SUM(M405:W405)","v":4}]
[null,"Показатель \"Количество субъектов малого и среднего предпринимательства, получивших государственную поддержку\"","ед.","Х","Абсолютный показатель","2016-2018","Х","Х","Х","Х","-",null,"Х","Х","1 (4*)","1 (1*)",0,"Х","Х","Х","Х","Х","Х","Х","Х",7]
[null,"Показатель \"Количество вновь созданных рабочих мест (включая вновь зарегистрированных индивидуальных предпринимателей) субъектами малого и среднего предпринимательства, получившими государственную поддержку\"","ед.","Х","Абсолютный показатель",2017,"Х","Х","Х","Х","Х","Х","Х","Х","Х","1 (3*)","Х","Х","Х","Х","Х","Х","Х","Х","Х",4]
[null,"Показатель \"Прирост среднесписочной численности работников (без внешних совместителей), занятых у субъектов малого и среднего предпринимательства, получивших государственную поддержку\"","%","Х","Срсп числ.отч/Срсп числ. отч-1 * 100, где Срсп числ.отч - среднесписочная численность работников (без внешних совместителей), занятых у субъектов малого и среднего предпринимательства, получивших государственную поддержку в отчетном периоде, Срсп числ. отч-1 - среднесписочная численность работников (без внешних совместителей), занятых у субъектов малого и среднего предпринимательства, получивших государственную поддержку в предыдущем году","Х","Х","Х","Х","Х","Х","Х","Х","Х","Х","28 (28*)","Х","Х","Х","Х","Х","Х","Х","Х","Х","Х"]
[null,"Показатель \"Увеличение оборота субъектов малого и среднего предпринимательства, получивших государственную поддержку, в процентном отношении к показателю за предыдущий период в постоянных ценах 2014 года\"","%","Х","Об мсп отчn/Об мсп 2014/*100/инд цен n годов, где Об мсп отчn - оборот субъектов малого и среднего предпринимательства, получивших государственную поддержку, в n году, Об мсп 2014 - оборот субъектов малого и среднего предпринимательства, получивших государственную поддержку, в 2014 году, инд цен n годов - индекс цен за период с 2014 года по n год","Х","Х","Х","Х","Х","Х","Х","Х","Х","Х","4 (4*)","Х","Х","Х","Х","Х","Х","Х","Х","Х","Х"]
[null,"Показатель \"Доля обрабатывающей промышленности в обороте субъектов малого и среднего предпринимательства (без учета индивидуальных предпринимателей), получивших государственную поддержку\"","%","Х","Об обр пром мсп/Об мсп*100, где Об обр пром мсп - объем оборота обрабатывающей промышленности и субъектов малого и среднего предпринимательства (без учета индивидуальных предпринимателей), получивших государственную поддержку, Об мсп - общий объем оборота субъектов малого и среднего предпринимательства (без учета индивидуальных предпринимателей), получивших государственную поддержку","Х","Х","Х","Х","Х","Х","Х","Х","Х","Х","10 (10*)","Х","Х","Х","Х","Х","Х","Х","Х","Х","Х"]
[null,"Содействие развитию молодежного предпринимательства - ВСЕГО","Х","Х","Х","2017-2018","Министерство экономического развития Забайкальского края","Х","Х","Х","Х","Х","Х","Х","Х","Х","Х","Х","Х","Х","Х","Х","Х","Х","Х","Х"]
[null,"финансирование за счет краевого бюджета","тыс.рублей","Х","Х","Х","Х","Х","Х","Х","Х","Х","Х","Х","Х",238.18592000000001,361.3,"Х","Х","Х","Х","Х","Х","Х","Х",{"$f":"SUM(K412:W412)","v":599.48592000000008}]
[null,"кроме того, финансирование из других источников:","тыс.рублей","Х","Х","Х","Х","Х","Х","Х","Х","Х","Х","Х","Х",{"$f":"SUM(P414)","v":3164.4700800000001},{"$f":"SUM(Q414)","v":5660.1},"Х","Х","Х","Х","Х","Х","Х","Х",{"$f":"SUM(Z414)","v":8824.5700800000013}]
[null," - из федерального бюджета","тыс.рублей","Х","Х","Х","Х","Х","Х","Х","-","-","Х","Х","Х",3164.4700800000001,5660.1,"Х","Х","Х","Х","Х","Х","Х","Х",{"$f":"SUM(K414:W414)","v":8824.5700800000013}]
[null,"Показатель \"Количество вновь созданных рабочих мест (включая вновь зарегистрированных индивидуальных предпринимателей) субъектами молодежного предпринимательства, получившими государственную поддержку\"","ед.","Х","Абсолютный показатель","Х","Х","Х","Х","Х","Х","Х","Х","Х","Х","25 (105*)",46,"Х","Х","Х","Х","Х","Х","Х","Х",176]
[null,"Показатель \"Количество субъектов малого предпринимательства, созданных физическими лицами в возрасте до 30 лет (включительно), вовлеченными в реализацию мероприятий\"","ед.","Х","Абсолютный показатель","Х","Х","Х","Х","Х","Х","Х","Х","Х","Х","20 (70*)",44,"Х","Х","Х","Х","Х","Х","Х","Х",134]
[null,"Показатель \"Количество физических лиц в возрасте до 30 лет (включительно), завершивших обучение, направленное на приобретение навыков ведения бизнеса и создания малых и средних предприятий\"","ед.","Х","Абсолютный показатель","Х","Х","Х","Х","Х","Х","Х","Х","Х","Х","75 (700*)",479,"Х","Х","Х","Х","Х","Х","Х","Х",1254]
[null,"Показатель \"Количество физических лиц в возрасте до 30 лет (включительно), вовлеченных в реализацию мероприятий\"","ед.","Х","Абсолютный показатель","Х","Х","Х","Х","Х","Х","Х","Х","Х","Х","799 (1650*)",1643,"Х","Х","Х","Х","Х","Х","Х","Х",4092]
[null,"Предоставление субсидий на реализацию мероприятия \"Поддержка и развитие молодежного предпринимательства\"","Х","Х","Х","2016-2018","Министерство экономического развития Забайкальского края","Х","Х","Х","Х","Х","Х","Х","Х","Х","Х","Х","Х","Х","Х","Х","Х","Х","Х","Х"]
[null,"финансирование за счет краевого бюджета","тыс.рублей","Х","Х","Х","Х","Х","Х","Х","Х","Х","Х","Х",750,238.18562,205.6,"Х","Х","Х","Х","Х","Х","Х","Х",{"$f":"SUM(M420:W420)","v":1193.7856199999999}]
[null,"кроме того, финансирование из других источников:","тыс.рублей","Х","Х","Х","Х","Х","Х","Х","Х","Х","Х","Х",{"$f":"SUM(O422)","v":3964.8339999999998},{"$f":"SUM(P422)","v":3164.4700800000001},{"$f":"SUM(Q422)","v":3220.8},"Х","Х","Х","Х","Х","Х","Х","Х",{"$f":"SUM(Z422)","v":10350.104080000001}]
[null," - из федерального бюджета","тыс.рублей","Х","Х","Х","Х","Х","Х","Х","Х","Х","Х","Х",3964.8339999999998,3164.4700800000001,3220.8,"Х","Х","Х","Х","Х","Х","Х","Х",{"$f":"SUM(M422:W422)","v":10350.104080000001}]
[null,"Показатель \"Количество субъектов малого и среднего предпринимательства, созданных физическими лицами в возрасте до 30 лет (включительно)\"","ед.","Х","Абсолютный показатель","Х","Х","Х","Х","Х","Х","Х","Х","Х",180,"Х","Х","Х","Х","Х","Х","Х","Х","Х","Х",{"$f":"SUM(M423:W423)","v":180}]
[null,"Показатель \"Количество физических лиц в возрасте до 30 лет (включительно), завершивших обучение по образовательным программам, направленным на приобретение навыков ведения бизнеса и создания малых и средних предприятий\"","тыс. ед.","Х","Абсолютный показатель","Х","Х","Х","Х","Х","Х","Х","Х","Х",0.2,"Х","Х","Х","Х","Х","Х","Х","Х","Х","Х",{"$f":"SUM(M424:W424)","v":0.2}]
[null,"Показатель \"Количество физических лиц в возрасте до 30 лет (включительно), вовлеченных в реализацию мероприятий\"","тыс. ед.","Х","Абсолютный показатель","Х","Х","Х","Х","Х","Х","Х","Х","Х",1.5,"Х","Х","Х","Х","Х","Х","Х","Х","Х","Х",{"$f":"SUM(M425:W425)","v":1.5}]
[null,"Показатель \"Количество субъектов малого и среднего предпринимательства, получивших государственную поддержку\"","ед.","Х","Абсолютный показатель","Х","Х","Х","Х","Х","Х","Х","Х","Х","32 (168*)","75 (700*)","Х","Х","Х","Х","Х","Х","Х","Х","Х",975]
[null,"Показатель \"Количество вновь созданных рабочих мест (включая вновь зарегистрированных индивидуальных предпринимателей) субъектами молодежного предпринимательства, получившими государственную поддержку\"","ед.","Х","Абсолютный показатель","Х","Х","Х","Х","Х","Х","Х","Х","Х","Х","25 (105*)",43,"Х","Х","Х","Х","Х","Х","Х","Х",173]
[null,"Показатель \"Количество субъектов малого предпринимательства, созданных физическими лицами в возрасте до 30 лет (включительно), вовлеченными в реализацию мероприятий\"","ед.","Х","Абсолютный показатель","Х","Х","Х","Х","Х","Х","Х","Х","Х","Х","20 (70*)",43,"Х","Х","Х","Х","Х","Х","Х","Х",133]
[null,"Показатель \"Количество физических лиц в возрасте до 30 лет (включительно), завершивших обучение, направленное на приобретение навыков ведения бизнеса и создания малых и средних предприятий\"","ед.","Х","Абсолютный показатель","Х","Х","Х","Х","Х","Х","Х","Х","Х","Х","75 (700*)",429,"Х","Х","Х","Х","Х","Х","Х","Х",1204]
[null,"Показатель \"Количество физических лиц в возрасте до 30 лет (включительно), вовлеченных в реализацию мероприятий\"","ед.","Х","Абсолютный показатель","Х","Х","Х","Х","Х","Х","Х","Х","Х","Х","799 (1650*)",1143,"Х","Х","Х","Х","Х","Х","Х","Х",3592]
[null,"Предоставление субсидий на создание и (или) обеспечение деятельности центров молодежного инновационного творчества","Х","Х","Х",2018,"Х","Х","Х","Х","Х","Х","Х","Х","Х","Х","Х","Х","Х","Х","Х","Х","Х","Х","Х","Х"]
[null,"финансирование за счет краевого бюджета","тыс.рублей","Х","Х","Х","Х","Х","Х","Х","Х","Х","Х","Х","Х","Х",155.69999999999999,"Х","Х","Х","Х","Х","Х","Х","Х",{"$f":"SUM(M432:W432)","v":155.69999999999999}]
[null,"кроме того, финансирование из других источников:","тыс.рублей","Х","Х","Х","Х","Х","Х","Х","Х","Х","Х","Х","Х","Х",{"$f":"SUM(Q434)","v":2439.3000000000002},"Х","Х","Х","Х","Х","Х","Х","Х",{"$f":"SUM(Z434)","v":2439.3000000000002}]
[null," - из федерального бюджета","тыс.рублей","Х","Х","Х","Х","Х","Х","Х","Х","Х","Х","Х","Х","Х",2439.3000000000002,"Х","Х","Х","Х","Х","Х","Х","Х",{"$f":"SUM(M434:W434)","v":2439.3000000000002}]
[null,"Показатель \"Количество вновь созданных рабочих мест (включая вновь зарегистрированных индивидуальных предпринимателей) субъектами молодежного предпринимательства, получившими государственную поддержку\"","ед.","Х","Абсолютный показатель","Х","Х","Х","Х","Х","Х","Х","Х","Х","Х","Х",3,"Х","Х","Х","Х","Х","Х","Х","Х",{"$f":"SUM(M435:W435)","v":3}]
[null,"Показатель \"Количество субъектов малого предпринимательства, созданных физическими лицами в возрасте до 30 лет (включительно), вовлеченными в реализацию мероприятий\"","ед.","Х","Абсолютный показатель","Х","Х","Х","Х","Х","Х","Х","Х","Х","Х","Х",1,"Х","Х","Х","Х","Х","Х","Х","Х",{"$f":"SUM(M436:W436)","v":1}]
[null,"Показатель \"Количество физических лиц в возрасте до 30 лет (включительно), завершивших обучение, направленное на приобретение навыков ведения бизнеса и создания малых и средних предприятий\"","ед.","Х","Абсолютный показатель","Х","Х","Х","Х","Х","Х","Х","Х","Х","Х","Х",50,"Х","Х","Х","Х","Х","Х","Х","Х",{"$f":"SUM(M437:W437)","v":50}]
[null,"Показатель \"Количество физических лиц в возрасте до 30 лет (включительно), вовлеченных в реализацию мероприятий\"","ед.","Х","Абсолютный показатель","Х","Х","Х","Х","Х","Х","Х","Х","Х","Х","Х",500,"Х","Х","Х","Х","Х","Х","Х","Х",{"$f":"SUM(M438:W438)","v":500}]
[null,"Предоставление субсидий на возмещение  части затрат, связанных с уплатой субъектами малого и среднего предпринимательства лизинговых платежей по договорам лизинга оборудования, включая затраты на монтаж оборудования","Х","Х","Х","2014-2016","Министерство экономического развития Забайкальского края","Х","Х","Х","Х","Х","Х","Х","Х","Х","Х","Х","Х","Х","Х","Х","Х","Х","Х","Х"]
[null,"финансирование за счет краевого бюджета","тыс.рублей","Х","Х","Х","Х","Х","Х","Х","Х","Х",300,145.27468999999999,61.712789999999998,"Х","Х","Х","Х","Х","Х","Х","Х","Х","Х",{"$f":"SUM(K440:W440)","v":506.98747999999995}]
[null,"кроме того, финансирование из других источников:","тыс.рублей","Х","Х","Х","Х","Х","Х","Х","Х","Х",{"$f":"SUM(M442)","v":654.45667000000003},{"$f":"SUM(N442)","v":3960.2190000000001},{"$f":"SUM(O442)","v":1172.5429999999999},"Х","Х","Х","Х","Х","Х","Х","Х","Х","Х",{"$f":"SUM(Z442)","v":5787.2186700000002}]
[null," - из федерального бюджета","тыс.рублей","Х","Х","Х","Х","Х","Х","Х","Х","Х",654.45667000000003,3960.2190000000001,1172.5429999999999,"Х","Х","Х","Х","Х","Х","Х","Х","Х","Х",{"$f":"SUM(M442:W442)","v":5787.2186700000002}]
[null,"Показатель \"Размер собственных средств субъектов малого и среднего предпринимательства, получивших государственную поддержку за счет субсидии, предоставленной в соответствующем финансовом году из федерального бюджета на реализацию мероприятия, направленных на приобретение оборудования\"","тыс.рублей","Х","Абсолютный показатель","Х","Х","Х","Х","Х","Х","Х","Х",30000,5700,"Х","Х","Х","Х","Х","Х","Х","Х","Х","Х",{"$f":"SUM(M443:W443)","v":35700}]
[null,"Показатель \"Исполнение расходных обязательств за счет субсидии, предоставленной в соответствующем финансовом году из федерального бюджета на реализацию мероприятия\"","%","Х","Р / Рс *100, где\nР - расходы за счет субсидии, предоставленной в текущем финансовом году из федерального бюджета на реализацию мероприятия,\nРс - размер субсидии","Х","Х","Х","Х","Х","Х","Х","Х",100,100,"Х","Х","Х","Х","Х","Х","Х","Х","Х","Х",100]
[null,"Показатель \"Количество субъектов малого и среднего предпринимательства, получивших государственную поддержку за счет субсидии, предоставленной в соответствующем финансовом году из федерального бюджета на реализацию мероприятия\"","ед.","Х","Абсолютный показатель","Х","Х","Х","Х","Х","Х","Х","Х",2,1,"Х","Х","Х","Х","Х","Х","Х","Х","Х","Х",{"$f":"SUM(M445:W445)","v":3}]
[null,"Показатель \"Количество вновь созданных рабочих мест (включая вновь зарегистрированных индивидуальных предпринимателей) субъектами малого предпринимательства, получившими государственную поддержку за счет субсидии, предоставленной в текущем финансовом году из федерального бюджета на реализацию мероприятия\"","ед. ","Х","Абсолютный показатель","Х","Х","Х","Х","Х","Х","Х","Х",2,1,"Х","Х","Х","Х","Х","Х","Х","Х","Х","Х",{"$f":"SUM(M446:W446)","v":3}]
[null,"Показатель \"Количество субъектов малого и среднего предпринимательства, получивших государственную поддержку\"","ед.","Х","Абсолютный показатель","Х","Х","Х","Х","Х","Х","Х","3 (6*)","1 (11*)","1 (1*)","Х","Х","Х","Х","Х","Х","Х","Х","Х","Х",23]
[null,"Предоставление грантов в форме субсидий начинающим субъектам малого  предпринимательства на создание собственного дела для уплаты первого взноса (аванса) при заключении договора лизинга оборудования","Х","Х","Х","2014-2016","Министерство экономического развития Забайкальского края","Х","Х","Х","Х","Х","Х","Х","Х","Х","Х","Х","Х","Х","Х","Х","Х","Х","Х","Х"]
[null,"финансирование за счет краевого бюджета","тыс.рублей","Х","Х","Х","Х","Х","Х","Х","Х","Х",300,0,0,"Х","Х","Х","Х","Х","Х","Х","Х","Х","Х",{"$f":"SUM(K449:W449)","v":300}]
[null,"кроме того, финансирование из других источников:","тыс.рублей","Х","Х","Х","Х","Х","Х","Х","Х","Х",{"$f":"SUM(M451)","v":0},{"$f":"SUM(N451)","v":1200},{"$f":"SUM(O451)","v":0},"Х","Х","Х","Х","Х","Х","Х","Х","Х","Х",{"$f":"SUM(Z451)","v":1200}]
[null," - из федерального бюджета","тыс.рублей","Х","Х","Х","Х","Х","Х","Х","Х","Х",0,1200,0,"Х","Х","Х","Х","Х","Х","Х","Х","Х","Х",{"$f":"SUM(M451:W451)","v":1200}]
[null,"Показатель \"Количество субъектов малого и среднего предпринимательства, получивших государственную поддержку\"","ед.","Х","Абсолютный показатель","Х","Х","Х","Х","Х","Х","Х",1,"0 (4*)",0,"Х","Х","Х","Х","Х","Х","Х","Х","Х","Х",5]
[null,"Предоставление субсидий субъектам малого и среднего предпринимательства  на уплату первого взноса (аванса) по договору (договорам) лизинга оборудования","Х","Х","Х","2014-2016","Министерство экономического развития Забайкальского края","Х","Х","Х","Х","Х","Х","Х","Х","Х","Х","Х","Х","Х","Х","Х","Х","Х","Х","Х"]
[null,"финансирование за счет краевого бюджета","тыс.рублей","Х","Х","Х",null,"Х","Х","Х","Х","Х",5900,300,250,"Х","Х","Х","Х","Х","Х","Х","Х","Х","Х",{"$f":"SUM(M454:W454)","v":6450}]
[null,"кроме того, финансирование из других источников:","тыс.рублей","Х","Х","Х","Х","Х","Х","Х","Х","Х",{"$f":"M456","v":1227.6928},{"$f":"N456","v":26352.26},{"$f":"O456","v":4750},"Х","Х","Х","Х","Х","Х","Х","Х","Х","Х",{"$f":"SUM(Z456)","v":32329.952799999999}]
[null," - из федерального бюджета","тыс.рублей","Х","Х","Х","Х","Х","Х","Х","Х","Х",1227.6928,26352.26,4750,"Х","Х","Х","Х","Х","Х","Х","Х","Х","Х",{"$f":"SUM(M456:W456)","v":32329.952799999999}]
[null,"Показатель \"Размер собственных средств субъектов малого и среднего предпринимательства, получивших государственную поддержку за счет субсидии, предоставленной в соответствующем финансовом году из федерального бюджета на реализацию мероприятия, направленный на приобретение оборудования\"","тыс. рублей","Х","Абсолютный показатель","Х","Х","Х","Х","Х","Х","Х","Х",14250,19000,"Х","Х","Х","Х","Х","Х","Х","Х","Х","Х",{"$f":"SUM(M457:W457)","v":33250}]
[null,"Показатель \"Исполнение расходных обязательств за счет субсидии, предоставленной в соответствующем финансовом году из федерального бюджета на реализацию мероприятия\"","%","Х","Р / Рс *100, где\nР - расходы за счет субсидии, предоставленной в текущем финансовом году из федерального бюджета на реализацию мероприятия,\nРс - размер субсидии","Х","Х","Х","Х","Х","Х","Х","Х",100,100,"Х","Х","Х","Х","Х","Х","Х","Х","Х","Х",100]
[null,"Показатель \"Количество субъектов малого и среднего предпринимательства, получивших государственную поддержку за счет субсидии, предоставленной в соответствующем финансовом году из федерального бюджета на реализацию мероприятия\"","ед.","Х","Абсолютный показатель","Х","Х","Х","Х","Х","Х","Х","Х",2,1,"Х","Х","Х","Х","Х","Х","Х","Х","Х","Х",{"$f":"SUM(M459:W459)","v":3}]
[null,"Показатель \"Количество вновь созданных рабочих мест (включая вновь зарегистрированных индивидуальных предпринимателей) субъектами малого предпринимательства, получившими государственную поддержку за счет субсидии, предоставленной в текущем финансовом году из федерального бюджета на реализацию мероприятия\"","ед. ","Х","Абсолютный показатель","Х","Х","Х","Х","Х","Х","Х","Х",2,1,"Х","Х","Х","Х","Х","Х","Х","Х","Х","Х",{"$f":"SUM(M460:W460)","v":3}]
[null,"Показатель \"Количество субъектов малого и среднего предпринимательства, получивших государственную поддержку\"","ед.","Х","Абсолютный показатель","Х","Х","Х","Х","Х","-",null,"3 (2*)","1 (18*)","1 (1*)","Х","Х","Х","Х","Х","Х","Х","Х","Х","Х",26]
[null,"Предоставление грантов в форме субсидий начинающим субъектам малого предпринимательства, в том числе: Предоставление грантов в форме субсидий начинающим субъектам малого предпринимательства; предоставление грантов в форме субсидий начинающим субъектам малого предпринимательства путем предоставления субсидий бюджетам муниципальных образований для реализации мероприятия","Х","Х","Х","2014-2016","Министерство экономического развития Забайкальского края","Х","Х","Х","Х","Х","Х","Х","Х","Х","Х","Х","Х","Х","Х","Х","Х","Х","Х","Х"]
[null,"финансирование за счет краевого бюджета","тыс.рублей","Х","Х","Х",null,"Х","Х","Х","Х","Х",3000,1250,250,"Х","Х","Х","Х","Х","Х","Х","Х","Х","Х",{"$f":"SUM(M463:W463)","v":4500}]
[null,"кроме того, финансирование из других источников:","тыс.рублей","Х","Х","Х","Х","Х","Х","Х","Х","Х",{"$f":"SUM(M465)","v":1600},{"$f":"SUM(N465)","v":35750},{"$f":"SUM(O465)","v":4750},"Х","Х","Х","Х","Х","Х","Х","Х","Х","Х"]
[null," - из федерального бюджета","тыс.рублей","Х","Х","Х","Х","Х","Х","Х","Х","Х",1600,35750,4750,"Х","Х","Х","Х","Х","Х","Х","Х","Х","Х",{"$f":"SUM(M465:T465)","v":42100}]
[null,"Показатель \"Исполнение расходных обязательств за счет субсидии, предоставленной в соответствующем финансовом году из федерального бюджета на реализацию мероприятия\"","%","Х","Р / Рс *100, где\nР - расходы за счет субсидии, предоставленной в текущем финансовом году из федерального бюджета на реализацию мероприятия,\nРс - размер субсидии","Х","Х","Х","Х","Х","Х","Х","Х",100,100,"Х","Х","Х","Х","Х","Х","Х","Х","Х","Х",100]
[null,"Показатель \"Количество субъектов малого и среднего предпринимательства, получивших государственную поддержку за счет субсидии, предоставленной в соответствующем финансовом году из федерального бюджета на реализацию мероприятия\"","ед.","Х","Абсолютный показатель","Х","Х","Х","Х","Х","Х","Х","Х",48,10,"Х","Х","Х","Х","Х","Х","Х","Х","Х","Х",{"$f":"SUM(M467:W467)","v":58}]
[null,"Показатель \"Количество вновь созданных рабочих мест (включая вновь зарегистрированных индивидуальных предпринимателей) субъектами малого предпринимательства, получившими государственную поддержку за счет субсидии, предоставленной в текущем финансовом году из федерального бюджета на реализацию мероприятия\"","ед. ","Х","Абсолютный показатель","Х","Х","Х","Х","Х","Х","Х","Х",114,20,"Х","Х","Х","Х","Х","Х","Х","Х","Х","Х",{"$f":"SUM(M468:W468)","v":134}]
[null,"Показатель \"Количество субъектов малого и среднего предпринимательства, воспользовавшихся поддержкой\"","ед.","Х","Абсолютный показатель","Х","Х","Х","Х","Х","Х","Х","19 (6*)","3 (88*)","2 (10*)","Х","Х","Х","Х","Х","Х","Х","Х","Х","Х",128]
[null,"Предоставление субсидий на возмещение  части затрат субъектов малого и среднего предпринимательства на уплату процентов по кредитам, привлеченным в российских кредитных организациях","Х","Х","Х","2014-2016","Министерство экономического развития Забайкальского края","Х","Х","Х","Х","Х","Х","Х","Х","Х","Х","Х","Х","Х","Х","Х","Х","Х","Х","Х"]
[null,"финансирование за счет краевого бюджета","тыс.рублей","Х","Х","Х","Х","Х","Х","Х","Х","Х",1082.4269999999999,500,500,"Х","Х","Х","Х","Х","Х","Х","Х","Х","Х",{"$f":"SUM(K471:W471)","v":2082.4269999999997}]
[null,"кроме того, финансирование из других источников:","тыс.рублей","Х","Х","Х","Х","Х","Х","Х","Х","Х",{"$f":"SUM(M473)","v":0},{"$f":"SUM(N473)","v":13417.623},{"$f":"SUM(O473)","v":9500},"Х","Х","Х","Х","Х","Х","Х","Х","Х","Х",{"$f":"SUM(Z473)","v":22917.623}]
[null," - из федерального бюджета","тыс.рублей","Х","Х","Х","Х","Х","Х","Х","Х","Х",0,13417.623,9500,"Х","Х","Х","Х","Х","Х","Х","Х","Х","Х",{"$f":"SUM(K473:W473)","v":22917.623}]
[null,"Показатель \"Размер собственных средств субъектов малого и среднего предпринимательства, получивших государственную поддержку за счет субсидии, предоставленной в соответствующем финансовом году из федерального бюджета на реализацию мероприятия, направленный на строительство (реконструкцию) для собственных нужд производственных зданий, строений и сооружений и (или) приобретение оборудования\"","тыс. рублей","Х","Абсолютный показатель","2015-2016","Х","Х","Х","Х","Х","Х","Х",14250,14250,"Х","Х","Х","Х","Х","Х","Х","Х","Х","Х",{"$f":"SUM(M474:W474)","v":28500}]
[null,"Показатель \"Исполнение расходных обязательств за счет субсидии, предоставленной в соответствующем финансовом году из федерального бюджета на реализацию мероприятия\"","%","Х","Р / Рс *100, где\nР - расходы за счет субсидии, предоставленной в текущем финансовом году из федерального бюджета на реализацию мероприятия,\nРс - размер субсидии","Х","Х","Х","Х","Х","Х","Х","Х",100,100,"Х","Х","Х","Х","Х","Х","Х","Х","Х","Х","Х"]
[null,"Показатель \"Количество субъектов малого и среднего предпринимательства, получивших государственную поддержку за счет субсидии, предоставленной в соответствующем финансовом году из федерального бюджета на реализацию мероприятия\"","ед.","Х","Абсолютный показатель","Х","Х","Х","Х","Х","Х","Х","Х",2,2,"Х","Х","Х","Х","Х","Х","Х","Х","Х","Х",{"$f":"SUM(M476:W476)","v":4}]
[null,"Показатель \"Количество вновь созданных рабочих мест (включая вновь зарегистрированных индивидуальных предпринимателей) субъектами малого предпринимательства, получившими государственную поддержку за счет субсидии, предоставленной в текущем финансовом году из федерального бюджета на реализацию мероприятия\"","ед. ","Х","Абсолютный показатель","Х","Х","Х","Х","Х","Х","Х","Х",2,2,"Х","Х","Х","Х","Х","Х","Х","Х","Х","Х",{"$f":"SUM(M477:W477)","v":4}]
[null,"Показатель \"Количество субъектов малого и среднего предпринимательства, получивших государственную поддержку\"","ед.","Х","Абсолютный показатель","2014-2016","Х","Х","Х","Х","Х","Х",3,"1 (11*)","1 (2*)","Х","Х","Х","Х","Х","Х","Х","Х","Х","Х",15]
[null,"Предоставление субсидий на возмещение части затрат субъектов малого и среднего предпринимательства, связанных с приобретением оборудования в целях создания и (или) развития либо модернизации производства товаров (работ, услуг)","Х","Х","Х","2014-2016","Министерство экономического развития Забайкальского края","Х","Х","Х","Х","Х","Х","Х","Х","Х","Х","Х","Х","Х","Х","Х","Х","Х","Х","Х"]
[null,"финансирование за счет краевого бюджета","тыс.рублей","Х","Х","Х","Х","Х","Х","Х","Х","Х",10000,4668.2631600000004,1615.79,"Х","Х","Х","Х","Х","Х","Х","Х","Х","Х",{"$f":"SUM(M480:W480)","v":16284.053159999999}]
[null,"кроме того, финансирование из других источников:","тыс.рублей","Х","Х","Х","Х","Х","Х","Х","Х","Х",{"$f":"SUM(M482)","v":0},{"$f":"SUM(N482)","v":83800},{"$f":"SUM(O482)","v":30700},"Х","Х","Х","Х","Х","Х","Х","Х","Х","Х",{"$f":"SUM(Z482)","v":114500}]
[null," - из федерального бюджета","тыс.рублей","Х","Х","Х","Х","Х","Х","Х","Х","Х",0,83800,30700,"Х","Х","Х","Х","Х","Х","Х","Х","Х","Х",{"$f":"SUM(K482:T482)","v":114500}]
[null,"Показатель \"Размер собственных средств субъектов малого и среднего предпринимательства, получивших государственную поддержку за счет субсидии, предоставленной в соответствующем финансовом году из федерального бюджета на реализацию мероприятия, направленный на приобретение оборудования\"","тыс. рублей","Х","Абсолютный показатель","2015-2016","Х","Х","Х","Х","Х","Х","Х",87600,61400,"Х","Х","Х","Х","Х","Х","Х","Х","Х","Х",{"$f":"SUM(M483:W483)","v":149000}]
[null,"Показатель \"Исполнение расходных обязательств за счет субсидии, предоставленной в соответствующем финансовом году из федерального бюджета на реализацию мероприятия\"","%","Х","Р / Рс *100, где\nР - расходы за счет субсидии, предоставленной в текущем финансовом году из федерального бюджета на реализацию мероприятия,\nРс - размер субсидии","Х","Х","Х","Х","Х","Х","Х","Х",100,100,"Х","Х","Х","Х","Х","Х","Х","Х","Х","Х",100]
[null,"Показатель \"Количество субъектов малого и среднего предпринимательства, получивших государственную поддержку за счет субсидии, предоставленной в соответствующем финансовом году из федерального бюджета на реализацию мероприятия\"","ед.","Х","Абсолютный показатель","Х","Х","Х","Х","Х","Х","Х","Х",9,7,"Х","Х","Х","Х","Х","Х","Х","Х","Х","Х",{"$f":"SUM(M485:W485)","v":16}]
[null,"Показатель \"Количество вновь созданных рабочих мест (включая вновь зарегистрированных индивидуальных предпринимателей) субъектами малого предпринимательства, получившими государственную поддержку за счет субсидии, предоставленной в текущем финансовом году из федерального бюджета на реализацию мероприятия\"","ед. ","Х","Абсолютный показатель","Х","Х","Х","Х","Х","Х","Х","Х",9,7,"Х","Х","Х","Х","Х","Х","Х","Х","Х","Х",{"$f":"SUM(M486:W486)","v":16}]
[null,"Показатель \"Количество субъектов малого и среднего предпринимательства, получивших государственную поддержку\"","ед.","Х","Абсолютный показатель","2014-2016","Х","Х","Х","Х","Х","Х",5,"2 (25*)","1 (7*)","Х","Х","Х","Х","Х","Х","Х","Х","Х","Х",35]
[null,"Поддержка социального предпринимательства","Х","Х","Х","2014-2016","Министерство экономического развития Забайкальского края","Х","Х","Х","Х","Х","Х","Х","Х","Х","Х","Х","Х","Х","Х","Х","Х","Х","Х","Х"]
[null,"финансирование за счет краевого бюджета","тыс.рублей","Х","Х","Х",null,"Х","Х","Х","Х","Х",1500,250,250,"Х","Х","Х","Х","Х","Х","Х","Х","Х","Х",{"$f":"SUM(M489:W489)","v":2000}]
[null,"кроме того, финансирование из других источников:","тыс.рублей","Х","Х","Х","Х","Х","Х","Х","Х","Х",{"$f":"SUM(M491)","v":0},{"$f":"SUM(N491)","v":10750},{"$f":"SUM(O491)","v":4750},"Х","Х","Х","Х","Х","Х","Х","Х","Х","Х",{"$f":"SUM(Z491)","v":15500}]
[null," - из федерального бюджета","тыс.рублей","Х","Х","Х","Х","Х","Х","Х","-","-",0,10750,4750,"Х","Х","Х","Х","Х","Х","Х","Х","Х","Х",{"$f":"SUM(K491:W491)","v":15500}]
[null,"Показатель \"Исполнение расходных обязательств за счет субсидии, предоставленной в соответствующем финансовом году из федерального бюджета на реализацию мероприятия\"","%","Х","Р / Рс *100, где\nР - расходы за счет субсидии, предоставленной в текущем финансовом году из федерального бюджета на реализацию мероприятия,\nРс - размер субсидии","2015-2016","Х","Х","Х","Х","Х","Х","Х",100,100,"Х","Х","Х","Х","Х","Х","Х","Х","Х","Х",100]
[null,"Показатель \"Количество субъектов малого и среднего предпринимательства, получивших государственную поддержку за счет субсидии, предоставленной в соответствующем финансовом году из федерального бюджета на реализацию мероприятия\"","ед.","Х","Абсолютный показатель","Х","Х","Х","Х","Х","Х","Х","Х",4,4,"Х","Х","Х","Х","Х","Х","Х","Х","Х","Х",{"$f":"SUM(M493:W493)","v":8}]
[null,"Показатель \"Количество вновь созданных рабочих мест (включая вновь зарегистрированных индивидуальных предпринимателей) субъектами малого предпринимательства, получившими государственную поддержку за счет субсидии, предоставленной в текущем финансовом году из федерального бюджета на реализацию мероприятия\"","ед. ","Х","Абсолютный показатель","Х","Х","Х","Х","Х","Х","Х","Х",8,8,"Х","Х","Х","Х","Х","Х","Х","Х","Х","Х",{"$f":"SUM(M494:W494)","v":16}]
[null,"Показатель \"Количество субъектов малого и среднего предпринимательства, получивших государственную поддержку\"","ед.","Х","Абсолютный показатель","2014-2016","Х","Х","Х","Х","-","-",3,"1 (10*)","1 (4*)",0,0,0,0,"Х","Х","Х","Х","Х","Х",16]
[null,"Предоставление субсидий субъектам малого и среднего предпринимательства на организацию групп дневного времяпрепровождения детей дошкольного возраста и иных подобных им видов деятельности по уходу и присмотру за детьми","Х","Х","Х","2014-2015","Министерство экономического развития Забайкальского края","Х","Х","Х","Х","Х","Х","Х","Х","Х","Х","Х","Х","Х","Х","Х","Х","Х","Х","Х"]
[null,"финансирование за счет краевого бюджета","тыс.рублей","Х","Х","Х","Х","Х","Х","Х","Х","Х",1279.1342,0,"Х","Х","Х","Х","Х","Х","Х","Х","Х","Х","Х",{"$f":"SUM(L497:W497)","v":1279.1342}]
[null,"кроме того, финансирование из других источников:","тыс.рублей","Х","Х","Х","Х","Х","Х","Х","Х","Х",{"$f":"SUM(M499)","v":3166.9267},{"$f":"SUM(N499)","v":5116.5367999999999},"Х","Х","Х","Х","Х","Х","Х","Х","Х","Х","Х",{"$f":"SUM(Z499)","v":8283.4634999999998}]
[null," - из федерального бюджета","тыс.рублей","Х","Х","Х","Х","Х","Х","Х","Х","Х",3166.9267,5116.5367999999999,"Х","Х","Х","Х","Х","Х","Х","Х","Х","Х","Х",{"$f":"SUM(M499:W499)","v":8283.4634999999998}]
[null,"Показатель \"Количество субъектов малого и среднего предпринимательства, получивших государственную поддержку\"","ед.","Х","Абсолютный показатель","Х","Х","Х","Х","Х","Х","Х","2 (5*)","(8*)","Х","Х","Х","Х","Х","Х","Х","Х","Х","Х","Х",15]
[null,"Предоставление субсидий субъектам малого и среднего предпринимательства, пострадавшим в результате чрезвычайной ситуации, на возобновление предпринимательской деятельности","Х","Х","Х",2015,"Министерство экономического развития Забайкальского края","Х","Х","Х","Х","Х","Х","Х","Х","Х","Х","Х","Х","Х","Х","Х","Х","Х","Х","Х"]
[null,"финансирование за счет краевого бюджета","тыс.рублей","Х","Х","Х","Х","Х","Х","Х","Х","Х","Х",300,"Х","Х","Х","Х","Х","Х","Х","Х","Х","Х","Х",{"$f":"SUM(K502:W502)","v":300}]
[null,"кроме того, финансирование из других источников:","тыс.рублей","Х","Х","Х","Х","Х","Х","Х","Х","Х","Х",{"$f":"SUM(N504)","v":5700},"Х","Х","Х","Х","Х","Х","Х","Х","Х","Х","Х",{"$f":"SUM(Z504)","v":5700}]
[null," - из федерального бюджета","тыс.рублей","Х","Х","Х","Х","Х","Х","Х","Х","Х","Х",5700,"Х","Х","Х","Х","Х","Х","Х","Х","Х","Х","Х",{"$f":"SUM(M504:W504)","v":5700}]
[null,"Показатель \"Исполнение расходных обязательств за счет субсидии, предоставленной в соответствующем финансовом году из федерального бюджета на реализацию мероприятия\"","%","Х","Р / Рс *100, где\nР - расходы за счет субсидии, предоставленной в текущем финансовом году из федерального бюджета на реализацию мероприятия,\nРс - размер субсидии","Х","Х","Х","Х","Х","Х","Х","Х",100,"Х","Х","Х","Х","Х","Х","Х","Х","Х","Х","Х",100]
[null,"Показатель \"Количество субъектов малого и среднего предпринимательства, получивших государственную поддержку за счет субсидии, предоставленной в соответствующем финансовом году из федерального бюджета на реализацию мероприятия\"","ед.","Х","Абсолютный показатель","Х","Х","Х","Х","Х","Х","Х","Х",4,"Х","Х","Х","Х","Х","Х","Х","Х","Х","Х","Х",{"$f":"SUM(M506:W506)","v":4}]
[null,"Показатель \"Количество вновь созданных рабочих мест (включая вновь зарегистрированных индивидуальных предпринимателей) субъектами малого предпринимательства, получившими государственную поддержку за счет субсидии, предоставленной в текущем финансовом году из федерального бюджета на реализацию мероприятия\"","ед. ","Х","Абсолютный показатель","Х","Х","Х","Х","Х","Х","Х","Х",8,"Х","Х","Х","Х","Х","Х","Х","Х","Х","Х","Х",{"$f":"SUM(M507:W507)","v":8}]
[null,"Показатель \"Количество субъектов малого и среднего предпринимательства, получивших государственную поддержку\"","ед.","Х","Абсолютный показатель","Х","Х","Х","Х","Х","Х","Х","Х","1(4*)","Х","Х","Х","Х","Х","Х","Х","Х","Х","Х","Х",5]
[null,"Предоставление субсидий на пополнение фондов (активов) микрофинансовых организаций","Х","Х","Х",2014,"Министерство экономического развития Забайкальского края","Х","Х","Х","Х","Х","Х","Х","Х","Х","Х","Х","Х","Х","Х","Х","Х","Х","Х","Х"]
[null,"финансирование за счет краевого бюджета","тыс.рублей","Х","Х","Х","Х","Х","Х","Х","Х","Х",0,"Х","Х","Х","Х","Х","Х","Х","Х","Х","Х","Х","Х",{"$f":"SUM(N510:W510)","v":0}]
[null,"кроме того, финансирование из других источников:","тыс.рублей","Х","Х","Х","Х","Х","Х","Х","Х","Х",{"$f":"SUM(M512)","v":190891.78599999999},"Х","Х","Х","Х","Х","Х","Х","Х","Х","Х","Х","Х",{"$f":"SUM(Z512)","v":190891.78599999999}]
[null," - из федерального бюджета","тыс.рублей","Х","Х","Х","Х","Х","Х","Х","Х","Х",190891.78599999999,"Х","Х","Х","Х","Х","Х","Х","Х","Х","Х","Х","Х",{"$f":"SUM(K512:W512)","v":190891.78599999999}]
[null,"Показатель \"Количество субъектов малого и среднего предпринимательства, получивших государственную поддержку\"","ед.","Х","Абсолютный показатель","Х","Х","Х","Х","Х","Х","Х","(313*)","Х","Х","Х","Х","Х","Х","Х","Х","Х","Х","Х","Х",313]
[null,"Предоставление субсидий на компенсацию части процентов по кредитам, полученным в Российской Федерации микрофинансовыми организациями, для предоставления микрозаймов (займов) субъектам малого и среднего предпринимательства","Х","Х","Х",2014,"Министерство экономического развития Забайкальского края","Х","Х","Х","Х","Х","Х","Х","Х","Х","Х","Х","Х","Х","Х","Х","Х","Х","Х","Х"]
[null,"финансирование за счет краевого бюджета","тыс.рублей","Х","Х","Х","Х","Х","Х","Х","Х","Х",0,"Х","Х","Х","Х","Х","Х","Х","Х","Х","Х","Х","Х",{"$f":"SUM(K515:W515)","v":0}]
[null,"кроме того, финансирование из других источников:","тыс.рублей","Х","Х","Х","Х","Х","Х","Х","Х","Х",{"$f":"SUM(M517)","v":3166.9267},"Х","Х","Х","Х","Х","Х","Х","Х","Х","Х","Х","Х",{"$f":"SUM(Z517)","v":3166.9267}]
[null," - из федерального бюджета","тыс.рублей","Х","Х","Х","Х","Х","Х","Х","Х","Х",3166.9267,"Х","Х","Х","Х","Х","Х","Х","Х","Х","Х","Х","Х",{"$f":"SUM(M517:W517)","v":3166.9267}]
[null,"Показатель \"Количество субъектов малого и среднего предпринимательства, получивших государственную поддержку\"","ед.","Х","Абсолютный показатель","Х","Х","Х","Х","Х","Х","Х",4,"Х","Х","Х","Х","Х","Х","Х","Х","Х","Х","Х","Х",{"$f":"SUM(M518:W518)","v":4}]
[null,"Предоставление субсидий на докапитализацию государственных микрофинансовых организаций для оказания в 2020 году неотложных мер поддержки субъектов малого и среднего предпринимательства в условиях ухудшения ситуации в связи с распространением новой коронавирусной инфекции","Х","Х","Х",2020,"Министерство экономического развития Забайкальского края","Х","Х","Х","Х","Х","Х","Х","Х","Х","Х","Х","Х","Х","Х","Х","Х","Х","Х","Х"]
[null,"финансирование за счет краевого бюджета","тыс.рублей","Х","Х","Х","Х","Х","Х","Х","Х","Х","Х","Х","Х","Х","Х","Х",425.5,"Х","Х","Х","Х","Х","Х",{"$f":"SUM(M520:W520)","v":425.5}]
[null,"кроме того, финансирование из других источников:","тыс.рублей","Х","Х","Х","Х","Х","Х","Х","Х","Х","Х","Х","Х","Х","Х","Х",{"$f":"SUM(S522)","v":6666.4},"Х","Х","Х","Х","Х","Х",{"$f":"SUM(Z522)","v":6666.4}]
[null,"- из федерального бюджета","тыс.рублей","Х","Х","Х","Х","Х","Х","Х","Х","Х","Х","Х","Х","Х","Х","Х",6666.4,"Х","Х","Х","Х","Х","Х",{"$f":"SUM(M522:W522)","v":6666.4}]
[null,"Показатель \"Количество субъектов малого и среднего предпринимательства, получивших поддержку при содействии микрофинансовой организации\"","ед.","Х","Абсолютный показатель","Х","Х","Х","Х","Х","Х","Х","Х","Х","Х","Х","Х","Х",3,"Х","Х","Х","Х","Х","Х",{"$f":"SUM(M523:W523)","v":3}]
["2.2.2.","Мероприятие \"Субсидии субъектам малого и среднего предпринимательства, самозанятым, организациям, образующим инфраструктуру поддержки малого и среднего предпринимательства\"","Х",1,"Х","2014-2025","Министерство экономического развития Забайкальского края","Х","Х","Х","Х","Х","Х","Х","Х","Х","Х","Х","Х","Х","Х","Х","Х","Х","Х","Х"]
[null,"финансирование за счет краевого бюджета","тыс.рублей","Х","Х","Х","Х","ВСЕГО","Х","Х","Х","Х",{"$f":"M526","v":617},{"$f":"N526","v":1040},{"$f":"O527","v":1000},{"$f":"P528","v":1286.9960000000001},{"$f":"Q528","v":11000},{"$f":"R530+R531","v":11715.000000000002},{"$f":"S530+S531+S528","v":35123.300000000003},{"$f":"T530+T531","v":12872.4},{"$f":"U530+U531","v":15961.599999999999},{"$f":"V530+V531","v":21416.400000000001},{"$f":"W530+W531","v":12240.1},{"$f":"X530+X531","v":55818.8},"Х",{"$f":"SUM(M525:X525)","v":180091.59600000002}]
[{"$nulls":7},"0412","5228101","810","Х","Х",{"$f":"M534","v":617},{"$f":"N534","v":1040},"Х","Х","Х","Х","Х","Х","Х","Х","Х","Х","Х",1657]
[{"$nulls":7},"0412","0320206810","810","Х","Х","Х","Х",{"$f":"O534","v":1000},"Х","Х","Х","Х","Х","Х","Х","Х","Х","Х",1000]
[{"$nulls":7},"0412","0320206810","811","Х","Х","Х","Х","Х",{"$f":"P534","v":1286.9960000000001},{"$f":"Q555+Q558+Q561","v":11000},"Х",{"$f":"S564","v":11274.8},"Х","Х","Х","Х","Х","Х",23561.795999999998]
[{"$nulls":7},"0412","0320206810","812","Х","Х","Х","Х","Х","Х","Х",0,"Х","Х","Х","Х","Х","Х","Х",0]
[{"$nulls":7},"0412","0320206810","813","Х","Х","Х","Х","Х","Х","Х",{"$f":"R537+R546","v":2601.7242800000004},{"$f":"S546","v":2008},1878.1131499999999,870.8,0,0,25000,"Х",32358.637430000002]
[{"$nulls":7},"0412","0320206810","633","Х","Х","Х","Х","Х","Х","Х",{"$f":"R540+R543+R549+R552","v":9113.2757200000015},{"$f":"S540+S543+S570","v":21840.5},10994.28685,15090.8,21416.400000000001,12240.1,30818.799999999999,"Х",121514.16257]
[null,"Показатель \"Количество субъектов малого  предпринимательства, воспользовавшихся государственной поддержкой\"","ед.","Х","Абсолютный показатель","Х","Х","Х","Х","Х","Х","Х","Х","Х",20,7,18,1252,972,581,1859,2536,3179,3179,"Х",{"$f":"SUM(M532:W532)+3179","v":13603}]
[null,"Предоставление субсидий на возмещение текущих затрат на содержание бизнес-инкубатора","Х","Х","Х","2014-2017","Министерство экономического развития Забайкальского края","Х","Х","Х","Х","Х","Х","Х","Х","Х","Х","Х","Х","Х","Х","Х","Х","Х","Х","Х"]
[null,"финансирование за счет краевого бюджета","тыс.рублей","Х","Х","Х","Х","Х","Х","Х","Х","Х",617,1040,1000,1286.9960000000001,"Х","Х","Х","Х","Х","Х","Х","Х","Х",{"$f":"SUM(K534:W534)","v":3943.9960000000001}]
[null,"Показатель \"Количество субъектов малого  предпринимательства, воспользовавшихся услугами бизнес-инкубаторов\"","ед.","Х","Абсолютный показатель","Х","Х","Х","Х","Х","Х","Х","Х","Х",20,7,"Х","Х","Х","Х","Х","Х","Х","Х","Х",{"$f":"SUM(M535:W535)","v":27}]
[null,"Предоставление субсидий на возмещение текущих расходов регионального центра инжиниринга для субъектов малого и среднего предпринимательства","Х","Х","Х",2019,"Министерство экономического развития Забайкальского края","Х","Х","Х","Х","Х","Х","Х","Х","Х","Х","Х","Х","Х","Х","Х","Х","Х","Х","Х"]
[null,"финансирование за счет краевого бюджета","тыс.рублей","Х","Х","Х","Х","Х","Х","Х","Х","Х","Х","Х","Х","Х","Х",1550.7885200000001,"Х","Х","Х","Х","Х","Х","Х",{"$f":"SUM(M537:W537)","v":1550.7885200000001}]
[null,"Показатель \"Количество субъектов малого  предпринимательства, воспользовавшихся государственной поддержкой\"","ед.","Х","Абсолютный показатель","Х","Х","Х","Х","Х","Х","Х","Х","Х","Х","Х","Х",64,"Х","Х","Х","Х","Х","Х","Х",{"$f":"SUM(M538:X538)","v":64}]
[null,"Предоставление субсидий на  текущие расходы Центров поддержки предпринимательства","Х","Х","Х","2018-2020","Министерство экономического развития Забайкальского края","Х","Х","Х","Х","Х","Х","Х","Х","Х","Х","Х","Х","Х","Х","Х","Х","Х","Х","Х"]
[null,"финансирование за счет краевого бюджета","тыс.рублей","Х","Х","Х","Х","Х","Х","Х","Х","Х","Х","Х","Х","Х",0,2915.63292,623.21,"Х","Х","Х","Х","Х","Х",{"$f":"SUM(M540:W540)","v":3538.84292}]
[null,"Показатель \"Количество субъектов малого  предпринимательства, воспользовавшихся государственной поддержкой\"","ед.","Х","Абсолютный показатель","Х","Х","Х","Х","Х","Х","Х","Х","Х","Х","Х",6,781,781,"Х","Х","Х","Х","Х","Х",{"$f":"SUM(M541:X541)","v":1568}]
[null,"Предоставление субсидий на текущие расходы Центров инноваций социальной сферы","Х","Х","Х","2018-2020","Министерство экономического развития Забайкальского края","Х","Х","Х","Х","Х","Х","Х","Х","Х","Х","Х","Х","Х","Х","Х","Х","Х","Х","Х"]
[null,"финансирование за счет краевого бюджета","тыс.рублей","Х","Х","Х","Х","Х","Х","Х","Х","Х","Х","Х","Х","Х",0,2031.79189,0,"Х","Х","Х","Х","Х","Х",{"$f":"SUM(M543:W543)","v":2031.79189}]
[null,"Показатель \"Количество субъектов малого  предпринимательства, воспользовавшихся государственной поддержкой\"","ед.","Х","Абсолютный показатель","Х","Х","Х","Х","Х","Х","Х","Х","Х","Х","Х",6,100,100,"Х","Х","Х","Х","Х","Х",{"$f":"SUM(M544:X544)","v":206}]
[null,"Предоставление субсидий на текущие расходы регионального центра инжиниринга для субъектов малого и среднего предпринимательства","Х","Х","Х","2019-2020","Министерство экономического развития Забайкальского края","Х","Х","Х","Х","Х","Х","Х","Х","Х","Х","Х","Х","Х","Х","Х","Х","Х","Х","Х"]
[null,"финансирование за счет краевого бюджета","тыс.рублей","Х","Х","Х","Х","Х","Х","Х","Х","Х","Х","Х","Х","Х","Х",1050.9357600000001,2008,"Х","Х","Х","Х","Х","Х",{"$f":"SUM(M546:W546)","v":3058.9357600000003}]
[null,"Показатель \"Количество субъектов малого  предпринимательства, воспользовавшихся государственной поддержкой\"","ед.","Х","Абсолютный показатель","Х","Х","Х","Х","Х","Х","Х","Х","Х","Х","Х","Х",64,64,"Х","Х","Х","Х","Х","Х",{"$f":"SUM(M547:X547)","v":128}]
[null,"Предоставление субсидий на текущие расходы Центра поддержки экспорта","Х","Х","Х",2019,"Министерство экономического развития Забайкальского края","Х","Х","Х","Х","Х","Х","Х","Х","Х","Х","Х","Х","Х","Х","Х","Х","Х","Х","Х"]
[null,"финансирование за счет краевого бюджета","тыс.рублей","Х","Х","Х","Х","Х","Х","Х","Х","Х","Х","Х","Х","Х","Х",3211.8,"Х","Х","Х","Х","Х","Х","Х",{"$f":"SUM(M549:W549)","v":3211.8}]
[null,"Показатель \"Количество субъектов малого  предпринимательства, воспользовавшихся государственной поддержкой\"","ед.","Х","Абсолютный показатель","Х","Х","Х","Х","Х","Х","Х","Х","Х","Х","Х",4,9,"Х","Х","Х","Х","Х","Х","Х",{"$f":"SUM(M550:X550)","v":13}]
[null,"Предоставление субсидий на текущие расходы организаций инфраструктуры поддержки малого и среднего предпринимательства, связанные с реализацией комплексных программ по вовлечению в предпринимательскую деятельность и содействию созданию собственного бизнеса для каждой целевой группы, включая поддержку создания сообществ начинающих предпринимателей и развитие института наставничества в рамках регионального проекта \"Популяризация предпринимательства\"","Х","Х","Х",2019,"Министерство экономического развития Забайкальского края","Х","Х","Х","Х","Х","Х","Х","Х","Х","Х","Х","Х","Х","Х","Х","Х","Х","Х","Х"]
[null,"финансирование за счет краевого бюджета","тыс.рублей","Х","Х","Х","Х","Х","Х","Х","Х","Х","Х","Х","Х","Х","Х",954.05091000000004,"Х","Х","Х","Х","Х","Х","Х",{"$f":"SUM(K552:W552)","v":954.05091000000004}]
[null,"Показатель \"Количество субъектов малого  предпринимательства, воспользовавшихся государственной поддержкой\"","ед.","Х","Абсолютный показатель","Х","Х","Х","Х","Х","Х","Х","Х","Х","Х","Х","Х",234,"Х","Х","Х","Х","Х","Х","Х",{"$f":"SUM(M553:W553)","v":234}]
[null,"Предоставление субсидий субъектам малого  предпринимательства на возмещение части затрат на приобретение оборудования в целях модернизации производства продукции","Х","Х","Х",2018,"Министерство экономического развития Забайкальского края","Х","Х","Х","Х","Х","Х","Х","Х","Х","Х","Х","Х","Х","Х","Х","Х","Х","Х","Х"]
[null,"финансирование за счет краевого бюджета","тыс.рублей","Х","Х","Х","Х","Х","Х","Х","Х","Х","Х","Х","Х","Х",7272.6519600000001,"Х","Х","Х","Х","Х","Х","Х","Х",{"$f":"SUM(K555:W555)","v":7272.6519600000001}]
[null,"Показатель \"Количество субъектов малого  предпринимательства, воспользовавшихся государственной поддержкой\"","ед.","Х","Абсолютный показатель","Х","Х","Х","Х","Х","Х","Х","Х","Х","Х","Х",8,"Х","Х","Х","Х","Х","Х","Х","Х",{"$f":"SUM(M556:W556)","v":8}]
[null,"Предоставление субсидий субъектам малого и среднего предпринимательства в целях возмещения затрат по созданию мест для детей в возрасте от 3 до 7 лет в группах дневного времяпрепровождения детей дошкольного возраста и иных подобных им видов деятельности по уходу и присмотру за детьми","Х","Х","Х",2018,"Министерство экономического развития Забайкальского края","Х","Х","Х","Х","Х","Х","Х","Х","Х","Х","Х","Х","Х","Х","Х","Х","Х","Х","Х"]
[null,"финансирование за счет краевого бюджета","тыс.рублей","Х","Х","Х","Х","Х","Х","Х","Х","Х","Х","Х","Х","Х",2272.1641300000001,"Х","Х","Х","Х","Х","Х","Х","Х",{"$f":"SUM(M558:W558)","v":2272.1641300000001}]
[null,"Показатель \"Количество субъектов малого  предпринимательства, воспользовавшихся государственной поддержкой\"","ед.","Х","Абсолютный показатель","Х","Х","Х","Х","Х","Х","Х","Х","Х","Х","Х",6,"Х","Х","Х","Х","Х","Х","Х","Х",{"$f":"SUM(M559:X559)","v":6}]
[null,"Предоставление субсидий субъектам малого предпринимательства, реализующим социальные бизнес-проекты ","Х","Х","Х",2018,"Министерство экономического развития Забайкальского края","Х","Х","Х","Х","Х","Х","Х","Х","Х","Х","Х","Х","Х","Х","Х","Х","Х","Х","Х"]
[null,"финансирование за счет краевого бюджета","тыс.рублей","Х","Х","Х","Х","Х","Х","Х","Х","Х","Х","Х","Х","Х",1455.18391,"Х","Х","Х","Х","Х","Х","Х","Х",{"$f":"SUM(M561:W561)","v":1455.18391}]
[null,"Показатель \"Количество субъектов малого и среднего предпринимательства, получивших государственную поддержку\"","ед.","Х","Абсолютный показатель","Х","Х","Х","Х","Х","Х","Х","Х","Х","Х","Х",6,"Х","Х","Х","Х","Х","Х","Х","Х",{"$f":"SUM(M562:W562)","v":6}]
[null,"Предоставление в 2020 году субсидий на финансовое обеспечение мероприятий, связанных с предотвращением влияния ухудшения экономической ситуации на сферу малого и среднего предпринимательства, с профилактикой и устранением последствий распространения новой коронавирусной инфекции","Х","Х","Х",2020,"Министерство экономического развития Забайкальского края","Х","Х","Х","Х","Х","Х","Х","Х","Х","Х","Х","Х","Х","Х","Х","Х","Х","Х","Х"]
[null,"финансирование за счет краевого бюджета","тыс.рублей","Х","Х","Х","Х","Х","Х","Х","Х","Х","Х","Х","Х","Х","Х","Х",11274.8,"Х","Х","Х","Х","Х","Х",{"$f":"SUM(M564:W564)","v":11274.8}]
[null,"кроме того, финансирование из других источников:","тыс.рублей","Х","Х","Х","Х","Х","Х","Х","Х","Х","Х","Х","Х","Х","Х","Х",{"$f":"SUM(S566)","v":0},"Х","Х","Х","Х","Х","Х",{"$f":"SUM(Z566)","v":0}]
[null," - из федерального бюджета","тыс.рублей","Х","Х","Х","Х","Х","Х","Х","Х","Х","Х","Х","Х","Х","Х","Х",0,"Х","Х","Х","Х","Х","Х","0, 0000"]
[null,"Показатель \"Количество субъектов малого и среднего предпринимательства, получивших государственную поддержку\"","ед.","Х","Абсолютный показатель","Х","Х","Х","Х","Х","Х","Х","Х","Х","Х","Х","Х","Х",12,"Х","Х","Х","Х","Х","Х",{"$f":"SUM(M567:W567)","v":12}]
[null,"Показатель \"Количество сохраненных рабочих мест\" ","ед.","Х","Абсолютный показатель","Х","Х","Х","Х","Х","Х","Х","Х","Х","Х","Х","Х","Х",36,"Х","Х","Х","Х","Х","Х",{"$f":"SUM(M568:W568)","v":36}]
[null,"Предоставление субсидий на создание и (или) развитие центров поддержки предпринимательства ","Х","Х","Х",2020,"Министерство экономического развития Забайкальского края","Х","Х","Х","Х","Х","Х","Х","Х","Х","Х","Х","Х","Х","Х","Х","Х","Х","Х","Х"]
[null,"финансирование за счет краевого бюджета","тыс.рублей","Х","Х","Х","Х","Х","Х","Х","Х","Х","Х","Х","Х","Х","Х","Х",21217.29,"Х","Х","Х","Х","Х","Х",{"$f":"SUM(N570:W570)","v":21217.29}]
[null,"Показатель \"Количество субъектов малого  предпринимательства, воспользовавшихся государственной поддержкой\"","ед.","Х","Абсолютный показатель","Х","Х","Х","Х","Х","Х","Х","Х","Х","Х","Х","Х","Х",781,"Х","Х","Х","Х","Х","Х",{"$f":"SUM(M571:W571)","v":781}]
[null,"Предоставление субсидий на создание и (или) развитие регионального центра инжиниринга для субъектов малого и среднего предпринимательства","Х","Х","Х",2020,"Министерство экономического развития Забайкальского края","Х","Х","Х","Х","Х","Х","Х","Х","Х","Х","Х","Х","Х","Х","Х","Х","Х","Х","Х"]
[null,"финансирование за счет краевого бюджета","тыс.рублей","Х","Х","Х","Х","Х","Х","Х","Х","Х","Х","Х","Х","Х","Х","Х","Х","Х","Х","Х","Х","Х","Х",{"$f":"SUM(N573:W573)","v":0}]
[null,"Показатель \"Количество субъектов малого  предпринимательства, воспользовавшихся государственной поддержкой\"","ед.","Х","Абсолютный показатель","Х","Х","Х","Х","Х","Х","Х","Х","Х","Х","Х","Х","Х","Х","Х","Х","Х","Х","Х","Х",{"$f":"SUM(M574:W574)","v":0}]
["2.2.3.","Мероприятие \"Взнос в уставный капитал акционерного общества \"Корпорация развития Забайкальского края\" на финансирование перспективных инвестиционных проектов в форме вхождения в уставный (акционерный) капитал\"","Х",1,"Х",2018,"Министерство экономического развития Забайкальского края","Х","Х","Х","Х","Х","Х","Х","Х","Х","Х","Х","Х","Х","Х","Х","Х","Х","Х","Х"]
[null,"финансирование за счет краевого бюджета","тыс.рублей","Х","Х","Х","Х","0412","0320206450","452","Х","Х","Х","Х","Х","Х",20000,"Х","Х","Х","Х","Х","Х","Х","Х",{"$f":"SUM(M576:X576)","v":20000}]
[null,"Показатель \"Объем вложенных субъектом малого и среднего предпринимательства инвестиций на 1 рубль бюджетных инвестиций\"","руб.","Х","Абсолютный показатель","Х","Х","Х","Х","Х","Х","Х","Х","Х","Х","Х","Х",1,"Х","Х","Х","Х","Х","Х","Х",{"$f":"SUM(M577:W577)","v":1}]
["2.2.4.","Мероприятие \"Капитализация микрофинансовых организаций\"","Х","Х","Х","2019-2025","Министерство экономического развития Забайкальского края","Х","Х","Х","Х","Х","Х","Х","Х","Х","Х","Х","Х","Х","Х","Х","Х","Х","Х","Х"]
[null,"финансирование за счет краевого бюджета","тыс.рублей","Х","Х","Х","Х","Х","Х","Х","Х","Х","Х","Х","Х","Х","Х",0,0,0,0,0,0,0,"Х",{"$f":"SUM(M579:X579)","v":0}]
[null,"кроме того, финансирование из других источников:","тыс.рублей","Х","Х","Х","Х","Х","Х","Х","Х","Х","Х","Х","Х","Х","Х",{"$f":"SUM(R581)","v":0},0,0,0,0,0,0,"Х",0]
[null," - из федерального бюджета","тыс.рублей","Х","Х","Х","Х","Х","Х","Х","Х","Х","Х","Х","Х","Х","Х",0,0,0,0,0,0,0,"Х",{"$f":"SUM(M581:W581)","v":0}]
[null,"Показатель \"Количество субъектов малого и среднего предпринимательства, получивших государственную поддержку\"","ед.","Х","Абсолютный показатель","Х","Х","Х","Х","Х","Х","Х","Х","Х","Х","Х","Х","Х","Х","Х",0,0,0,0,"Х",0]
["2.2.5.","Мероприятие \"Предоставление субсидий на текущие расходы туристско-информационного центра\"","Х","Х","Х",2022,"Министерство экономического развития Забайкальского края","Х","Х","Х","Х","Х","Х","Х","Х","Х","Х","Х","Х","Х","Х","Х","Х","Х","Х","Х"]
[null,"финансирование за счет краевого бюджета","тыс.рублей","Х","Х","Х",null,"0412","0320206350",633,"Х","Х","Х","Х","Х","Х",0,0,0,0,5117.8999999999996,0,0,0,"Х",{"$f":"U584","v":5117.8999999999996}]
[null,"Показатель \"Количество оказанных информационных и консультационных услуг\"","ед.","Х","Абсолютный показатель","Х","Х","Х","Х","Х","Х","Х","Х","Х","Х","Х","Х","Х","Х","Х",50,"Х","Х","Х","Х","Х"]
["2.5.6.","Мероприятие \"Предоставление субсидий на создание и (или) развитие гарантийных организаций (фондов поручительств)\"","Х","Х","Х","2019-2025","Министерство экономического развития Забайкальского края","Х","Х","Х","Х","Х","Х","Х","Х","Х","Х","Х","Х","Х","Х","Х","Х","Х","Х","Х"]
[null,"финансирование за счет краевого бюджета","тыс.рублей","Х","Х","Х","Х","Х","Х","Х","Х","Х","Х","Х","Х","Х","Х",0,0,0,0,0,0,0,"Х",{"$f":"SUM(R587:W587)","v":0}]
[null,"Показатель \"Количество субъектов малого и среднего предпринимательства, получивших государственную поддержку\"","ед.","Х","Абсолютный показатель","Х","Х","Х","Х","Х","Х","Х","Х","Х","Х","Х","Х",0,0,0,0,0,0,0,"Х",{"$f":"SUM(M588:W588)","v":0}]
["2.3.","Основное мероприятие \"Развитие потребительского рынка\" ","Х",1,"Х","2014-2025","Министерство экономического развития Забайкальского края","Х","Х","Х","Х","Х","Х","Х","Х","Х","Х","Х","Х","Х","Х","Х","Х","Х","Х","Х"]
[null,"финансирование за счет краевого бюджета","тыс.рублей","Х","Х","Х","Х","Х","Х","Х","Х","Х",{"$f":"M596","v":49},{"$f":"N596","v":36},{"$f":"O597","v":40},48.4,{"$f":"Q597+Q598","v":49.999749999999999},{"$f":"R598","v":49.9},82.8,88.2,90,100,100,2356.3000000000002,"Х",{"$f":"SUM(K590:X590)","v":3090.5997500000003}]
[null,"Показатель \"Обеспеченность населения торговыми площадями в расчете на 1000 жителей\"","кв.м","Х","От=(Sст+Sнест)/Ч, где От- обеспеченность населения площадью стационарных торговых объектов, Sст - площадь стационарных торговых объектов по состоянию на 1 января года, следующего за отчетным, м. кв., Sнест - площадь нестационарных торговых объектов по состоянию на 1 января года, следующего за отчетным, м. кв.Ч - численность населения (среднегодовая), тыс. человек","2014-2015","Х","Х","Х","Х",578.4,645.5,675.9,726.7,727,"Х","Х","Х","Х","Х","Х","Х","Х","Х","Х",727]
[null,"Показатель \"Обеспеченность населения площадью стационарных торговых объектов\"","кв. м на 1000 человек","Х","Ост=Sст/Ч, где Ост- обеспеченность населения площадью стационарных торговых объектов, Sст - площадь стационарных торговых объектов по состоянию на 1 января года, следующего за отчетным, м. кв. Ч - численность населения (среднегодовая), тыс. человек","2016-2025","Х","Х","Х","Х","Х","Х","Х","Х",638.9,642.29999999999995,653.70000000000005,713.2,718.7,722,734.2,850.8,875.3,900,"Х",900]
[null,"Показатель \"Обеспеченность посадочными местами в предприятиях общественного питания в расчете на 1000 жителей\"","посадочных мест, ед.","Х","Опм=Qпм/Ч, где Опм- обеспеченность населения посадочными местами в предприятиях общественного питания, Qпм - количество посадочных мест в предприятиях общественного питания по состоянию на 1 января года, следующего за отчетным, ед., Ч - численность населения (среднегодовая), тыс. человек","2014-2016","Х","Х","Х","Х",33.200000000000003,34.9,40.1,52.6,52.7,"Х","Х","Х","Х","Х","Х","Х","Х","Х","Х",52.7]
[null,"Показатель \"Количество ярмарок\"","ед.","Х","Абсолютный показатель","Х","Х","Х","Х","Х",592,601,811,848,820,884,925,926,927,900,925,790,795,800,"Х",{"$f":"SUM(M594:X594)","v":10351}]
["2.3.1.","Мероприятие \"Организация участия организаций Забайкальского края в федеральном этапе Всероссийского конкурса Программы \"100 лучших товаров России\"","Х",null,"Х","2014-2025","Министерство экономического развития Забайкальского края","Х","Х","Х","Х","Х","Х","Х","Х","Х","Х","Х","Х","Х","Х","Х","Х","Х","Х","Х"]
[null,"финансирование за счет краевого бюджета","тыс.рублей","Х","Х","Х","Х","0113","0920300",880,"Х","Х",49,36,"Х","Х","Х","Х","Х","Х","Х","Х","Х","Х","Х",{"$f":"SUM(K596:X596)","v":85}]
[{"$nulls":7},"0113","0320369300","244","Х","Х",0,0,40,48.4,1.7250000000000001,"Х","Х","Х","Х","Х","Х","Х","Х",{"$f":"SUM(K597:W597)","v":90.125}]
[{"$nulls":7},"0412","0320306300","244","Х","Х",0,0,0,0,48.274749999999997,49.9,82.8,88.2,90,100,100,2356.3000000000002,"Х",{"$f":"SUM(K598:X598)","v":2915.4747500000003}]
[null,"кроме того, финансирование из других источников:","тыс.рублей","Х","Х","Х","Х","Х","Х","Х","Х","Х",0,0,0,0,0,0,0,0,0,0,0,0,"Х",0]
[null," - из местных бюджетов","тыс.рублей","Х","Х","Х","Х","Х","Х","Х","Х","Х",0,0,0,0,0,0,0,0,0,0,0,0,"Х",0]
[null," - из внебюджетных источников","тыс.рублей","Х","Х","Х","Х","Х","Х","Х","Х","Х",0,0,0,0,0,0,0,0,0,0,0,0,"Х",0]
[null,"Показатель \"Количество организаций Забайкальского края, принявших участие в федеральном этапе Всероссийского конкурса Программы \"100 лучших товаров России\" ","ед.","Х","Абсолютный показатель","Х","Х","Х","Х","Х","Х","Х",12,4,5,5,5,5,5,7,7,8,8,9,"Х",80]
["2.3.2.","Мероприятие \"Мониторинг состояния системы защиты прав потребителей\"","Х","Х","Х","2018-2024","Министерство экономического развития Забайкальского края","Х","Х","Х","Х","Х","Х","Х","Х","Х","Х","Х","Х","Х","Х","Х","Х","Х","Х","Х"]
[null,"Показатель \"Количество органов и организаций, входящих в систему защиты прав потребителей","ед.","Х","Абсолютный показатель","2018-2024","Х","Х","Х","Х","Х","Х","Х","Х","Х","Х",169,170,171,172,173,174,175,175,"Х",175]
["2.3.3.","Мероприятие \"Организация консультативной помощи в сфере защиты прав потребителей\"","Х","Х","Х","2018-2024","Министерство экономического развития Забайкальского края","Х","Х","Х","Х","Х","Х","Х","Х","Х","Х","Х","Х","Х","Х","Х","Х","Х","Х","Х"]
[null,"Показатель \"Количество консультаций в сфере защиты прав потребителей\"","ед.","Х","Абсолютный показатель","2018- 2024","Х","Х","Х","Х","Х","Х","Х","Х","Х","Х",1200,1205,1210,1215,1220,1225,1230,1232,"Х",9737]
["2.3.4.","Мероприятие \"Просвещение и популяризация вопросов защиты прав потребителей\"","Х","Х","Х","2018-2024","Министерство экономического развития Забайкальского края","Х","Х","Х","Х","Х","Х","Х","Х","Х","Х","Х","Х","Х","Х","Х","Х","Х","Х","Х"]
[null,"Показатель \"Количество публикаций и сообщений в средствах массовой информации, направленных на повышение потребительской грамотности\"","ед.","Х","Абсолютный показатель","2018-2024","Х","Х","Х","Х","Х","Х","Х","Х","Х","Х",50,55,60,65,70,75,80,80,"Х",535]
["2.4.","Основное мероприятие \"Региональный проект  \"Расширение доступа субъектов МСП к финансовой поддержке, в том числе к льготному финансированию\"","Х",1,"Х","2019-2020","Министерство экономического развития Забайкальского края","Х","Х","Х","Х","Х","Х","Х","Х","Х","Х","Х","Х","Х","Х","Х","Х","Х","Х","Х"]
[null,"финансирование за счет краевого бюджета","тыс.рублей","Х","Х","Х","Х","ВСЕГО","Х","Х","Х","Х","Х","Х","Х","Х","Х",{"$f":"R612+R613+R611","v":12303.953079999999},1072.9000000000001,0,0,0,0,0,"Х",{"$f":"SUM(K610:X610)","v":13376.853079999999}]
[{"$nulls":7},"0412","032I455270",812,"Х","Х","Х","Х","Х","Х","Х",0,0,0,0,0,0,0,"Х",{"$f":"SUM(K611:X611)","v":0}]
[{"$nulls":7},"0412","032I455270",633,"Х","Х","Х","Х","Х","Х","Х",{"$f":"R623","v":5137.2265399999997},686.9,0,0,0,0,0,"Х",{"$f":"SUM(K612:X612)","v":5824.1265399999993}]
[{"$nulls":7},"0412","032I455270",813,"Х","Х","Х","Х","Х","Х","Х",{"$f":"R628","v":7166.7265399999997},386,{"$f":"T623+T628","v":0},{"$f":"U623+U628","v":0},{"$f":"V623+V628","v":0},{"$f":"W623+W628","v":0},{"$f":"X623+X628","v":0},"Х",{"$f":"SUM(K613:X613)","v":7552.7265399999997}]
[null,"кроме того, финансирование из других источников:","тыс.рублей","Х","Х","Х","Х","Х","Х","Х","Х","Х","Х","Х","Х","Х","Х",{"$f":"R615","v":602893.69999999995},52574,0,0,0,0,0,"Х",655467.69999999995]
[null," - из федерального бюджета","тыс.рублей","Х","Х","Х","Х","ВСЕГО","Х","Х","Х","Х","Х","Х","Х","Х","Х",{"$f":"R616+R617+R618","v":602893.69999999995},52574,0,0,0,0,0,"Х",{"$f":"SUM(K615:X615)","v":655467.69999999995}]
[{"$nulls":7},"0412","032I455270",812,"Х","Х","Х","Х","Х","Х","Х",0,0,0,0,0,0,0,"Х",{"$f":"SUM(K616:X616)","v":0}]
[{"$nulls":7},"0412","032I455270",633,"Х","Х","Х","Х","Х","Х","Х",253169.6,33658.800000000003,0,0,0,0,0,"Х",{"$f":"SUM(K617:X617)","v":286828.40000000002}]
[{"$nulls":7},"0412","032I455270",813,"Х","Х","Х","Х","Х","Х","Х",349724.1,18915.2,{"$f":"T625+T630","v":0},{"$f":"U625+U630","v":0},{"$f":"V625+V630","v":0},{"$f":"W625+W630","v":0},{"$f":"X625+X630","v":0},"Х",{"$f":"SUM(K618:X618)","v":368639.3}]
[null,"Показатель \"Количество выдаваемых микрозаймов микрофинансовыми организациями субъектам малого и среднего предпринимательства нарастающим итогом\"","единиц","Х","Абсолютный показатель","Х","Х","Х","Х","Х","Х","Х","Х","Х","Х","Х","Х",1164,885,"Х","Х","Х","Х","Х","Х",2049]
[null,"Показатель \"Обеспечен объем финансовой поддержки, оказанной субъектам малого и среднего предпринимательства, при гарантийной поддержке региональной гарантийной организацией\"","тыс.рублей","Х","Абсолютный показатель","Х","Х","Х","Х","Х","Х","Х","Х","Х","Х","Х","Х",483453.8,683220,"Х","Х","Х","Х","Х","Х",{"$f":"SUM(M620:W620)","v":1166673.8}]
[null,"Показатель \"Размер субсидии, предоставленной микрофинансовым организациям\"","млн рублей.","Х","Абсолютный показатель","Х","Х","Х","Х","Х","Х","Х","Х","Х","Х","Х","Х",351.17,52.573999999999998,"Х","Х","Х","Х","Х","Х",{"$f":"SUM(M621:W621)","v":403.74400000000003}]
["2.4.1.","Мероприятие \"Капитализация региональных гарантийных организаций\"","Х","Х","Х","2019-2020","Министерство экономического развития Забайкальского края","Х","Х","Х","Х","Х","Х","Х","Х","Х","Х","Х","Х","Х","Х","Х","Х","Х","Х","Х"]
[null,"финансирование за счет краевого бюджета","тыс.рублей","Х","Х","Х","Х","Х","Х","Х","Х","Х","Х","Х","Х","Х","Х",5137.2265399999997,0,0,0,0,0,0,"Х",{"$f":"SUM(R623:W623)","v":5137.2265399999997}]
[null,"кроме того, финансирование из других источников:","тыс.рублей","Х","Х","Х","Х","Х","Х","Х","Х","Х","Х","Х","Х","Х","Х",{"$f":"R625","v":251169.6},0,0,0,0,0,"Х","Х",{"$f":"Z625","v":251169.6}]
[null," - из федерального бюджета","Х","Х","Х","2019-2020","Х","Х","Х","Х","Х","Х","Х","Х","Х","Х","Х",251169.6,0,0,0,0,0,0,"Х",{"$f":"SUM(K625:W625)","v":251169.6}]
[null,"Показатель \"Количество субъектов малого и среднего предпринимательства, получивших государственную поддержку\"","ед.","Х","Абсолютный показатель","Х","Х","Х","Х","Х","Х","Х","Х","Х","Х","Х","Х",52,0,"Х","Х","Х","Х","Х","Х",{"$f":"SUM(M626:W626)","v":52}]
["2.4.2.","Мероприятие \"Капитализация микрофинансовых организаций\"","Х","Х","Х","2019-2020","Министерство экономического развития Забайкальского края","Х","Х","Х","Х","Х","Х","Х","Х","Х","Х","Х","Х","Х","Х","Х","Х","Х","Х","Х"]
[null,"финансирование за счет краевого бюджета","тыс.рублей","Х","Х","Х","Х","Х","Х","Х","Х","Х","Х","Х","Х","Х","Х",7166.7265399999997,1072.9000000000001,0,0,0,0,0,"Х",{"$f":"SUM(K628:W628)","v":8239.6265399999993}]
[null,"кроме того, финансирование из других источников:","тыс.рублей","Х","Х","Х","Х","Х","Х","Х","Х","Х","Х","Х","Х","Х","Х",{"$f":"R630","v":351169.6},52574,0,0,0,0,0,"Х",403743.6]
[null," - из федерального бюджета","тыс.рублей","Х","Х","Х","Х","Х","Х","Х","Х","Х","Х","Х","Х","Х","Х",351169.6,52574,0,0,0,0,0,"Х",{"$f":"SUM(L630:W630)","v":403743.6}]
[null,"Показатель \"Количество субъектов малого и среднего предпринимательства, получивших государственную поддержку\"","ед.","Х","Абсолютный показатель","Х","Х","Х","Х","Х","Х","Х","Х","Х","Х","Х","Х",72,11,"Х","Х","Х","Х","Х","Х",{"$f":"SUM(M631:W631)","v":83}]
["2.5.","Основное мероприятие \"Региональный проект  \"Акселерация субъектов малого и среднего предпринимательства\"","Х",1,"Х","2019-2024","Министерство экономического развития Забайкальского края","Х","Х","Х","Х","Х","Х","Х","Х","Х","Х","Х","Х","Х","Х","Х","Х","Х","Х","Х"]
[null,"финансирование за счет краевого бюджета","тыс.рублей","Х","Х","Х","Х","ВСЕГО","Х","Х","Х","Х","Х","Х","Х","Х","Х",2427.11022,{"$f":"S634+S635+S636+S637","v":1763.8},885.15713000000005,979.43471,961.9,678.4,0,"Х",{"$f":"SUM(L633:X633)","v":7695.8020599999982}]
[null,null,null,"Х","Х",null,null,"0412","032I555270",812,"Х","Х","Х","Х","Х","Х","Х",0,0,0,0,0,0,0,"Х",{"$f":"SUM(L634:X634)","v":0}]
[null,null,null,"Х","Х",null,null,"0412","032I555270",521,"Х","Х","Х","Х","Х","Х","Х",60,{"$f":"S675","v":42.6},0,0,0,0,0,"Х",{"$f":"SUM(L635:X635)","v":102.6}]
[null,null,null,"Х","Х",null,null,"0412","032I555270",633,"Х","Х","Х","Х","Х","Х","Х",1532.6061299999999,{"$f":"S655+S695","v":1476},{"$f":"T655+T695","v":885.15713000000005},{"$f":"U655+U695","v":713.07348000000002},{"$f":"V655+V695","v":516.9},{"$f":"W655+W695","v":233.4},{"$f":"X655+X695+X710","v":0},"Х",{"$f":"SUM(L636:X636)","v":5357.1367399999999}]
[null,null,null,"Х","Х",null,null,"0412","032I555270",813,"Х","Х","Х","Х","Х","Х","Х",834.50409000000002,{"$f":"S690","v":245.2},{"$f":"T690","v":0},{"$f":"U705","v":266.36122999999998},{"$f":"V705","v":445},{"$f":"W705","v":445},{"$f":"X705","v":0},"Х",{"$f":"SUM(L637:X637)","v":2236.0653199999997}]
[null,"кроме того, финансирование из других источников:","тыс.рублей","Х","Х","Х","Х","Х","Х","Х","Х","Х","Х","Х","Х","Х","Х",{"$f":"R639","v":118928.4},86425.700000000012,63995.199999999997,47992.3,47128.700000000004,33240.100000000006,0,"Х",397710.4]
[null,"  из федерального бюджета","тыс.рублей","Х","Х","Х","Х","ВСЕГО","Х","Х","Х","Х","Х","Х","Х","Х","Х",118928.4,{"$f":"S640+S641+S642+S643","v":86425.700000000012},{"$f":"T640+T641+T642+T643","v":63995.199999999997},{"$f":"U640+U641+U642+U643","v":47992.3},{"$f":"V640+V641+V642+V643","v":47128.700000000004},{"$f":"W640+W641+W642+W643","v":33240.100000000006},0,"Х",{"$f":"SUM(L639:X639)","v":397710.4}]
[null,null,null,"Х","Х",null,null,"0412","032I555270",812,"Х","Х","Х","Х","Х","Х","Х",0,0,0,0,0,0,0,"Х",{"$f":"SUM(L640:X640)","v":0}]
[null,null,null,"Х","Х",null,null,"0412","032I555270",521,"Х","Х","Х","Х","Х","Х","Х",2940,{"$f":"S677","v":2085.3000000000002},0,0,0,0,0,"Х",{"$f":"SUM(L641:X641)","v":5025.3}]
[null,null,null,"Х","Х",null,null,"0412","032I555270",633,"Х","Х","Х","Х","Х","Х","Х",75097.7,{"$f":"S657+S697","v":72326.100000000006},{"$f":"T657+T697","v":43371.9},{"$f":"U657+U697","v":34940.600000000006},{"$f":"V657+V697","v":25324.800000000003},{"$f":"W657+W697+W712","v":11436.2},0,"Х",{"$f":"SUM(L642:X642)","v":262497.3}]
[null,null,null,"Х","Х",null,null,"0412","032I555270",813,"Х","Х","Х","Х","Х","Х","Х",40890.699999999997,{"$f":"S692","v":12014.3},{"$f":"T707","v":20623.3},{"$f":"U707","v":13051.7},{"$f":"V707","v":21803.9},{"$f":"W707","v":21803.9},0,"Х",{"$f":"SUM(L643:X643)","v":130187.79999999999}]
[null,"Показатель \" Численность занятых в сфере малого и среднего предпринимательства, включая индивидуальных предпринимателей\"","млн человек","Х","Абсолютный показатель","Х","Х","Х","Х","Х","Х","Х","Х","Х","Х","Х","Х","Х","Х","Х","Х",9.9599999999999994E-2,0.1016,"Х","Х","Х"]
[null,"Показатель \"Количество субъектов МСП и самозанятых граждан, получивших поддержку в рамках федерального проекта\"","тыс. единиц","Х","Абсолютный показатель","Х","Х","Х","Х","Х","Х","Х","Х","Х","Х","Х","Х",1.492,2.1139999999999999,"Х","Х","Х","Х","Х","Х",{"$f":"SUM(M645:W645)","v":3.6059999999999999}]
[null,"Показатель \"Количество субъектов малого и среднего предпринимательства, выведенных на экспорт при поддержке центров (агентств) координации поддержки экспортноориентированных субъектов малого и среднего предпринимательства, нарастающим итогом\"","единица","Х","Абсолютный показатель","Х","Х","Х","Х","Х","Х","Х","Х","Х","Х","Х","Х",9,20,"Х","Х","Х","Х","Х","Х",{"$f":"SUM(M646:W646)","v":29}]
[null,"Показатель \"Доля субъектов малого и среднего предпринимательства, охваченных услугами Центров \"Мой бизнес\"","процент","Х","МСП поддержка/МСП*100, где МСП поддержка - количество субъектов малого и среднего предпринимательства, получивших поддержку в центре \"Мой бизнес\", МСП - количество субъектов малого и среднего предпринимательства, сведения о которых занесены в Единый реестр субъектов малого и среднего предпринимательства по состоянию на конец отчетного периода ","Х","Х","Х","Х","Х","Х","Х","Х","Х","Х","Х","Х",3,4,"Х","Х","Х","Х","Х","Х",4]
[null,"Показатель \"Количество субъектов малого и среднего предпринимательства, осуществляющих деятельность в монопрофильных муниципальных образованиях, получивших поддержку\"","единица","Х","Абсолютный показатель","Х","Х","Х","Х","Х","Х","Х","Х","Х","Х","Х","Х",15,8,"Х","Х","Х","Х","Х","Х",{"$f":"SUM(M648:W648)","v":23}]
[null,"Показатель \"Количество действующих микрозаймов, выданных микрофинансовыми организациями\"","единиц","Х","Абсолютный показатель","Х","Х","Х","Х","Х","Х","Х","Х","Х","Х","Х","Х","Х","Х",840,911,894,894,"Х","Х",3539]
[null,"Показатель \"Объем финансовой поддержки, оказанной субъектам малого и среднего предпринимательства, при гарантийной поддержке региональной гарантийной организации\"","млн.рублей","Х","Абсолютный показатель","Х","Х","Х","Х","Х","Х","Х","Х","Х","Х","Х","Х","Х","Х",740.81740000000002,756.38379999999995,1530.7055,1544.3561999999999,"Х","Х",4572.2628999999997]
[null,"Показатель \"Количество субъектов МСП, получивших комплексные услуги (уникальных)\"","тыс. единиц","Х","Абсолютный показатель","Х","Х","Х","Х","Х","Х","Х","Х","Х","Х","Х","Х","Х","Х",0.223,0.25600000000000001,0.308,0.36899999999999999,"Х","Х",1.1559999999999999]
[null,"Показатель \"Количество субъектов МСП экспортеров, заключивших экспортные контракты по результатам услуг центра поддержки экспорта (уникальных)\"","единица","Х","Абсолютный показатель","Х","Х","Х","Х","Х","Х","Х","Х","Х","Х","Х","Х","Х","Х",12,9,8,6,"Х","Х",35]
[null,"Показатель \"Ежегодный объем экспорта субъектов малого и среднего предпринимательства, получивших поддержку центра поддержки экспорта\""," млн. долл. США","Х","Абсолютный показатель","Х","Х","Х","Х","Х","Х","Х","Х","Х","Х","Х","Х","Х","Х",5.4000000000000003E-3,3.8999999999999998E-3,4.0000000000000001E-3,4.3E-3,"Х","Х",1.7599999999999998E-2]
["2.5.1.","Мероприятие \"Предоставление субсидий на создание и (или) развитие Центра \"Мой бизнес\"","Х","Х","Х","2019-2024","Министерство экономического развития Забайкальского края","Х","Х","Х","Х","Х","Х","Х","Х","Х","Х","Х","Х","Х","Х","Х","Х","Х","Х","Х"]
[null,"финансирование за счет краевого бюджета","тыс.рублей","Х","Х","Х","Х","Х","Х","Х","Х","Х","Х","Х","Х","Х","Х",444,930,258.29998000000001,255.75918999999999,260.7,0,0,"Х",{"$f":"SUM(R655:W655)","v":2148.7591699999998}]
[null,"кроме того, финансирование из других источников:","тыс.рублей","Х","Х","Х","Х","Х","Х","Х","Х","Х","Х","Х","Х","Х","Х",{"$f":"R657","v":21756},45572.6,12655.9,12532.2,12773.6,0,"Х","Х"]
[null,"  из федерального бюджета","тыс.рублей","Х","Х","Х","Х","Х","Х","Х","Х","Х","Х","Х","Х","Х","Х",21756,45572.6,12655.9,12532.2,12773.6,0,"Х","Х",{"$f":"SUM(R657:W657)","v":105290.3}]
[null,"Показатель \"Количество субъектов малого и среднего предпринимательства, получивших государственную поддержку\"","ед.","Х","Абсолютный показатель","Х","Х","Х","Х","Х","Х","Х","Х","Х","Х","Х","Х",781,1012,"Х","Х","Х","Х","Х","Х",{"$f":"SUM(M658:W658)","v":1793}]
["2.5.2.","Мероприятие \"Предоставление субсидий на создание и (или) развитие центров поддержки предпринимательства\"","Х","Х","Х",2019,"Министерство экономического развития Забайкальского края","Х","Х","Х","Х","Х","Х","Х","Х","Х","Х","Х","Х","Х","Х","Х","Х","Х","Х","Х"]
[null,"финансирование за счет краевого бюджета","тыс.рублей","Х","Х","Х",null,"Х","Х","Х","Х","Х","Х","Х","Х","Х","Х",280,"Х","Х","Х","Х","Х","Х","Х",{"$f":"SUM(R660:W660)","v":280}]
[null,"кроме того, финансирование из других источников:","тыс.рублей","Х","Х","Х","Х","Х","Х","Х","Х","Х","Х","Х","Х","Х","Х",{"$f":"R662","v":13720},"Х","Х","Х","Х","Х","Х","Х",{"$f":"Z662","v":13720}]
[null,"  из федерального бюджета","тыс.рублей","Х","Х","Х","Х","Х","Х","Х","Х","Х","Х","Х","Х","Х","Х",13720,"Х","Х","Х","Х","Х","Х","Х",{"$f":"SUM(R662:W662)","v":13720}]
[null,"Показатель \"Количество субъектов малого и среднего предпринимательства, получивших государственную поддержку\"","ед.","Х","Абсолютный показатель","Х","Х","Х","Х","Х","Х","Х","Х","Х","Х","Х","Х",781,"Х","Х","Х","Х","Х","Х","Х",{"$f":"SUM(M663:W663)","v":781}]
["2.5.3.","Мероприятие \"Предоставление субсидий на создание и (или) развитие центров инноваций социальной сферы\"","Х","Х","Х",2019,"Министерство экономического развития Забайкальского края","Х","Х","Х","Х","Х","Х","Х","Х","Х","Х","Х","Х","Х","Х","Х","Х","Х","Х","Х"]
[null,"финансирование за счет краевого бюджета","тыс.рублей","Х","Х","Х",null,"Х","Х","Х","Х","Х","Х","Х","Х","Х","Х",230.29795999999999,"Х","Х","Х","Х","Х","Х","Х",{"$f":"SUM(R665:W665)","v":230.29795999999999}]
[null,"кроме того, финансирование из других источников:","тыс.рублей","Х","Х","Х","Х","Х","Х","Х","Х","Х","Х","Х","Х","Х","Х",{"$f":"R667","v":11284.6},"Х","Х","Х","Х","Х","Х","Х",{"$f":"Z667","v":11284.6}]
[null,"  из федерального бюджета","тыс.рублей","Х","Х","Х","Х","Х","Х","Х","Х","Х","Х","Х","Х","Х","Х",11284.6,"Х","Х","Х","Х","Х","Х","Х",{"$f":"SUM(R667:W667)","v":11284.6}]
[null,"Показатель \"Количество субъектов малого и среднего предпринимательства, получивших государственную поддержку\"","ед.","Х","Абсолютный показатель","Х","Х","Х","Х","Х","Х","Х","Х","Х","Х","Х","Х",100,"Х","Х","Х","Х","Х","Х","Х",{"$f":"SUM(M668:W668)","v":100}]
["2.5.4. ","Мероприятие \"Предоставление субсидий на создание и (или) обеспечение деятельности регионального центра инжиниринга для субъектов малого и среднего предпринимательства\"","Х","Х","Х",2019,"Министерство экономического развития Забайкальского края","Х","Х","Х","Х","Х","Х","Х","Х","Х","Х","Х","Х","Х","Х","Х","Х","Х","Х","Х"]
[null,"финансирование за счет краевого бюджета","тыс.рублей","Х","Х","Х",null,"Х","Х","Х","Х","Х","Х","Х","Х","Х","Х",218.08163999999999,"Х","Х","Х","Х","Х","Х","Х",{"$f":"SUM(R670:W670)","v":218.08163999999999}]
[null,"кроме того, финансирование из других источников:","тыс.рублей","Х","Х","Х","Х","Х","Х","Х","Х","Х","Х","Х","Х","Х","Х",{"$f":"R672","v":10686},"Х","Х","Х","Х","Х","Х","Х",{"$f":"Z672","v":10686}]
[null,"  из федерального бюджета","тыс.рублей","Х","Х","Х","Х","Х","Х","Х","Х","Х","Х","Х","Х","Х","Х",10686,"Х","Х","Х","Х","Х","Х","Х",{"$f":"SUM(R672:W672)","v":10686}]
[null,"Показатель \"Количество субъектов малого и среднего предпринимательства, получивших государственную поддержку\"","ед.","Х","Абсолютный показатель","Х","Х","Х","Х","Х","Х","Х","Х","Х","Х","Х","Х",64,"Х","Х","Х","Х","Х","Х","Х",{"$f":"SUM(M673:W673)","v":64}]
["2.5.5.","Мероприятие \"Предоставление субсидий бюджетам монопрофильных муниципальных образований на реализацию муниципальных программ (подпрограмм) монопрофильных муниципальных образований, содержащих мероприятия, направленные на развитие малого и среднего предпринимательства\"","Х","Х","Х","2019-2020","Министерство экономического развития Забайкальского края","Х","Х","Х","Х","Х","Х","Х","Х","Х","Х","Х","Х","Х","Х","Х","Х","Х","Х","Х"]
[null,"финансирование за счет краевого бюджета","тыс.рублей","Х","Х","Х",null,"Х","Х","Х","Х","Х","Х","Х","Х","Х","Х",60,{"$f":"S680+S685","v":42.6},0,0,0,0,"Х","Х",{"$f":"SUM(R675:W675)","v":102.6}]
[null,"кроме того, финансирование из других источников:","тыс.рублей","Х","Х","Х","Х","Х","Х","Х","Х","Х","Х","Х","Х","Х","Х",{"$f":"R677","v":2940},2085.3000000000002,0,0,0,0,"Х","Х","Х"]
[null,"  из федерального бюджета","тыс.рублей","Х","Х","Х","Х","Х","Х","Х","Х","Х","Х","Х","Х","Х","Х",2940,{"$f":"S682+S687","v":2085.3000000000002},0,0,0,0,"Х","Х",{"$f":"SUM(R677:W677)","v":5025.3}]
[null,"Показатель \"Количество субъектов малого и среднего предпринимательства, получивших государственную поддержку\"","ед.","Х","Абсолютный показатель","Х","Х","Х","Х","Х","Х","Х","Х","Х","Х","Х","Х",3,2,"Х","Х","Х","Х","Х","Х",{"$f":"SUM(M678:X678)","v":5}]
[null,"Мероприятие \"Предоставление субсидий бюджетам монопрофильных муниципальных образований на реализацию муниципальных программ (подпрограмм) монопрофильных муниципальных образований, содержащих мероприятия, направленные на развитие малого и среднего предпринимательства\" (городское поселение \"Город Краснокаменск\" муниципального района \"Город Краснокаменск и Краснокаменский район Забайкальского края)","Х","Х","Х","2019-2020","Министерство экономического развития Забайкальского края","Х","Х","Х","Х","Х","Х","Х","Х","Х","Х","Х","Х","Х","Х","Х","Х","Х","Х","Х"]
[null,"финансирование за счет краевого бюджета","тыс.рублей","Х","Х","Х",null,"Х","Х","Х","Х","Х","Х","Х","Х","Х","Х",35.78,12.6,0,0,0,0,"Х","Х",{"$f":"SUM(R680:W680)","v":48.38}]
[null,"кроме того, финансирование из других источников:","тыс.рублей","Х","Х","Х","Х","Х","Х","Х","Х","Х","Х","Х","Х","Х","Х",{"$f":"R682","v":1753.22},615.29999999999995,0,0,0,0,"Х","Х",{"$f":"Z682","v":2368.52}]
[null,"  из федерального бюджета","тыс.рублей","Х","Х","Х","Х","Х","Х","Х","Х","Х","Х","Х","Х","Х","Х",1753.22,615.29999999999995,0,0,0,0,"Х","Х",{"$f":"SUM(R682:W682)","v":2368.52}]
[null,"Показатель \"Количество субъектов малого и среднего предпринимательства, получивших государственную поддержку\"","ед.","Х","Абсолютный показатель","Х","Х","Х","Х","Х","Х","Х","Х","Х","Х","Х","Х",2,1,"Х","Х","Х","Х","Х","Х",{"$f":"SUM(M683:X683)","v":3}]
[null,"Мероприятие \"Предоставление субсидий бюджетам монопрофильных муниципальных образований на реализацию муниципальных программ (подпрограмм) монопрофильных муниципальных образований, содержащих мероприятия, направленные на развитие малого и среднего предпринимательства\" (городское поселение \"Первомайское\" муниципального района \"Шилкинский район\" Забайкальского края)","Х","Х","Х","2019-2020","Министерство экономического развития Забайкальского края","Х","Х","Х","Х","Х","Х","Х","Х","Х","Х","Х","Х","Х","Х","Х","Х","Х","Х","Х"]
[null,"финансирование за счет краевого бюджета","тыс.рублей","Х","Х","Х",null,"Х","Х","Х","Х","Х","Х","Х","Х","Х","Х",24.22,30,0,0,0,0,"Х","Х",{"$f":"SUM(R685:W685)","v":54.22}]
[null,"кроме того, финансирование из других источников:","тыс.рублей","Х","Х","Х","Х","Х","Х","Х","Х","Х","Х","Х","Х","Х","Х",{"$f":"R687","v":1186.78},1470,0,0,0,0,"Х","Х",{"$f":"Z687","v":2656.7799999999997}]
[null,"  из федерального бюджета","тыс.рублей","Х","Х","Х","Х","Х","Х","Х","Х","Х","Х","Х","Х","Х","Х",1186.78,1470,0,0,0,0,"Х","Х",{"$f":"SUM(R687:W687)","v":2656.7799999999997}]
[null,"Показатель \"Количество субъектов малого и среднего предпринимательства, получивших государственную поддержку\"","ед.","Х","Абсолютный показатель","Х","Х","Х","Х","Х","Х","Х","Х","Х","Х","Х","Х",1,1,"Х","Х","Х","Х","Х","Х",{"$f":"SUM(M688:X688)","v":2}]
["2.5.6. ","Мероприятие \"Предоставление субсидий на  развитие государственных микрофинансовых организаций в целях ускоренного развития субъектов малого и среднего предпринимательства в моногородах\"","Х","Х","Х","2019-2020","Министерство экономического развития Забайкальского края","Х","Х","Х","Х","Х","Х","Х","Х","Х","Х","Х","Х","Х","Х","Х","Х","Х","Х","Х"]
[null,"финансирование за счет краевого бюджета","тыс.рублей","Х","Х","Х","Х","Х","Х","Х","Х","Х","Х","Х","Х","Х","Х",616.42245000000003,245.2,0,0,0,0,"Х","Х",{"$f":"SUM(R690:W690)","v":861.62245000000007}]
[null,"кроме того, финансирование из других источников:","тыс.рублей","Х","Х","Х","Х","Х","Х","Х","Х","Х","Х","Х","Х","Х","Х",{"$f":"R692","v":30204.7},12014.3,0,0,0,0,"Х","Х",{"$f":"Z692","v":42219}]
[null,"  из федерального бюджета","тыс.рублей","Х","Х","Х","Х","Х","Х","Х","Х","Х","Х","Х","Х","Х","Х",30204.7,12014.3,0,0,0,0,"Х","Х",{"$f":"SUM(R692:W692)","v":42219}]
[null,"Показатель \"Количество субъектов малого и среднего предпринимательства, получивших государственную поддержку\"","ед.","Х","Абсолютный показатель","Х","Х","Х","Х","Х","Х","Х","Х","Х","Х","Х","Х",12,6,0,0,0,0,"Х","Х",{"$f":"SUM(M693:W693)","v":18}]
["2.5.7.","Мероприятие \"Предоставление субсидий на создание и (или) обеспечение деятельности Центра поддержки экспорта\"","Х","Х","Х","2019-2024","Министерство экономического развития Забайкальского края","Х","Х","Х","Х","Х","Х","Х","Х","Х","Х","Х","Х","Х","Х","Х","Х","Х","Х","Х"]
[null,"финансирование за счет краевого бюджета","тыс.рублей","Х","Х","Х",null,"Х","Х","Х","Х","Х","Х","Х","Х","Х","Х",578.30817000000002,546,626.85715000000005,457.31429000000003,256.2,233.4,0,"Х",{"$f":"SUM(R695:X695)","v":2698.0796100000002}]
[null,"кроме того, финансирование из других источников:","тыс.рублей","Х","Х","Х","Х","Х","Х","Х","Х","Х","Х","Х","Х","Х","Х",{"$f":"R697","v":28337.1},26753.5,30716,22408.400000000001,12551.2,11436.2,0,"Х",132202.4]
[null,"  из федерального бюджета","тыс.рублей","Х","Х","Х","Х","Х","Х","Х","Х","Х","Х","Х","Х","Х","Х",28337.1,26753.5,30716,22408.400000000001,12551.2,11436.2,0,"Х",{"$f":"SUM(R697:W697)","v":132202.4}]
[null,"Показатель \"Количество субъектов малого и среднего предпринимательства, получивших государственную поддержку\"","ед.","Х","Абсолютный показатель","Х","Х","Х","Х","Х","Х","Х","Х","Х","Х","Х","Х",2,20,27,34,41,47,"Х","Х",{"$f":"SUM(M698:W698)","v":171}]
["2.5.8.","Мероприятие \"Предоставление субсидий на создание Промпарка\"","Х","Х","Х","2020-2024","Министерство экономического развития Забайкальского края","Х","Х","Х","Х","Х","Х","Х","Х","Х","Х","Х","Х","Х","Х","Х","Х","Х","Х","Х"]
[null,"финансирование за счет краевого бюджета","тыс.рублей","Х","Х","Х","Х","Х","Х","Х","Х","Х","Х","Х","Х","Х","Х","Х","Х",0,0,0,0,"Х","Х",0]
[null,"кроме того, финансирование из других источников:","тыс.рублей","Х","Х","Х","Х","Х","Х","Х","Х","Х","Х","Х","Х","Х","Х","Х","Х","Х","Х","Х","Х","Х","Х","Х"]
[null,"  из федерального бюджета","тыс.рублей","Х","Х","Х","Х","Х","Х","Х","Х","Х","Х","Х","Х","Х","Х","Х","Х",0,0,0,0,"Х","Х",0]
[null,"Показатель \"Количество субъектов малого и среднего предпринимательства, получивших государственную поддержку\"","ед.","Х","Абсолютный показатель","Х","Х","Х","Х","Х","Х","Х","Х","Х","Х","Х","Х","Х","Х",0,0,0,0,"Х","Х","Х"]
["2.5.9.","Мероприятие \"Предоставление субсидий на создание и (или) развитие гарантийных организаций (фондов поручительств)\"","Х","Х","Х","2021-2024","Министерство экономического развития Забайкальского края","Х","Х","Х","Х","Х","Х","Х","Х","Х","Х","Х","Х","Х","Х","Х","Х","Х","Х","Х"]
[null,"финансирование за счет краевого бюджета","тыс.рублей","Х","Х","Х",null,"Х","Х","Х","Х","Х","Х","Х","Х","Х","Х","Х","Х",420.88368000000003,266.36122999999998,445,445,0,"Х",{"$f":"SUM(R705:W705)","v":1577.2449099999999}]
[null,"кроме того, финансирование из других источников:","тыс.рублей","Х","Х","Х","Х","Х","Х","Х","Х","Х","Х","Х","Х","Х","Х","Х","Х",{"$f":"T707","v":20623.3},{"$f":"U707","v":13051.7},{"$f":"V707","v":21803.9},{"$f":"W707","v":21803.9},{"$f":"X707","v":0},"Х"]
[null,"  из федерального бюджета","Х","Х","Х","Х","Х","Х","Х","Х","Х","Х","Х","Х","Х","Х","Х","Х","Х",20623.3,13051.7,21803.9,21803.9,0,"Х",{"$f":"SUM(R707:W707)","v":77282.8}]
[null,"Показатель \"Количество субъектов малого и среднего предпринимательства, получивших государственную поддержку\"","ед.","Х","Абсолютный показатель","Х","Х","Х","Х","Х","Х","Х","Х","Х","Х","Х","Х","Х","Х",4,3,5,2,"Х","Х",{"$f":"SUM(M708:W708)","v":14}]
["2.5.10.","Мероприятие \"Капитализация региональных микрофинансовых организаций\"","Х","Х","Х","2021-2024","Министерство экономического развития Забайкальского края","Х","Х","Х","Х","Х","Х","Х","Х","Х","Х","Х","Х","Х","Х","Х","Х","Х","Х","Х"]
[null,"финансирование за счет краевого бюджета","тыс.рублей","Х","Х","Х","Х","Х","Х","Х","Х","Х","Х","Х","Х","Х","Х","Х","Х",0,0,0,0,0,"Х",{"$f":"SUM(R710:W710)","v":0}]
[null,"кроме того, финансирование из других источников:","тыс.рублей","Х","Х","Х","Х","Х","Х","Х","Х","Х","Х","Х","Х","Х","Х","Х","Х",{"$f":"T712","v":0},0,0,0,0,"Х",0]
[null,"  из федерального бюджета","тыс.рублей","Х","Х","Х","Х","Х","Х","Х","Х","Х","Х","Х","Х","Х","Х","Х","Х",0,0,0,0,0,"Х",{"$f":"SUM(R712:W712)","v":0}]
[null,"Показатель \"Количество субъектов малого и среднего предпринимательства, получивших государственную поддержку\"","ед.","Х","Абсолютный показатель","Х","Х","Х","Х","Х","Х","Х","Х","Х","Х","Х","Х","Х","Х","Х","Х","Х","Х","Х","Х",{"$f":"SUM(M713:W713)","v":0}]
["2.6.","Основное мероприятие \"Региональный проект \"Популяризация предпринимательства\"","Х",1,"Х","2019-2020","Министерство экономического развития Забайкальского края","Х","Х","Х","Х","Х","Х","Х","Х","Х","Х","Х","Х","Х","Х","Х","Х","Х","Х","Х"]
[null,"финансирование за счет краевого бюджета","тыс.рублей","Х","Х","Х","Х","ВСЕГО","Х","Х","Х","Х","Х","Х","Х","Х","Х",{"$f":"R716+R718","v":184.71634},{"$f":"S716+S717+S718","v":186.9},0,0,0,0,0,"Х",{"$f":"SUM(R715:W715)","v":371.61634000000004}]
[{"$nulls":7},"0412","032I855270",812,"Х","Х","Х","Х","Х","Х","Х",0,0,0,0,0,0,0,"Х",{"$f":"SUM(R716:W716)","v":0}]
[{"$nulls":7},"Х","032I855270",813,"Х","Х","Х","Х","Х","Х","Х",0,0,0,0,0,0,0,"Х",{"$f":"SUM(R717:W717)","v":0}]
[{"$nulls":7},"0412","032I855270",633,"Х","Х","Х","Х","Х","Х","Х",{"$f":"R729","v":184.71634},{"$f":"S729","v":186.9},0,0,0,0,0,"Х",{"$f":"SUM(R718:W718)","v":371.61634000000004}]
[null,"кроме того, финансирование из других источников:","тыс.рублей","Х","Х","Х","Х","Х","Х","Х","Х","Х","Х","Х","Х","Х","Х",{"$f":"R720","v":9051.1},9156.5,0,0,0,0,0,"Х",18207.599999999999]
[null," - из федерального бюджета","тыс.рублей","Х","Х","Х","Х","ВСЕГО","Х","Х","Х","Х","Х","Х","Х","Х","Х",{"$f":"R723","v":9051.1},{"$f":"S721+S722+S723","v":9156.5},0,0,0,0,0,"Х",{"$f":"SUM(R720:W720)","v":18207.599999999999}]
[{"$nulls":7},"0412","032I855270",812,"Х","Х","Х","Х","Х","Х","Х","Х",0,0,0,0,0,0,"Х",{"$f":"SUM(S721:W721)","v":0}]
[{"$nulls":8},"032I855270",813,"Х","Х","Х","Х","Х","Х","Х",0,0,0,0,0,0,0,"Х",{"$f":"SUM(R722:W722)","v":0}]
[{"$nulls":7},"0412","032I855270",633,"Х","Х","Х","Х","Х","Х","Х",{"$f":"R731","v":9051.1},{"$f":"S731","v":9156.5},0,0,0,0,0,"Х",{"$f":"SUM(R723:W723)","v":18207.599999999999}]
[null,"Показатель \"Количество физических лиц – участников регионального проекта, занятых в сфере малого и среднего предпринимательства, по итогам участия в региональном проекте\"","тыс. человек, нарастающим итогом","Х","Х","Х","Х","Х","Х","Х","Х","Х","Х","Х","Х","Х","Х",0.23400000000000001,0.93700000000000006,"Х","Х","Х","Х","Х","Х",{"$f":"S724","v":0.93700000000000006}]
[null,"Показатель \"Количество вновь созданных субъектов МСП участниками проекта\"","тыс. единиц, нарастающим итогом","Х","Х","Х","Х","Х","Х","Х","Х","Х","Х","Х","Х","Х","Х",6.9000000000000006E-2,0.17299999999999999,"Х","Х","Х","Х","Х","Х",{"$f":"S725","v":0.17299999999999999}]
[null,"Показатель \"Количество обученных основам ведения бизнеса, финансовой грамотности и иным навыкам предпринимательской деятельности\"","тыс. человек, нарастающим итогом","Х","Х","Х","Х","Х","Х","Х","Х","Х","Х","Х","Х","Х","Х",0.70299999999999996,1.4370000000000001,"Х","Х","Х","Х","Х","Х",{"$f":"S726","v":1.4370000000000001}]
[null,"Показатель \"Количество физических лиц – участников регионального проекта\"","тыс. человек, нарастающим итогом","Х","Х","Х","Х","Х","Х","Х","Х","Х","Х","Х","Х","Х","Х",3.8420000000000001,7.915,"Х","Х","Х","Х","Х","Х",{"$f":"S727","v":7.915}]
["2.6.1.","Мероприятие \"Предоставление субсидий на реализацию   комплексных программ по вовлечению в предпринимательскую деятельность и содействию созданию собственного бизнеса для каждой целевой группы, включая поддержку создания сообществ начинающих предпринимателей и развитие института наставничества\"","Х","Х","Х","2019-2020","Министерство экономического развития Забайкальского края","Х","Х","Х","Х","Х","Х","Х","Х","Х","Х","Х","Х","Х","Х","Х","Х","Х","Х","Х"]
[null,"финансирование за счет краевого бюджета","тыс.рублей","Х","Х","Х","Х","Х","Х","Х","Х","Х","Х","Х","Х","Х","Х",184.71634,186.9,0,0,0,0,"Х","Х",{"$f":"SUM(R729:W729)","v":371.61634000000004}]
[null,"кроме того, финансирование из других источников:","тыс.рублей","Х","Х","Х","Х","Х","Х","Х","Х","Х","Х","Х","Х","Х","Х",{"$f":"R731","v":9051.1},9156.5,0,0,0,0,"Х","Х",{"$f":"Z731","v":18207.599999999999}]
[null," - из федерального бюджета","тыс.рублей","Х","Х","Х","Х","Х","Х","Х","Х","Х","Х","Х","Х","Х","Х",9051.1,9156.5,0,0,0,0,"Х","Х",{"$f":"SUM(R731:W731)","v":18207.599999999999}]
[null,"Показатель \"Количество физических лиц – участников регионального проекта, занятых в сфере малого и среднего предпринимательства, по итогам участия в региональном проекте\"","тыс. человек, нарастающим итогом","Х","Х","Х","Х","Х","Х","Х","Х","Х","Х","Х","Х","Х","Х",0.23400000000000001,0.93700000000000006,"Х","Х","Х","Х","Х","Х",{"$f":"S732","v":0.93700000000000006}]
[null,"Показатель \"Количество вновь созданных субъектов МСП участниками проекта\"","тыс. единиц, нарастающим итогом","Х","Х","Х","Х","Х","Х","Х","Х","Х","Х","Х","Х","Х","Х",6.9000000000000006E-2,0.17299999999999999,"Х","Х","Х","Х","Х","Х",{"$f":"S733","v":0.17299999999999999}]
[null,"Показатель \"Количество обученных основам ведения бизнеса, финансовой грамотности и иным навыкам предпринимательской деятельности\"","тыс. человек, нарастающим итогом","Х","Х","Х","Х","Х","Х","Х","Х","Х","Х","Х","Х","Х","Х",0.70299999999999996,1.4370000000000001,"Х","Х","Х","Х","Х","Х",{"$f":"S734","v":1.4370000000000001}]
[null,"Показатель \"Количество физических лиц – участников регионального проекта\"","тыс. человек, нарастающим итогом","Х","Х","Х","Х","Х","Х","Х","Х","Х","Х","Х","Х","Х","Х",3.8420000000000001,7.915,"Х","Х","Х","Х","Х","Х",{"$f":"S735","v":7.915}]
["2.7.","Основное мероприятие \"Региональный проект \"Создание условий для легкого старта и комфортного ведения бизнеса\"","Х",1,"Х","2021-2024","Министерство экономического развития Забайкальского края","Х","Х","Х","Х","Х","Х","Х","Х","Х","Х","Х","Х","Х","Х","Х","Х","Х","Х","Х"]
[null,"финансирование за счет краевого бюджета","тыс.рублей","Х","Х","Х","Х","ВСЕГО","Х","Х","Х","Х","Х","Х","Х","Х","Х","Х","Х",{"$f":"T738+T739","v":753.11020999999994},{"$f":"U738+U739","v":829.50817999999992},{"$f":"V738+V739","v":978.3},{"$f":"W738+W739","v":1036.5},0,"Х",{"$f":"SUM(R737:W737)","v":3597.4183899999998}]
[{"$nulls":7},"0412","032I455270",633,"Х","Х","Х","Х","Х","Х","Х","Х","Х",{"$f":"T751","v":168.07142999999999},{"$f":"U751","v":187.12654000000001},{"$f":"V751","v":336.7},{"$f":"W751","v":343.3},0,"Х",{"$f":"SUM(R738:W738)","v":1035.1979699999999}]
[{"$nulls":7},"0412","032I455270",813,"Х","Х","Х","Х","Х","Х","Х","Х","Х",{"$f":"T756","v":585.03877999999997},{"$f":"U761","v":642.38163999999995},{"$f":"V761","v":641.6},{"$f":"W761","v":693.2},0,"Х",{"$f":"SUM(R739:W739)","v":2562.2204199999996}]
[null,"кроме того, финансирование из других источников:","тыс.рублей","Х","Х","Х","Х","Х","Х","Х","Х","Х","Х","Х","Х","Х","Х","Х","Х",{"$f":"T741","v":36902.400000000001},40645.9,47929.2,50785.399999999994,0,"Х",176262.9]
[null,"  из федерального бюджета","тыс.рублей","Х","Х","Х","Х","ВСЕГО","Х","Х","Х","Х","Х","Х","Х","Х","Х","Х","Х",{"$f":"T742+T743","v":36902.400000000001},{"$f":"U742+U743","v":40645.9},{"$f":"V742+V743","v":47929.2},{"$f":"W742+W743","v":50785.399999999994},0,"Х",{"$f":"SUM(R741:W741)","v":176262.9}]
[{"$nulls":7},"0412","032I455270",633,"Х","Х","Х","Х","Х","Х","Х","Х","Х",{"$f":"T753","v":8235.5},{"$f":"U753","v":9169.2000000000007},{"$f":"V753","v":16495.2},{"$f":"W753","v":16821.7},0,"Х",{"$f":"SUM(R742:W742)","v":50721.600000000006}]
[{"$nulls":7},"0412","032I455270",813,"Х","Х","Х","Х","Х","Х","Х","Х","Х",{"$f":"T758","v":28666.9},{"$f":"U763","v":31476.7},{"$f":"V763","v":31434},{"$f":"W763","v":33963.699999999997},0,"Х",{"$f":"SUM(R743:W743)","v":125541.3}]
[null,"Показатель \"Количество индивидуальных предпринимателей, применяющих патентную систему налогообложения\"","тыс. единиц","Х","Абсолютный показатель","Х","Х","Х","Х","Х","Х","Х","Х","Х","Х","Х","Х","Х","Х",5.5110000000000001,5.7590000000000003,6.0179999999999998,6.2889999999999997,"Х","Х",{"$f":"W744","v":6.2889999999999997}]
[null,"Показатель \"Количество действующих микрозаймов, предоставленных начинающим предпринимателям\"","единица ","Х","Абсолютный показатель","Х","Х","Х","Х","Х","Х","Х","Х","Х","Х","Х","Х","Х","Х",73,79,83,88,"Х","Х",{"$f":"W745","v":88}]
[null,"Показатель \"Объем финансовой поддержки, предоставленной начинающим предпринимателям (кредиты, лизинг, займы), обеспеченной поручительствами региональных гарантийных организаций","млрд. рублей","Х","Абсолютный показатель","Х","Х","Х","Х","Х","Х","Х","Х","Х","Х","Х","Х","Х","Х",4.2099999999999999E-2,2.7699999999999999E-2,2.8899999999999999E-2,3.0200000000000001E-2,"Х","Х",0.26040000000000002]
[null,"Показатель \"Количество уникальных социальных предприятий, включенных в реестр социального предпринимательства, в том числе получивших комплексные услуги и (или) финансовую поддержку в виде грантов\"","единица ","Х","Абсолютный показатель","Х","Х","Х","Х","Х","Х","Х","Х","Х","Х","Х","Х","Х","Х",65,"Х","Х","Х","Х","Х",{"$f":"W747","v":"Х"}]
[null,"Показатель \"Количество уникальных социальных предприятий, включенных в реестр социальных предпринимателей, и количество субъектов малого и среднего предпринимательства, созданных физическими лицами в возрасте до 25 лет включительно, получивших комплекс услуг и (или) финансовую поддержку в виде грантов, накопленным итогом\"","единица","Х","Абсолютный показатель","Х","Х","Х","Х","Х","Х","Х","Х","Х","Х","Х","Х","Х","Х","Х",63,126,194,"Х","Х",194]
[null,"Показатель \"Количество уникальных граждан, желающих вести бизнес, начинающих и действующих предпринимателей, получивших услуги\"","тыс. единиц","Х","Абсолютный показатель","Х","Х","Х","Х","Х","Х","Х","Х","Х","Х","Х","Х","Х","Х",1.613,1.97,2.76,3.113,"Х","Х",{"$f":"W749","v":3.113}]
["2.7.1.","Мероприятие \"Предоставление субсидий на создание и (или) развитие Центра «Мой бизнес»\"","Х","Х","Х","2021-2024","Министерство экономи-ческого развития Забайкальского края","Х","Х","Х","Х","Х","Х","Х","Х","Х","Х","Х","Х","Х","Х","Х","Х","Х","Х","Х"]
[null,"финансирование за счет краевого бюджета","тыс.рублей","Х","Х","Х","Х","Х","Х","Х","Х","Х","Х","Х","Х","Х","Х","Х","Х",168.07142999999999,187.12654000000001,336.7,343.3,"Х","Х",{"$f":"SUM(R751:W751)","v":1035.1979699999999}]
[null,"кроме того, финансирование из других источников:","тыс.рублей","Х","Х","Х","Х","Х","Х","Х","Х","Х","Х","Х","Х","Х","Х","Х","Х",{"$f":"T753","v":8235.5},{"$f":"U753","v":9169.2000000000007},{"$f":"V753","v":16495.2},{"$f":"W753","v":16821.7},"Х","Х"]
[" ","- из федерального бюджета","тыс.рублей","Х","Х","Х","Х","Х","Х","Х","Х","Х","Х","Х","Х","Х","Х","Х","Х",8235.5,9169.2000000000007,16495.2,16821.7,"Х","Х",{"$f":"SUM(R753:W753)","v":50721.600000000006}]
[null,"Показатель \"Количество субъектов малого и среднего предпринимательства, получивших государственную поддержку\"","единица","Х","Абсолютный показа-тель","Х","Х","Х","Х","Х","Х","Х","Х","Х","Х","Х","Х","Х","Х",1.613,1.97,2.76,3.113,"Х","Х",{"$f":"W754","v":3.113}]
["2.7.2.","Мероприятие \"Предоставление социальным предприятиям, включенным в реестр социального предпринимательства, финансовой поддержки в виде грантов\"","Х","Х","Х",2021,"Министерство экономического развития Забайкальского края","Х","Х","Х","Х","Х","Х","Х","Х","Х","Х","Х","Х","Х","Х","Х","Х","Х","Х","Х"]
[null,"финансирование за счет краевого бюджета","тыс.рублей","Х","Х","Х","Х","Х","Х","Х","Х","Х","Х","Х","Х","Х","Х","Х","Х",585.03877999999997,"Х","Х","Х","Х","Х",{"$f":"SUM(R756:W756)","v":585.03877999999997}]
[null,"кроме того, финансирование из других источников:","тыс.рублей","Х","Х","Х","Х","Х","Х","Х","Х","Х","Х","Х","Х","Х","Х","Х","Х",{"$f":"T758","v":28666.9},"Х","Х","Х","Х","Х",{"$f":"Z758","v":28666.9}]
[null,"  из федерального бюджета","тыс.рублей","Х","Х","Х","Х","Х","Х","Х","Х","Х","Х","Х","Х","Х","Х","Х","Х",28666.9,"Х","Х","Х","Х","Х",{"$f":"SUM(R758:W758)","v":28666.9}]
[null,"Показатель \"Количество субъектов малого и среднего предпринимательства, получивших государственную поддержку\"","тыс. единиц","Х","Абсолютный показатель","%","Х","Х","Х","Х","Х","Х","Х","Х","Х","Х","Х","Х","Х",65,"Х","Х","Х","Х","Х",{"$f":"SUM(M759:W759)","v":65}]
["2.7.3.","Мероприятие \"Предоставление субъектам малого и среднего предпринимательства, включенным в реестр социальных предпринимателей, или субъектам малого и среднего предпринимательства, созданным физическими лица в возрасте до 25 лет включительно, финансовой поддержки в виде грантов в форме субсидий\"","Х","Х","Х","2022-2024","Министерство экономического развития Забайкальского края","Х","Х","Х","Х","Х","Х","Х","Х","Х","Х","Х","Х","Х","Х","Х","Х","Х","Х","Х"]
[null,"финансирование за счет краевого бюджета","тыс.рублей","Х","Х","Х","Х","Х","Х","Х","Х","Х","Х","Х","Х","Х","Х","Х","Х","Х",642.38163999999995,641.6,693.2,"Х","Х",{"$f":"SUM(R761:W761)","v":1977.18164}]
[null,"кроме того, финансирование из других источников:","тыс.рублей","Х","Х","Х","Х","Х","Х","Х","Х","Х","Х","Х","Х","Х","Х","Х","Х",null,{"$f":"U763","v":31476.7},{"$f":"V763","v":31434},{"$f":"W763","v":33963.699999999997},"Х","Х",{"$f":"Z763","v":96874.4}]
[null,"из федерального бюджета","тыс.рублей","Х","Х","Х","Х","Х","Х","Х","Х","Х","Х","Х","Х","Х","Х","Х","Х","Х",31476.7,31434,33963.699999999997,"Х","Х",{"$f":"SUM(R763:W763)","v":96874.4}]
[null,"Показатель \"Количество субъектов малого и среднего предпринимательства, получивших государственную поддержку, накопленным итогом\"","единица","Х","Абсолютный показатель","%","Х","Х","Х","Х","Х","Х","Х","Х","Х","Х","Х","Х","Х","Х",63,126,194,"Х","Х",194]
["2.8.","Основное мероприятие \"Региональный проект \"Создание благоприятных условий для осуществления деятельности самозанятыми гражданами\"","Х",1,"Х","2021-2024","Министерство экономического развития Забайкальского края","Х","Х","Х","Х","Х","Х","Х","Х","Х","Х","Х","Х","Х","Х","Х","Х","Х","Х","Х"]
[null,"финансирование за счет краевого бюджета","тыс.рублей","Х","Х","Х","Х","ВСЕГО","Х","Х","Х","Х","Х","Х","Х","Х","Х","Х","Х",{"$f":"T767","v":79.448980000000006},{"$f":"U767","v":89.408169999999998},{"$f":"V767","v":135.69999999999999},{"$f":"W767","v":135.69999999999999},0,"Х",{"$f":"SUM(M766:W766)","v":440.25714999999997}]
[{"$nulls":7},"0412","032I255270",633,"Х","Х","Х","Х","Х","Х","Х","Х","Х",{"$f":"T775","v":79.448980000000006},{"$f":"U775","v":89.408169999999998},{"$f":"V775","v":135.69999999999999},{"$f":"W775","v":135.69999999999999},0,"Х",{"$f":"SUM(M767:W767)","v":440.25714999999997}]
[null,"кроме того, финансирование из других источников:","тыс.рублей","Х","Х","Х","Х","Х","Х","Х","Х","Х","Х","Х","Х","Х","Х","Х","Х",{"$f":"T769","v":3893},4381,6649.3,6649.3,0,"Х",21572.6]
[null,"  из федерального бюджета","тыс.рублей","Х","Х","Х","Х","ВСЕГО","Х","Х","Х","Х","Х","Х","Х","Х","Х","Х","Х",{"$f":"T770","v":3893},{"$f":"U770","v":4381},{"$f":"V770","v":6649.3},{"$f":"W770","v":6649.3},0,"Х",{"$f":"SUM(M769:W769)","v":21572.6}]
[{"$nulls":7},"0412","032I255270",633,"Х","Х","Х","Х","Х","Х","Х","Х","Х",{"$f":"T777","v":3893},{"$f":"U777","v":4381},{"$f":"V777","v":6649.3},{"$f":"W777","v":6649.3},0,"Х",{"$f":"SUM(M770:W770)","v":21572.6}]
[null,"Показатель \"Количество самозанятых граждан, зафиксирововавших свой статус и  применяющих специальный налоговый режим \"Налог на профессиональный доход\", накопленным итогом\"","тыс. человек","Х","Абсолютный показатель","Х","Х","Х","Х","Х","Х","Х","Х","Х","Х","Х","Х","Х","Х",5.1689999999999996,6.3140000000000001,7.4580000000000002,8.0289999999999999,"Х","Х",{"$f":"W771","v":8.0289999999999999}]
[null,"Показатель  \"Объем выданных микрозаймов самозанятым гражданам по льготной ставке государственными микрофинансовыми организациями, ежегодно\"","млн. рублей","Х","Абсолютный показатель","Х","Х","Х","Х","Х","Х","Х","Х","Х","Х","Х","Х","Х","Х",3.8,0.9,1,1,"Х","Х",{"$f":"SUM(M772:W772)","v":6.7}]
[null,"Показатель  \"Количество самозанятых, получивших услуги, в том числе, прошедших программы обучения\"","тыс. человек","Х","Абсолютный показатель","Х","Х","Х","Х","Х","Х","Х","Х","Х","Х","Х","Х","Х","Х",0.127,0.224,0.35799999999999998,0.46600000000000003,"Х","Х",{"$f":"W773","v":0.46600000000000003}]
["2.8.1.","Мероприятие \"Предоставление субсидий на создание и (или) развитие Центра «Мой бизнес»\"","Х","Х","Х","2021-2024","Министерство экономического развития Забайкальского края","Х","Х","Х","Х","Х","Х","Х","Х","Х","Х","Х","Х","Х","Х","Х","Х","Х","Х","Х"]
[null,"финансирование за счет краевого бюджета","тыс.рублей","Х","Х","Х","Х","Х","Х","Х","Х","Х","Х","Х","Х","Х","Х","Х","Х",79.448980000000006,89.408169999999998,135.69999999999999,135.69999999999999,"Х","Х",{"$f":"SUM(M775:W775)","v":440.25714999999997}]
[null,"кроме того, финансирование из других источников:","тыс.рублей","Х","Х","Х","Х","Х","Х","Х","Х","Х","Х","Х","Х","Х","Х","Х","Х",{"$f":"T777","v":3893},{"$f":"U777","v":4381},{"$f":"V777","v":6649.3},{"$f":"W777","v":6649.3},"Х","Х",{"$f":"Z777","v":21572.6}]
[null,"  из федерального бюджета","тыс.рублей","Х","Х","Х","Х","Х","Х","Х","Х","Х","Х","Х","Х","Х","Х","Х","Х",3893,4381,6649.3,6649.3,"Х","Х",{"$f":"SUM(M777:W777)","v":21572.6}]
[null,"Показатель \"Количество самозанятых граждан, получивших государственную поддержку\"","тыс. человек","Х","Абсолютный показатель","Х","Х","Х","Х","Х","Х","Х","Х","Х","Х","Х","Х","Х","Х","Х","Х","Х","Х","Х","Х","Х"]
[null,"Задача \"Стимулирование и государственная поддержка инновационной деятельности\"","Х","Х","Х","Х","Х","Х","Х","Х","Х","Х","Х","Х","Х","Х","Х","Х","Х","Х","Х","Х","Х","Х","Х","Х"]
["3.","Подпрограмма \"Стимулирование и государственная поддержка инновационной деятельности в Забайкальском крае\"","Х",1,"Х","2014-2025","Министерство экономического развития Забайкальского края, Комитет планирования и развития Забайкальского края, исполнительные органы  Забайкальского края","Х","Х","Х","Х","Х","Х","Х","Х","Х","Х","Х","Х","Х","Х","Х","Х","Х","Х","Х"]
[null,"финансирование за счет краевого бюджета","тыс.рублей","Х","Х","Х","Министерство экономического развития Забайкальского края, Департамент государственного имущества и земельных отношений Забайкальского края","Х","Х","Х","Х","Х",0,0,15,{"$f":"P815","v":15},{"$f":"Q824","v":18000},{"$f":"R790+R794+R805+R815+R824","v":0},{"$f":"S790+S794+S815+S824","v":0},0,0,0,0,0,"Х",{"$f":"SUM(M781:W781)","v":18030}]
[{"$nulls":6},"Комитет планирования и развития Забайкальского края","Х","Х","Х","Х","Х","Х","Х","Х","Х","Х","Х",0,0,0,0,0,0,0,{"$f":"SUM(M782:W782)","v":0}]
[null,"кроме того, финансирование из других источников:","тыс.рублей","Х","Х","Х","Х","Х","Х","Х","Х","Х",{"$f":"SUM(M784:M786)","v":0},0,0,0,0,0,0,0,0,0,0,0,"Х",0]
[null," - из федерального бюджета","тыс.рублей","Х","Х","Х","Х","Х","Х","Х","Х","Х",0,0,0,0,0,0,0,0,0,0,0,0,"Х","Х"]
[null," - из местных бюджетов","тыс.рублей","Х","Х","Х","Х","Х","Х","Х","Х","Х",0,0,0,0,0,0,0,0,0,0,0,0,"Х","Х"]
[null," - из внебюджетных источников","тыс.рублей","Х","Х","Х","Х","Х","Х","Х","Х","Х",0,0,0,0,0,0,0,0,0,0,0,0,"Х","Х"]
[null,"Показатель \"Удельный вес инновационных товаров, работ, услуг в общем объеме отгруженных товаров, выполненных работ, услуг\"","%","Х","ТРУин / ТРУ *100, где\nТРУин - объем инновационных товаров, работ, услуг\nТРУ - объем всех товаров, работ, услуг по обследованным организациям","Х","Министерство экономического развития Забайкальского края","Х","Х","Х",13.7,6.3,7.3,8.9,9,6,6.3,7,"Х","Х","Х","Х","Х","Х","Х","Х"]
[{"$nulls":5},"Х","Комитет планирования и развития Забайкальского края","Х","Х","Х","Х","Х","Х","Х","Х","Х","Х","Х",7.2,7.5,7.7,7.9,8,8,"Х",{"$f":"W788","v":8}]
["3.1.","Основное мероприятие \"Содействие формированию внутреннего спроса на инновации\"","Х",1,"Х","2014-2025","Министерство экономического развития Забайкальского края, Комитет планирования и развития Забайкальского края","Х","Х","Х","Х","Х","Х","Х","Х","Х","Х","Х","Х","Х","Х","Х","Х","Х","Х","Х"]
[null,"финансирование за счет краевого бюджета","тыс.рублей","Х","Х","Х","Х","Х","Х","Х","Х","Х","Х","Х","Х","Х","Х",0,0,0,0,0,0,0,"Х","Х"]
[null,"Показатель \"Доля организаций, осуществляющих инновационную деятельность, в общем количестве обследованных организаций (инновационная активность организаций)\" ","%","Х","Оин / О *100, где\nОин - количество организаций, осуществляющих инновационную деятельность\nО - общее количество обследованных организаций","Х","Министерство экономического развития Забайкальского края","Х","Х","Х",2.2999999999999998,2.2000000000000002,5.3,3,4.5,6,5,5,"Х","Х","Х","Х","Х","Х","Х","Х"]
[{"$nulls":6},"Комитет планирования и развития Забайкальского края","Х","Х","Х","Х","Х","Х","Х","Х","Х","Х","Х",5.2,5.3,5.3,5.3,5.3,5.3,"Х",{"$f":"W792","v":5.3}]
["3.2.","Основное мероприятие \"Развитие инфраструктуры поддержки инноваций в Забайкальском крае, обеспечивающей запуск и работу \"инновационного лифта\"","Х",1,"Х","2014-2025","Министерство экономического развития Забайкальского края, Комитет планирования и развития Забайкальского края","Х","Х","Х","Х","Х","Х","Х","Х","Х","Х","Х","Х","Х","Х","Х","Х","Х","Х","Х"]
[null,"финансирование за счет краевого бюджета","тыс.рублей","Х","Х","Х","Х","Х","Х","Х","Х","Х",0,0,0,0,0,{"$f":"R800","v":0},{"$f":"S801","v":0},0,0,0,0,0,"Х",{"$f":"SUM(M794:W794)","v":0}]
[null,"Показатель \"Количество организаций, занимающихся поддержкой инновационного развития, с которыми сотрудничают органы государственной власти Забайкальского края, и организации края\"","ед.","Х","Абсолютный показатель","Х","Министерство экономического развития Забайкальского края","Х","Х","Х",2,2,2,3,4,4,4,4,"Х","Х","Х","Х","Х","Х","Х","Х"]
[{"$nulls":6},"Комитет планирования и развития Забайкальского края","Х","Х","Х","Х","Х","Х","Х","Х","Х","Х","Х",4,4,4,4,4,4,"Х",4]
[null,"Показатель \"Количество проектов, программ федеральных институтов инновационного развития, реализуемых в крае\"","ед.","Х","Абсолютный показатель","Х","Министерство экономического развития Забайкальского края","Х","Х","Х",1,1,1,2,2,2,2,2,"Х","Х","Х","Х","Х","Х","Х","Х"]
[{"$nulls":6},"Комитет планирования и развития Забайкальского края","Х","Х","Х","Х","Х","Х","Х","Х","Х","Х","Х",2,3,3,3,3,3,"Х",3]
["3.2.1.","Мероприятие \"Государственная поддержка организаций инновационной инфраструктуры\"","Х",null,"Х","2014-2025","Министерство экономического развития Забайкальского края, Комитет планирования и развития Забайкальского края","Х","Х","Х","Х","Х","Х","Х","Х","Х","Х","Х","Х","Х","Х","Х","Х","Х","Х","Х"]
[null,"финансирование за счет краевого бюджета","тыс.рублей","Х","Х","Х","Министерство экономического развития Забайкальского края",{"$nulls":5},0,0,0,0,0,0,"Х","Х","Х","Х","Х","Х","Х",{"$f":"SUM(M800:R800)","v":0}]
[{"$nulls":6},"Комитет планирования и развития Забайкальского края","Х","Х","Х","Х","Х","Х","Х","Х","Х","Х","Х",0,0,0,0,0,0,"Х",{"$f":"SUM(S801:W801)","v":0}]
[null,"Показатель \"Количество субъектов инновационной деятельности, получивших государственную поддержку\" \n","ед.","Х","Абсолютный показатель","2014-2025","Министерство экономического развития Забайкальского края","Х","Х","Х","Х",0,0,0,0,0,0,0,"Х","Х","Х","Х","Х","Х","Х",{"$f":"SUM(M802:R802)","v":0}]
[{"$nulls":6},"Комитет планирования и развития Забайкальского края","Х","Х","Х","Х","Х","Х","Х","Х","Х","Х","Х",0,0,0,0,0,0,"Х",{"$f":"SUM(S803:W803)","v":0}]
["3.3.","Основное мероприятие \"Создание условий для улучшения взаимодействия научных и производственных организаций\"","Х",1,"Х","2014-2025","Министерство экономического развития Забайкальского края, Комитет планирования и развития Забайкальского края, Министерство образования, науки и молодежной политики Забайкальского края","Х","Х","Х","Х","Х","Х","Х","Х","Х","Х","Х","Х","Х","Х","Х","Х","Х","Х","Х"]
[null,"финансирование за счет краевого бюджета","тыс.рублей","Х","Х","Х","Министерство экономического развития Забайкальского края","Х","Х","Х","Х","Х","Х","Х","Х","Х","Х",{"$f":"R810","v":0},"Х","Х","Х","Х","Х","Х","Х","Х"]
[{"$nulls":6},"Комитет планирования и развития Забайкальского края","Х","Х","Х","Х","Х","Х","Х","Х","Х","Х","Х",0,0,0,0,0,0,"Х",{"$f":"SUM(S806:W806)","v":0}]
[null,"Показатель \"Количество разработок вузов и НИИ Забайкальского края, внедренных в производство\"","ед.","Х","Абсолютный показатель","Х","Министерство экономического развития Забайкальского края","Х","Х","Х","Х","Х",0,1,2,2,2,2,"Х","Х","Х","Х","Х","Х","Х","Х"]
[{"$nulls":6},"Комитет планирования и развития Забайкальского края","Х","Х","Х","Х","Х","Х","Х","Х","Х","Х","Х",2,2,2,2,2,"Х","Х","Х"]
["3.3.1.","Мероприятие \"Стимулирование создания малых инновационных предприятий при вузах и коммерциализации научных разработок\"","Х",null,"Х","2014-2025","Министерство экономического развития Забайкальского края, Комитет планирования и развития Забайкальского края, Министерство образования, науки и молодежной политики Забайкальского края","Х","Х","Х","Х","Х","Х","Х","Х","Х","Х","Х","Х","Х","Х","Х","Х","Х","Х","Х"]
[null,"финансирование за счет краевого бюджета","тыс.рублей","Х","Х","Х","Министерство экономического развития Забайкальского края","Х","Х","Х","Х","Х","Х","Х","Х","Х","Х",0,"Х","Х","Х","Х","Х","Х","Х","Х"]
[{"$nulls":6},"Комитет планирования и развития Забайкальского края","Х","Х","Х","Х","Х","Х","Х","Х","Х","Х","Х",0,0,0,0,0,0,"Х",{"$f":"SUM(S811:W811)","v":0}]
[null,"Показатель \"Количество созданных в крае малых инновационных предприятий при вузах\" (нарастающим итогом)","ед.","Х","Абсолютный показатель","Х","Министерство экономического развития Забайкальского края","Х","Х","Х","Х","Х",4,4,5,4,3,3,"Х","Х","Х","Х","Х","Х","Х","Х"]
[{"$nulls":6},"Комитет планирования и развития Забайкальского края","Х","Х","Х","Х","Х","Х","Х","Х","Х","Х","Х",4,4,4,4,4,4,"Х",{"$f":"W813","v":4}]
["3.4.","Основное мероприятие «Создание Фонда развития промышленности Забайкальского края» ","Х","Х","Х","2016-2018","Департамент государственного имущества и земельных отношений Забайкальского края; Министерство экономического развития Забайкальского края","Х","Х","Х","Х","Х","Х","Х","Х","Х","Х","Х","Х","Х","Х","Х","Х","Х","Х","Х"]
[null,"финансирование за счет краевого бюджета","тыс.рублей","Х","Х","Х","Х","Х","Х","Х","Х","Х","Х","Х",15,{"$f":"P821","v":15},0,{"$f":"R820+R821","v":0},0,0,0,0,0,0,"Х",{"$f":"SUM(O815:W815)","v":30}]
[null,"кроме того, финансирование из других источников:","тыс.рублей","Х","Х","Х","Х","Х","Х","Х","Х","Х","Х","Х",0,0,0,"Х","Х","Х","Х","Х","Х","Х","Х",0]
[null," - из федерального бюджета","тыс. рублей","Х","Х","Х","Х","Х","Х","Х","Х","Х","Х","Х",0,0,0,"Х","Х","Х","Х","Х","Х","Х","Х",0]
[null,"Показатель \"Количество субъектов предпринимательства, осуществляющих деятельность в сфере промышленности Забайкальского края,  получивших финансовую поддержку Фонда\"","чел.","Х","Абсолютный показатель","Х","Х","Х","Х","Х","Х","Х","Х","Х",0,0,1,"Х","Х","Х","Х","Х","Х","Х","Х",{"$f":"SUM(M818:W818)","v":1}]
["3.4.1.","Мероприятие «Создание Фонда развития промышленности Забайкальского края» ","Х","Х","Х","2016-2018","Департамент государственного имущества и земельных отношений Забайкальского края; Министерство экономического развития Забайкальского края","Х","Х","Х","Х","Х","Х","Х","Х","Х","Х","Х","Х","Х","Х","Х","Х","Х","Х","Х"]
[null,"финансирование за счет краевого бюджета","тыс.рублей","Х","Х","Х","Х","0113","0330406090",630,"Х","Х","Х","Х",15,"Х","Х",0,0,0,0,0,0,0,"Х",{"$f":"SUM(L820:W820)","v":15}]
[{"$nulls":7},"0113","0330406091",853,null,null,"Х","Х","Х",15,"Х",0,0,0,0,0,0,0,"Х",{"$f":"SUM(L821:W821)","v":15}]
[null,"Показатель \"Количество субъектов предпринимательства, осуществляющих деятельность в сфере промышленности Забайкальского края,  получивших финансовую поддержку Фонда\"","чел.","Х","Абсолютный показатель","Х","Х","Х","Х","Х","Х","Х","Х","Х",0,0,1,"Х","Х","Х","Х","Х","Х","Х","Х",1]
["3.5.","Основное мероприятие «Формирование Фонда развития промышленности Забайкальского края» ","Х","Х","Х",2018," Министерство экономического развития Забайкальского края","Х","Х","Х","Х","Х","Х","Х","Х","Х","Х","Х","Х","Х","Х","Х","Х","Х","Х","Х"]
[null,"финансирование за счет краевого бюджета","тыс.рублей","Х","Х","Х","Х","Х","Х","Х","Х","Х","Х","Х","Х","Х",{"$f":"Q829","v":18000},0,0,0,0,0,0,0,"Х",{"$f":"SUM(K824:W824)","v":18000}]
[null,"кроме того, финансирование из других источников:","тыс.рублей","Х","Х","Х","Х","Х","Х","Х","Х","Х","Х","Х","Х","Х",0,"Х","Х","Х","Х","Х","Х","Х","Х",0]
[null," - из федерального бюджета","тыс. рублей","Х","Х","Х","Х","Х","Х","Х","Х","Х",0,0,0,0,0,"Х","Х","Х","Х","Х","Х","Х","Х",0]
[null,"Показатель \"Количество инвестиционных проектов в сфере промышленности, получивших поддержку за счет средств Фонда\"","ед.","Х","Абсолютный показатель","Х","Х","Х","Х","Х","Х","Х",0,0,0,0,0,"Х","Х","Х","Х","Х","Х","Х","Х",0]
["3.5.1.","Мероприятие «Пополнение активов Фонда развития промышленности Забайкальского края с целью выдачи займов субъектам деятельности в сфере промышленности на реализацию инвестиционных проектов» ","Х","Х","Х",2018," Министерство экономического развития Забайкальского края","Х","Х","Х","Х","Х","Х","Х","Х","Х","Х","Х","Х","Х","Х","Х","Х","Х","Х","Х"]
[null,"финансирование за счет краевого бюджета","тыс.рублей","Х","Х","Х","Х","0412","0330506820",632,"Х","Х","Х","Х","Х","Х",18000,0,0,0,0,0,0,0,"Х",{"$f":"SUM(N829:W829)","v":18000}]
[null,"Показатель \"Количество инвестиционных проектов в сфере промышленности, получивших поддержку за счет средств Фонда\"","ед.","Х","Абсолютный показатель","Х","Х","Х","Х","Х","Х","Х",0,0,0,0,0,"Х","Х","Х","Х","Х","Х","Х","Х",0]
[null,"Задача \"Повышение эффективности государственного и муниципального управления, стратегического прогнозирования и планирования в Забайкальском крае\"","Х","Х","Х","Х","Х","Х","Х","Х","Х","Х","Х","Х","Х","Х","Х","Х","Х","Х","Х","Х","Х","Х","Х","Х"]
["4.","Подпрограмма \"Повышение эффективности государственного и муниципального управления\"","Х",1,"Х","2014-2025","Министерство экономического развития Забайкальского края, исполнительные органы  Забайкальского края, органы местного самоуправления ","Х","Х","Х","Х","Х","Х","Х","Х","Х","Х","Х","Х","Х","Х","Х","Х","Х","Х","Х"]
[null,"финансирование за счет краевого бюджета","тыс.рублей","Х","Х","Х","Х","Х","Х","Х","Х","Х",0,{"$f":"N842","v":184375.7},{"$f":"O842","v":181507.7},{"$f":"P842","v":212586.5},{"$f":"Q842","v":284914},{"$f":"R842+R857+R865","v":270437},304196.09999999998,279355.3,301677.3,407972,318304.90000000002,318304.90000000002,0,{"$f":"N833+O833+P833+Q833+R833+S833+T833+U833+V833+W833+X833","v":3063631.4}]
[null,"кроме того, финансирование из других источников:","тыс.рублей","Х","Х","Х","Х","Х","Х","Х","Х","Х",0,{"$f":"SUM(N835:N837)","v":86257},0,0,0,0,0,0,0,0,0,0,"Х",86257]
[null," - из федерального бюджета","тыс.рублей","Х","Х","Х","Х","Х","Х","Х","Х","Х",0,{"$f":"N844","v":86257},0,0,0,0,0,0,0,0,0,0,0,{"$f":"SUM(K835:V835)","v":86257}]
[null," - из местных бюджетов","тыс.рублей","Х","Х","Х","Х","Х","Х","Х","Х","Х",0,0,0,0,0,0,0,0,0,0,0,0,"Х",{"$f":"SUM(K836:V836)","v":0}]
[null," - из внебюджетных источников","тыс.рублей","Х","Х","Х","Х","Х","Х","Х","Х","Х",0,0,0,0,0,0,0,0,0,0,0,0,"Х",{"$f":"SUM(K837:V837)","v":0}]
[null,"Показатель \"Уровень удовлетворенности граждан Российской Федерации качеством предоставления государственных и муниципальных услуг\"          ","%",1,"Определяется в соответствии с методикой проведения оценки качества предоставления государственных и муниципальных услуг в Забайкальском крае","2014-2025","Исполнительные органы Забайкальского края, предоставляющие государственные услуги,                      органы местного самоуправления","Х","Х","Х",61,83.6,89.7,98.6,75,80,90,90,90,90,90,90,90,90,"Х",{"$f":"W838","v":90}]
[null,"Показатель \"Среднее число обращений представителей бизнес-сообщества в исполнительный  орган Забайкальского края (орган местного самоуправления) для получения одной государственной (муниципальной) услуги, связанной со сферой предпринимательской деятельности\"","ед.",1,"Определяется по результатам анкетирования субъектов предпринимательства Забайкальского края,   (∑Коб)/Коп, где   Коб - количество обращений представителей субъектов предпринимательской деятельности,  участвующих в анкетировании,   в исполнительный  орган государственной власти Забайкальского края (орган местного самоуправления) для получения одной государственной (муниципальной) услуги, связанной со сферой предпринимательской деятельности, Коп - количество опрошенных  представителей предпринимательской деятельности (респондентов), участвующих в анкетировании","Х","Исполнительные органы Забайкальского края, предоставляющие государственные услуги,                      органы местного самоуправления","Х","Х","Х",5,3,2,2,2,2,2,2,2,2,2,2,2,2,"Х",{"$f":"W839","v":2}]
[null,"Показатель \"Среднее время ожидания в очереди при обращении заявителя в исполнительный орган Забайкальского края  (орган местного   самоуправления) для получения государственных (муниципальных) услуг\"","минут",1,"Определяется с учетом методики проведения оценки качества предоставления государственных и муниципальных услуг в Забайкальском крае","Х","исполнительные органы Забайкальского края, предоставляющие государственные услуги,                      органы местного самоуправления Забайкальского края","Х","Х","Х",13,8,7,6,15,15,15,15,15,15,15,15,15,15,"Х",{"$f":"W840","v":15}]
["4.1.","Основное мероприятие \"Совершенствование предоставления государственных и муниципальных услуг\"","Х",1,"Х","2014-2025","Министерство экономического развития Забайкальского края, исполнительные органы Забайкальского края, предоставляющие государственные услуги,                      органы местного самоуправления Забайкальского края","Х","Х","Х","Х","Х","Х","Х","Х","Х","Х","Х","Х","Х","Х","Х","Х","Х","Х","Х"]
[null,"финансирование за счет краевого бюджета","тыс.рублей","Х","Х","Х","Х","Х","Х","Х","Х","Х","Х",{"$f":"N847+N849","v":184375.7},{"$f":"O848+O850","v":181507.7},{"$f":"P848+P850","v":212586.5},{"$f":"Q848+Q850","v":284914},{"$f":"R847+R848+R849+R850","v":270437},304196.09999999998,279355.3,301677.3,407972,318304.90000000002,318304.90000000002,"Х",{"$f":"SUM(N842:X842)","v":3063631.4}]
[null,"кроме того, финансирование из других источников:","тыс.рублей","Х","Х","Х","Х","Х","Х","Х","Х","Х","Х",{"$f":"N844","v":86257},0,0,0,0,0,0,0,0,0,0,"Х",86257]
[null,"из федерального бюджета","тыс.рублей","Х","Х","Х","Х","Х","Х","Х","Х","Х","Х",{"$f":"N852+N853","v":86257},0,0,0,0,0,0,0,0,0,0,"Х",86257]
[null,"Показатель \"Доля государственных услуг, для которых утверждены административные регламенты, соответствующие требованиям законодательства\"","%","Х","ГУр / ГУ *100, где\nГУр - количество государственных услуг, для которых утверждены административные регламенты\nГУ - общее количество государственных услуг Забайкальского края, для которых должны утверждаться административные регламенты","Х","Исполнительные органы Забайкальского края, предоставляющие государственные услуги                    ","Х","Х","Х","Х","Х",100,100,100,100,100,100,100,100,100,100,100,100,"Х",100]
["4.1.1.","Мероприятие \"Обеспечение организации предоставления государственных и муниципальных услуг по принципу \"одного окна\"","Х","Х","Х","2014-2025","Министерство экономического развития Забайкальского края, Департамент государственного имущества и земельных отношений Забайкальского края, Министерство финансов Забайкальского края","Х","Х","Х","Х","Х","Х","Х","Х","Х","Х","Х","Х","Х","Х","Х","Х","Х","Х","Х"]
[null,"финансирование за счет краевого бюджета","тыс.рублей","Х","Х","Х","Х","0113","0929900","621","Х","Х","Х",174375.7,0,0,0,0,0,0,0,0,0,0,"Х",174375.7]
[{"$nulls":7},"0113","0340119905","621","Х","Х","Х",0,169487,185316.4,284914,257236,303516.09999999998,279355.3,301677.3,378333.5,318304.90000000002,318304.90000000002,"Х",{"$f":"SUM(O848:X848)","v":2796445.4}]
[{"$nulls":7},"0113","0929900","622","Х","Х","Х",10000,0,0,0,0,0,0,0,0,0,0,"Х",{"$f":"SUM(N849:X849)","v":10000}]
[{"$nulls":7},"0113","0340119905","622","Х","Х","Х",0,12020.7,{"$f":"25670.1+1600","v":27270.1},0,13201,680,0,0,29638.5,0,0,"Х",{"$f":"SUM(O850:X850)","v":82810.3}]
[null,"кроме того, финансирование из других источников:","тыс.рублей","Х","Х","Х","Х","Х","Х","Х","Х","Х","Х",{"$f":"SUM(N852:N853)","v":86257},0,0,0,0,0,0,0,0,0,0,"Х","Х"]
[null,"из федерального бюджета","тыс.рублей","Х","Х","Х","Х","0113","0925392   ","622","Х","Х","Х",76307,0,0,0,0,0,0,0,0,0,0,"Х",76307]
[{"$nulls":7},"0113"," 1005028","622","0113","Х","Х",9950,0,0,0,0,0,0,0,0,0,0,"Х",9950]
[null,"Показатель \"Доля граждан, имеющих доступ к получению государственных и муниципальных услуг по принципу \"одного окна\" по месту пребывания, в том числе  в МФЦ\"","%","Х","Нioo=Ч×Кoo, где\nЧ - норматив численности населения, обслуживаемого одним окном,   Кoo - количество окон, в которых организовано предоставление государственных и муниципальных услуг по принципу \"одного окна\" в городском округе, городском поселении, сельском поселении, внутригородских территориях федерального значения","Х","Министерство экономического развития Забайкальского края, Департамент государственного имущества и земельных отношений Забайкальского края, исполнительные органы Забайкальского края, предоставляющие государственные услуги,                      органы местного самоуправления","Х","Х","Х",11.9,18.43,41.66,90,90,90,90,90,90,90,90,90,90,90,"Х",90]
[null,"Показатель \"Процент выполнения государственного задания\"","%","Х","Уок/Угз*100,\nгде Угз - количество услуг, предусмотренных государственным заданием, Уок - количество оказанных услуг","Х","Министерство экономического развития Забайкальского края","Х","Х","Х","Х","Х","Х",100,100,100,100,100,100,100,100,100,100,100,"Х",100]
["4.2.","Основное мероприятие \"Создание условий для повышения эффективности деятельности исполнительных органов государственной власти и органов местного самоуправления Забайкальского края\"","Х",1,"Х","2014-2025","Министерство экономического развития Забайкальского края,  исполнительные органы Забайкальского края, органы местного самоуправления Забайкальского края","Х","Х","Х","Х","Х","Х","Х","Х","Х","Х","Х","Х","Х","Х","Х","Х","Х","Х","Х"]
[null,"финансирование за счет краевого бюджета","тыс.рублей","Х","Х","Х","Х","Х","Х","Х","Х","Х","Х","Х","Х","Х","Х",{"$f":"R860","v":0},{"$f":"S860","v":0},{"$f":"T860","v":0},0,0,0,0,"Х",0]
[null,"Показатель \"Доля исполнительных органов государственной власти Забайкальского края, охваченных оценкой эффективности и результативности контрольно-надзорной деятельности\"","%","Х","ОИВоц / ОИВ *100, где\nОИВоц - количество исполнительных органов государственной власти Забайкальского края, охваченных оценкой эффективности\nОИВ - количество исполнительных органов государственной власти Забайкальского края, в отношении которых необходимо проводить оценку эффективности","2019-2025","Х","Х","Х","Х","Х","Х","Х","Х","Х","Х","Х",100,100,100,100,100,100,100,"Х",100]
["4.2.1.","Мероприятие \"Организация и осуществление оценки эффективности и результативности деятельности исполнительных органов  Забайкальского края, осуществляющих контрольно-надзорную деятельность\"","Х","Х","Х","2019-2025","Министерство экономического развития Забайкальского края,  исполнительные органы Забайкальского края","Х","Х","Х","Х","Х","Х","Х","Х","Х","Х","Х","Х","Х","Х","Х","Х","Х","Х","Х"]
[null,"финансирование за счет краевого бюджета","тыс.рублей","Х","Х","Х","Х","Х","Х","Х","Х","Х","Х","Х","Х","Х","Х",0,0,0,0,0,0,0,"Х",0]
[null,"Показатель \"Доля выполненных показателей, включенных в Карту результативности Министерства экономического развития Забайкальского края\"","%","Х","Kpi1 / Kpi2 * 100, где Kpi1 - количество выполненных показателей, включенных в Карту результативности               Kpi2 - общее количество показателей включенных в Карту результативности ","2014-2016","Х","Х","Х","Х","Х","Х",80,82,85,"Х","Х","Х","Х","Х","Х","Х","Х","Х","Х","Х"]
[null,"Показатель \"Доля исполнительных органов Забайкальского края, подготовивших и опубликовавших доклады о виде государственного контроля (надзора) в соответствии с установленными требованиями \"","%","Х","ИОд/ ИОкнд *100, где\nИОд - количество исполнительных органов Забайкальского края, подготовивших и опубликовавших доклады о виде государственного контроля (надзора) в соответствии с установленными требованиями,\nИОкнд - количество исполнительных органов Забайкальского края,осуществляющих контрольно-надзорную деятельность","2019-2025","Х","Х","Х","Х","Х","Х","Х","Х","Х","Х","Х",100,100,100,100,100,100,100,"Х",100]
[null,"Показатель \"Доля органов местного самоуправления Забайкальского края, подготовивших и опубликовавших доклады о виде муниципального контроля в соответствии с установленными требованиями \"","%","X","ОМСд/ ОМСкнд *100, где\nОМСд - количество органов местного самоуправления Забайкальского края, подготовивших и опубликовавших доклады о виде муниципального контроля в соответствии с установленными требованиями,\nОМСкнд - количество  органов местного самоуправления Забайкальского края,осуществляющих муниципальный контроль","2019-2025","Х","Х","Х","Х","Х","Х","Х","Х","Х","Х","Х",100,100,100,100,100,100,100,"Х",100]
["4.3.","Основное мероприятие \"Снижение административных барьеров\"","Х",1,"Х","2014-2025","Министерство экономического развития Забайкальского края,  исполнительные органы  Забайкальского края","Х","Х","Х","Х","Х","Х","Х","Х","Х","Х","Х","Х","Х","Х",100,100,100,"Х",100]
[null,"финансирование за счет краевого бюджета","тыс.рублей","Х","Х","Х","Х","Х","Х","Х","Х","Х",0,0,0,0,0,0,0,0,0,0,0,0,"Х",0]
[null,"Показатель \"Доля проектов нормативных правовых актов Забайкальского края, подлежащих оценке регулирующего воздействия, в отношении которых проведена оценка регулирующего воздействия\"","%","Х","НПАорв / НПА *100, где\nНПАорв - количество проектов нормативных правовых актов Забайкальского края, подлежащих оценке регулирующего воздействия,  в отношении которых проведена оценка регулирующего воздействия\nНПА - общее количество  проектов нормативных правовых актов Забайкальского края,  в отношении которых должна быть проведена оценка регулирующего воздействия, представленных для рассмотрения в Министерство экономического развития Забайкальского края","Х","Министерство экономического развития Забайкальского края,  исполнительные органы Забайкальского края","Х","Х","Х","Х","Х",100,100,100,100,100,100,100,100,100,100,100,100,"Х",100]
["5.","Подпрограмма \"Совершенствование системы стратегического управления в Забайкальском крае\"","Х",1,"Х","2014-2025","Министерство экономического развития Забайкальского края, Министерство финансов Забайкальского края, Комитет по планированию и развитию Забайкальского края","Х","Х","Х","Х","Х","Х","Х","Х","Х","Х","Х","Х","Х","Х","Х","Х","Х","Х","Х"]
[null,"финансирование за счет краевого бюджета","тыс.рублей","Х","Х","Х","Комитет по планированию и развитию Забайкальского края","Х","Х","Х","Х","Х","Х","Х","Х","Х","Х","Х","Х",{"$f":"T882","v":3444.3},{"$f":"U882","v":0},{"$f":"V882","v":6000},0,0,"Х",{"$f":"T868+U868+V868+W868+X868","v":9444.2999999999993}]
[{"$nulls":6},"Министерство экономического развития Забайкальского края","Х","Х","Х","Х","Х",{"$f":"M903","v":533.61},525.29999999999995,334.7,332.7,295.60000000000002,253.2,234.3,107,147.30000000000001,67.8,67.8,66.599999999999994,0,{"$f":"M869+N869+O869+P869+Q869+R869+S869+T869+U869+V869+W869+X869","v":2965.9100000000003}]
[null,"кроме того, финансирование из других источников:","тыс.рублей","Х","Х","Х","Х","Х","Х","Х","Х","Х",{"$f":"SUM(M871:M873)","v":533.6},525.29999999999995,334.6,332.7,416,470.3,435.2,198.7,250.8,115.4,115.4,113.3,"Х",{"$f":"SUM(M870:X870)","v":3841.3}]
[null," - из федерального бюджета","тыс.рублей","Х","Х","Х","Х","Х","Х","Х","Х","Х",{"$f":"M905","v":533.6},525.29999999999995,334.6,332.7,416,470.3,435.2,198.7,250.8,115.4,115.4,113.3,0,{"$f":"SUM(M871:X871)","v":3841.3}]
[null," - из местных бюджетов","тыс.рублей","Х","Х","Х","Х","Х","Х","Х","Х","Х",0,0,0,0,0,0,0,0,0,0,0,0,"Х",0]
[null," - из внебюджетных источников","тыс.рублей","Х","Х","Х","Х","Х","Х","Х","Х","Х",0,0,0,0,0,0,0,0,0,0,0,0,"Х",0]
[null,"Показатель \"Среднее отклонение фактических значений по ключевым показателям социально-экономического развития края от запланированных в предшествующем году значений\"","проц.пунктов","Х","(∑|Зiф /Зiпл *100 - 100| + ∑|Зjф-Зjпл|) / k , где  Зiф – фактическое значение показателей i, Зiпл – плановое значение показателей i (показатели i (среднедушевые денежные доходы населения (в месяц),  среднемесячная номинальная начисленная заработная плата одного работника,  численность населения (среднегодовая), численность занятых в экономике), Зjф – фактическое значение показателей j,  Зjпл – плановое значение показателей j  (показатели j (темп роста ВРП, индекс промышленного производства, индекс производства продукции сельского хозяйства в хозяйствах всех категорий, темп роста объема инвестиций в основной капитал за счет всех источников финансирования, темп роста объема работ, выполненных по виду деятельности  «строительство»,  уровень безработицы), k – количество показателей (i+j), не более указанного значения ","Х","Комитет по планированию и развитию Забайкальского края","Х","Х","Х","Х","Х",10,10,10,10,10,10,10,10,10,10,10,10,"Х","Х"]
[null,"Показатель \"Степень выполнения квоты в соответствии с Государственным планом подготовки управленческих кадров\"","%",1,"Кадр / Кв *100, где\nКадр - фактическое количество специалистов, направленных на подготовку в соответствии с Государственным планом подготовки управленческих кадров\nКв - размер квоты в соответствии с Государственным планом подготовки управленческих кадров","Х","Министерство экономического развития Забайкальского края","Х","Х","Х","Х","Х",100,100,100,100,100,100,100,100,100,100,100,100,"Х","Х"]
["5.1. ","Основное мероприятие \"Разработка документов стратегического планирования Забайкальского края и мониторинг их реализации\"","Х",1,"Х","2014-2025","Министерство экономического развития Забайкальского края, Комитет по планированию и развитию Забайкальского края, исполнительные органы Забайкальского края","Х","Х","Х","Х","Х","Х","Х","Х","Х","Х","Х","Х","Х","Х","Х","Х","Х","Х","Х"]
[null,"финансирование за счет краевого бюджета","тыс.рублей","Х","Х","Х","Х","Х","Х","Х","Х","Х",0,0,0,0,{"$f":"Q881","v":"Х"},{"$f":"R881","v":"Х"},{"$f":"S881","v":"Х"},3444.3,0,6000,{"$f":"W882","v":0},{"$f":"X882","v":0},"Х",{"$f":"SUM(M877:W877)","v":9444.2999999999993}]
[null,"Показатель \"Доля документов стратегического планирования, подготовленных в установленный срок\"","%","Х","Дподг / Дтреб *100, где\nДподг - количество фактически подготовленных документов стратегического планирования\nДтреб - количество требовавших принятия документов стратегического планирования","Х","Министерство экономического развития Забайкальского края,исполнительные органы Забайкальского края ","Х","Х","Х","Х","Х",100,100,100,100,100,100,100,"Х","Х","Х","Х","Х","Х",100]
[{"$nulls":6},"Комитет по планированию и развитию Забайкальского края, исполнительные органы Забайкальского края","Х","Х","Х","Х","Х","Х","Х","Х","Х","Х","Х","Х",100,100,100,100,100,"Х",100]
["5.1.1.","Мероприятие \"Проведение конкурса на разработку Стратегии социально-экономического развития Забайкальского края до 2035 года и плана мероприятий по ее реализации в соответствии с требованиями Федерального закона от 5.04.2013 № 44-ФЗ\"","Х",1,"Х","2021-2023","Министерство экономического развития Забайкальского края, Комитет по планированию и развитию Забайкальского края","Х","Х","Х","Х","Х","Х","Х","Х","Х","Х","Х","Х","Х","Х","Х","Х","Х","Х","Х"]
[null,"финансирование за счет краевого бюджета","тыс. рублей","Х","Х","Х","Министерство экономического развития Забайкальского края","Х","Х","Х","Х","Х","Х","Х","Х","Х","Х","Х","Х","Х","Х","Х","Х","Х","Х","Х"]
[{"$nulls":6},"Комитет по планированию и развитию Забайкальского края","0113","0350109014","244","Х","Х","Х","Х","Х","Х","Х","Х","Х",3444.3,0,6000,0,0,"Х",{"$f":"SUM(M882:W882)","v":9444.2999999999993}]
[null,"Показатель \"Разработка Стратегии\"","ед.","Х","Абсолютный показатель","Х","Министерство экономического развития Забайкальского края","Х","Х","Х","Х","Х","Х","Х","Х","Х","Х","Х","Х","Х","Х","Х","Х","Х","Х","Х"]
[{"$nulls":6},"Комитет по планированию и развитию Забайкальского края","Х","Х","Х","Х","Х","Х","Х","Х","Х","Х","Х","Х",0,0,1,"Х","Х","Х",{"$f":"V884","v":1}]
["5.2.","Основное мероприятие \"Реализация Стратегии социально-экономического развития Забайкальского края на период до 2030 года\"","Х",1,"Х","2014-2025","Министерство экономического развития Забайкальского края, Комитет по планированию и развитию Забайкальского края,  исполнительные органы Забайкальского края","Х","Х","Х","Х","Х","Х","Х","Х","Х","Х","Х","Х","Х","Х","Х","Х","Х","Х","Х"]
[null,"финансирование за счет краевого бюджета","тыс.рублей","Х","Х","Х","Х","Х","Х","Х","Х","Х","Х","Х","Х","Х","Х",0,0,"Х","Х","Х","Х","Х","Х","Х"]
[null,"Показатель \"Подготовка отчета о ходе выполнения Плана по реализации Стратегии социально-экономического развития Забайкальского края на период до 2030 года\"","ед.","Х","Абсолютный показатель","Х","Министерство экономического развития Забайкальского края","Х","Х","Х","Х","Х","Х",1,1,1,1,1,1,"Х","Х","Х","Х","Х","Х",6]
[{"$nulls":6},"Комитет по планированию и развитию Забайкальского края","Х","Х","Х","Х","Х","Х","Х","Х","Х","Х","Х","Х",1,1,1,1,1,"Х",5]
[null,"Показатель \"ВРП на душу населения\"","тыс.рублей / чел.","Х","ВРП/ЧН,\nгде ВРП - валовой региональный продукт в основных ценах соответствующих лет;\nЧН -  среднегодовая численность постоянного населения","Х","Министерство экономического развития Забайкальского края","Х","Х","Х",204.1121,209.7808,215.66839999999999,228.215,258.22500000000002,284.96910000000003,317.81549999999999,347.66340000000002,400.09249999999997,"Х","Х","Х","Х","Х","Х","Х"]
[{"$nulls":6},"Комитет по планированию и развитию Забайкальского края","Х","Х","Х","Х","Х","Х","Х","Х","Х","Х","Х","Х",464.87639484978502,549.14647434264396,581.26832282197802,630.00294984432605,685.82354615192901,"Х","Х"]
["5.3.","Основное мероприятие \"Разработка прогнозов социально-экономического развития Забайкальского края\"","Х",1,"Х","2014-2025","Министерство экономического развития Забайкальского края, Комитет по планированию и развитию Забайкальского края","Х","Х","Х","Х","Х","Х","Х","Х","Х","Х","Х","Х","Х","Х","Х","Х","Х","Х","Х"]
[null,"финансирование за счет краевого бюджета","тыс.рублей","Х","Х","Х","Х","Х","Х","Х","Х","Х","Х","Х","Х","Х","Х",0,0,"Х","Х","Х","Х","Х","Х","Х"]
[null,"Показатель \"Количество подготовленных в установленном порядке прогнозов социально-экономического развития Забайкальского края\"","ед.","Х","Абсолютный показатель","Х","Министерство экономического развития Забайкальского края","Х","Х","Х","Х","Х",2,2,2,2,2,2,2,"Х","Х","Х","Х","Х","Х",{"$f":"SUM(M893:S893)","v":14}]
[{"$nulls":6},"Комитет по планированию и развитию Забайкальского края","Х","Х","Х","Х","Х","Х","Х","Х","Х","Х","Х","Х",2,2,2,2,2,"Х",10]
["5.3.1","Мероприятие «Внедрение автоматизированной системы прогнозирования социально-экономического развития Забайкальского края на среднесрочный период»","Х",1,"Х","2022-2024","Комитет по планированию и развитию Забайкальского края","Х","Х","Х","Х","Х","Х","Х","Х","Х","Х","Х","Х","Х","Х","Х","Х","Х","Х","Х"]
[null,"финансирование за счет краевого бюджета","тыс.рублей","Х","Х","Х","Комитет по планированию и развитию Забайкальского края","Х","Х","Х","Х","Х","Х","Х","Х","Х","Х","Х","Х","Х",0,0,0,"Х","Х",0]
[null,"Показатель «Внедрена автоматизированная система прогнозирования социально-экономического развития Забайкальского края на среднесрочный период»","ед.","Х","Абсолютный показатель","Х","Комитет по планированию и развитию Забайкальского края","Х","Х","Х","Х","Х","Х","Х","Х","Х","Х","Х","Х","Х",0,0,1,"Х","Х","Х"]
["5.4.","Основное мероприятие \"Организация и осуществление оценки эффективности реализации государственных программ Забайкальского края\"","Х",1,"Х","2014-2025","Министерство экономического развития Забайкальского края, Комитет по планированию и развитию Забайкальского края","Х","Х","Х","Х","Х","Х","Х","Х","Х","Х","Х","Х","Х","Х","Х","Х","Х","Х","Х"]
[null,"финансирование за счет краевого бюджета","тыс.рублей","Х","Х","Х","Х","Х","Х","Х","Х","Х","Х","Х","Х","Х","Х",0,0,"Х","Х","Х","Х","Х","Х","Х"]
[null,"Показатель \"Количество годовых докладов о ходе реализации и оценке эффективности государственных программ\"","ед.","Х","Абсолютный показатель","Х","Министерство экономического развития Забайкальского края","Х","Х","Х","Х","Х","Х",1,1,1,1,1,1,"Х","Х","Х","Х","Х","Х",6]
[{"$nulls":6},"Комитет по планированию и развитию Забайкальского края","Х","Х","Х","Х","Х","Х","Х","Х","Х","Х","Х","Х",1,1,1,1,1,"Х",5]
["5.5.","Основное мероприятие \"Реализация Государственного плана подготовки управленческих кадров  для организаций реального сектора экономики\"","Х",1,null,"2014-2025","Министерство экономического развития Забайкальского края","Х","Х","Х","Х","Х","Х","Х","Х","Х","Х","Х","Х","Х","Х","Х","Х","Х","Х","Х"]
[null,"финансирование за счет краевого бюджета","тыс.рублей","Х","Х","Х","Х","Х","Х","Х","Х","Х",{"$f":"M910","v":533.61},{"$f":"N910","v":525.29999999999995},{"$f":"O914","v":334.7},{"$f":"P911","v":332.7},{"$f":"Q911+Q912","v":295.60000000000002},{"$f":"R911+R912","v":253.2},{"$f":"S911+S912","v":234.3},107,{"$f":"U911","v":147.30000000000001},67.8,{"$f":"W911","v":67.8},{"$f":"X911","v":66.599999999999994},"Х",{"$f":"M903+N903+O903+P903+Q903+R903+S903+T903+U903+V903+W903+X903","v":2965.9100000000003}]
[null,"кроме того, финансирование из других источников:","тыс.рублей","Х","Х","Х","Х","Х","Х","Х","Х","Х",{"$f":"SUM(M905:M907)","v":533.6},525.29999999999995,334.6,332.7,416,470.3,435.2,198.7,250.8,115.4,115.4,113.3,"Х",{"$f":"M904+N904+O904+P904+Q904+R904+S904+T904+U904+V904+W904+X904","v":3841.3}]
[null," - из федерального бюджета","тыс.рублей","Х","Х","Х","Х","Х","Х","Х","Х","Х",533.6,525.29999999999995,{"$f":"O917","v":334.6},{"$f":"P918","v":332.7},416,470.3,435.2,198.7,250.8,115.4,115.4,113.3,"Х",{"$f":"M905+N905+O905+P905+Q905+R905+S905+T905+U905+V905+W905+X905","v":3841.3}]
[null," - из местных бюджетов","тыс.рублей","Х","Х","Х","Х","Х","Х","Х","Х","Х","Х","Х","Х","Х","Х","Х","Х","Х","Х","Х","Х","Х","Х","Х"]
[null," - из внебюджетных источников","тыс.рублей","Х","Х","Х","Х","Х","Х","Х","Х","Х","Х","Х","Х","Х","Х","Х","Х","Х","Х","Х","Х","Х","Х","Х"]
[null,"Показатель \"Количество специалистов, сдавших итоговые аттестационные испытания на \"хорошо\" и \"отлично\"  (в процентах к общему количеству специалистов, завершивших обучение)  ","%","X","КС/КС2 *100, где КС- количество специалистов, сдавших итоговые аттестационные испытания на \"хорошо\" и \"отлично\", КС2 -общее количество специалистов, завершивших обучение","X","X","X","X","X",25,25,15,90,90,90,80,80,80,80,80,65,65,65,"Х","Х"]
["5.5.1.","Мероприятие \"Реализация Государственного плана подготовки управленческих кадров  для организаций реального сектора экономики\"","Х",1,null,"2014-2025","Министерство экономического развития Забайкальского края","Х","Х","Х","Х","Х","Х","Х","Х","Х","Х","Х","Х","Х","Х","Х","Х","Х","Х","-"]
[null,"финансирование за счет краевого бюджета","тыс.рублей",null,"Х","Х","Х","0113"," 0920300",880,"Х","Х",533.61,525.29999999999995,0,0,0,0,0,0,0,0,0,0,"Х",{"$f":"M910+N910","v":1058.9099999999999}]
[{"$nulls":7},"0705","03505R0660","244","Х","Х",0,0,0,332.7,224,253.2,234.3,107,147.30000000000001,67.8,{"$f":"V911","v":67.8},66.599999999999994,"Х",{"$f":"P911+Q911+T911+R911+S911+U911+V911+W911+X911","v":1500.6999999999998}]
[{"$nulls":7},"0705","0350509016","244","Х","Х",0,0,0,0,71.599999999999994,0,0,0,0,0,0,0,"Х",{"$f":"Q912+R912+S912+T912+U912+V912+W912","v":71.599999999999994}]
[{"$nulls":7},"0705","0350509016","122","Х","Х",0,0,0,0,0,0,0,0,0,0,0,0,"Х",{"$f":"T913+SUM(T913:W913)","v":0}]
[{"$nulls":7},"0113","03505R0660","244","Х","Х",0,0,334.7,0,0,0,0,0,0,0,0,0,"Х",{"$f":"O914","v":334.7}]
[null,"кроме того, финансирование из других источников:","тыс.рублей","Х","Х","Х","Х","Х","Х","Х","Х","Х",{"$f":"SUM(M916:M920)","v":533.6},525.29999999999995,334.6,332.7,416,470.3,435.2,198.7,250.8,115.4,115.4,113.3,"Х",3841.3000000000006]
[null," - из федерального бюджета","тыс.рублей","Х","Х","Х","Х","0705","4365066","244","Х","Х",533.6,525.29999999999995,0,0,0,0,0,0,0,0,0,0,"Х",{"$f":"M916+N916","v":1058.9000000000001}]
[{"$nulls":7},"0705","0350550660","244","Х","Х",0,0,334.6,0,0,0,0,0,0,0,0,0,"Х",{"$f":"O917","v":334.6}]
[{"$nulls":7},"0705","03505R0660","244","Х","Х",0,0,0,332.7,416,470.3,435.2,198.7,250.8,115.4,115.4,113.3,"Х",{"$f":"P918+Q918+T918+R918+S918+U918+V918+W918+X918","v":2447.8000000000006}]
[null," - из местных бюджетов","тыс.рублей","Х","Х","Х","Х","Х","Х","Х","Х","Х",0,0,0,0,0,0,0,0,0,0,0,0,"Х",0]
[null," - из внебюджетных источников","тыс.рублей","Х","Х","Х","Х","Х","Х","Х","Х","Х",0,0,0,0,0,0,0,0,0,0,0,0,"Х",0]
[null,"Показатель \"Количество специалистов, сдавших итоговые аттестационные испытания на \"хорошо\" и \"отлично\" (в процентах к общему количеству специалистов, завершивших обучение) ","%","X","КС/КС2 *100, где КС- количество специалистов, сдавших итоговые аттестационные испытания на \"хорошо\" и \"отлично\", КС2 -общее количество специалистов, завершивших обучение","X","X","X","X","X",25,25,15,90,90,90,80,80,80,80,80,80,80,80,"Х","Х"]
["5.6.","Основное мероприятие \"Обеспечение органов государственной власти Забайкальского края информационно-статистическими материалами\"","Х",1,null,"2014-2025","Министерство экономического развития Забайкальского края","Х","Х","Х","Х","Х","Х","Х","Х","Х","Х","Х","Х","Х","Х","Х","Х","Х","Х","Х"]
[null,"финансирование за счет краевого бюджета","тыс.рублей","Х","Х","Х","Х","Х","Х","Х","Х","Х",{"$f":"M926","v":859.64},{"$f":"N926","v":1603.5},{"$f":"O927","v":1160.3},{"$f":"P927","v":515.70000000000005},{"$f":"Q927","v":0},{"$f":"R926+R927","v":0},0,0,0,0,0,0,"Х",{"$f":"M923+N923+O923+P923","v":4139.1399999999994}]
[null,"Показатель \"Полнота обеспечения потребностей органов государственной власти Забайкальского края в статистической информации\"","%","Х","Иф / Ипотр *100, где Иф - количество фактически полученной информации (форм)  от Территориального органа федеральной службы государственной статистики по Забайкальскому краю\nИпотр - количество требуемой информации, находящейся в распоряжении Территориального органа федеральной службы государственной статистики по Забайкальскому краю","2014-2025","Х","Х","Х","Х","Х","Х",100,100,100,100,100,100,100,100,100,100,100,100,"Х","Х"]
["5.6.1.","Мероприятие \"Обеспечение органов государственной власти Забайкальского края информационно-статистическими материалами\"","Х",1,null,"2014-2025","Министерство экономического развития Забайкальского края","Х","Х","Х","Х","Х","Х","Х","Х","Х","Х","Х","Х","Х","Х","Х","Х","Х","Х","Х"]
[null,"финансирование за счет краевого бюджета","тыс.рублей","Х","Х","Х","Х","0113"," 0920300","880","Х","Х",859.64,1603.5,"Х","Х","Х",0,0,0,0,0,0,0,"Х",{"$f":"M926+N926","v":2463.14}]
[{"$nulls":7},"0113","0350669300",244,"Х","Х","Х","Х",1160.3,515.70000000000005,0,0,0,0,0,0,0,0,"Х",{"$f":"O927+P927","v":1676}]
[null,"Показатель \"Полнота обеспечения потребностей органов государственной власти Забайкальского края в статистической информации\"","%","Х","Иф / Ипотр *100, где\nИф - количество фактически полученной информации (форм)  от Территориального органа федеральной службы государственной статистики по Забайкальскому краю\nИпотр - количество требуемой информации, находящейся в распоряжении Территориального органа федеральной службы государственной статистики по Забайкальскому краю","2014-2025","Х","Х","Х","Х","Х","Х",100,100,100,100,100,100,100,100,100,100,100,100,"Х","Х"]
["5.7.","Основное мероприятие \"Проведение мониторинга социально-экономического развития Забайкальского края\"","Х",1,"Х","2014-2025","Министерство экономического развития Забайкальского края","Х","Х","Х","Х","Х","Х","Х","Х","Х","Х","Х","Х","Х","Х","Х","Х","Х","Х","Х"]
[null,"финансирование за счет краевого бюджета","тыс.рублей","Х","Х","Х",null,"Х","Х","Х","Х","Х",0,0,0,0,0,0,0,0,0,0,0,0,"Х",0]
[null,"Показатель \"Полнота подготовки материалов мониторинга социально-экономического развития Забайкальского края от потребности\"","%",null,"Мф / Мпотр *100, где\nМф - количество фактически подготовленных материалов мониторинга социально-экономического развития Забайкальского края\nМпотр - количество материалов, которые требовалось подготовить в отчетном периоде","Х","Х","Х","Х","Х","Х","Х",100,100,100,100,100,100,100,100,100,100,100,100,"Х","Х"]
["5.8.","Основное мероприятие \"Методологическая и консультативная поддержка разработки и реализации документов стратегического планирования муниципальных образований\"","Х",1,"Х","2014-2025","Министерство экономического развития Забайкальского края, Комитет планирования и развития Забайкальского края","Х","Х","Х","Х","Х","Х","Х","Х","Х","Х","Х","Х","Х","Х","Х","Х","Х","Х","Х"]
[null,"финансирование за счет краевого бюджета","тыс.рублей","Х","Х","Х","Х","Х","Х","Х","Х","Х",0,0,0,0,0,0,0,0,0,0,0,0,"Х",0]
[null,"Показатель \"Полнота охвата муниципальных районов и городских округов методологической и консультационной поддержкой\"","%","Х","МРГОметод / МРГО *100, где\nМРГОметод - количество муниципальных районов и городских округов, охваченных методологической и консультационной поддержкой\nМРГО - общее количество муниципальных районов и городских округов","Х","Х","Х","Х","Х","Х","Х",100,100,100,100,100,100,100,100,100,100,100,100,"Х",100]
["5.8.1.","Мероприятие  \"Проведение анализа хода реализации  соглашений между Правительством Забайкальского края и администрациями муниципальных районов (городских округов) о комплексном социально-экономическом развитии муниципальных районов (городских округов) на 2011 год и на период до 2015 года\"","Х","Х","Х","2014-2015","Министерство экономического развития Забайкальского края","Х","Х","Х","Х","Х","Х","Х","Х","Х","Х","Х","Х","Х","Х","Х","Х","Х","Х","Х"]
[null,"финансирование за счет краевого бюджета","тыс.рублей",null,"Х","Х",null,"Х","Х","Х","Х","Х",0,0,"Х","Х","Х","Х","Х","Х","Х","Х","Х","Х","Х","Х"]
[null,"Показатель \"Полнота охвата соглашений мониторингом их реализации\"","%","Х","См / С *100, где\nСм - количество соглашений, в отношении которых осуществляется мониторинг\nС - общее количество соглашений, нуждающихся в мониторинге",null,"Х","Х","Х","Х","Х","Х",100,100,"Х","Х","Х","Х","Х","Х","Х","Х","Х","Х","Х","Х"]
["5.8.2.","Мероприятие \"Составление перечня документов стратегического планирования муниципальных образований Забайкальского края\"","Х","Х","Х","2014-2018","Комитет планирования и развития Забайкальского края","Х","Х","Х","Х","Х","Х","Х","Х","Х","Х","Х","Х","Х","Х","Х","Х","Х","Х","Х"]
[null,"финансирование за счет краевого бюджета","тыс.рублей","Х","Х","Х","Х","Х","Х","Х","Х","Х","Х","Х","Х","Х","Х",0,0,0,0,0,0,0,"Х","-"]
[null,"Показатель \"Полнота отражения в перечне актуальной информации\"","%","Х","Ивнес / И *100, где\nИвнес - количество актуальных сведений, внесенных в реестр\nИ - количество актуальных сведений, требующих отражения в реестре","Х","Х","Х","Х","Х","Х","Х",100,100,100,100,100,100,100,100,100,100,100,"Х","Х",100]
["5.8.3.","Мероприятие  \"Актуализация инвестиционных паспортов муниципальных районов и городских округов\"","Х","Х","Х","2014-2020","Министерство экономического развития Забайкальского края","Х","Х","Х","Х","Х","Х","Х","Х","Х","Х","Х","Х","Х","Х","Х","Х","Х","Х","Х"]
[null,"финансирование за счет краевого бюджета","тыс.рублей",null,"Х","Х",null,"Х","Х","Х","Х","Х",0,0,0,0,0,0,0,0,0,0,0,0,"Х"]
[null,"Показатель \"Доля муниципальных районов и городских округов, инвестиционные паспорта которых находятся в актуальном состоянии\"","%","Х","МРГОип/ МРГО *100, где \nМРГОип - количество муниципальных районов и городских округов, инвестиционные паспорта которых находятся в актуальном состоянии\nМРГО - общее количество муниципальных районов и городских округов","Х","Х","Х","Х","Х","Х","Х",100,100,100,100,100,100,"Х","Х","Х","Х","Х","Х","Х","Х"]
["5.8.4.","Мероприятие  \"Проведение методологических и консультативных мероприятий по формированию и реализации стратегических документов социально-экономического развития муниципальных образований\"","Х","Х","Х","2014-2025","Министерство экономического развития Забайкальского края","Х","Х","Х","Х","Х","Х","Х","Х","Х","Х","Х","Х","Х","Х","Х","Х","Х","Х","Х"]
[{"$nulls":6},"Комитет планирования и развития Забайкальского края","Х","Х","Х","Х","Х","Х","Х","Х","Х","Х","Х","Х","Х","Х","Х","Х","Х","Х","Х"]
[null,"финансирование за счет краевого бюджета","тыс.рублей","Х","Х","Х","Х","Х","Х","Х","Х","Х","Х","Х","Х","Х","Х",0,0,0,0,0,0,0,"Х","-"]
[null,"Показатель \"Полнота охвата муниципальных районов (городских округов)  методологическими и консультативными мероприятиями\"","%","Х","МРГОкм/ МРГО *100, где \nМРГОкм - количество муниципальных районов и городских округов, в отношении которых проведены методологические и консультативные мероприятия\nМРГО - общее количество муниципальных районов и городских округов","Х","Х","Х","Х","Х","Х","Х",100,100,100,100,100,100,100,100,100,100,100,"Х","Х",100]
[null,"Задача \"Повышение эффективности, результативности и открытости закупок \"","Х","Х","Х","Х","Х","Х","Х","Х","Х","Х","Х","Х","Х","Х","Х","Х","Х","Х","Х","Х","Х","Х","Х","Х"]
["6.","Подпрограмма \"Совершенствование закупок товаров, работ, услуг в Забайкальском крае\"","Х",1,"Х","2014-2017","Министерство экономического развития Забайкальского края","Х","Х","Х","Х","Х","Х","Х","Х","Х","Х","Х","Х","Х","Х","Х","Х","Х","Х","Х"]
[null,"финансирование за счет краевого бюджета","тыс.рублей","Х","Х","Х","Х","Х","Х","Х","Х","Х",{"$f":"M957","v":19617.400000000001},24356.1,14441.299999999997,24797.200000000004,"Х","Х","Х","Х","Х","Х","Х","Х","Х",{"$f":"M950+N950+O950+P950","v":83212}]
[null,"Показатель \"Доля закупок в электронной форме в общем количестве закупок, проведенных конкурентными способами определения поставщика\"","%",1,"Зэф / ЗК * 100, где\nЗэф - объем закупок в электронной форме\nЗК - общий объем государственных закупок, проведенных конкурентными способами определения поставщика","Х","Х","Х","Х","Х",67,81,90,90,90,90,"Х","Х","Х","Х","Х","Х","Х","Х","Х","Х"]
[null,"Показатель \"Среднее количество поданных заявок на участие (на лот)\"","ед.",1,"З / Л, где З - количество поданных заявок, Л - количество лотов","Х","Х","Х","Х","Х",2.4,2.4,2.5,2.5,2,2.1,"Х","Х","Х","Х","Х","Х","Х","Х","Х","Х"]
["6.1.","Основное мероприятие \"Нормативно-правовое и методическое обеспечение осуществления государственных закупок товаров, работ, услуг\"","Х",1,"Х","2014-2017","Министерство экономического развития Забайкальского края","Х","Х","Х","Х","Х","Х","Х","Х","Х","Х","Х","Х","Х","Х","Х","Х","Х","Х","Х"]
[null,"финансирование за счет краевого бюджета","тыс.рублей","Х","Х","Х","Х","Х","Х","Х","Х","Х",0,0,0,0,"Х","Х","Х","Х","Х","Х","Х","Х","Х","Х"]
[null,"Показатель \"Доля принятых нормативных правовых актов от потребности\"","%","Х","НПАпр / НПА *100, где\nНПАпр - количество фактически принятых нормативных правовых актов\nНПА - количество нормативных правовых актов, которые требуется принять","Х","Х","Х","Х","Х","Х","Х",100,100,100,100,"Х","Х","Х","Х","Х","Х","Х","Х","Х",100]
["6.2.","Основное мероприятие \"Текущая организация закупочного процесса в Забайкальском крае\"","Х",1,"Х","2014-2017","Министерство экономического развития Забайкальского края","Х","Х","Х","Х","Х","Х","Х","Х","Х","Х","Х","Х","Х","Х","Х","Х","Х","Х","Х"]
[null,"финансирование за счет краевого бюджета","тыс.рублей","Х","Х","Х","ВСЕГО","Х","Х","Х","Х","Х",{"$f":"M959","v":19617.400000000001},{"$f":"N958+N959","v":24356.1},{"$f":"O958","v":14441.299999999997},{"$f":"P958","v":24797.200000000004},{"$f":"Q958","v":"Х"},{"$f":"R958","v":"Х"},{"$f":"S958","v":"Х"},"Х","Х","Х","Х","Х","Х",{"$f":"M957+N957+O957+P957","v":83212}]
[{"$nulls":6},"Министерство экономического развития Забайкальского края","Х","Х","Х","Х","Х","Х",{"$f":"N962","v":1412.5},14441.299999999997,24797.200000000004,"Х","Х","Х","Х","Х","Х","Х","Х","Х",{"$f":"N958+O958+P958","v":40651}]
[{"$nulls":6},"Департамент государственных закупок Забайкальского края","Х","Х","Х","Х","Х",19617.400000000001,22943.599999999999,"Х","Х","Х","Х","Х","Х","Х","Х","Х","Х","Х",{"$f":"M959+N959","v":42561}]
[null,"Показатель \"Количество государственных закупок, охваченных мониторингом\"","ед.","Х","Абсолютный показатель","Х","Х","Х","Х","Х","Х","Х","Х",8421,8500,8500,"Х","Х","Х","Х","Х","Х","Х","Х","Х","Х"]
["6.2.1.","Мероприятие \"Финансовое обеспечение деятельности ГКУ \"ЗабГосЗакуп\"","Х",1,"Х","2014-2017","Министерство экономического развития Забайкальского края","Х","Х","Х","Х","Х","Х","Х","Х","Х","Х","Х","Х","Х","Х","Х","Х","Х","Х","Х"]
[null,"финансирование за счет краевого бюджета","тыс.рублей","Х","Х","Х","Х","ВСЕГО","Х","Х","Х","Х",{"$f":"M964","v":"Х"},{"$f":"N963+N964+N965+N966+N967","v":1412.5},{"$f":"O968+O969+O970+O971+O972+O973+O974+O975","v":14441.299999999997},{"$f":"P968+P969+P970+P972+P973+P974+P975","v":24797.200000000004},"Х","Х","Х","Х","Х","Х","Х","Х","Х",{"$f":"N962+O962+P962","v":40651}]
[{"$nulls":7},"0113","0929900","111","Х","Х","Х",863,"Х","Х","Х","Х","Х","Х","Х","Х","Х","Х","Х",{"$f":"N963","v":863}]
[{"$nulls":7},"0113","0929900","112","Х","Х","Х",1,"Х","Х","Х","Х","Х","Х","Х","Х","Х","Х","Х",{"$f":"N964","v":1}]
[{"$nulls":7},"0113","0929900","242","Х","Х","Х",322.7,"Х","Х","Х","Х","Х","Х","Х","Х","Х","Х","Х",{"$f":"N965","v":322.7}]
[{"$nulls":7},"0113","0929900","244","Х","Х","Х",225.3,"Х","Х","Х","Х","Х","Х","Х","Х","Х","Х","Х",{"$f":"N966","v":225.3}]
[{"$nulls":7},"0113","0929900","851","Х","Х","Х",0.5,"Х","Х","Х","Х","Х","Х","Х","Х","Х","Х","Х",{"$f":"N967","v":0.5}]
[{"$nulls":7},"0113","0360219908","111","Х","Х","Х","Х",{"$f":"8781.4","v":8781.4},15931,"Х","Х","Х","Х","Х","Х","Х","Х","Х",{"$f":"O968+P968","v":24712.400000000001}]
[{"$nulls":7},"0113","0360219908","112","Х","Х","Х","Х",23.4,73.2,"Х","Х","Х","Х","Х","Х","Х","Х","Х",96.6]
[{"$nulls":7},"0113","0360219908","119","Х","Х","Х","Х",2313.6,5194.7,"Х","Х","Х","Х","Х","Х","Х","Х","Х",7508.2999999999993]
[{"$nulls":7},"0113","0360219908","242","Х","Х","Х","Х",2234.5,0,"Х","Х","Х","Х","Х","Х","Х","Х","Х",2234.5]
[{"$nulls":7},"0113","0360219908","244","Х","Х","Х","Х",1084.3,3590.9,"Х","Х","Х","Х","Х","Х","Х","Х","Х",4675.2]
[{"$nulls":7},"0113","0360219908","851","Х","Х","Х","Х",0.8,0.3,"Х","Х","Х","Х","Х","Х","Х","Х","Х",1.1000000000000001]
[{"$nulls":7},"0113","0360219908","852","Х","Х","Х","Х",0,3.9,"Х","Х","Х","Х","Х","Х","Х","Х","Х",3.9]
[{"$nulls":7},"0113","0360219908","853","Х","Х","Х","Х",3.3,3.2,"Х","Х","Х","Х","Х","Х","Х","Х","Х",6.5]
[null,"Показатель \"Снижение цены при осуществлении закупки конкурентными способами определения поставщика\" ","%",1,"Эз / Зак *100, где\nЭз - сумма, полученная в результате применения закупочных процедур экономии\nЗак - общая сумма начальных (максимальных) цен по осуществленным закупкам","Х","Х","Х","Х","Х",4.5,6.7,3.8,4,4.0999999999999996,4.2,"Х","Х","Х","Х","Х","Х","Х","Х","Х","Х"]
["6.3.","Основное мероприятие \"Обеспечение повышения открытости государственных закупок\"","Х",1,"Х","2014-2017","Министерство экономического развития Забайкальского края","Х","Х","Х","Х","Х","Х","Х","Х","Х","Х","Х","Х","Х","Х","Х","Х","Х","Х","Х"]
[null,"финансирование за счет краевого бюджета","тыс.рублей","Х","Х","Х","Х","Х","Х","Х","Х","Х",0,0,0,0,"Х","Х","Х","Х","Х","Х","Х","Х","Х","Х"]
[null,"Показатель \"Доля закупок для государственных нужд, в отношении которых были проведены общественные обсуждения в случаях обязательности проведения общественных обсуждений\"","%","Х","Зпо / Зно *100, где\nЗпо - количество закупок для государственных нужд, в отношении которых в отчетном году были проведены общественные обсуждения\nЗно - количество закупок для государственных нужд, в отношении которых в отчетном году требовалось проведение общественных обсуждений","Х","Х","Х","Х","Х","Х","Х",100,100,100,100,"Х","Х","Х","Х","Х","Х","Х","Х","Х",100]
["6.4.","Основное мероприятие \"Развитие автоматизированной системы размещения государственных закупок\"","Х",1,"Х","2014-2017","Министерство экономического развития Забайкальского края","Х","Х","Х","Х","Х","Х","Х","Х","Х","Х","Х","Х","Х","Х","Х","Х","Х","Х","Х"]
[null,"финансирование за счет краевого бюджета","тыс.рублей","Х","Х","Х","Х","Х","Х","Х",0,0,0,0,0,0,"Х","Х","Х","Х","Х","Х","Х","Х","Х","Х"]
[null,"Показатель \"Доля заказчиков, осуществляющих закупки с использованием автоматизированной информационной системы\"","%","Х","Зс / З *100, где\nЗс - количество заказчиков, осуществляющих закупки с использованием региональной автоматизированной системы\nЗ - общее количество заказчиков","Х","Х","Х","Х","Х",54,48,58,30,32,34,"Х","Х","Х","Х","Х","Х","Х","Х","Х","Х"]
[null,"Задача \"Создание условий для реализации полномочий Министерства экономического развития Забайкальского края \"","Х","Х","Х","Х","Х","Х","Х","Х","Х","Х","Х","Х","Х","Х","Х","Х","Х","Х","Х","Х","Х","Х","Х","Х"]
["7.","Обеспечивающая подпрограмма","Х",1,"Х","Х","Министерство экономического развития Забайкальского края","Х","Х","Х","Х","Х","Х","Х","Х","Х","Х","Х","Х","Х","Х","Х","Х","Х","Х","Х"]
[null,"финансирование за счет краевого бюджета","тыс.рублей","Х","Х","Х","ВСЕГО","Х","Х","Х","Х","Х",{"$f":"M988","v":44120.6},{"$f":"N988+N1017","v":57151.400000000009},{"$f":"O988+O1017","v":72180.3},{"$f":"P988","v":61395.600000000006},53256.4,50304.1,54592.999999999993,48739.799999999996,59358.31,51940.2,48648.6,48648.6,0,{"$f":"M985+N985+O985+P985+Q985+R985+S985+T985+U985+V985+W985+X985","v":650336.90999999992}]
[null,"Показатель \"Степень достижения установленных значений целевых показателей государственной программы и входящих в нее подпрограмм\"","%",1,"∑ (Мфi /Мплi*100) / i, где\nМфi - фактическое значение i-го показателя,\nМплi - плановое значение i-го  показателя, i - количество показателей","Х","Х","Х","Х","Х",0,0,100,100,100,100,100,100,100,100,100,100,100,"Х","Х",100]
["7.1.","Основное мероприятие \"Обеспечение деятельности Министерства экономического развития Забайкальского края в установленной сфере деятельности\"","Х",1,"Х","2014-2025","Министерство экономического развития Забайкальского края","Х","Х","Х","Х","Х","Х","Х","Х","Х","Х","Х","Х","Х","Х","Х","Х","Х","Х","Х"]
[null,"финансирование за счет краевого бюджета","тыс.рублей","Х","Х","Х","Х","Х","Х","Х","Х","Х",{"$f":"M991","v":44120.6},54576.000000000007,62922.1,61395.600000000006,53256.4,50304.1,54592.999999999993,48739.799999999996,59358.31,51940.2,48648.6,48648.6,"Х",{"$f":"M988+N988+O988+P988+Q988+R988+S988+T988+U988+V988+W988+X988","v":638503.30999999994}]
[null,"Показатель \"Доля гражданских служащих Министерства экономического развития Забайкальского края, выполнивших индивидуальные планы профессионального развития государственного гражданского служащего Забайкальского края\"","%","Х","Сквал / С *100, где\nСквал - количество гражданских служащих Министерства экономического развития Забайкальского края, выполнивших индивидуальные планы\nС - общее количество гражданских служащих Министерства экономического развития Забайкальского края","2014-2025","Министерство экономического развития Забайкальского края","Х","Х","Х",100,100,100,100,100,100,100,100,100,100,100,100,100,100,"Х",100]
["7.1.1.","Мероприятие \"Обеспечение деятельности Министерства экономического развития Забайкальского края в установленной сфере деятельности\"","Х","Х","Х","2014-2025","Министерство экономического развития Забайкальского края","Х","Х","Х","Х","Х","Х","Х","Х","Х","Х","Х","Х","Х","Х","Х","Х","Х","Х","Х"]
[null,"финансирование за счет краевого бюджета","тыс.рублей","Х","Х","Х","Х","ВСЕГО","Х","Х","Х","Х",{"$f":"M992+M993+M994+M995+M996+M997+M999+M1000+M1001","v":44120.6},{"$f":"N992+N993+N994+N995+N996+N997+N998+N1000+N1001","v":54576.000000000007},{"$f":"O1002+O1003+O1004+O1005+O1006+O1009+O1010+O1011+O1012+O1013+O1007","v":62922.1},{"$f":"P1002+P1003+P1004+P1005+P1006+P1009+P1010+P1011+P1012+P1013+P1007+P1014","v":61395.600000000006},{"$f":"Q1002+Q1003+Q1004+Q1005+Q1006+Q1009+Q1010+Q1011+Q1012+Q1013+Q1007","v":53256.4},{"$f":"R1002+R1003+R1004+R1005+R1006+R1009+R1010+R1011+R1012+R1013+R1007","v":50304.1},{"$f":"S1002+S1003+S1004+S1005+S1006+S1009+S1010+S1011+S1012+S1013+S1007","v":54592.999999999993},{"$f":"T1002+T1003+T1004+T1005+T1006+T1009+T1010+T1011+T1012+T1013+T1007+T1008","v":48739.799999999996},{"$f":"U1002+U1003+U1004+U1005+U1006+U1009+U1010+U1011+U1012+U1013+U1007+U1008","v":59358.31},{"$f":"V1002+V1003+V1004+V1005+V1006+V1009+V1010+V1011+V1012+V1013+V1007","v":51940.2},{"$f":"W1002+W1003+W1004+W1005+W1006+W1009+W1010+W1011+W1012+W1013+W1007","v":48648.6},{"$f":"X1002+X1003+X1004+X1005+X1006+X1009+X1010+X1011+X1012+X1013+X1007","v":48648.6},"Х",{"$f":"M991+N991+O991+P991+Q991+R991+S991+T991+U991+V991+W991+X991","v":638503.30999999994}]
[{"$nulls":7},"0113","0020400","121","Х","Х",40388,46993.1,"Х","Х","Х","Х","Х","Х","Х","Х","Х","Х","Х",{"$f":"M992+N992","v":87381.1}]
[{"$nulls":7},"0113","0020400","122","Х","Х",1281.5,1242.8,"Х","Х","Х","Х","Х","Х","Х","Х","Х","Х","Х",2524.3000000000002]
[{"$nulls":7},"0113","0020400","242","Х","Х",799.9,344.3,"Х","Х","Х","Х","Х","Х","Х","Х","Х","Х","Х",1144.2]
[{"$nulls":7},"0113","0020400","244","Х","Х",806.6,25.4,"Х","Х","Х","Х","Х","Х","Х","Х","Х","Х","Х",832]
[{"$nulls":7},"0113","0020400","321","Х","Х",40,3,"Х","Х","Х","Х","Х","Х","Х","Х","Х","Х","Х",43]
[{"$nulls":7},"0113","0020400","851","Х","Х",0.6,1,"Х","Х","Х","Х","Х","Х","Х","Х","Х","Х","Х",1.6]
[{"$nulls":7},"0113","0020400","852","Х","Х","Х",3.9,"Х","Х","Х","Х","Х","Х","Х","Х","Х","Х","Х",{"$f":"N998","v":3.9}]
[{"$nulls":7},"0113","0700400","244","Х","Х",99,"Х","Х","Х","Х","Х","Х","Х","Х","Х","Х","Х","Х",{"$f":"M999","v":99}]
[{"$nulls":7},"0113","0920300","242","Х","Х",107.9,222.8,"Х","Х","Х","Х","Х","Х","Х","Х","Х","Х","Х",{"$f":"M1000+N1000","v":330.70000000000005}]
[{"$nulls":7},"0113","0920300","244","Х","Х",597.1,5739.7,"Х","Х","Х","Х","Х","Х","Х","Х","Х","Х","Х",{"$f":"M1001+N1001","v":6336.8}]
[{"$nulls":7},"0113","0370129400","121","Х","Х","Х","Х",40645.699999999997,35923.9,35977.5,35514.199999999997,37130.6,34081.199999999997,39928.019999999997,37364.5,37364.5,37364.5,"Х",{"$f":"O1002+P1002+Q1002+R1002+S1002+T1002+U1002+V1002+W1002+X1002","v":371294.62}]
[{"$nulls":7},"0113","0370129400","122","Х","Х","Х","Х",2180.9,1915.3,3168.1,2215,1886.1,2016,3195.5,1350,0,0,"Х",17926.900000000001]
[{"$nulls":7},"0113","0370129400","129","Х","Х","Х","Х",11589.5,10993.5,10871.6,9988,10944.4,9621.2000000000007,12058.28,11284.1,11284.1,11284.1,"Х",109918.78000000001]
[{"$nulls":7},"0113","0370129400","242","Х","Х","Х","Х",496.5,0,282.8,300,396.5,387.4,300,300,0,0,"Х",2463.1999999999998]
[{"$nulls":7},"0113","0370129400","244","Х","Х","Х","Х",40,336.9,25,44.6,61.1,51.7,30,25,0,0,"Х",614.30000000000007]
[{"$nulls":7},"0113","0370129400","853","Х","Х","Х","Х",40,9.3000000000000007,0.3,1.9,0,0,0,0,0,0,"Х",51.499999999999993]
[{"$nulls":7},"0113","0370129400","321","Х","Х","Х","Х","Х","Х","Х","Х","Х",7.9,3.93,"Х","Х","Х","Х",{"$f":"T1008+U1008","v":11.83}]
[{"$nulls":7},"0113","0370149300","242","Х","Х","Х","Х",196.5,0,1282,672.5,626.20000000000005,480.5,429.4,324.10000000000002,0,0,"Х",{"$f":"O1009+P1009+Q1009+R1009+S1009+T1009+U1009+V1009+W1009+X1009","v":4011.2}]
[{"$nulls":7},"0113","0370149300","244","Х","Х","Х","Х",6145.8,11673.7,1648.9,1567.9,3548.1,2093.9,3413.18,1292.5,0,0,"Х",{"$f":"O1010+P1010+Q1010+R1010+S1010+T1010+U1010+V1010+W1010+X1010","v":31383.980000000003}]
[{"$nulls":7},"0113","0370149300","831","Х","Х","Х","Х",1578,359.9,0,0,0,0,0,0,0,0,"Х",{"$f":"O1011+P1011+Q1011+R1011+S1011+T1011+U1011+V1011+W1011+X1011","v":1937.9}]
[{"$nulls":7},"0113","0370149300","851","Х","Х","Х","Х",1.2,0.2,0.1,0,0,0,0,0,0,0,"Х",{"$f":"O1012+P1012+Q1012+R1012+S1012+T1012+U1012+V1012+W1012+X1012","v":1.5}]
[{"$nulls":7},"0113","0370149300","853","Х","Х","Х","Х",8,3,0.1,0,0,0,0,0,0,0,"Х",{"$f":"O1013+P1013+Q1013+R1013+S1013+T1013+U1013+V1013+W1013+X1013","v":11.1}]
[{"$nulls":7},"0113","0370169300","244","Х","Х","Х","Х","Х",179.9,"Х","Х","Х","Х","Х","Х","Х","Х","Х",{"$f":"P1014","v":179.9}]
[null,"Показатель \"Доля гражданских служащих Министерства экономического развития Забайкальского края, выполнивших индивидуальные планы профессионального развития государственного гражданского служащего Забайкальского края\"","%","Х","Сквал / С *100, где\nСквал - количество гражданских служащих Министерства экономического развития Забайкальского края, выполнивших индивидуальные планы\nС - общее количество гражданских служащих Министерства экономического развития Забайкальского края","2014-2025","Министерство экономического развития Забайкальского края","Х","Х","Х",100,100,100,100,100,100,100,100,100,100,100,100,100,100,"Х",100]
["7.2.","Основное мероприятие \"Анализ состояния условий и охраны труда, причин производственного травматизма и профессиональной заболеваемости на территории муниципальных образований Забайкальского края. Осуществление уведомительной регистрации коллективных договоров организаций всех форм собственности и территориальных соглашений\"","Х",1,"Х","2014-2016","Министерство экономического развития Забайкальского края","Х","Х","Х","Х","Х","Х","Х","Х","Х","Х","Х","Х","Х","Х","Х","Х","Х","Х","Х"]
[null,"финансирование за счет краевого бюджета","тыс. рублей",null,"Х",null,null,"Х","Х","Х","Х","Х","Х",{"$f":"N1020","v":2575.4},{"$f":"O1021","v":9258.2000000000007},"Х","Х","Х","Х","Х","Х","Х","Х","Х","Х",{"$f":"N1017+O1017","v":11833.6}]
[null,"Показатель \"Коэффициент эффективности системы государственного управления охраной труда в муниципальных образованиях Забайкальского края\"",null,"Х","∑ ((Коб+Кмп+Кд+Ксо))/Чз * 100, где\nN - количество муниципальных образований Забайкальского края,\nКоб - количество обученных по охране труда (чел.),\nКмп - количество работодателей, которым оказана методическая помощь (чел,),\nКд - количество работников, занятых на рабочих местах, в отношении которых подана декларация соответствия государственным нормативным требованиям охраны труда (чел.),\nКсо - количество работников, занятых на рабочих местах, где проведена специальная оценка условий труда (чел.),\nЧз - численность занятых в экономике","2015-2016","Министерство экономического развития Забайкальского края","Х","Х","Х","Х","Х","Х",11,15,"Х","Х","Х","Х","Х","Х","Х","Х","Х","Х","Х"]
["7.2.1.","Мероприятие \"Анализ состояния условий и охраны труда, причин производственного травматизма и профессиональной заболеваемости на территории муниципальных образований Забайкальского края. Осуществление уведомительной регистрации коллективных договоров организаций всех форм собственности и территориальных соглашений\"","Х","Х","Х","2014-2016","Министерство экономического развития Забайкальского края","Х","Х","Х","Х","Х","Х","Х","Х","Х","Х","Х","Х","Х","Х","Х","Х","Х","Х","Х"]
[null,"финансирование за счет краевого бюджета","тыс. рублей","Х","Х","Х","Х","0104",5210206,530,"Х","Х","Х",2575.4,0,"Х","Х","Х","Х","Х","Х","Х","Х","Х","Х",{"$f":"N1020","v":2575.4}]
[{"$nulls":7},"0104","0370279206","530","Х","Х","Х","Х",9258.2000000000007,"Х","Х","Х","Х","Х","Х","Х","Х","Х","Х",{"$f":"O1021","v":9258.2000000000007}]
[null,"Показатель \"Количество коллективных договоров организаций всех форм собственности и территориальных соглашений, прошедших уведомительную регистрацию\"","ед.","Х","Абсолютный показатель","2014-2016","Министерство экономического развития Забайкальского края","Х","Х","Х","Х","Х",300,305,305,"Х","Х","Х","Х","Х","Х","Х","Х","Х","Х",{"$f":"M1022+N1022+O1022","v":910}]
[null,"Задача \"Формирование конкурентоспособного, сбалансированного промышленного комплекса, устойчивого к колебаниям мировой экономической конъюнктуры\"","Х","Х","Х","Х","Х","Х","Х","Х","Х","Х","Х","Х","Х","Х","Х","Х","Х","Х","Х","Х","Х","Х","Х","Х"]
["8.","Подпрограмма  «Развитие промышленности в Забайкальском крае»","Х",1,"Х","2019-2026","Министерство экономического развития Забайкальского края","Х","Х","Х","Х","Х","Х","Х","Х","Х","Х","Х","Х","Х","Х","Х","Х","Х","Х","Х"]
[null,"финансирование за счет краевого бюджета","тыс.рублей","Х","Х","Х","Х","Х","Х","Х","Х","Х","Х","Х","Х","Х","Х",{"$f":"R1033","v":14000},{"$f":"S1033","v":30000},{"$f":"T1033","v":100000},{"$f":"U1033+U1107+U1047+U1057","v":110130.69190000001},{"$f":"V1033+V1107","v":0},{"$f":"W1033+W1107","v":50000},{"$f":"X1033+X1107","v":41300.300000000003},{"$f":"Y1033+Y1107","v":0},{"$f":"R1025+S1025+T1025+U1025+V1025+W1025+X1025","v":345430.99189999996}]
[null,"кроме того, финансирование из других источников:","тыс.рублей","Х","Х","Х","Х","Х","Х","Х","Х","Х","Х","Х","Х","Х","Х",{"$f":"SUM(R1027:R1029)","v":0},0,0,{"$f":"SUM(U1027:U1029)","v":165748},0,200000,0,{"$f":"SUM(Y1027:Y1029)","v":0},365748]
[null," - из федерального бюджета","тыс.рублей","Х","Х","Х","Х","Х","Х","Х","Х","Х","Х","Х","Х","Х","Х",0,0,0,{"$f":"U1035+U1109+U1049+U1059","v":165748},{"$f":"V1035+V1109","v":0},{"$f":"W1035+W1109","v":200000},{"$f":"X1035+X1109","v":0},{"$f":"Y1035+Y1109","v":0},{"$f":"U1027+V1027+W1027","v":365748}]
[null," - из местных бюджетов","тыс.рублей","Х","Х","Х","Х","Х","Х","Х","Х","Х","Х","Х","Х","Х","Х",0,0,0,0,0,0,0,0,0]
[null," - из внебюджетных источников","тыс.рублей","Х","Х","Х","Х","Х","Х","Х","Х","Х","Х","Х","Х","Х","Х",0,0,0,0,0,0,0,0,0]
[null,"Показатель \"Индекс промышленного производства, в % к предыдущему году\"","%","Х","Агрегированный индекс производства по видам деятельности \"Добыча полезных ископаемых\", \"Обрабатывающие производства\", \"Производство и распределение электроэнергии, газа и воды\"","2019-2026","Министерство экономического развития Забайкальского края","Х","Х","Х","Х","Х","Х","Х","Х","Х","Х",103.7,104.3,108.5,102.5,104,101.6,103.7,104.9,"Х"]
[null,"Показатель \"Удельный вес промышленного производства в валовом региональном продукте\"","%","Х","объем производства по видам деятельности \"Добыча полезных ископаемых\", \"Обрабатывающие производства\", \"Производство и распределение электроэнергии, газа и воды\"/ВРП*100","2019-2026","Министерство экономического развития Забайкальского края","Х","Х","Х","Х","Х","Х","Х","Х","Х","Х",28.9,30,33.1,54.3,54.9,55.2,57.3,57.3,"Х"]
["8.1.","Основное мероприятие «Формирование Фонда развития промышленности Забайкальского края» ","Х",1,"Х","2019-2026"," Министерство экономического развития Забайкальского края","Х","Х","Х","Х","Х","Х","Х","Х","Х","Х","Х","Х","Х","Х","Х","Х","Х","Х","Х"]
[null,"финансирование за счет краевого бюджета","тыс.рублей","Х","Х","Х","Х","0412","0380106820","633","Х","Х","Х","Х","Х","Х","Х",14000,30000,{"$f":"T1040","v":100000},{"$f":"U1040","v":60000},{"$f":"V1040+V1047","v":0},{"$f":"W1040+W1047","v":30000},{"$f":"X1040","v":41300.300000000003},0,{"$f":"R1033+S1033+T1033+U1033+V1033+W1033+X1033","v":275300.3}]
[null,"кроме того, финансирование из других источников:","тыс.рублей","Х","Х","Х","Х","Х","Х","Х","Х","Х","Х","Х","Х","Х","Х",0,0,0,{"$f":"U1035","v":0},{"$f":"V1035","v":0},{"$f":"W1035","v":120000},{"$f":"X1035","v":"0"},"Х",{"$f":"Z1035","v":120000}]
[null," - из федерального бюджета","тыс.рублей","Х","Х","Х","Х","Х","Х","Х","Х","Х","Х","Х","Х","Х","Х",0,0,0,0,{"$f":"V1049","v":0},{"$f":"W1049","v":120000},{"$f":"X1049","v":"0"},0,{"$f":"U1035+V1035+W1035","v":120000}]
[null," - из местных бюджетов","тыс.рублей","Х","Х","Х","Х","Х","Х","Х","Х","Х","Х","Х","Х","Х","Х",0,0,0,0,0,0,0,"Х",0]
[null," - из внебюджетных источников","тыс.рублей","Х","Х","Х","Х","Х","Х","Х","Х","Х","Х","Х","Х","Х","Х",0,0,0,0,0,0,0,"Х",0]
[null,"Показатель \"Количество инвестиционных проектов в сфере промышленности, получивших поддержку за счет средств Фонда\"","ед.","Х","Абсолютный показатель","2019-2026","Министерство экономического развития Забайкальского края","Х","Х","Х","Х","Х","Х","Х","Х","Х",0,4,3,1,4,0,0,"Х","Х",{"$f":"R1038+S1038+T1038+U1038+V1038+W1038","v":12}]
["8.1.1.","Мероприятие «Пополнение активов Фонда развития промышленности Забайкальского края с целью выдачи займов субъектам деятельности в сфере промышленности на реализацию инвестиционных проектов» ","Х","Х","Х","2019-2026"," Министерство экономического развития Забайкальского края","Х","Х","Х","Х","Х","Х","Х","Х","Х","Х",0,0,0,0,0,0,"Х","Х",0]
[null,"финансирование за счет краевого бюджета","тыс.рублей","Х","Х","2019-2026","Х","0412","0380106820",633,"Х","Х","Х","Х","Х","Х","Х",14000,30000,100000,60000,0,0,41300.300000000003,"Х",{"$f":"SUM(R1040:X1040)","v":245300.3}]
[null,"кроме того, финансирование из других источников:","тыс.рублей","Х","Х","2019-2026","Х","Х","Х","Х","Х","Х","Х","Х","Х","Х","Х",0,0,0,0,0,0,"Х","Х",0]
[null," - из федерального бюджета","тыс.рублей","Х","Х","2019-2026","Х","Х","Х","Х","Х","Х","Х","Х","Х","Х","Х",0,0,0,0,0,0,"Х",0,0]
[null," - из местных бюджетов","тыс.рублей","Х","Х","Х","Х","Х","Х","Х","Х","Х","Х","Х","Х","Х","Х",0,0,0,0,0,0,0,"Х",0]
[null," - из внебюджетных источников","тыс.рублей","Х","Х","Х","Х","Х","Х","Х","Х","Х","Х","Х","Х","Х","Х",0,0,0,0,0,0,0,"Х",0]
[null,"Показатель \"Количество инвестиционных проектов в сфере промышленности, получивших поддержку за счет средств Фонда\"","ед.","Х","Абсолютный показатель","2019-2026","Министерство экономического развития Забайкальского края","Х","Х","Х","Х","Х","Х","Х","Х","Х",0,4,3,1,0,0,0,"Х","Х",{"$f":"R1045+S1045+T1045+U1045+V1045+W1045","v":8}]
["8.1.2.","Мероприятие \"Финансовое обеспечение деятельности  (докапитализация) регионального фонда развития промышленности, созданного в организационно-правовой форме,предусмотренной частью 1 статьи 11 Федерального закона \"О промышленной политике в Российской Федерации\"","Х","Х","Х","2022-2026","Министерство экономического развития Забайкальского края","Х","Х","Х","Х","Х","Х","Х","Х","Х","Х","Х","Х","Х","Х","Х","Х","Х","Х","Х"]
[null,"финансирование за счет краевого бюджета","тыс.рублей","Х","Х","2022-2026","Х","0412","03801R5931",633,"Х","Х","Х","Х","Х","Х","Х","Х","Х","Х",30000,0,30000,"0","Х",30000]
[null,"кроме того, финансирование из других источников:","тыс.рублей","Х","Х","2022-2026","Х","Х","Х","Х","Х","Х","Х","Х","Х","Х","Х","Х","Х","Х",{"$nulls":4},"Х"]
[null," - из федерального бюджета","тыс.рублей","Х","Х","2022-2026","Х","0412","03801R5931","633","Х","Х","Х","Х","Х","Х","Х","Х","Х","Х",114809.5,0,120000,"0","Х",114809.5]
[null," - из местных бюджетов","тыс.рублей","Х","Х","Х","Х","Х","Х","Х","Х","Х","Х","Х","Х","Х","Х","Х","Х","Х",0,0,0,"0","Х",0]
[null," - из внебюджетных источников","тыс.рублей","Х","Х","Х","Х","Х","Х","Х","Х","Х","Х","Х","Х","Х","Х","Х","Х","Х",0,0,0,"0","Х",0]
[null,"Показатель \"Объем инвестиций в основной капитал по видам экономической деятельности раздела \"Обрабатывающие производства\" Общероссийского классификатора видов экономической деятельности (накопленным итогом), за исключением видов деятельности, не относящихся к сфере ведения Министерства промышленности и торговли Российской Федерации\"","млн.рублей",1,"Абсолютный показатель","2022-2026","Министерство экономического развития Забайкальского края","Х","Х","Х","Х","Х","Х","Х","Х","Х","Х","Х","Х","Х",24,"115","181","247",360,360]
[null,"Показатель \"Количество созданных рабочих мест (накопленным итогом)\"","ед.",1,"Абсолютный показатель","2022-2026","Министерство экономического развития Забайкальского края","Х","Х","Х","Х","Х","Х","Х","Х","Х","Х","Х","Х","Х",4,"20","26","Х","Х",{"$f":"W1053","v":"26"}]
[null,"Показатель \"Объем отгруженных товаров собственного производства, выполненных работ и услуг собственными силами по видам экономической деятельности раздела \"Обрабатывающие производства\" Общероссийского классификатора видов экономической деятельности (накопленным итогом), за исключением видов экономической деятельности, не относящихся к сфере ведения Министерства промышленности и торговли Российской Федерации\"","млн.рублей",1,"Абсолютный показатель","2022-2026","Министерство экономического развития Забайкальского края","Х","Х","Х","Х","Х","Х","Х","Х","Х","Х","Х","Х","Х",33,"154","207","354",579,579]
[null,"Показатель \"Увеличение полной учетной стоимости основных фондов за отчетный год (поступление) за счет создания новой стоимости (ввода в действие новых основных фондов, модернизации, реконструкции) по видам экономической деятельности раздела \"Обрабатывающие  производства \" Общероссийского классификатора видов экономической деятельности (накопленным итогом), за исключением видов деятельности, не относящихся к сфере ведения Министерства  промышленности и торговли Российской Федерации (строка 07 графы 4 формы федерального статистического наблюдения  № 11 \"Сведения о наличии и движении основных фондов (средств) и других нефинансовых активов\")\"","млн.рублей",1,"Абсолютный показатель","2022-2026","Министерство экономического развития Забайкальского края","Х","Х","Х","Х","Х","Х","Х","Х","Х","Х","Х","Х","Х","Х",0,2,63,156,{"$f":"Y1055","v":156}]
["8.1.3.","Мероприятие \"Реализация дополнительных мероприятий по финансовому обеспечению деятельности (докапитализации) Фонда развития промышленности Забайкальского края\"","Х","Х","Х",2022,"Министерство экономического развития Забайкальского края","Х","Х","Х","Х","Х","Х","Х","Х","Х","Х","Х","Х","Х","Х","Х","Х","Х","Х","Х"]
[null,"финансирование за счет краевого бюджета","тыс.рублей","Х","Х",2022,"Х","0412","03801RП030",632,"Х","Х","Х","Х","Х","Х","Х","Х","Х","Х",130.6919,"Х","Х","Х","Х",{"$f":"U1057","v":130.6919}]
[null,"кроме того, финансирование из других источников:","тыс.рублей","Х","Х","Х","Х","Х","Х","Х","Х","Х","Х","Х","Х","Х","Х","Х","Х","Х",0,"Х","Х","Х","Х","Х"]
[null," - из федерального бюджета","тыс.рублей","Х","Х","Х","Х","Х","Х","Х","Х","Х","Х","Х","Х","Х","Х","Х","Х","Х",12938.5,"Х","Х","Х","Х",{"$f":"U1059","v":12938.5}]
[null," - из местных бюджетов","тыс.рублей","Х","Х","Х","Х","Х","Х","Х","Х","Х","Х","Х","Х","Х","Х","Х","Х","Х",0,"Х","Х","Х","Х","Х"]
[null," - из внебюджетных источников","тыс.рублей","Х","Х","Х","Х","Х","Х","Х","Х","Х","Х","Х","Х","Х","Х","Х","Х","Х",0,"Х","Х","Х","Х","Х"]
[null,"Показатель \"Количество субъектов деятельности в сфере промышленности, получивших в 2022 году финансовую поддержку","ед.","Х","Абсолютный показатель",2022,null,"Х","Х","Х",{"$nulls":8},"Х","Х",1,"Х","Х","Х","Х",1]
["8.2.","Основное мероприятие  «Региональный проект \"Промышленный экспорт (Забайкальский край)\"»  ","Х",1,"Х","2019-2024"," Министерство экономического развития Забайкальского края","Х","Х","Х","Х","Х","Х","Х","Х","Х","Х","Х","Х","Х","Х","Х","Х","Х","Х","Х"]
[null,"финансирование за счет краевого бюджета","тыс.рублей","Х","Х","Х","Х","Х","Х","Х","Х","Х","Х","Х","Х","Х","Х","Х","Х","Х","Х","Х","Х","Х","Х","Х"]
[null,"Показатель \"Объем экспорта конкурентоспособной промышленной продукции\" ","млрд.долл. США","Х","Абсолютный показатель","2019-2024"," Министерство экономического развития Забайкальского края","Х","Х","Х","Х","Х","Х","Х","Х","Х","Х",{"$f":"R1067","v":3.7999999999999999E-2},{"$f":"S1067","v":0.04},"Х","Х","Х","Х","Х","Х","Х"]
["8.2.1.","Мероприятие «Региональный проект \"Промышленный экспорт (Забайкальский край)\"» ","Х","Х","Х","2019-2024"," Министерство экономического развития Забайкальского края","Х","Х","Х","Х","Х","Х","Х","Х","Х","Х","Х","Х","Х","Х","Х","Х","Х","Х","Х"]
[null,"Показатель \"Объем экспорта конкурентоспособной промышленной продукции\" ","млрд.долл. США","Х","Абсолютный показатель","2019-2024"," Министерство экономического развития Забайкальского края","Х","Х","Х","Х","Х","Х","Х","Х","Х","Х",3.7999999999999999E-2,0.04,"Х","Х","Х","Х","Х","Х","Х"]
["8.3.","Основное мероприятие \"Региональный проект  \"Системные меры по повышению производительности труда\"","Х",1,"Х","2023-2024","Министерство экономического развития Забайкальского края","Х","Х","Х","Х","Х","Х","Х","Х","Х","Х","Х","Х","Х","Х","Х","Х","Х","Х","Х"]
[null,"финансирование за счет краевого бюджета","тыс.рублей","Х","Х","2023-2024","Х","Х","Х","Х","Х","Х","Х","Х","Х","Х","Х","Х","Х","Х","Х",0,0,"Х","Х",0]
[null,"кроме того, финансирование из других источников:","тыс.рублей","Х","Х","Х","Х","Х","Х","Х","Х","Х","Х","Х","Х","Х","Х","Х","Х","Х","Х",0,0,"Х","Х",0]
[null," - из федерального бюджета","тыс.рублей","Х","Х","2023-2024","Х","Х","Х","Х","Х","Х","Х","Х","Х","Х","Х","Х","Х","Х","Х",0,0,"Х","Х",0]
[null," - из местных бюджетов","тыс.рублей","Х","Х","2023-2024","Х","Х","Х","Х","Х","Х","Х","Х","Х","Х","Х","Х","Х","Х","Х",0,0,"Х","Х",0]
[null," - из внебюджетных источников","тыс.рублей","Х","Х","2023-2024","Х","Х","Х","Х","Х","Х","Х","Х","Х","Х","Х","Х","Х","Х","Х",0,0,"Х","Х",0]
[null,"Показатель \"Количество руководителей, обученных по программе управленческих навыков для повышения производительности труда\"","тыс. чел., нарастающим итогом","Х","Абсолютный показатель","2023-2024","Х","Х","Х","Х","Х","Х","Х","Х","Х","Х","Х",0,0,0,0,1E-3,5.0000000000000001E-3,"Х","Х",5.0000000000000001E-3]
["8.3.1.","Мероприятие \"Региональный проект  \"Системные меры по повышению производительности труда\"","Х",1,"Х","2023-2024","Министерство экономического развития Забайкальского края","Х","Х","Х","Х","Х","Х","Х","Х","Х","Х","Х","Х","Х","Х","Х","Х","Х","Х","Х"]
[null,"финансирование за счет краевого бюджета","тыс.рублей","Х","Х","2023-2024","Х","Х","Х","Х","Х","Х","Х","Х","Х","Х","Х","Х","Х","Х","Х",0,0,"Х","Х",0]
[null,"кроме того, финансирование из других источников:","тыс.рублей","Х","Х","Х","Х","Х","Х","Х","Х","Х","Х","Х","Х","Х","Х","Х","Х","Х","Х",0,0,"Х","Х",0]
[null," - из федерального бюджета","тыс.рублей","Х","Х","2023-2024","Х","Х","Х","Х","Х","Х","Х","Х","Х","Х","Х","Х","Х","Х","Х",0,0,"Х","Х",0]
[null," - из местных бюджетов","тыс.рублей","Х","Х","2023-2024","Х","Х","Х","Х","Х","Х","Х","Х","Х","Х","Х","Х","Х","Х","Х",0,0,"Х","Х",0]
[null," - из внебюджетных источников","тыс.рублей","Х","Х","2023-2024","Х","Х","Х","Х","Х","Х","Х","Х","Х","Х","Х","Х","Х","Х","Х",0,0,"Х","Х",0]
[null,"Показатель \"Количество руководителей, обученных по программе управленческих навыков для повышения производительности труда\"","тыс. чел., нарастающим итогом","Х","Абсолютный показатель","2023-2024","Х","Х","Х","Х","Х","Х","Х","Х","Х","Х","Х",0,0,0,0,1E-3,5.0000000000000001E-3,"Х","Х",{"$f":"SUM(R1081:W1081)","v":6.0000000000000001E-3}]
["8.4.","Основное мероприятие \"Региональный проект  \"Адресная поддержка повышения производительности труда на предприятиях\"","Х",1,"Х","2023-2024","Министерство экономического развития Забайкальского края","Х","Х","Х","Х","Х","Х","Х","Х","Х","Х","Х","Х","Х","Х","Х","Х","Х","Х","Х"]
[null,"финансирование за счет краевого бюджета","тыс.рублей","Х","Х","2023-2024","Х","Х","Х","Х","Х","Х","Х","Х","Х","Х","Х","Х","Х","Х","Х",0,0,"Х","Х",0]
[null,"кроме того, финансирование из других источников:","тыс.рублей","Х","Х","Х","Х","Х","Х","Х","Х","Х","Х","Х","Х","Х","Х","Х","Х","Х","Х",0,0,"Х","Х",0]
[null," - из федерального бюджета","тыс.рублей","Х","Х","2023-2024","Х","Х","Х","Х","Х","Х","Х","Х","Х","Х","Х","Х","Х","Х","Х",0,0,"Х","Х",0]
[null," - из местных бюджетов","тыс.рублей","Х","Х","2023-2024","Х","Х","Х","Х","Х","Х","Х","Х","Х","Х","Х","Х","Х","Х","Х",0,0,"Х","Х",0]
[null," - из внебюджетных источников","тыс.рублей","Х","Х","2023-2024","Х","Х","Х","Х","Х","Х","Х","Х","Х","Х","Х","Х","Х","Х","Х",0,0,"Х","Х",0]
[null,"Показатель \"Количество предприятий-участников, внедряющих мероприятия национального проекта под федеральным управлением (с ФЦК)\"","условная единица, нарастающим итогом","Х","Абсолютный показатель","2023-2024","Х","Х","Х","Х","Х","Х","Х","Х","Х","Х","Х",0,0,0,0,2,6,"Х","Х",{"$f":"W1088","v":6}]
[null,"Показатель \"Количество сотрудников предприятий, прошедших обучение инструментам повышения производительности труда под федеральным управлением (с ФЦК)\"","человек, нарастающим итогом","Х","Абсолютный показатель","2023-2024","Х","Х","Х","Х","Х","Х","Х","Х","Х","Х","Х","Х","Х","Х","Х",36,127,"Х","Х",{"$f":"W1089","v":127}]
[null,"Показатель \"Количество представителей региональных команд, прошедших обучение инструментам повышения производительности труда\"","человек, нарастающим итогом","Х","Абсолютный показатель","2023-2024","Х","Х","Х","Х","Х","Х","Х","Х","Х","Х","Х","Х","Х","Х","Х",15,30,"Х","Х",{"$f":"W1090","v":30}]
[null,"Показатель \"Количество предприятий-участников, вовлеченных в региональный проект через получение адресной поддержки\"","условная единица, нарастающим итогом","Х","Абсолютный показатель","2023-2024","Х","Х","Х","Х","Х","Х","Х","Х","Х","Х","Х","Х","Х","Х","Х",2,6,"Х","Х",{"$f":"W1091","v":6}]
[null,"Показатель \"Количество сотрудников предприятий и представителей региональных команд, прошедших обучение инструментам повышения производительности труда\"","человек, нарастающим итогом","Х","Абсолютный показатель","2023-2024","Х","Х","Х","Х","Х","Х","Х","Х","Х","Х","Х","Х","Х","Х","Х",51,157,"Х","Х",{"$f":"W1092","v":157}]
[null,"Показатель \"Доля предприятий, достигший ежегодный 5 % прирост производительности труда на предприятиях участниках, внедряющих мероприятия национального проекта под федеральным и региональным управлением в течение трех лет участия в проекте\"","%","Х","Nппт/ Nобщпу *100, где\nNппт - число предприятий участников, внедряющих мероприятия национального проекта под федеральным и региональным управлением в течение трех лет участия в проекте, достигших ежегодный 5 % прирост производительности труда;\nNобщпу - число предприятий участников, внедряющих мероприятия национального проекта под федеральным и региональным управлением в течение трех лет участия в проекте ","2023-2024","Х","Х","Х","Х","Х","Х","Х","Х","Х","Х","Х","Х","Х","Х","Х",0,50,"Х","Х","Х"]
["8.4.1.","Мероприятие \"Региональный проект  \"Адресная поддержка повышения производительности труда на предприятиях\"","Х","Х","Х","2023-2024","Министерство экономического развития Забайкальского края","Х","Х","Х","Х","Х","Х","Х","Х","Х","Х","Х","Х","Х","Х","Х","Х","Х","Х","Х"]
[null,"финансирование за счет краевого бюджета","тыс.рублей","Х","Х","2023-2024","Х","Х","Х","Х","Х","Х","Х","Х","Х","Х","Х","Х","Х","Х","Х",0,0,"Х","Х","Х"]
[null,"кроме того, финансирование из других источников:","тыс.рублей","Х","Х","Х","Х","Х","Х","Х","Х","Х","Х","Х","Х","Х","Х","Х","Х","Х","Х",0,0,"Х","Х","Х"]
[null," - из федерального бюджета","тыс.рублей","Х","Х","2023-2024","Х","Х","Х","Х","Х","Х","Х","Х","Х","Х","Х","Х","Х","Х","Х",0,0,"Х","Х","Х"]
[null," - из местных бюджетов","тыс.рублей","Х","Х","2023-2024","Х","Х","Х","Х","Х","Х","Х","Х","Х","Х","Х","Х","Х","Х","Х",0,0,"Х","Х","Х"]
[null," - из внебюджетных источников","тыс.рублей","Х","Х","2023-2024","Х","Х","Х","Х","Х","Х","Х","Х","Х","Х","Х","Х","Х","Х","Х",0,0,"Х","Х","Х"]
[null,"Показатель \"Количество предприятий-участников, внедряющих мероприятия регионального проекта под федеральным управлением (с ФЦК)\"","условная единица, нарастающим итогом","Х","Абсолютный показатель","2023-2024","Х","Х","Х","Х","Х","Х","Х","Х","Х","Х","Х",0,0,0,0,2,6,"Х","Х",{"$f":"W1100","v":6}]
[null,"Показатель \"Количество сотрудников предприятий, прошедших обучение инструментам повышения производительности труда под федеральным управлением (с ФЦК)\"","человек, нарастающим итогом","Х","Абсолютный показатель","2023-2024","Х","Х","Х","Х","Х","Х","Х","Х","Х","Х","Х","Х","Х","Х","Х",36,127,"Х","Х",{"$f":"W1101","v":127}]
[null,"Показатель \"Количество представителей региональных команд, прошедших обучение инструментам повышения производительности труда\"","человек, нарастающим итогом","Х","Абсолютный показатель","2023-2024","Х","Х","Х","Х","Х","Х","Х","Х","Х","Х","Х","Х","Х","Х","Х",15,30,"Х","Х",{"$f":"W1102","v":30}]
[null,"Показатель \"Количество предприятий-участников, вовлеченных в региональный проект через получение адресной поддержки\"","условная единица, нарастающим итогом","Х","Абсолютный показатель","2023-2024","Х","Х","Х","Х","Х","Х","Х","Х","Х","Х","Х","Х","Х","Х","Х",2,6,"Х","Х",{"$f":"W1103","v":6}]
[null,"Показатель \"Количество сотрудников предприятий и представителей региональных команд, прошедших обучение инструментам повышения производительности труда\"","человек, нарастающим итогом","Х","Абсолютный показатель","2023-2024","Х","Х","Х","Х","Х","Х","Х","Х","Х","Х","Х","Х","Х","Х","Х",51,157,"Х","Х",{"$f":"W1104","v":157}]
[null,"Показатель \"Доля предприятий, достигший ежегодный 5 % прирост производительности труда на предприятиях участниках, внедряющих мероприятия регионального проекта под федеральным и региональным управлением в течение трех лет участия в проекте\"","%","Х","Nппт/ Nобщпу *100, где\nNппт - число предприятий участников, внедряющих мероприятия национального проекта под федеральным и региональным управлением в течение трех лет участия в проекте, достигших ежегодный 5 % прирост производительности труда;\nNобщпу - число предприятий участников, внедряющих мероприятия национального проекта под федеральным и региональным управлением в течение трех лет участия в проекте ","2023-2024","Х","Х","Х","Х","Х","Х","Х","Х","Х","Х","Х","Х","Х","Х","Х",0,50,"Х","Х","Х"]
["8.5.","Основное мероприятие \"Развитие отдельных видов экономической деятельности, относящихся к промышленному\nпроизводству, на территории Забайкальского края\"","Х","Х","Х","2022-2026","Х","Х","Х","Х","Х","Х","Х","Х","Х","Х","Х","Х","Х","Х","Х","Х","Х","Х","Х","Х"]
[null,"финансирование за счет краевого бюджета","тыс.рублей","Х","Х","Х","Х","0412","03805R5932",811,"Х","Х","Х","Х","Х","Х","Х","Х","Х","Х",{"$f":"U1117","v":20000},0,{"$f":"W1117","v":20000},0,{"$f":"Y1117","v":0},{"$f":"V1107+U1107","v":20000}]
[null,"кроме того, финансирование из других источников:","тыс.рублей","Х","Х","Х","Х","Х","Х","Х","Х","Х","Х","Х","Х","Х","Х","Х","Х","Х",{"$f":"U1109","v":38000},0,80000,0,0,38000]
[0," - из федерального бюджета","тыс.рублей","Х","Х","Х","Х","0412","03805R5932",811,"Х","Х","Х","Х","Х","Х","Х","Х","Х","Х",{"$f":"U1119","v":38000},0,{"$f":"W1119","v":80000},0,0,{"$f":"U1109+V1109","v":38000}]
[null," - из местных бюджетов","тыс.рублей","Х","Х","Х","Х","Х","Х","Х","Х","Х","Х","Х","Х","Х","Х","Х","Х","Х",0,0,0,0,"Х",0]
[null," - из внебюджетных источников","тыс.рублей","Х","Х","Х","Х","Х","Х","Х","Х","Х","Х","Х","Х","Х","Х","Х","Х","Х",0,0,0,0,"Х",0]
[null,"Показатель \"Объем инвестиций в основной капитал по видам экономической деятельности раздела \"Обрабатывающие производства\" Общероссийского классификатора видов экономической деятельности (накопленным итогом), за исключением видов деятельности, не относящихся к сфере ведения Министерства промышленности и торговли Российской Федерации\"","млн.рублей",1,"Абсолютный показатель","2022-2026","Министерство экономического развития Забайкальского края","Х","Х","Х","Х","Х","Х","Х","Х","Х","Х","Х","Х","Х",{"$f":"U1122","v":25},"88","180","348","460","460"]
[null,"Показатель \"Количество созданных рабочих мест (накопленным итогом)\"","ед.",1,"Абсолютный показатель","2022-2026","Министерство экономического развития Забайкальского края","Х","Х","Х","Х","Х","Х","Х","Х","Х","Х","Х","Х","Х",{"$f":"U1123","v":4},"28","35",{"$f":"X1123","v":"Х"},"Х","35"]
[null,"Показатель \"Объем отгруженных товаров собственного производства, выполненных работ и услуг собственными силами по видам экономической деятельности раздела \"Обрабатывающие производства\" Общероссийского классификатора видов экономической деятельности (накопленным итогом), за исключением видов экономической деятельности, не относящихся к сфере ведения Министерства промышленности и торговли Российской Федерации\"","млн.рублей",1,"Абсолютный показатель","2022-2026","Министерство экономического развития Забайкальского края","Х","Х","Х","Х","Х","Х","Х","Х","Х","Х","Х","Х","Х",28,"134","266",{"$f":"X1124","v":"637"},"1816",{"$f":"Y1114","v":"1816"}]
[null,"Показатель \"Увеличение полной учетной стоимости основных фондов за отчетный год (поступление) за счет создания новой стоимости (ввода в действие новых основных фондов, модернизации, реконструкции) по видам экономической деятельности раздела \"Обрабатывающие  производства \" Общероссийского классификатора видов экономической деятельности (накопленным итогом), за исключением видов деятельности, не относящихся к сфере ведения Министерства  промышленности и торговли Российской Федерации (строка 07 графы 4 формы федерального статистического наблюдения  № 11 \"Сведения о наличии и движении основных фондов (средств) и других нефинансовых активов\")\"","млн.рублей",1,"Абсолютный показатель","2023-2026","Министерство экономического развития Забайкальского края","Х","Х","Х","Х","Х","Х","Х","Х","Х","Х","Х","Х","Х","Х",0,{"$f":"W1125","v":25},{"$f":"X1125","v":112},{"$f":"Y1125","v":190},{"$f":"Y1115","v":190}]
["8.5.1","Мероприятие \"Возмещение части затрат промышленных предприятий, связанных с приобретением нового оборудования\"","Х","Х","Х","Х","Х","Х","Х","Х","Х","Х","Х","Х","Х","Х","Х","Х","Х","Х","Х","Х","Х","Х","Х","Х"]
[null,"финансирование за счет краевого бюджета","тыс.рублей","Х","Х","2022-2026","Х","0412","03805R5932",811,"Х","Х","Х","Х","Х","Х","Х","Х","Х","Х",20000,0,20000,0,0,{"$f":"U1117+V1117","v":20000}]
[null,"кроме того, финансирование из других источников:","тыс.рублей","Х","Х","Х","Х","Х","Х","Х","Х","Х","Х","Х","Х","Х","Х","Х","Х","Х",{"$f":"U1119","v":38000},{"$f":"V1119","v":0},{"$f":"W1119","v":80000},{"$f":"X1119","v":0},"Х",{"$f":"Z1119","v":38000}]
[null," - из федерального бюджета","тыс.рублей","Х","Х","2022-2026","Х","0412","03805R5932",811,"Х","Х","Х","Х","Х","Х","Х","Х","Х","Х",38000,0,80000,0,"Х",{"$f":"U1119+V1119","v":38000}]
[null," - из местных бюджетов","тыс.рублей","Х","Х","2022-2026","Х","Х","Х","Х","Х","Х","Х","Х","Х","Х","Х","Х","Х","Х",0,0,0,0,"Х",0]
[null," - из внебюджетных источников","тыс.рублей","Х","Х","2022-2026","Х","Х","Х","Х","Х","Х","Х","Х","Х","Х","Х","Х","Х","Х",0,0,0,0,"Х",0]
[null,"Показатель \"Объем инвестиций в основной капитал по видам экономической деятельности раздела \"Обрабатывающие производства\" Общероссийского классификатора видов экономической деятельности (накопленным итогом), за исключением видов деятельности, не относящихся к сфере ведения Министерства промышленности и торговли Российской Федерации\"","млн.рублей",1,"Абсолютный показатель","2022-2026","Министерство экономического развития Забайкальского края","Х","Х","Х","Х","Х","Х","Х","Х","Х","Х","Х","Х","Х",25,"88","180","348","460",{"$f":"Y1122","v":"460"}]
[null,"Показатель \"Количество созданных рабочих мест (накопленным итогом)\"","ед.",1,"Абсолютный показатель","2022-2026","Министерство экономического развития Забайкальского края","Х","Х","Х","Х","Х","Х","Х","Х","Х","Х","Х","Х","Х",4,"28","35","Х","Х","35"]
[null,"Показатель \"Объем отгруженных товаров собственного производства, выполненных работ и услуг собственными силами по видам экономической деятельности раздела \"Обрабатывающие производства\" Общероссийского классификатора видов экономической деятельности (накопленным итогом), за исключением видов экономической деятельности, не относящихся к сфере ведения Министерства промышленности и торговли Российской Федерации\"","млн.рублей",1,"Абсолютный показатель","2022-2026","Министерство экономического развития Забайкальского края","Х","Х","Х","Х","Х","Х","Х","Х","Х","Х","Х","Х","Х",28,"134","266","637","1816",{"$f":"Y1124","v":"1816"}]
[null,"Показатель \"Увеличение полной учетной стоимости основных фондов за отчетный год (поступление) за счет создания новой стоимости (ввода в действие новых основных фондов, модернизации, реконструкции) по видам экономической деятельности раздела \"Обрабатывающие  производства \" Общероссийского классификатора видов экономической деятельности (накопленным итогом), за исключением видов деятельности, не относящихся к сфере ведения Министерства  промышленности и торговли Российской Федерации (строка 07 графы 4 формы федерального статистического наблюдения  № 11 \"Сведения о наличии и движении основных фондов (средств) и других нефинансовых активов\")\"","млн.рублей",1,"Абсолютный показатель","2022-2026","Министерство экономического развития Забайкальского края","Х","Х","Х","Х","Х","Х","Х","Х","Х","Х","Х","Х","Х","Х","Х",25,112,190,{"$f":"Y1125","v":190}]
[{"$nulls":26},"\"."]
[{"$nulls":6},"__________________________________________\"."]